Workbook

Sheet Menu
Z1: 2
Z4: 2
A6: West Central Extension District - 7
D8: Budgets
D11: Forage Crops
D13: =+AlfalfaEstablish!A3 -> Alfalfa, Roundup Ready, Establishment, Center Pivot Irrigated
D14: =AlfalfaHayPivot!A3 -> Alfalfa, RoundUp Ready, Full Season, Baled - 6.5 ton, Center Pivot Irrigated
D15: =CoastalEstablishDryland!A3 -> Dryland Bermudagrass Establishment
D16: =CoastalHayDryland!A3 -> Dryland Bermudagrass Hay
D17: =OatsDryland!A3 -> Dryland Forage Oats, Follow Small Grains
B18: Comparative Returns | D18: =SorghumHaygrazer!A3 -> Non-Irrigated Sorghum Haygrazer, 3 ton yield
B20: Links | D20: Field Crops
D22: =DrylandCanola!A3 -> Dryland Canola (Do Not Publish)
D23: =CottonDripRF!A3 -> Drip Irrigated Cotton, RF
D24: =CottonDripXF!A3 -> Drip Irrigated Cotton, Auxin Technology
D25: =CottonDrylandRF!A3 -> Dryland Cotton, B2RF, Follow Wheat
D26: =CottonDrylandXF!A3 -> Dryland Cotton, Auxin Technology, Follow Wheat
D27: =OatsGrainDryland!A3 -> Dryland Oats, Follow Small Grains
D28: =SunflowersDryland!A3 -> Non-Irrigated Sunflowers (Non-Confectionary)-Do Not Publish
D29: =SesameDryland!A3 -> Dryland Sesame
D30: =SorghumDryland!A3 -> No-Till Dryland Sorghum, Follow Cotton
D31: =ConTillWheat!A3 -> Con-Till Wheat, Dryland, Follow Wheat
D32: =WheatDryland!A3 -> No-Till Wheat, Dryland, Follow Cotton
D34: Livestock
D36: =+CowCalf!A3 -> Cow-Calf Native Pasture
D37: =CommercialHairSheep!A3 -> Commercial Hair Sheep, Lamb Production, 6 Head per AU
D38: =CommercialSheep!A3 -> Commercial Sheep, Wool/Lamb Production, 5 Head per AU
D39: =MeatGoats!A3 -> Commercial Meat Goats, 6 Head per AU
D40: =SmallAcreageGoat!A3 -> Small Acreage Meat Goats
D41: =SmallAcreageHairSheep!A3 -> Small Acreage Hair Sheep
D42: =+NativePastureStockers!A3 -> Stocker Calf Budget - Native Pasture - Summer
D43: =WheatStockersMar15!A3 -> Stocker Calf Budget - Pull off Wheat March 15
D44: =FatLambs!A3 -> Wool Breed Fat Lamb Budget - Commercial Feedlot (Do Not Publish)
D46: Other Budgets
D48: ='Livestock Budget'!A3 -> Livestock Budget
D49: ='Crop Budget'!A3 -> Crop Enterprise
A65: Developed by Jeffrey Wright, Assistant Professor & Extension Economist, Texas A&M AgriLife Extension, 325-657-7309

Sheet Links
B2: Texas Crop and Livestock Budgets
B3: A Program of the Texas A&M AgriLife Extension Service
B4: Agricultural Economics Department, The Texas A&M University System
B6: Developed by Texas A&M AgriLife Extension Service Economists and Other Specialists
B8: Contact Us | G8: Clickable Logos
B10: Resources
B12: Decision Aids (includes Machinery Cost Estimator)
B14: Custom Rate Survey
B16: Basis Data
B18: Master Marketer
B20: Extension Ag Economics
B22: Department of Agricultural Economics
B24: Menu Page
B26: Links last checked 11/14/2024

Sheet OatsGrainDryland
A1: Projections for Planning Purposes Only -- Not to be Used without Updating
A2: 2025 Estimated Costs and Returns per Acre
A3: Dryland Oats, Follow Small Grains
A4: Enter your name for this budget in the cell above.
A5: Enter Your Values in the cells highlighed in MAROON.
E6: Your Acres | R6: Your
C7: Crop Acres | D7: 100 | L7: Your | Q7: Enterprise | R7: Enterprise
E8: Your | H8: Your | I8: Cash | J8: Your | K8: Landlord | L8: Landlord | N8: Your | P8: Your | Q8: Total | R8: Total
A9: REVENUE | D9: Quantity | E9: Quantity | F9: Units | G9: $/Unit | H9: $/Unit | I9: Total | J9: Total | K9: Share | L9: Share | M9: Landlord | N9: Landlord | O9: Tenant | P9: Tenant | Q9: (100 acres) | R9: ="(" & E7 & " acres)" -> ( acres)
B10: Winter Oats | D10: 35 | F10: Bushel | G10: 3.75 | I10: 131.25 | J10: =E10*H10 -> 0 | K10: 0 | M10: 0 | N10: =J10*L10 -> 0 | O10: 131.25 | P10: =+J10-N10 -> 0 | Q10: 13125 | R10: =+J10*E$7 -> 0
D11: 0 | G11: 0 | I11: 0 | J11: 0 | K11: 0 | M11: 0 | N11: 0 | O11: 0 | P11: =+J11-N11 -> 0 | Q11: 0 | R11: 0
D12: 0 | G12: 0 | I12: 0 | J12: 0 | K12: 0 | M12: 0 | N12: 0 | O12: 0 | P12: 0 | Q12: 0 | R12: 0
A13: Total Revenue | I13: 131.25 | J13: =SUM(J10:J12) -> 0 | M13: 0 | N13: =SUM(N10:N12) -> 0 | O13: 131.25 | P13: =SUM(P10:P12) -> 0 | Q13: 13125 | R13: =SUM(R10:R12) -> 0
Q14: Enterprise | R14: Enterprise
A15: VARIABLE COSTS | D15: Quantity | E15: Quantity | F15: Units | G15: $/Unit | H15: $/Unit | I15: Total | J15: Total | K15: Share | L15: Share | M15: Landlord | N15: Landlord | O15: Tenant | P15: Tenant | Q15: Total | R15: Total
A16: Production Costs
B17: Fertilizer
C18: Nitrogen Dry-Urea | D18: 5 | F18: Pounds | G18: 0.62 | I18: 3.1 | J18: =E18*H18 -> 0 | K18: 0 | M18: 0 | N18: =J18*L18 -> 0 | O18: 3.1 | P18: =+J18-N18 -> 0 | Q18: 310 | R18: =+J18*E$7 -> 0
C19: Phos (11-52-0 DRY MAT) | D19: 18 | F19: Pounds | G19: 1.29 | I19: 23.22 | J19: 0 | K19: 0 | M19: 0 | N19: 0 | O19: 23.22 | P19: 0 | Q19: 2322 | R19: 0
C20: Nitrogen N32 | D20: 35 | F20: Pounds | G20: 0.62 | I20: 21.7 | J20: 0 | K20: 0 | M20: 0 | N20: 0 | O20: 21.7 | P20: 0 | Q20: 2170 | R20: 0
B21: Herbicide
C22: 2-4D Amine 4 | D22: 1 | F22: Pint | G22: 1.6125 | I22: 1.6125 | J22: 0 | K22: 0 | M22: 0 | N22: 0 | O22: 1.6125 | P22: 0 | Q22: 161.25 | R22: 0
C23: MSM (Ally) | D23: 0.14 | F23: Ounce | G23: 4.5 | I23: 0.63 | J23: 0 | K23: 0 | M23: 0 | N23: 0 | O23: 0.63 | P23: 0 | Q23: 63 | R23: 0
B24: Custom
C25: Soil Test-Dryland | D25: 1 | F25: Each | G25: 0.25 | I25: 0.25 | J25: 0 | K25: 0 | M25: 0 | N25: 0 | O25: 0.25 | P25: 0 | Q25: 25 | R25: 0
C26: Custom Harvest small grains | D26: 1 | F26: Acre | G26: 23 | I26: 23 | J26: 0 | K26: 0 | M26: 0 | N26: 0 | O26: 23 | P26: 0 | Q26: 2300 | R26: 0
C27: Custom Haul small grains | D27: 25 | F27: Bushels | G27: 0.35 | I27: 8.75 | J27: 0 | K27: 0 | M27: 0 | N27: 0 | O27: 8.75 | P27: 0 | Q27: 875 | R27: 0
B28: Seed
C29: Oat Seed | D29: 45 | F29: Pound | G29: 0.33 | I29: 14.85 | J29: 0 | K29: 0 | M29: 0 | N29: 0 | O29: 14.85 | P29: 0 | Q29: 1485 | R29: 0
B30: Miscellaneous
C31: Oats Crop Insurance | D31: 1 | F31: Acre | G31: 13 | I31: 13 | J31: 0 | K31: 0 | M31: 0 | N31: 0 | O31: 13 | P31: 0 | Q31: 1300 | R31: 0
D32: 0 | G32: 0 | I32: 0 | J32: 0 | K32: 0 | M32: 0 | N32: 0 | O32: 0 | P32: 0 | Q32: 0 | R32: 0
D33: 0 | G33: 0 | I33: 0 | J33: 0 | K33: 0 | M33: 0 | N33: 0 | O33: 0 | P33: 0 | Q33: 0 | R33: 0
D34: 0 | G34: 0 | I34: 0 | J34: =E34*H34 -> 0 | K34: 0 | M34: 0 | N34: =J34*L34 -> 0 | O34: 0 | P34: =+J34-N34 -> 0 | Q34: 0 | R34: =+J34*E$7 -> 0
B35: Machinery Labor
C36: Tractors/Self-Propelled | D36: 0.18 | F36: Hour | G36: 17.21 | I36: 3.0978 | J36: =E36*H36 -> 0 | K36: 0 | M36: 0 | N36: =J36*L36 -> 0 | O36: 3.0978 | P36: =+J36-N36 -> 0 | Q36: 309.78 | R36: =+J36*E$7 -> 0
C37: Other Labor | D37: 0 | F37: Hour | G37: 17.21 | I37: 0 | J37: =E37*H37 -> 0 | K37: 0 | M37: 0 | N37: =J37*L37 -> 0 | O37: 0 | P37: =+J37-N37 -> 0 | Q37: 0 | R37: =+J37*E$7 -> 0
B39: Diesel Fuel
C40: Pickup/General Use Equipment | D40: 1 | F40: Acre | G40: 0 | I40: 0 | J40: =E40*H40 -> 0 | K40: 0 | M40: 0 | N40: =J40*L40 -> 0 | O40: 0 | P40: =+J40-N40 -> 0 | Q40: 0 | R40: =+J40*E$7 -> 0
C41: Tractors/Self-Propelled | D41: 1.58 | F41: Gallon | G41: 2.8 | I41: 4.424 | J41: =E41*H41 -> 0 | K41: 0 | M41: 0 | N41: =J41*L41 -> 0 | O41: 4.424 | P41: =+J41-N41 -> 0 | Q41: 442.4 | R41: =+J41*E$7 -> 0
B43: Gasoline
C44: Pickup/General Use Equipment | D44: 1 | F44: Acre | G44: 2.0688 | I44: 2.0688 | J44: =E44*H44 -> 0 | K44: 0 | M44: 0 | N44: =J44*L44 -> 0 | O44: 2.0688 | P44: =+J44-N44 -> 0 | Q44: 206.88 | R44: =+J44*E$7 -> 0
C45: Tractors/Self-Propelled | D45: 0 | F45: Gallon | G45: 2.7 | I45: 0 | J45: =E45*H45 -> 0 | K45: 0 | M45: 0 | N45: =J45*L45 -> 0 | O45: 0 | P45: =+J45-N45 -> 0 | Q45: 0 | R45: =+J45*E$7 -> 0
B47: Repairs & Maintenance
C48: Pickup/General Use Equipment | D48: 1 | F48: Acre | G48: 1.37 | I48: 1.37 | J48: =E48*H48 -> 0 | K48: 0 | M48: 0 | N48: =J48*L48 -> 0 | O48: 1.37 | P48: =+J48-N48 -> 0 | Q48: 137 | R48: =+J48*E$7 -> 0
C49: Irrigation Equipment | D49: 1 | F49: Acre | G49: 0 | I49: 0 | J49: 0 | K49: 0 | M49: 0 | N49: 0 | O49: 0 | P49: 0 | Q49: 0 | R49: 0
C50: Tractors/Self-Propelled | D50: 1 | F50: Acre | G50: 4.4743256 | I50: 4.4743256 | J50: 0 | K50: 0 | M50: 0 | N50: 0 | O50: 4.4743256 | P50: 0 | Q50: 447.43256 | R50: 0
C51: Implements | D51: 1 | F51: Acre | G51: 4.563667746 | I51: 4.563667746 | J51: 0 | K51: 0 | M51: 0 | N51: 0 | O51: 4.563667746 | P51: 0 | Q51: 456.3667746 | R51: 0
I52: 0 | J52: 0 | K52: 0 | M52: 0 | N52: 0 | O52: 0 | P52: 0 | Q52: 0 | R52: 0
I53: 0 | J53: 0 | K53: 0 | M53: 0 | N53: 0 | O53: 0 | P53: 0 | Q53: 0 | R53: 0
B54: Interest on Credit Line | G54: 0.08 | I54: 3.150161934 | J54: =+SUM(J17:J53)/2*H54 -> 0 | M54: 0 | N54: =+SUM(N17:N53)/2*L54 -> 0 | O54: 3.150161934 | P54: =+SUM(P17:P53)/2*L54 -> 0 | Q54: 315.0161934 | R54: =+J54*E$7 -> 0
A55: Total Variable Costs | I55: 133.2612553 | J55: =SUM(J18:J54) -> 0 | M55: 0 | N55: =SUM(N18:N54) -> 0 | O55: 133.2612553 | P55: =SUM(P18:P54) -> 0 | Q55: 13326.12553 | R55: =SUM(R18:R54) -> 0
A56: Planned Returns Above Variable Costs: | I56: -2.011255279 | J56: =+J13-J55 -> 0 | M56: 0 | N56: =+N13-N55 -> 0 | O56: -2.011255279 | P56: =+P13-P55 -> 0 | Q56: -201.1255279 | R56: =+R13-R55 -> 0
B57: Breakeven Price to Cover Variable Costs | G57: 3.807464437 | H57: =IF(E10=0,"n/a",(YVarExp-(YTotExp+YTotRet-J10))/E10) -> n/a | I57: Bushel
Q58: Enterprise | R58: Enterprise
A59: FIXED COSTS | D59: Quantity | E59: Quantity | F59: Units | G59: $/Unit | H59: $/Unit | I59: Total | J59: Total | K59: Share | L59: Share | M59: Landlord | N59: Landlord | O59: Tenant | P59: Tenant | Q59: Total | R59: Total
B60: Machinery Depreciation
C61: Pickup/General Use Equipment | D61: 1 | F61: Acre | G61: 2.988 | I61: 2.988 | J61: =E61*H61 -> 0 | K61: 0 | M61: 0 | N61: =J61*L61 -> 0 | O61: 2.988 | P61: =+J61-N61 -> 0 | Q61: 298.8 | R61: =+J61*E$7 -> 0
C62: Tractors/Self-Propelled | D62: 1 | F62: Acre | G62: 5.083350408 | I62: 5.083350408 | J62: 0 | K62: 0 | M62: 0 | N62: =J62*L62 -> 0 | O62: 5.083350408 | P62: 0 | Q62: 508.3350408 | R62: 0
C63: Implements | D63: 1 | F63: Acre | G63: 5.957218284 | I63: 5.957218284 | J63: 0 | K63: 0 | M63: 0 | N63: =J63*L63 -> 0 | O63: 5.957218284 | P63: 0 | Q63: 595.7218284 | R63: 0
B64: Equipment Investment
C65: Pickup/General Use Equipment | D65: 12.98 | F65: Dollars | G65: 0.08 | I65: 1.0384 | J65: =E65*H65 -> 0 | K65: 0 | M65: 0 | N65: =J65*L65 -> 0 | O65: 1.0384 | P65: =+J65-N65 -> 0 | Q65: 103.84 | R65: =+J65*E$7 -> 0
C66: Tractors/Self-Propelled | D66: 39.38726306 | F66: Dollars | G66: 0.08 | I66: 3.150981045 | J66: 0 | K66: 0 | M66: 0 | N66: =J66*L66 -> 0 | O66: 3.150981045 | P66: 0 | Q66: 315.0981045 | R66: 0
C67: Implements | D67: 25.48365599 | F67: Dollars | G67: 0.08 | I67: 2.038692479 | J67: 0 | K67: 0 | M67: 0 | N67: =J67*L67 -> 0 | O67: 2.038692479 | P67: 0 | Q67: 203.8692479 | R67: 0
B68: Salaried Labor | D68: 1 | F68: Acre | G68: 0 | I68: 0 | J68: 0 | K68: 0 | M68: 0 | N68: =J68*L68 -> 0 | O68: 0 | P68: =+J68-N68 -> 0 | Q68: 0 | R68: =+J68*E$7 -> 0
B69: Management Fee, Owner/Operator Labor | D69: 1 | F69: Acre | G69: 0 | I69: 0 | J69: 0 | K69: 0 | M69: 0 | N69: 0 | O69: 0 | P69: 0 | Q69: 0 | R69: 0
B70: Allocated Establishment Cost | D70: 1 | F70: Acre | G70: 0 | I70: 0 | J70: 0 | K70: 0 | M70: 0 | N70: 0 | O70: 0 | P70: 0 | Q70: 0 | R70: 0
B71: Rent-Dryland Crop | D71: 1 | F71: Acre | G71: 35 | I71: 35 | J71: 0 | K71: 0 | M71: 0 | N71: 0 | O71: 35 | P71: 0 | Q71: 3500 | R71: 0
B72: Property Taxes | D72: 1 | F72: Acre | G72: 0 | I72: 0 | J72: 0 | K72: 0 | M72: 0 | N72: 0 | O72: 0 | P72: 0 | Q72: 0 | R72: 0
B73: Whole Farm Insurance | D73: 1 | F73: Acre | G73: 0 | I73: 0 | J73: 0 | K73: 0 | M73: 0 | N73: 0 | O73: 0 | P73: 0 | Q73: 0 | R73: 0
D74: 1 | G74: 0 | I74: 0 | J74: 0 | K74: 0 | M74: 0 | N74: 0 | O74: 0 | P74: 0 | Q74: 0 | R74: 0
D75: 1 | G75: 0 | I75: 0 | J75: =E75*H75 -> 0 | K75: 0 | M75: 0 | N75: 0 | O75: 0 | P75: 0 | Q75: 0 | R75: 0
A76: Total Fixed Costs | I76: 55.25664222 | J76: =+SUM(J61:J75) -> 0 | M76: 0 | N76: =+SUM(N61:N75) -> 0 | O76: 55.25664222 | P76: =+SUM(P61:P75) -> 0 | Q76: 5525.664222 | R76: =+SUM(R61:R75) -> 0
A77: Total Specified Costs | I77: 188.5178975 | J77: =+J55+J76 -> 0 | M77: 0 | N77: =+N55+N76 -> 0 | O77: 188.5178975 | P77: =+P55+P76 -> 0 | Q77: 18851.78975 | R77: =+R55+R76 -> 0
A79: Returns Above Specified Costs | I79: -57.2678975 | J79: =+J13-J77 -> 0 | M79: 0 | N79: =+N13-N77 -> 0 | O79: -57.2678975 | P79: =+P13-P77 -> 0 | Q79: -5726.78975 | R79: =+R13-R77 -> 0
A81: Breakeven Price to Cover Total Costs | G81: 5.386225643 | H81: =IF(E10=0,"n/a",(YTotExp-(YTotExp+YTotRet-J10))/E10) -> n/a | I81: Bushel
D83: Example Breakeven Prices
B84: Example | C84: Example | D84: To Cover | G84: To Cover
B85: Yield | C85: Yield | D85: Variable | G85: Total
B86: Percent | C86: Bushel | D86: Costs | G86: Costs
B87: 0.75 | C87: 26.25 | D87: 5.076619249 | G87: 7.18163419
B88: 0.9 | C88: 31.5 | D88: 4.230516041 | G88: 5.984695159
B89: 1 | C89: 35 | D89: 3.807464437 | G89: 5.386225643
B90: 1.1 | C90: 38.5 | D90: 3.461331306 | G90: 4.896568766
B91: 1.25 | C91: 43.75 | D91: 3.045971549 | G91: 4.308980514
D93: Your Breakeven Prices
B94: Your | C94: Your | E94: To Cover | H94: To Cover
B95: Yield | C95: Yield | E95: Variable | H95: Total
B96: Percent | C96: Bushel | E96: Costs | H96: Costs
B97: 0.75 | C97: =E10*YPER1 -> 0 | E97: =IF($E$10=0,0,(YVarExp-(YTotExp+YTotRet-J10))/($E$10*YPER1)) -> 0 | H97: =IF($E$10=0,0,(YTotExp-(YTotExp+YTotRet-J10))/($E$10*YPER1)) -> 0
B98: 0.9 | C98: =E10*YPER2 -> 0 | E98: =IF($E$10=0,0,(YVarExp-(YTotExp+YTotRet-J10))/($E$10*YPER2)) -> 0 | H98: =IF($E$10=0,0,(YTotExp-(YTotExp+YTotRet-J10))/($E$10*YPER2)) -> 0
B99: 1 | C99: =+E10 -> 0 | E99: =IF($E$10=0,0,(YVarExp-(YTotExp+YTotRet-J10))/($E$10*YPER3)) -> 0 | H99: =IF($E$10=0,0,(YTotExp-(YTotExp+YTotRet-J10))/($E$10*YPER3)) -> 0
B100: 1.1 | C100: =E10*YPER4 -> 0 | E100: =IF($E$10=0,0,(YVarExp-(YTotExp+YTotRet-J10))/($E$10*YPER4)) -> 0 | H100: =IF($E$10=0,0,(YTotExp-(YTotExp+YTotRet-J10))/($E$10*YPER4)) -> 0
B101: 1.25 | C101: =E10*YPER5 -> 0 | E101: =IF($E$10=0,0,(YVarExp-(YTotExp+YTotRet-J10))/($E$10*YPER5)) -> 0 | H101: =IF($E$10=0,0,(YTotExp-(YTotExp+YTotRet-J10))/($E$10*YPER5)) -> 0
A103: Developed by Jeffrey Wright, Assistant Professor & Extension Economist, Texas A&M AgriLife Extension, 325-657-7309
A105: Information presented is prepared solely as a general guide and not intended to recognize or predict the costs and returns from any one operation. Brand names are mentioned only as examples and imply no endorsement.

Sheet SorghumHaygrazer
A1: Projections for Planning Purposes Only -- Not to be Used without Updating
A2: 2025 Estimated Costs and Returns per Acre
A3: Non-Irrigated Sorghum Haygrazer, 3 ton yield
A4: Enter your name for this budget in the cell above.
A5: Enter Your Values in the cells highlighed in MAROON.
E6: Your Acres | R6: Your
C7: Crop Acres | D7: 50 | L7: Your | Q7: Enterprise | R7: Enterprise
E8: Your | H8: Your | I8: Cash | J8: Your | K8: Landlord | L8: Landlord | N8: Your | P8: Your | Q8: Total | R8: Total
A9: REVENUE | D9: Quantity | E9: Quantity | F9: Units | G9: $/Unit | H9: $/Unit | I9: Total | J9: Total | K9: Share | L9: Share | M9: Landlord | N9: Landlord | O9: Tenant | P9: Tenant | Q9: (50 acres) | R9: ="(" & E7 & " acres)" -> ( acres)
B10: Hay, 1200# BRB | D10: 3 | F10: Ton | G10: 200 | I10: 600 | J10: =E10*H10 -> 0 | K10: 0 | M10: 0 | N10: =J10*L10 -> 0 | O10: 600 | P10: =+J10-N10 -> 0 | Q10: 30000 | R10: =+J10*E$7 -> 0
D11: 0 | G11: 0 | I11: 0 | J11: 0 | K11: 0 | M11: 0 | N11: 0 | O11: 0 | P11: =+J11-N11 -> 0 | Q11: 0 | R11: 0
D12: 0 | G12: 0 | I12: 0 | J12: 0 | K12: 0 | M12: 0 | N12: 0 | O12: 0 | P12: 0 | Q12: 0 | R12: 0
A13: Total Revenue | I13: 600 | J13: =SUM(J10:J12) -> 0 | M13: 0 | N13: =SUM(N10:N12) -> 0 | O13: 600 | P13: =SUM(P10:P12) -> 0 | Q13: 30000 | R13: =SUM(R10:R12) -> 0
Q14: Enterprise | R14: Enterprise
A15: VARIABLE COSTS | D15: Quantity | E15: Quantity | F15: Units | G15: $/Unit | H15: $/Unit | I15: Total | J15: Total | K15: Share | L15: Share | M15: Landlord | N15: Landlord | O15: Tenant | P15: Tenant | Q15: Total | R15: Total
A16: Production Costs
B17: Fertilizer
C18: Nitrogen Dry-Urea | D18: 40 | F18: Pounds | G18: 0.62 | I18: 24.8 | J18: =E18*H18 -> 0 | K18: 0 | M18: 0 | N18: =J18*L18 -> 0 | O18: 24.8 | P18: =+J18-N18 -> 0 | Q18: 1240 | R18: =+J18*E$7 -> 0
B19: Herbicide
C20: Husky | D20: 12 | F20: Ounce | G20: 0.886719 | I20: 10.640628 | J20: 0 | K20: 0 | M20: 0 | N20: 0 | O20: 10.640628 | P20: 0 | Q20: 532.0314 | R20: 0
B21: Custom
C22: Soil Test-Dryland | D22: 1 | F22: Each | G22: 0.25 | I22: 0.25 | J22: 0 | K22: 0 | M22: 0 | N22: 0 | O22: 0.25 | P22: 0 | Q22: 12.5 | R22: 0
C23: Swath, Rake and Bale | D23: 5 | F23: Bale | G23: 29.58 | I23: 147.9 | J23: 0 | K23: 0 | M23: 0 | N23: 0 | O23: 147.9 | P23: 0 | Q23: 7395 | R23: 0
B24: Seed
C25: Forage Sorghum | D25: 15 | F25: Pound | G25: 1.79 | I25: 26.85 | J25: 0 | K25: 0 | M25: 0 | N25: 0 | O25: 26.85 | P25: 0 | Q25: 1342.5 | R25: 0
B26: Insecticide
C27: Transform | D27: 1 | F27: Ounce | G27: 7.78125 | I27: 7.78125 | J27: 0 | K27: 0 | M27: 0 | N27: 0 | O27: 7.78125 | P27: 0 | Q27: 389.0625 | R27: 0
D28: 0 | G28: 0 | I28: 0 | J28: 0 | K28: 0 | M28: 0 | N28: 0 | O28: 0 | P28: 0 | Q28: 0 | R28: 0
D29: 0 | G29: 0 | I29: 0 | J29: 0 | K29: 0 | M29: 0 | N29: 0 | O29: 0 | P29: 0 | Q29: 0 | R29: 0
D30: 0 | G30: 0 | I30: 0 | J30: =E30*H30 -> 0 | K30: 0 | M30: 0 | N30: =J30*L30 -> 0 | O30: 0 | P30: =+J30-N30 -> 0 | Q30: 0 | R30: =+J30*E$7 -> 0
B31: Machinery Labor
C32: Tractors/Self-Propelled | D32: 0.81 | F32: Hour | G32: 17.21 | I32: 13.9401 | J32: =E32*H32 -> 0 | K32: 0 | M32: 0 | N32: =J32*L32 -> 0 | O32: 13.9401 | P32: =+J32-N32 -> 0 | Q32: 697.005 | R32: =+J32*E$7 -> 0
C33: Other Labor | D33: 0 | F33: Hour | G33: 17.21 | I33: 0 | J33: =E33*H33 -> 0 | K33: 0 | M33: 0 | N33: =J33*L33 -> 0 | O33: 0 | P33: =+J33-N33 -> 0 | Q33: 0 | R33: =+J33*E$7 -> 0
B35: Diesel Fuel
C36: Pickup/General Use Equipment | D36: 1 | F36: Acre | G36: 0 | I36: 0 | J36: =E36*H36 -> 0 | K36: 0 | M36: 0 | N36: =J36*L36 -> 0 | O36: 0 | P36: =+J36-N36 -> 0 | Q36: 0 | R36: =+J36*E$7 -> 0
C37: Tractors/Self-Propelled | D37: 6.06 | F37: Gallon | G37: 2.8 | I37: 16.968 | J37: =E37*H37 -> 0 | K37: 0 | M37: 0 | N37: =J37*L37 -> 0 | O37: 16.968 | P37: =+J37-N37 -> 0 | Q37: 848.4 | R37: =+J37*E$7 -> 0
B39: Gasoline
C40: Pickup/General Use Equipment | D40: 1 | F40: Acre | G40: 5.2344 | I40: 5.2344 | J40: =E40*H40 -> 0 | K40: 0 | M40: 0 | N40: =J40*L40 -> 0 | O40: 5.2344 | P40: =+J40-N40 -> 0 | Q40: 261.72 | R40: =+J40*E$7 -> 0
C41: Tractors/Self-Propelled | D41: 0 | F41: Gallon | G41: 2.7 | I41: 0 | J41: =E41*H41 -> 0 | K41: 0 | M41: 0 | N41: =J41*L41 -> 0 | O41: 0 | P41: =+J41-N41 -> 0 | Q41: 0 | R41: =+J41*E$7 -> 0
B43: Repairs & Maintenance
C44: Pickup/General Use Equipment | D44: 1 | F44: Acre | G44: 2.19 | I44: 2.19 | J44: =E44*H44 -> 0 | K44: 0 | M44: 0 | N44: =J44*L44 -> 0 | O44: 2.19 | P44: =+J44-N44 -> 0 | Q44: 109.5 | R44: =+J44*E$7 -> 0
C45: Irrigation Equipment | D45: 1 | F45: Acre | G45: 0 | I45: 0 | J45: 0 | K45: 0 | M45: 0 | N45: 0 | O45: 0 | P45: 0 | Q45: 0 | R45: 0
C46: Tractors/Self-Propelled | D46: 1 | F46: Acre | G46: 16.28142324 | I46: 16.28142324 | J46: 0 | K46: 0 | M46: 0 | N46: 0 | O46: 16.28142324 | P46: 0 | Q46: 814.0711618 | R46: 0
C47: Implements | D47: 1 | F47: Acre | G47: 4.691931627 | I47: 4.691931627 | J47: 0 | K47: 0 | M47: 0 | N47: 0 | O47: 4.691931627 | P47: 0 | Q47: 234.5965813 | R47: 0
I48: 0 | J48: 0 | K48: 0 | M48: 0 | N48: 0 | O48: 0 | P48: 0 | Q48: 0 | R48: 0
I49: 0 | J49: 0 | K49: 0 | M49: 0 | N49: 0 | O49: 0 | P49: 0 | Q49: 0 | R49: 0
B50: Interest on Credit Line | G50: 0.08 | I50: 3.626361139 | J50: =+SUM(J17:J49)/2*H50 -> 0 | M50: 0 | N50: =+SUM(N17:N49)/2*L50 -> 0 | O50: 3.626361139 | P50: =+SUM(P17:P49)/2*L50 -> 0 | Q50: 181.318057 | R50: =+J50*E$7 -> 0
A51: Total Variable Costs | I51: 281.154094 | J51: =SUM(J18:J50) -> 0 | M51: 0 | N51: =SUM(N18:N50) -> 0 | O51: 281.154094 | P51: =SUM(P18:P50) -> 0 | Q51: 14057.7047 | R51: =SUM(R18:R50) -> 0
A52: Planned Returns Above Variable Costs: | I52: 318.845906 | J52: =+J13-J51 -> 0 | M52: 0 | N52: =+N13-N51 -> 0 | O52: 318.845906 | P52: =+P13-P51 -> 0 | Q52: 15942.2953 | R52: =+R13-R51 -> 0
B53: Breakeven Price to Cover Variable Costs | G53: 93.71803133 | H53: =IF(E10=0,"n/a",(YVarExp-(YTotExp+YTotRet-J10))/E10) -> n/a | I53: Ton
Q54: Enterprise | R54: Enterprise
A55: FIXED COSTS | D55: Quantity | E55: Quantity | F55: Units | G55: $/Unit | H55: $/Unit | I55: Total | J55: Total | K55: Share | L55: Share | M55: Landlord | N55: Landlord | O55: Tenant | P55: Tenant | Q55: Total | R55: Total
B56: Machinery Depreciation
C57: Pickup/General Use Equipment | D57: 1 | F57: Acre | G57: 4.644 | I57: 4.644 | J57: =E57*H57 -> 0 | K57: 0 | M57: 0 | N57: =J57*L57 -> 0 | O57: 4.644 | P57: =+J57-N57 -> 0 | Q57: 232.2 | R57: =+J57*E$7 -> 0
C58: Tractors/Self-Propelled | D58: 1 | F58: Acre | G58: 17.07660414 | I58: 17.07660414 | J58: 0 | K58: 0 | M58: 0 | N58: =J58*L58 -> 0 | O58: 17.07660414 | P58: 0 | Q58: 853.8302071 | R58: 0
C59: Implements | D59: 1 | F59: Acre | G59: 6.189083814 | I59: 6.189083814 | J59: 0 | K59: 0 | M59: 0 | N59: =J59*L59 -> 0 | O59: 6.189083814 | P59: 0 | Q59: 309.4541907 | R59: 0
B60: Equipment Investment
C61: Pickup/General Use Equipment | D61: 25.74 | F61: Dollars | G61: 0.08 | I61: 2.0592 | J61: =E61*H61 -> 0 | K61: 0 | M61: 0 | N61: =J61*L61 -> 0 | O61: 2.0592 | P61: =+J61-N61 -> 0 | Q61: 102.96 | R61: =+J61*E$7 -> 0
C62: Tractors/Self-Propelled | D62: 132.8185784 | F62: Dollars | G62: 0.08 | I62: 10.62548628 | J62: 0 | K62: 0 | M62: 0 | N62: =J62*L62 -> 0 | O62: 10.62548628 | P62: 0 | Q62: 531.2743138 | R62: 0
C63: Implements | D63: 27.02994904 | F63: Dollars | G63: 0.08 | I63: 2.162395923 | J63: 0 | K63: 0 | M63: 0 | N63: =J63*L63 -> 0 | O63: 2.162395923 | P63: 0 | Q63: 108.1197962 | R63: 0
B64: Salaried Labor | D64: 1 | F64: Acre | G64: 0 | I64: 0 | J64: 0 | K64: 0 | M64: 0 | N64: =J64*L64 -> 0 | O64: 0 | P64: =+J64-N64 -> 0 | Q64: 0 | R64: =+J64*E$7 -> 0
B65: Management Fee, Owner/Operator Labor | D65: 1 | F65: Acre | G65: 0 | I65: 0 | J65: 0 | K65: 0 | M65: 0 | N65: 0 | O65: 0 | P65: 0 | Q65: 0 | R65: 0
B66: Allocated Establishment Cost | D66: 1 | F66: Acre | G66: 0 | I66: 0 | J66: 0 | K66: 0 | M66: 0 | N66: 0 | O66: 0 | P66: 0 | Q66: 0 | R66: 0
B67: Rent-Dryland Crop | D67: 1 | F67: Acre | G67: 35 | I67: 35 | J67: 0 | K67: 0 | M67: 0 | N67: 0 | O67: 35 | P67: 0 | Q67: 1750 | R67: 0
B68: Property Taxes | D68: 1 | F68: Acre | G68: 0 | I68: 0 | J68: 0 | K68: 0 | M68: 0 | N68: 0 | O68: 0 | P68: 0 | Q68: 0 | R68: 0
B69: Whole Farm Insurance | D69: 1 | F69: Acre | G69: 0 | I69: 0 | J69: 0 | K69: 0 | M69: 0 | N69: 0 | O69: 0 | P69: 0 | Q69: 0 | R69: 0
D70: 1 | G70: 0 | I70: 0 | J70: 0 | K70: 0 | M70: 0 | N70: 0 | O70: 0 | P70: 0 | Q70: 0 | R70: 0
D71: 1 | G71: 0 | I71: 0 | J71: =E71*H71 -> 0 | K71: 0 | M71: 0 | N71: 0 | O71: 0 | P71: 0 | Q71: 0 | R71: 0
A72: Total Fixed Costs | I72: 77.75677016 | J72: =+SUM(J57:J71) -> 0 | M72: 0 | N72: =+SUM(N57:N71) -> 0 | O72: 77.75677016 | P72: =+SUM(P57:P71) -> 0 | Q72: 3887.838508 | R72: =+SUM(R57:R71) -> 0
A73: Total Specified Costs | I73: 358.9108642 | J73: =+J51+J72 -> 0 | M73: 0 | N73: =+N51+N72 -> 0 | O73: 358.9108642 | P73: =+P51+P72 -> 0 | Q73: 17945.54321 | R73: =+R51+R72 -> 0
A75: Returns Above Specified Costs | I75: 241.0891358 | J75: =+J13-J73 -> 0 | M75: 0 | N75: =+N13-N73 -> 0 | O75: 241.0891358 | P75: =+P13-P73 -> 0 | Q75: 12054.45679 | R75: =+R13-R73 -> 0
A77: Breakeven Price to Cover Total Costs | G77: 119.6369547 | H77: =IF(E10=0,"n/a",(YTotExp-(YTotExp+YTotRet-J10))/E10) -> n/a | I77: Ton
D79: Example Breakeven Prices
B80: Example | C80: Example | D80: To Cover | G80: To Cover
B81: Yield | C81: Yield | D81: Variable | G81: Total
B82: Percent | C82: Ton | D82: Costs | G82: Costs
B83: 0.75 | C83: 2.25 | D83: 124.9573751 | G83: 159.5159396
B84: 0.9 | C84: 2.7 | D84: 104.1311459 | G84: 132.9299497
B85: 1 | C85: 3 | D85: 93.71803133 | G85: 119.6369547
B86: 1.1 | C86: 3.3 | D86: 85.1982103 | G86: 108.7608679
B87: 1.25 | C87: 3.75 | D87: 74.97442507 | G87: 95.70956378
D89: Your Breakeven Prices
B90: Your | C90: Your | E90: To Cover | H90: To Cover
B91: Yield | C91: Yield | E91: Variable | H91: Total
B92: Percent | C92: Ton | E92: Costs | H92: Costs
B93: 0.75 | C93: =E10*YPER1 -> 0 | E93: =IF($E$10=0,0,(YVarExp-(YTotExp+YTotRet-J10))/($E$10*YPER1)) -> 0 | H93: =IF($E$10=0,0,(YTotExp-(YTotExp+YTotRet-J10))/($E$10*YPER1)) -> 0
B94: 0.9 | C94: =E10*YPER2 -> 0 | E94: =IF($E$10=0,0,(YVarExp-(YTotExp+YTotRet-J10))/($E$10*YPER2)) -> 0 | H94: =IF($E$10=0,0,(YTotExp-(YTotExp+YTotRet-J10))/($E$10*YPER2)) -> 0
B95: 1 | C95: =+E10 -> 0 | E95: =IF($E$10=0,0,(YVarExp-(YTotExp+YTotRet-J10))/($E$10*YPER3)) -> 0 | H95: =IF($E$10=0,0,(YTotExp-(YTotExp+YTotRet-J10))/($E$10*YPER3)) -> 0
B96: 1.1 | C96: =E10*YPER4 -> 0 | E96: =IF($E$10=0,0,(YVarExp-(YTotExp+YTotRet-J10))/($E$10*YPER4)) -> 0 | H96: =IF($E$10=0,0,(YTotExp-(YTotExp+YTotRet-J10))/($E$10*YPER4)) -> 0
B97: 1.25 | C97: =E10*YPER5 -> 0 | E97: =IF($E$10=0,0,(YVarExp-(YTotExp+YTotRet-J10))/($E$10*YPER5)) -> 0 | H97: =IF($E$10=0,0,(YTotExp-(YTotExp+YTotRet-J10))/($E$10*YPER5)) -> 0
A99: Developed by Jeffrey Wright, Assistant Professor & Extension Economist, Texas A&M AgriLife Extension, 325-657-7309
A101: Information presented is prepared solely as a general guide and not intended to recognize or predict the costs and returns from any one operation. Brand names are mentioned only as examples and imply no endorsement.

Sheet AlfalfaEstablish
A1: Projections for Planning Purposes Only -- Not to be Used without Updating
A2: 2025 Estimated Costs and Returns per Acre
A3: Alfalfa, Roundup Ready, Establishment, Center Pivot Irrigated
A4: Enter your name for this budget in the cell above.
A5: Enter Your Values in the cells highlighed in MAROON.
E6: Your Acres | R6: Your
C7: Crop Acres | D7: 122 | L7: Your | Q7: Enterprise | R7: Enterprise
E8: Your | H8: Your | I8: Cash | J8: Your | K8: Landlord | L8: Landlord | N8: Your | P8: Your | Q8: Total | R8: Total
A9: REVENUE | D9: Quantity | E9: Quantity | F9: Units | G9: $/Unit | H9: $/Unit | I9: Total | J9: Total | K9: Share | L9: Share | M9: Landlord | N9: Landlord | O9: Tenant | P9: Tenant | Q9: (122 acres) | R9: ="(" & E7 & " acres)" -> ( acres)
B10: 0 | D10: 0 | G10: 0 | I10: 0 | J10: =E10*H10 -> 0 | K10: 0 | M10: 0 | N10: =J10*L10 -> 0 | O10: 0 | P10: =+J10-N10 -> 0 | Q10: 0 | R10: =+J10*E$7 -> 0
D11: 0 | G11: 0 | I11: 0 | J11: 0 | K11: 0 | M11: 0 | N11: 0 | O11: 0 | P11: 0 | Q11: 0 | R11: 0
D12: 0 | G12: 0 | I12: 0 | J12: 0 | K12: 0 | M12: 0 | N12: 0 | O12: 0 | P12: 0 | Q12: 0 | R12: 0
A13: Total Revenue | I13: 0 | J13: =SUM(J10:J12) -> 0 | M13: 0 | N13: =SUM(N10:N12) -> 0 | O13: 0 | P13: =SUM(P10:P12) -> 0 | Q13: 0 | R13: =SUM(R10:R12) -> 0
Q14: Enterprise | R14: Enterprise
A15: VARIABLE COSTS | D15: Quantity | E15: Quantity | F15: Units | G15: $/Unit | H15: $/Unit | I15: Total | J15: Total | K15: Share | L15: Share | M15: Landlord | N15: Landlord | O15: Tenant | P15: Tenant | Q15: Total | R15: Total
A16: Production Costs
B17: Custom
C18: Soil Test-Irrigated | D18: 1 | F18: Each | G18: 0.5 | I18: 0.5 | J18: =E18*H18 -> 0 | K18: 0 | M18: 0 | N18: =J18*L18 -> 0 | O18: 0.5 | P18: =+J18-N18 -> 0 | Q18: 61 | R18: =+J18*E$7 -> 0
C19: Apply Dry Fertilizer | D19: 1 | F19: Acre | G19: 6.39 | I19: 6.39 | J19: 0 | K19: 0 | M19: 0 | N19: 0 | O19: 6.39 | P19: 0 | Q19: 779.58 | R19: 0
B20: Fertilizer
C21: Phos (11-52-0 DRY MAT) | D21: 150 | F21: Pounds | G21: 1.29 | I21: 193.5 | J21: 0 | K21: 0 | M21: 0 | N21: 0 | O21: 193.5 | P21: 0 | Q21: 23607 | R21: 0
B22: Herbicide
C23: Glyphosate | D23: 22 | F23: Ounce | G23: 0.1328125 | I23: 2.921875 | J23: 0 | K23: 0 | M23: 0 | N23: 0 | O23: 2.921875 | P23: 0 | Q23: 356.46875 | R23: 0
B24: Seed
C25: R.R. Alfalfa | D25: 25 | F25: pounds | G25: 8.5 | I25: 212.5 | J25: 0 | K25: 0 | M25: 0 | N25: 0 | O25: 212.5 | P25: 0 | Q25: 25925 | R25: 0
D26: 0 | G26: 0 | I26: 0 | J26: 0 | K26: 0 | M26: 0 | N26: 0 | O26: 0 | P26: 0 | Q26: 0 | R26: 0
D27: 0 | G27: 0 | I27: 0 | J27: 0 | K27: 0 | M27: 0 | N27: 0 | O27: 0 | P27: 0 | Q27: 0 | R27: 0
D28: 0 | G28: 0 | I28: 0 | J28: =E28*H28 -> 0 | K28: 0 | M28: 0 | N28: =J28*L28 -> 0 | O28: 0 | P28: =+J28-N28 -> 0 | Q28: 0 | R28: =+J28*E$7 -> 0
B29: Irrigation
C30: Energy Cost | D30: 4 | F30: AcreInch | G30: 11.16724231 | I30: 44.66896924 | J30: =E30*H30 -> 0 | K30: 0 | M30: 0 | N30: =J30*L30 -> 0 | O30: 44.66896924 | P30: =+J30-N30 -> 0 | Q30: 5449.614247 | R30: =+J30*E$7 -> 0
C31: Irrigation Labor | D31: 0.3 | F31: Hour | G31: 17.5 | I31: 5.25 | J31: 0 | K31: 0 | M31: 0 | N31: 0 | O31: 5.25 | P31: 0 | Q31: 640.5 | R31: 0
B32: Machinery Labor
C33: Tractors/Self-Propelled | D33: 0.2 | F33: Hour | G33: 17.21 | I33: 3.442 | J33: =E33*H33 -> 0 | K33: 0 | M33: 0 | N33: =J33*L33 -> 0 | O33: 3.442 | P33: =+J33-N33 -> 0 | Q33: 419.924 | R33: =+J33*E$7 -> 0
C34: Other Labor | D34: 0 | F34: Hour | G34: 17.21 | I34: 0 | J34: =E34*H34 -> 0 | K34: 0 | M34: 0 | N34: =J34*L34 -> 0 | O34: 0 | P34: =+J34-N34 -> 0 | Q34: 0 | R34: =+J34*E$7 -> 0
B36: Diesel Fuel
C37: Pickup/General Use Equipment | D37: 1 | F37: Acre | G37: 0 | I37: 0 | J37: =E37*H37 -> 0 | K37: 0 | M37: 0 | N37: =J37*L37 -> 0 | O37: 0 | P37: =+J37-N37 -> 0 | Q37: 0 | R37: =+J37*E$7 -> 0
C38: Tractors/Self-Propelled | D38: 1.7 | F38: Gallon | G38: 2.8 | I38: 4.76 | J38: =E38*H38 -> 0 | K38: 0 | M38: 0 | N38: =J38*L38 -> 0 | O38: 4.76 | P38: =+J38-N38 -> 0 | Q38: 580.72 | R38: =+J38*E$7 -> 0
B40: Gasoline
C41: Pickup/General Use Equipment | D41: 1 | F41: Acre | G41: 2.06557377 | I41: 2.06557377 | J41: =E41*H41 -> 0 | K41: 0 | M41: 0 | N41: =J41*L41 -> 0 | O41: 2.06557377 | P41: =+J41-N41 -> 0 | Q41: 252 | R41: =+J41*E$7 -> 0
C42: Tractors/Self-Propelled | D42: 0 | F42: Gallon | G42: 2.7 | I42: 0 | J42: =E42*H42 -> 0 | K42: 0 | M42: 0 | N42: =J42*L42 -> 0 | O42: 0 | P42: =+J42-N42 -> 0 | Q42: 0 | R42: =+J42*E$7 -> 0
B44: Repairs & Maintenance
C45: Pickup/General Use Equipment | D45: 1 | F45: Acre | G45: 0.7401639344 | I45: 0.7401639344 | J45: =E45*H45 -> 0 | K45: 0 | M45: 0 | N45: =J45*L45 -> 0 | O45: 0.7401639344 | P45: =+J45-N45 -> 0 | Q45: 90.3 | R45: =+J45*E$7 -> 0
C46: Irrigation Equipment | D46: 1 | F46: Acre | G46: 10.5412 | I46: 10.5412 | J46: 0 | K46: 0 | M46: 0 | N46: 0 | O46: 10.5412 | P46: 0 | Q46: 1286.0264 | R46: 0
C47: Tractors/Self-Propelled | D47: 1 | F47: Acre | G47: 4.805960667 | I47: 4.805960667 | J47: 0 | K47: 0 | M47: 0 | N47: 0 | O47: 4.805960667 | P47: 0 | Q47: 586.3272013 | R47: 0
C48: Implements | D48: 1 | F48: Acre | G48: 4.96624056 | I48: 4.96624056 | J48: 0 | K48: 0 | M48: 0 | N48: 0 | O48: 4.96624056 | P48: 0 | Q48: 605.8813484 | R48: 0
I49: 0 | J49: 0 | K49: 0 | M49: 0 | N49: 0 | O49: 0 | P49: 0 | Q49: 0 | R49: =+J49*E$7 -> 0
I50: 0 | J50: 0 | K50: 0 | M50: 0 | N50: 0 | O50: 0 | P50: 0 | Q50: 0 | R50: 0
B51: Interest on Credit Line | G51: 0.08 | I51: 8.19098776 | J51: =+SUM(J17:J50)/2*H51 -> 0 | M51: 0 | N51: =+SUM(N17:N50)/2*L51 -> 0 | O51: 8.19098776 | P51: =+SUM(P17:P50)/2*L51 -> 0 | Q51: 999.3005068 | R51: =+J51*E$7 -> 0
A52: Total Variable Costs | I52: 505.2429709 | J52: =SUM(J18:J51) -> 0 | M52: 0 | N52: =SUM(N18:N51) -> 0 | O52: 505.2429709 | P52: =SUM(P18:P51) -> 0 | Q52: 61639.64245 | R52: =SUM(R18:R51) -> 0
A53: Planned Returns Above Variable Costs: | I53: -505.2429709 | J53: =+J13-J52 -> 0 | M53: 0 | N53: =+N13-N52 -> 0 | O53: -505.2429709 | P53: =+P13-P52 -> 0 | Q53: -61639.64245 | R53: =+R13-R52 -> 0
B54: Breakeven Price to Cover Variable Costs | G54: n/a | H54: =IF(E10=0,"n/a",(YVarExp-(YTotExp+YTotRet-J10))/E10) -> n/a
Q55: Enterprise | R55: Enterprise
A56: FIXED COSTS | D56: Quantity | E56: Quantity | F56: Units | G56: $/Unit | H56: $/Unit | J56: Total | K56: Share | L56: Share | M56: Landlord | N56: Landlord | O56: Tenant | P56: Tenant | Q56: Total | R56: Total
B57: Machinery Depreciation
C58: Pickup/General Use Equipment | D58: 1 | F58: Acre | G58: 1.549180328 | I58: 1.549180328 | J58: =E58*H58 -> 0 | K58: 0 | M58: 0 | N58: =J58*L58 -> 0 | O58: 1.549180328 | P58: =+J58-N58 -> 0 | Q58: 189 | R58: =+J58*E$7 -> 0
C59: Irrigation Equipment | D59: 1 | F59: Acre | G59: 15.0273224 | I59: 15.0273224 | J59: 0 | K59: 0 | M59: 0 | N59: =J59*L59 -> 0 | O59: 15.0273224 | P59: 0 | Q59: 1833.333333 | R59: 0
C60: Tractors/Self-Propelled | D60: 1 | F60: Acre | G60: 5.426039977 | I60: 5.426039977 | J60: 0 | K60: 0 | M60: 0 | N60: =J60*L60 -> 0 | O60: 5.426039977 | P60: 0 | Q60: 661.9768772 | R60: 0
C61: Implements | D61: 1 | F61: Acre | G61: 6.216576913 | I61: 6.216576913 | J61: 0 | K61: 0 | M61: 0 | N61: =J61*L61 -> 0 | O61: 6.216576913 | P61: 0 | Q61: 758.4223834 | R61: 0
B62: Equipment Investment
C63: Pickup/General Use Equipment | D63: 9.467213115 | F63: Dollars | G63: 0.08 | I63: 0.7573770492 | J63: =E63*H63 -> 0 | K63: 0 | M63: 0 | N63: =J63*L63 -> 0 | O63: 0.7573770492 | P63: =+J63-N63 -> 0 | Q63: 92.4 | R63: =+J63*E$7 -> 0
C64: Irrigation Equipment | D64: 112.704918 | F64: Dollars | G64: 0.08 | I64: 9.016393443 | J64: 0 | K64: 0 | M64: 0 | N64: =J64*L64 -> 0 | O64: 9.016393443 | P64: 0 | Q64: 1100 | R64: 0
C65: Tractors/Self-Propelled | D65: 42.05692535 | F65: Dollars | G65: 0.08 | I65: 3.364554028 | J65: 0 | K65: 0 | M65: 0 | N65: =J65*L65 -> 0 | O65: 3.364554028 | P65: 0 | Q65: 410.4755914 | R65: 0
C66: Implements | D66: 26.59313457 | F66: Dollars | G66: 0.08 | I66: 2.127450766 | J66: 0 | K66: 0 | M66: 0 | N66: =J66*L66 -> 0 | O66: 2.127450766 | P66: 0 | Q66: 259.5489934 | R66: 0
B67: Salaried Labor | D67: 1 | F67: Acre | G67: 0 | I67: 0 | J67: 0 | K67: 0 | M67: 0 | N67: =J67*L67 -> 0 | O67: 0 | P67: =+J67-N67 -> 0 | Q67: 0 | R67: =+J67*E$7 -> 0
B68: Management Fee, Owner/Operator Labor | D68: 1 | F68: Acre | G68: 0 | I68: 0 | J68: 0 | K68: 0 | M68: 0 | N68: 0 | O68: 0 | P68: 0 | Q68: 0 | R68: 0
B69: Allocated Establishment Cost | D69: 1 | F69: Acre | G69: 0 | I69: 0 | J69: 0 | K69: 0 | M69: 0 | N69: 0 | O69: 0 | P69: 0 | Q69: 0 | R69: 0
B70: Rent-Irrigated Crop | D70: 1 | F70: Acre | G70: 70 | I70: 70 | J70: 0 | K70: 0 | M70: 0 | N70: 0 | O70: 70 | P70: 0 | Q70: 8540 | R70: 0
B71: Property Taxes | D71: 1 | F71: Acre | G71: 0 | I71: 0 | J71: =E71*H71 -> 0 | K71: 0 | M71: 0 | N71: 0 | O71: 0 | P71: 0 | Q71: 0 | R71: =+J71*E$7 -> 0
B72: Whole Farm Insurance | D72: 1 | F72: Acre | G72: 0 | I72: 0 | J72: 0 | K72: 0 | M72: 0 | N72: 0 | O72: 0 | P72: 0 | Q72: 0 | R72: 0
D73: 1 | G73: 0 | I73: 0 | J73: 0 | K73: 0 | M73: 0 | N73: 0 | O73: 0 | P73: 0 | Q73: 0 | R73: 0
D74: 1 | G74: 0 | I74: 0 | J74: 0 | K74: 0 | M74: 0 | N74: 0 | O74: 0 | P74: 0 | Q74: 0 | R74: 0
A75: Total Fixed Costs | I75: 113.4848949 | J75: =+SUM(J58:J74) -> 0 | M75: 0 | N75: =+SUM(N58:N74) -> 0 | O75: 113.4848949 | P75: =+SUM(P58:P74) -> 0 | Q75: 13845.15718 | R75: =+SUM(R58:R74) -> 0
A76: Total Specified Costs | I76: 618.7278658 | J76: =+J52+J75 -> 0 | M76: 0 | N76: =+N52+N75 -> 0 | O76: 618.7278658 | P76: =+P52+P75 -> 0 | Q76: 75484.79963 | R76: =+R52+R75 -> 0
A78: Returns Above Specified Costs | I78: -618.7278658 | J78: =+J13-J76 -> 0 | M78: 0 | N78: =+N13-N76 -> 0 | O78: -618.7278658 | P78: =+P13-P76 -> 0 | Q78: -75484.79963 | R78: =+R13-R76 -> 0
A80: Breakeven Price to Cover Total Costs | G80: n/a | H80: =IF(E10=0,"n/a",(YTotExp-(YTotExp+YTotRet-J10))/E10) -> n/a
D82: Example Breakeven Prices
B83: Example | C83: Example | D83: To Cover | G83: To Cover
B84: Yield | C84: Yield | D84: Variable | G84: Total
B85: Percent | D85: Costs | G85: Costs
B86: 0.75 | C86: 0 | D86: 0 | G86: 0
B87: 0.9 | C87: 0 | D87: 0 | G87: 0
B88: 1 | C88: 0 | D88: 0 | G88: 0
B89: 1.1 | C89: 0 | D89: 0 | G89: 0
B90: 1.25 | C90: 0 | D90: 0 | G90: 0
D92: Your Breakeven Prices
B93: Your | C93: Your | E93: To Cover | H93: To Cover
B94: Yield | C94: Yield | E94: Variable | H94: Total
B95: Percent | E95: Costs | H95: Costs
B96: 0.75 | C96: =E10*YPER1 -> 0 | E96: =IF($E$10=0,0,(YVarExp-(YTotExp+YTotRet-J10))/($E$10*YPER1)) -> 0 | H96: =IF($E$10=0,0,(YTotExp-(YTotExp+YTotRet-J10))/($E$10*YPER1)) -> 0
B97: 0.9 | C97: =E10*YPER2 -> 0 | E97: =IF($E$10=0,0,(YVarExp-(YTotExp+YTotRet-J10))/($E$10*YPER2)) -> 0 | H97: =IF($E$10=0,0,(YTotExp-(YTotExp+YTotRet-J10))/($E$10*YPER2)) -> 0
B98: 1 | C98: =+E10 -> 0 | E98: =IF($E$10=0,0,(YVarExp-(YTotExp+YTotRet-J10))/($E$10*YPER3)) -> 0 | H98: =IF($E$10=0,0,(YTotExp-(YTotExp+YTotRet-J10))/($E$10*YPER3)) -> 0
B99: 1.1 | C99: =E10*YPER4 -> 0 | E99: =IF($E$10=0,0,(YVarExp-(YTotExp+YTotRet-J10))/($E$10*YPER4)) -> 0 | H99: =IF($E$10=0,0,(YTotExp-(YTotExp+YTotRet-J10))/($E$10*YPER4)) -> 0
B100: 1.25 | C100: =E10*YPER5 -> 0 | E100: =IF($E$10=0,0,(YVarExp-(YTotExp+YTotRet-J10))/($E$10*YPER5)) -> 0 | H100: =IF($E$10=0,0,(YTotExp-(YTotExp+YTotRet-J10))/($E$10*YPER5)) -> 0
A102: Developed by Jeffrey Wright, Assistant Professor & Extension Economist, Texas A&M AgriLife Extension, 325-657-7309
A104: Information presented is prepared solely as a general guide and not intended to recognize or predict the costs and returns from any one operation. Brand names are mentioned only as examples and imply no endorsement.

Sheet AlfalfaHayPivot
A1: Projections for Planning Purposes Only -- Not to be Used without Updating
A2: 2025 Estimated Costs and Returns per Acre
A3: Alfalfa, RoundUp Ready, Full Season, Baled - 6.5 ton, Center Pivot Irrigated
A4: Enter your name for this budget in the cell above.
A5: Enter Your Values in the cells highlighed in MAROON.
E6: Your Acres | R6: Your
C7: Crop Acres | D7: 122 | L7: Your | Q7: Enterprise | R7: Enterprise
E8: Your | H8: Your | I8: Cash | J8: Your | K8: Landlord | L8: Landlord | N8: Your | P8: Your | Q8: Total | R8: Total
A9: REVENUE | D9: Quantity | E9: Quantity | F9: Units | G9: $/Unit | H9: $/Unit | I9: Total | J9: Total | K9: Share | L9: Share | M9: Landlord | N9: Landlord | O9: Tenant | P9: Tenant | Q9: (122 acres) | R9: ="(" & E7 & " acres)" -> ( acres)
B10: Alfalfa Hay - Baled 3X4 | D10: 6.5 | F10: Ton | G10: 270 | I10: 1755 | J10: =E10*H10 -> 0 | K10: 0 | M10: 0 | N10: =J10*L10 -> 0 | O10: 1755 | P10: =+J10-N10 -> 0 | Q10: 214110 | R10: =+J10*E$7 -> 0
D11: 0 | G11: 0 | I11: 0 | J11: 0 | K11: 0 | M11: 0 | N11: 0 | O11: 0 | P11: =+J11-N11 -> 0 | Q11: 0 | R11: 0
D12: 0 | G12: 0 | I12: 0 | J12: 0 | K12: 0 | M12: 0 | N12: 0 | O12: 0 | P12: 0 | Q12: 0 | R12: 0
A13: Total Revenue | I13: 1755 | J13: =SUM(J10:J12) -> 0 | M13: 0 | N13: =SUM(N10:N12) -> 0 | O13: 1755 | P13: =SUM(P10:P12) -> 0 | Q13: 214110 | R13: =SUM(R10:R12) -> 0
Q14: Enterprise | R14: Enterprise
A15: VARIABLE COSTS | D15: Quantity | E15: Quantity | F15: Units | G15: $/Unit | H15: $/Unit | I15: Total | J15: Total | K15: Share | L15: Share | M15: Landlord | N15: Landlord | O15: Tenant | P15: Tenant | Q15: Total | R15: Total
A16: Production Costs
B17: Custom
C18: Soil Test-Irrigated | D18: 1 | F18: Each | G18: 0.5 | I18: 0.5 | J18: =E18*H18 -> 0 | K18: 0 | M18: 0 | N18: =J18*L18 -> 0 | O18: 0.5 | P18: =+J18-N18 -> 0 | Q18: 61 | R18: =+J18*E$7 -> 0
C19: Apply Dry Fertilizer | D19: 1 | F19: Acre | G19: 6.39 | I19: 6.39 | J19: 0 | K19: 0 | M19: 0 | N19: 0 | O19: 6.39 | P19: 0 | Q19: 779.58 | R19: 0
C20: Swath, Rake and Bale | D20: 9.24 | F20: Bale | G20: 29.58 | I20: 273.3192 | J20: 0 | K20: 0 | M20: 0 | N20: 0 | O20: 273.3192 | P20: 0 | Q20: 33344.9424 | R20: 0
B21: Fertilizer
C22: Phos (11-52-0 DRY MAT) | D22: 73 | F22: Pounds | G22: 1.29 | I22: 94.17 | J22: 0 | K22: 0 | M22: 0 | N22: 0 | O22: 94.17 | P22: 0 | Q22: 11488.74 | R22: 0
B23: Herbicide
C24: Trifluralin | D24: 2 | F24: Pint | G24: 2.75 | I24: 5.5 | J24: 0 | K24: 0 | M24: 0 | N24: 0 | O24: 5.5 | P24: 0 | Q24: 671 | R24: 0
C25: Glyphosate | D25: 110 | F25: Ounce | G25: 0.1328125 | I25: 14.609375 | J25: 0 | K25: 0 | M25: 0 | N25: 0 | O25: 14.609375 | P25: 0 | Q25: 1782.34375 | R25: 0
B26: Insecticide
C27: Intrepid | D27: 2.3 | F27: Ounce | G27: 2.03906 | I27: 4.689838 | J27: 0 | K27: 0 | M27: 0 | N27: 0 | O27: 4.689838 | P27: 0 | Q27: 572.160236 | R27: 0
C28: Mustang Max(Warrior Z) | D28: 7.04 | F28: Ounce | G28: 1.25 | I28: 8.8 | J28: 0 | K28: 0 | M28: 0 | N28: 0 | O28: 8.8 | P28: 0 | Q28: 1073.6 | R28: 0
D29: 0 | G29: 0 | I29: 0 | J29: 0 | K29: 0 | M29: 0 | N29: 0 | O29: 0 | P29: 0 | Q29: 0 | R29: 0
D30: 0 | G30: 0 | I30: 0 | J30: 0 | K30: 0 | M30: 0 | N30: 0 | O30: 0 | P30: 0 | Q30: 0 | R30: 0
D31: 0 | G31: 0 | I31: 0 | J31: =E31*H31 -> 0 | K31: 0 | M31: 0 | N31: =J31*L31 -> 0 | O31: 0 | P31: =+J31-N31 -> 0 | Q31: 0 | R31: =+J31*E$7 -> 0
B32: Irrigation
C33: Energy Cost | D33: 36 | F33: AcreInch | G33: 11.16724231 | I33: 402.0207231 | J33: =E33*H33 -> 0 | K33: 0 | M33: 0 | N33: =J33*L33 -> 0 | O33: 402.0207231 | P33: =+J33-N33 -> 0 | Q33: 49046.52822 | R33: =+J33*E$7 -> 0
C34: Irrigation Labor | D34: 0.8 | F34: Hour | G34: 17.5 | I34: 14 | J34: 0 | K34: 0 | M34: 0 | N34: 0 | O34: 14 | P34: 0 | Q34: 1708 | R34: 0
B35: Machinery Labor
C36: Tractors/Self-Propelled | D36: 2.8 | F36: Hour | G36: 17.21 | I36: 48.188 | J36: =E36*H36 -> 0 | K36: 0 | M36: 0 | N36: =J36*L36 -> 0 | O36: 48.188 | P36: =+J36-N36 -> 0 | Q36: 5878.936 | R36: =+J36*E$7 -> 0
C37: Other Labor | D37: 0.03 | F37: Hour | G37: 17.21 | I37: 0.5163 | J37: =E37*H37 -> 0 | K37: 0 | M37: 0 | N37: =J37*L37 -> 0 | O37: 0.5163 | P37: =+J37-N37 -> 0 | Q37: 62.9886 | R37: =+J37*E$7 -> 0
B39: Diesel Fuel
C40: Pickup/General Use Equipment | D40: 1 | F40: Acre | G40: 0 | I40: 0 | J40: =E40*H40 -> 0 | K40: 0 | M40: 0 | N40: =J40*L40 -> 0 | O40: 0 | P40: =+J40-N40 -> 0 | Q40: 0 | R40: =+J40*E$7 -> 0
C41: Tractors/Self-Propelled | D41: 21.82 | F41: Gallon | G41: 2.8 | I41: 61.096 | J41: =E41*H41 -> 0 | K41: 0 | M41: 0 | N41: =J41*L41 -> 0 | O41: 61.096 | P41: =+J41-N41 -> 0 | Q41: 7453.712 | R41: =+J41*E$7 -> 0
B43: Gasoline
C44: Pickup/General Use Equipment | D44: 1 | F44: Acre | G44: 6.435737705 | I44: 6.435737705 | J44: =E44*H44 -> 0 | K44: 0 | M44: 0 | N44: =J44*L44 -> 0 | O44: 6.435737705 | P44: =+J44-N44 -> 0 | Q44: 785.16 | R44: =+J44*E$7 -> 0
C45: Tractors/Self-Propelled | D45: 0 | F45: Gallon | G45: 2.7 | I45: 0 | J45: =E45*H45 -> 0 | K45: 0 | M45: 0 | N45: =J45*L45 -> 0 | O45: 0 | P45: =+J45-N45 -> 0 | Q45: 0 | R45: =+J45*E$7 -> 0
B47: Repairs & Maintenance
C48: Pickup/General Use Equipment | D48: 1 | F48: Acre | G48: 2.692622951 | I48: 2.692622951 | J48: =E48*H48 -> 0 | K48: 0 | M48: 0 | N48: =J48*L48 -> 0 | O48: 2.692622951 | P48: =+J48-N48 -> 0 | Q48: 328.5 | R48: =+J48*E$7 -> 0
C49: Irrigation Equipment | D49: 1 | F49: Acre | G49: 94.8708 | I49: 94.8708 | J49: 0 | K49: 0 | M49: 0 | N49: 0 | O49: 94.8708 | P49: 0 | Q49: 11574.2376 | R49: 0
C50: Tractors/Self-Propelled | D50: 1 | F50: Acre | G50: 56.67710107 | I50: 56.67710107 | J50: 0 | K50: 0 | M50: 0 | N50: 0 | O50: 56.67710107 | P50: 0 | Q50: 6914.606331 | R50: 0
C51: Implements | D51: 1 | F51: Acre | G51: 0.5397235556 | I51: 0.5397235556 | J51: 0 | K51: 0 | M51: 0 | N51: 0 | O51: 0.5397235556 | P51: 0 | Q51: 65.84627378 | R51: 0
I52: 0 | J52: 0 | K52: 0 | M52: 0 | N52: 0 | O52: 0 | P52: 0 | Q52: 0 | R52: 0
I53: 0 | J53: 0 | K53: 0 | M53: 0 | N53: 0 | O53: 0 | P53: 0 | Q53: 0 | R53: 0
B54: Interest on Credit Line | G54: 0.08 | I54: 25.4190544 | J54: =+SUM(J17:J53)/2*H54 -> 0 | M54: 0 | N54: =+SUM(N17:N53)/2*L54 -> 0 | O54: 25.4190544 | P54: =+SUM(P17:P53)/2*L54 -> 0 | Q54: 3101.124637 | R54: =+J54*E$7 -> 0
A55: Total Variable Costs | I55: 1120.434476 | J55: =SUM(J18:J54) -> 0 | M55: 0 | N55: =SUM(N18:N54) -> 0 | O55: 1120.434476 | P55: =SUM(P18:P54) -> 0 | Q55: 136693.0061 | R55: =SUM(R18:R54) -> 0
A56: Planned Returns Above Variable Costs: | I56: 634.5655242 | J56: =+J13-J55 -> 0 | M56: 0 | N56: =+N13-N55 -> 0 | O56: 634.5655242 | P56: =+P13-P55 -> 0 | Q56: 77416.99395 | R56: =+R13-R55 -> 0
B57: Breakeven Price to Cover Variable Costs | G57: 172.3745347 | H57: =IF(E10=0,"n/a",(YVarExp-(YTotExp+YTotRet-J10))/E10) -> n/a | I57: Ton
Q58: Enterprise | R58: Enterprise
A59: FIXED COSTS | D59: Quantity | E59: Quantity | F59: Units | G59: $/Unit | H59: $/Unit | I59: Total | J59: Total | K59: Share | L59: Share | M59: Landlord | N59: Landlord | O59: Tenant | P59: Tenant | Q59: Total | R59: Total
B60: Machinery Depreciation
C61: Pickup/General Use Equipment | D61: 1 | F61: Acre | G61: 5.709836066 | I61: 5.709836066 | J61: =E61*H61 -> 0 | K61: 0 | M61: 0 | N61: =J61*L61 -> 0 | O61: 5.709836066 | P61: =+J61-N61 -> 0 | Q61: 696.6 | R61: =+J61*E$7 -> 0
C62: Irrigation Equipment | D62: 1 | F62: Acre | G62: 60.10928962 | I62: 60.10928962 | J62: 0 | K62: 0 | M62: 0 | N62: =J62*L62 -> 0 | O62: 60.10928962 | P62: 0 | Q62: 7333.333333 | R62: 0
C63: Tractors/Self-Propelled | D63: 1 | F63: Acre | G63: 62.39714335 | I63: 62.39714335 | J63: 0 | K63: 0 | M63: 0 | N63: =J63*L63 -> 0 | O63: 62.39714335 | P63: 0 | Q63: 7612.451489 | R63: 0
C64: Implements | D64: 1 | F64: Acre | G64: 1.214378 | I64: 1.214378 | J64: 0 | K64: 0 | M64: 0 | N64: =J64*L64 -> 0 | O64: 1.214378 | P64: 0 | Q64: 148.154116 | R64: 0
B65: Equipment Investment
C66: Pickup/General Use Equipment | D66: 31.64754098 | F66: Dollars | G66: 0.08 | I66: 2.531803279 | J66: =E66*H66 -> 0 | K66: 0 | M66: 0 | N66: =J66*L66 -> 0 | O66: 2.531803279 | P66: =+J66-N66 -> 0 | Q66: 308.88 | R66: =+J66*E$7 -> 0
C67: Irrigation Equipment | D67: 450.8196721 | F67: Dollars | G67: 0.08 | I67: 36.06557377 | J67: 0 | K67: 0 | M67: 0 | N67: =J67*L67 -> 0 | O67: 36.06557377 | P67: 0 | Q67: 4400 | R67: 0
C68: Tractors/Self-Propelled | D68: 484.3139504 | F68: Dollars | G68: 0.08 | I68: 38.74511603 | J68: 0 | K68: 0 | M68: 0 | N68: =J68*L68 -> 0 | O68: 38.74511603 | P68: 0 | Q68: 4726.904155 | R68: 0
C69: Implements | D69: 7.421198889 | F69: Dollars | G69: 0.08 | I69: 0.5936959111 | J69: 0 | K69: 0 | M69: 0 | N69: =J69*L69 -> 0 | O69: 0.5936959111 | P69: 0 | Q69: 72.43090116 | R69: 0
B70: Salaried Labor | D70: 1 | F70: Acre | G70: 0 | I70: 0 | J70: 0 | K70: 0 | M70: 0 | N70: =J70*L70 -> 0 | O70: 0 | P70: =+J70-N70 -> 0 | Q70: 0 | R70: =+J70*E$7 -> 0
B71: Management Fee, Owner/Operator Labor | D71: 1 | F71: Acre | G71: 0 | I71: 0 | J71: 0 | K71: 0 | M71: 0 | N71: 0 | O71: 0 | P71: 0 | Q71: 0 | R71: 0
B72: Allocated Establishment Cost | D72: 1 | F72: Acre | G72: 100.204 | I72: 100.204 | J72: 0 | K72: 0 | M72: 0 | N72: 0 | O72: 100.204 | P72: 0 | Q72: 12224.888 | R72: 0
B73: Rent-Irrigated Crop | D73: 1 | F73: Acre | G73: 70 | I73: 70 | J73: 0 | K73: 0 | M73: 0 | N73: 0 | O73: 70 | P73: 0 | Q73: 8540 | R73: 0
B74: Property Taxes | D74: 1 | F74: Acre | G74: 0 | I74: 0 | J74: 0 | K74: 0 | M74: 0 | N74: 0 | O74: 0 | P74: 0 | Q74: 0 | R74: 0
B75: Whole Farm Insurance | D75: 1 | F75: Acre | G75: 0 | I75: 0 | J75: 0 | K75: 0 | M75: 0 | N75: 0 | O75: 0 | P75: 0 | Q75: 0 | R75: 0
D76: 1 | G76: 0 | I76: 0 | J76: 0 | K76: 0 | M76: 0 | N76: 0 | O76: 0 | P76: 0 | Q76: 0 | R76: 0
D77: 1 | G77: 0 | I77: 0 | J77: =E77*H77 -> 0 | K77: 0 | M77: 0 | N77: 0 | O77: 0 | P77: 0 | Q77: 0 | R77: 0
A78: Total Fixed Costs | I78: 377.570836 | J78: =+SUM(J61:J77) -> 0 | M78: 0 | N78: =+SUM(N61:N77) -> 0 | O78: 377.570836 | P78: =+SUM(P61:P77) -> 0 | Q78: 46063.64199 | R78: =+SUM(R61:R77) -> 0
A79: Total Specified Costs | I79: 1498.005312 | J79: =+J55+J78 -> 0 | M79: 0 | N79: =+N55+N78 -> 0 | O79: 1498.005312 | P79: =+P55+P78 -> 0 | Q79: 182756.648 | R79: =+R55+R78 -> 0
A81: Returns Above Specified Costs | I81: 256.9946881 | J81: =+J13-J79 -> 0 | M81: 0 | N81: =+N13-N79 -> 0 | O81: 256.9946881 | P81: =+P13-P79 -> 0 | Q81: 31353.35195 | R81: =+R13-R79 -> 0
A83: Breakeven Price to Cover Total Costs | G83: 230.4623557 | H83: =IF(E10=0,"n/a",(YTotExp-(YTotExp+YTotRet-J10))/E10) -> n/a | I83: Ton
D85: Example Breakeven Prices
B86: Example | C86: Example | D86: To Cover | G86: To Cover
B87: Yield | C87: Yield | D87: Variable | G87: Total
B88: Percent | C88: Ton | D88: Costs | G88: Costs
B89: 0.75 | C89: 4.875 | D89: 229.832713 | G89: 307.2831409
B90: 0.9 | C90: 5.85 | D90: 191.5272608 | G90: 256.0692841
B91: 1 | C91: 6.5 | D91: 172.3745347 | G91: 230.4623557
B92: 1.1 | C92: 7.15 | D92: 156.7041225 | G92: 209.5112324
B93: 1.25 | C93: 8.125 | D93: 137.8996278 | G93: 184.3698845
D95: Your Breakeven Prices
B96: Your | C96: Your | E96: To Cover | H96: To Cover
B97: Yield | C97: Yield | E97: Variable | H97: Total
B98: Percent | C98: Ton | E98: Costs | H98: Costs
B99: 0.75 | C99: =E10*YPER1 -> 0 | E99: =IF($E$10=0,0,(YVarExp-(YTotExp+YTotRet-J10))/($E$10*YPER1)) -> 0 | H99: =IF($E$10=0,0,(YTotExp-(YTotExp+YTotRet-J10))/($E$10*YPER1)) -> 0
B100: 0.9 | C100: =E10*YPER2 -> 0 | E100: =IF($E$10=0,0,(YVarExp-(YTotExp+YTotRet-J10))/($E$10*YPER2)) -> 0 | H100: =IF($E$10=0,0,(YTotExp-(YTotExp+YTotRet-J10))/($E$10*YPER2)) -> 0
B101: 1 | C101: =+E10 -> 0 | E101: =IF($E$10=0,0,(YVarExp-(YTotExp+YTotRet-J10))/($E$10*YPER3)) -> 0 | H101: =IF($E$10=0,0,(YTotExp-(YTotExp+YTotRet-J10))/($E$10*YPER3)) -> 0
B102: 1.1 | C102: =E10*YPER4 -> 0 | E102: =IF($E$10=0,0,(YVarExp-(YTotExp+YTotRet-J10))/($E$10*YPER4)) -> 0 | H102: =IF($E$10=0,0,(YTotExp-(YTotExp+YTotRet-J10))/($E$10*YPER4)) -> 0
B103: 1.25 | C103: =E10*YPER5 -> 0 | E103: =IF($E$10=0,0,(YVarExp-(YTotExp+YTotRet-J10))/($E$10*YPER5)) -> 0 | H103: =IF($E$10=0,0,(YTotExp-(YTotExp+YTotRet-J10))/($E$10*YPER5)) -> 0
A105: Developed by Jeffrey Wright, Assistant Professor & Extension Economist, Texas A&M AgriLife Extension, 325-657-7309
A107: Information presented is prepared solely as a general guide and not intended to recognize or predict the costs and returns from any one operation. Brand names are mentioned only as examples and imply no endorsement.

Sheet ConTillWheat
A1: Projections for Planning Purposes Only -- Not to be Used without Updating
A2: 2025 Estimated Costs and Returns per Acre
A3: Con-Till Wheat, Dryland, Follow Wheat
A4: Enter your name for this budget in the cell above.
A5: Enter Your Values in the cells highlighed in MAROON.
E6: Your Acres | R6: Your
C7: Crop Acres | D7: 1000 | L7: Your | Q7: Enterprise | R7: Enterprise
E8: Your | H8: Your | I8: Cash | J8: Your | K8: Landlord | L8: Landlord | N8: Your | P8: Your | Q8: Total | R8: Total
A9: REVENUE | D9: Quantity | E9: Quantity | F9: Units | G9: $/Unit | H9: $/Unit | I9: Total | J9: Total | K9: Share | L9: Share | M9: Landlord | N9: Landlord | O9: Tenant | P9: Tenant | Q9: (1000 acres) | R9: ="(" & E7 & " acres)" -> ( acres)
B10: Winter Wheat | D10: 25 | F10: Bushel | G10: 5.5 | I10: 137.5 | J10: =E10*H10 -> 0 | K10: 0 | M10: 0 | N10: =J10*L10 -> 0 | O10: 137.5 | P10: =+J10-N10 -> 0 | Q10: 137500 | R10: =+J10*E$7 -> 0
B11: Small Grains Pasture | D11: 16 | F11: Pound of Gain | G11: 0.75 | I11: 12 | J11: 0 | K11: 0 | M11: 0 | N11: 0 | O11: 12 | P11: =+J11-N11 -> 0 | Q11: 12000 | R11: 0
B12: Small Grains Pasture | D12: 16 | F12: Pound of Gain | G12: 0.75 | I12: 12 | J12: 0 | K12: 0 | M12: 0 | N12: 0 | O12: 12 | P12: 0 | Q12: 12000 | R12: 0
B13: Small Grains Pasture | D13: 16 | F13: Pound of Gain | G13: 0.75 | I13: 12 | J13: 0 | K13: 0 | M13: 0 | N13: 0 | O13: 12 | P13: 0 | Q13: 12000 | R13: 0
D14: 0 | G14: 0 | I14: 0 | J14: 0 | K14: 0 | M14: 0 | N14: 0 | O14: 0 | P14: 0 | Q14: 0 | R14: 0
D15: 0 | G15: 0 | I15: 0 | J15: 0 | K15: 0 | M15: 0 | N15: 0 | O15: 0 | P15: 0 | Q15: 0 | R15: 0
A16: Total Revenue | I16: 173.5 | J16: =SUM(J10:J15) -> 0 | M16: 0 | N16: =SUM(N10:N15) -> 0 | O16: 173.5 | P16: 0 | Q16: 173500 | R16: 0
Q17: Enterprise | R17: Enterprise
A18: VARIABLE COSTS | D18: Quantity | E18: Quantity | F18: Units | G18: $/Unit | H18: $/Unit | I18: Total | J18: Total | K18: Share | L18: Share | M18: Landlord | N18: Landlord | O18: Tenant | P18: Tenant | Q18: Total | R18: Total
A19: Production Costs
B20: Custom
C21: Soil Test-Dryland | D21: 1 | F21: Each | G21: 0.25 | I21: 0.25 | J21: =E21*H21 -> 0 | K21: 0 | M21: 0 | N21: =J21*L21 -> 0 | O21: 0.25 | P21: =+J21-N21 -> 0 | Q21: 250 | R21: =+J21*E$7 -> 0
C22: Custom Harvest Wheat | D22: 1 | F22: Acre | G22: 45.17 | I22: 45.17 | J22: 0 | K22: 0 | M22: 0 | N22: 0 | O22: 45.17 | P22: 0 | Q22: 45170 | R22: 0
C23: Custom Haul Wheat | D23: 25 | F23: Bushels | G23: 0.27 | I23: 6.75 | J23: 0 | K23: 0 | M23: 0 | N23: 0 | O23: 6.75 | P23: 0 | Q23: 6750 | R23: 0
C24: Custom Harvest Overage Wheat | D24: 1 | F24: Bushels | G24: 0.23 | I24: 0.23 | J24: 0 | K24: 0 | M24: 0 | N24: 0 | O24: 0.23 | P24: 0 | Q24: 230 | R24: 0
B25: Fertilizer
C26: Nitrogen Dry-Urea | D26: 3.8 | F26: Pounds | G26: 0.62 | I26: 2.356 | J26: 0 | K26: 0 | M26: 0 | N26: 0 | O26: 2.356 | P26: 0 | Q26: 2356 | R26: 0
C27: Phos (11-52-0 DRY MAT) | D27: 18.2 | F27: Pounds | G27: 1.29 | I27: 23.478 | J27: 0 | K27: 0 | M27: 0 | N27: 0 | O27: 23.478 | P27: 0 | Q27: 23478 | R27: 0
C28: Nitrogen N32-liq | D28: 35.2 | F28: Pounds | G28: 2.69 | I28: 94.688 | J28: 0 | K28: 0 | M28: 0 | N28: 0 | O28: 94.688 | P28: 0 | Q28: 94688 | R28: 0
B29: Herbicide
C30: MCPA | D30: 1 | F30: pint | G30: 3.1 | I30: 3.1 | J30: 0 | K30: 0 | M30: 0 | N30: 0 | O30: 3.1 | P30: 0 | Q30: 3100 | R30: 0
C31: MSM (Ally) | D31: 0.1 | F31: Ounce | G31: 4.5 | I31: 0.45 | J31: 0 | K31: 0 | M31: 0 | N31: 0 | O31: 0.45 | P31: 0 | Q31: 450 | R31: 0
B32: Seed
C33: Wheat Seed | D33: 80 | F33: Pounds | G33: 0.2667 | I33: 21.336 | J33: 0 | K33: 0 | M33: 0 | N33: 0 | O33: 21.336 | P33: 0 | Q33: 21336 | R33: 0
B34: Miscellaneous
C35: Wht RP 70%, Ent, | D35: 1 | F35: Acre | G35: 3.09 | I35: 3.09 | J35: 0 | K35: 0 | M35: 0 | N35: 0 | O35: 3.09 | P35: 0 | Q35: 3090 | R35: 0
B36: Fungicides
C37: Wheat Fungicide | D37: 8 | F37: Ounce | G37: 0.5 | I37: 4 | J37: 0 | K37: 0 | M37: 0 | N37: 0 | O37: 4 | P37: 0 | Q37: 4000 | R37: 0
D38: 0 | G38: 0 | I38: 0 | J38: 0 | K38: 0 | M38: 0 | N38: 0 | O38: 0 | P38: 0 | Q38: 0 | R38: 0
D39: 0 | G39: 0 | I39: 0 | J39: 0 | K39: 0 | M39: 0 | N39: 0 | O39: 0 | P39: 0 | Q39: 0 | R39: 0
D40: 0 | G40: 0 | I40: 0 | J40: =E40*H40 -> 0 | K40: 0 | M40: 0 | N40: =J40*L40 -> 0 | O40: 0 | P40: =+J40-N40 -> 0 | Q40: 0 | R40: =+J40*E$7 -> 0
B41: Machinery Labor
C42: Tractors/Self-Propelled | D42: 0.17 | F42: Hour | G42: 17.21 | I42: 2.9257 | J42: =E42*H42 -> 0 | K42: 0 | M42: 0 | N42: =J42*L42 -> 0 | O42: 2.9257 | P42: =+J42-N42 -> 0 | Q42: 2925.7 | R42: =+J42*E$7 -> 0
C43: Other Labor | D43: 0.03 | F43: Hour | G43: 17.21 | I43: 0.5163 | J43: =E43*H43 -> 0 | K43: 0 | M43: 0 | N43: =J43*L43 -> 0 | O43: 0.5163 | P43: =+J43-N43 -> 0 | Q43: 516.3 | R43: =+J43*E$7 -> 0
B45: Diesel Fuel
C46: Pickup/General Use Equipment | D46: 1 | F46: Acre | G46: 0 | I46: 0 | J46: =E46*H46 -> 0 | K46: 0 | M46: 0 | N46: =J46*L46 -> 0 | O46: 0 | P46: =+J46-N46 -> 0 | Q46: 0 | R46: =+J46*E$7 -> 0
C47: Tractors/Self-Propelled | D47: 2.05 | F47: Gallon | G47: 2.8 | I47: 5.74 | J47: =E47*H47 -> 0 | K47: 0 | M47: 0 | N47: =J47*L47 -> 0 | O47: 5.74 | P47: =+J47-N47 -> 0 | Q47: 5740 | R47: =+J47*E$7 -> 0
B49: Gasoline
C50: Pickup/General Use Equipment | D50: 1 | F50: Acre | G50: 2.6172 | I50: 2.6172 | J50: =E50*H50 -> 0 | K50: 0 | M50: 0 | N50: =J50*L50 -> 0 | O50: 2.6172 | P50: =+J50-N50 -> 0 | Q50: 2617.2 | R50: =+J50*E$7 -> 0
C51: Tractors/Self-Propelled | D51: 0 | F51: Gallon | G51: 2.7 | I51: 0 | J51: =E51*H51 -> 0 | K51: 0 | M51: 0 | N51: =J51*L51 -> 0 | O51: 0 | P51: =+J51-N51 -> 0 | Q51: 0 | R51: =+J51*E$7 -> 0
B53: Repairs & Maintenance
C54: Pickup/General Use Equipment | D54: 1 | F54: Acre | G54: 1.095 | I54: 1.095 | J54: =E54*H54 -> 0 | K54: 0 | M54: 0 | N54: =J54*L54 -> 0 | O54: 1.095 | P54: =+J54-N54 -> 0 | Q54: 1095 | R54: =+J54*E$7 -> 0
C55: Irrigation Equipment | D55: 1 | F55: Acre | G55: 0 | I55: 0 | J55: 0 | K55: 0 | M55: 0 | N55: 0 | O55: 0 | P55: 0 | Q55: 0 | R55: 0
C56: Tractors/Self-Propelled | D56: 1 | F56: Acre | G56: 5.947612629 | I56: 5.947612629 | J56: 0 | K56: 0 | M56: 0 | N56: 0 | O56: 5.947612629 | P56: 0 | Q56: 5947.612629 | R56: 0
C57: Implements | D57: 1 | F57: Acre | G57: 4.861475136 | I57: 4.861475136 | J57: 0 | K57: 0 | M57: 0 | N57: 0 | O57: 4.861475136 | P57: 0 | Q57: 4861.475136 | R57: 0
I58: 0 | J58: 0 | K58: 0 | M58: 0 | N58: 0 | O58: 0 | P58: 0 | Q58: 0 | R58: 0
I59: 0 | J59: 0 | K59: 0 | M59: 0 | N59: 0 | O59: 0 | P59: 0 | Q59: 0 | R59: 0
B60: Interest on Credit Line | G60: 0.08 | I60: 6.485002165 | J60: =+SUM(J20:J59)/2*H60 -> 0 | M60: 0 | N60: =+SUM(N20:N59)/2*L60 -> 0 | O60: 6.485002165 | P60: =+SUM(P20:P59)/2*L60 -> 0 | Q60: 6485.002165 | R60: =+J60*E$7 -> 0
A61: Total Variable Costs | I61: 235.0862899 | J61: =SUM(J21:J60) -> 0 | M61: 0 | N61: =SUM(N21:N60) -> 0 | O61: 235.0862899 | P61: =SUM(P21:P60) -> 0 | Q61: 235086.2899 | R61: =SUM(R21:R60) -> 0
A62: Planned Returns Above Variable Costs: | I62: -61.58628993 | J62: =+J16-J61 -> 0 | M62: 0 | N62: =+N16-N61 -> 0 | O62: -61.58628993 | P62: =+P16-P61 -> 0 | Q62: -61586.28993 | R62: =+R16-R61 -> 0
B63: Breakeven Price to Cover Variable Costs | G63: 7.963451597 | H63: =IF(E10=0,"n/a",(YVarExp-(YTotExp+YTotRet-J10))/E10) -> n/a | I63: Bushel
Q64: Enterprise | R64: Enterprise
A65: FIXED COSTS | D65: Quantity | E65: Quantity | F65: Units | G65: $/Unit | H65: $/Unit | I65: Total | J65: Total | K65: Share | L65: Share | M65: Landlord | N65: Landlord | O65: Tenant | P65: Tenant | Q65: Total | R65: Total
B66: Machinery Depreciation
C67: Pickup/General Use Equipment | D67: 1 | F67: Acre | G67: 2.322 | I67: 2.322 | J67: =E67*H67 -> 0 | K67: 0 | M67: 0 | N67: =J67*L67 -> 0 | O67: 2.322 | P67: =+J67-N67 -> 0 | Q67: 2322 | R67: =+J67*E$7 -> 0
C68: Tractors/Self-Propelled | D68: 1 | F68: Acre | G68: 7.525508247 | I68: 7.525508247 | J68: 0 | K68: 0 | M68: 0 | N68: =J68*L68 -> 0 | O68: 7.525508247 | P68: 0 | Q68: 7525.508247 | R68: 0
C69: Implements | D69: 1 | F69: Acre | G69: 6.250468032 | I69: 6.250468032 | J69: 0 | K69: 0 | M69: 0 | N69: =J69*L69 -> 0 | O69: 6.250468032 | P69: 0 | Q69: 6250.468032 | R69: 0
B70: Equipment Investment
C71: Pickup/General Use Equipment | D71: 12.87 | F71: Dollars | G71: 0.08 | I71: 1.0296 | J71: =E71*H71 -> 0 | K71: 0 | M71: 0 | N71: =J71*L71 -> 0 | O71: 1.0296 | P71: =+J71-N71 -> 0 | Q71: 1029.6 | R71: =+J71*E$7 -> 0
C72: Tractors/Self-Propelled | D72: 57.98510761 | F72: Dollars | G72: 0.08 | I72: 4.638808609 | J72: 0 | K72: 0 | M72: 0 | N72: =J72*L72 -> 0 | O72: 4.638808609 | P72: 0 | Q72: 4638.808609 | R72: 0
C73: Implements | D73: 26.73811325 | F73: Dollars | G73: 0.08 | I73: 2.13904906 | J73: 0 | K73: 0 | M73: 0 | N73: =J73*L73 -> 0 | O73: 2.13904906 | P73: 0 | Q73: 2139.04906 | R73: 0
B74: Salaried Labor | D74: 1 | F74: Acre | G74: 0 | I74: 0 | J74: 0 | K74: 0 | M74: 0 | N74: =J74*L74 -> 0 | O74: 0 | P74: =+J74-N74 -> 0 | Q74: 0 | R74: =+J74*E$7 -> 0
B75: Management Fee, Owner/Operator Labor | D75: 1 | F75: Acre | G75: 10 | I75: 10 | J75: 0 | K75: 0 | M75: 0 | N75: 0 | O75: 10 | P75: 0 | Q75: 10000 | R75: 0
B76: Allocated Establishment Cost | D76: 1 | F76: Acre | G76: 0 | I76: 0 | J76: 0 | K76: 0 | M76: 0 | N76: 0 | O76: 0 | P76: 0 | Q76: 0 | R76: 0
B77: Rent-Dryland Crop | D77: 1 | F77: Acre | G77: 35 | I77: 35 | J77: 0 | K77: 0 | M77: 0 | N77: 0 | O77: 35 | P77: 0 | Q77: 35000 | R77: 0
B78: Property Taxes | D78: 1 | F78: Acre | G78: 0 | I78: 0 | J78: 0 | K78: 0 | M78: 0 | N78: 0 | O78: 0 | P78: 0 | Q78: 0 | R78: 0
B79: Whole Farm Insurance | D79: 1 | F79: Acre | G79: 0 | I79: 0 | J79: 0 | K79: 0 | M79: 0 | N79: 0 | O79: 0 | P79: 0 | Q79: 0 | R79: 0
D80: 1 | G80: 0 | I80: 0 | J80: 0 | K80: 0 | M80: 0 | N80: 0 | O80: 0 | P80: 0 | Q80: 0 | R80: 0
D81: 1 | G81: 0 | I81: 0 | J81: =E81*H81 -> 0 | K81: 0 | M81: 0 | N81: 0 | O81: 0 | P81: 0 | Q81: 0 | R81: 0
A82: Total Fixed Costs | I82: 68.90543395 | J82: =+SUM(J67:J81) -> 0 | M82: 0 | N82: =+SUM(N67:N81) -> 0 | O82: 68.90543395 | P82: =+SUM(P67:P81) -> 0 | Q82: 68905.43395 | R82: =+SUM(R67:R81) -> 0
A83: Total Specified Costs | I83: 303.9917239 | J83: =+J61+J82 -> 0 | M83: 0 | N83: =+N61+N82 -> 0 | O83: 303.9917239 | P83: =+P61+P82 -> 0 | Q83: 303991.7239 | R83: =+R61+R82 -> 0
A85: Returns Above Specified Costs | I85: -130.4917239 | J85: =+J16-J83 -> 0 | M85: 0 | N85: =+N16-N83 -> 0 | O85: -130.4917239 | P85: =+P16-P83 -> 0 | Q85: -130491.7239 | R85: =+R16-R83 -> 0
A87: Breakeven Price to Cover Total Costs | G87: 10.71966896 | H87: =IF(E10=0,"n/a",(YTotExp-(YTotExp+YTotRet-J10))/E10) -> n/a | I87: Bushel
D89: Example Breakeven Prices
B90: Example | C90: Example | D90: To Cover | G90: To Cover
B91: Yield | C91: Yield | D91: Variable | G91: Total
B92: Percent | C92: Bushel | D92: Costs | G92: Costs
B93: 0.75 | C93: 18.75 | D93: 10.61793546 | G93: 14.29289194
B94: 0.9 | C94: 22.5 | D94: 8.848279552 | G94: 11.91074328
B95: 1 | C95: 25 | D95: 7.963451597 | G95: 10.71966896
B96: 1.1 | C96: 27.5 | D96: 7.239501452 | G96: 9.745153596
B97: 1.25 | C97: 31.25 | D97: 6.370761278 | G97: 8.575735164
D99: Your Breakeven Prices
B100: Your | C100: Your | E100: To Cover | H100: To Cover
B101: Yield | C101: Yield | E101: Variable | H101: Total
B102: Percent | C102: Bushel | E102: Costs | H102: Costs
B103: 0.75 | C103: =E10*YPER1 -> 0 | E103: =IF($E$10=0,0,(YVarExp-(YTotExp+YTotRet-J10))/($E$10*YPER1)) -> 0 | H103: =IF($E$10=0,0,(YTotExp-(YTotExp+YTotRet-J10))/($E$10*YPER1)) -> 0
B104: 0.9 | C104: =E10*YPER2 -> 0 | E104: =IF($E$10=0,0,(YVarExp-(YTotExp+YTotRet-J10))/($E$10*YPER2)) -> 0 | H104: =IF($E$10=0,0,(YTotExp-(YTotExp+YTotRet-J10))/($E$10*YPER2)) -> 0
B105: 1 | C105: =+E10 -> 0 | E105: =IF($E$10=0,0,(YVarExp-(YTotExp+YTotRet-J10))/($E$10*YPER3)) -> 0 | H105: =IF($E$10=0,0,(YTotExp-(YTotExp+YTotRet-J10))/($E$10*YPER3)) -> 0
B106: 1.1 | C106: =E10*YPER4 -> 0 | E106: =IF($E$10=0,0,(YVarExp-(YTotExp+YTotRet-J10))/($E$10*YPER4)) -> 0 | H106: =IF($E$10=0,0,(YTotExp-(YTotExp+YTotRet-J10))/($E$10*YPER4)) -> 0
B107: 1.25 | C107: =E10*YPER5 -> 0 | E107: =IF($E$10=0,0,(YVarExp-(YTotExp+YTotRet-J10))/($E$10*YPER5)) -> 0 | H107: =IF($E$10=0,0,(YTotExp-(YTotExp+YTotRet-J10))/($E$10*YPER5)) -> 0
A109: Developed by Jeffrey Wright, Assistant Professor & Extension Economist, Texas A&M AgriLife Extension, 325-657-7309
A111: Information presented is prepared solely as a general guide and not intended to recognize or predict the costs and returns from any one operation. Brand names are mentioned only as examples and imply no endorsement.

Sheet SesameDryland
A1: Projections for Planning Purposes Only -- Not to be Used without Updating
A2: 2025 Estimated Costs and Returns per Acre
A3: Dryland Sesame
A4: Enter your name for this budget in the cell above.
A5: Enter Your Values in the cells highlighed in MAROON.
E6: Your Acres | R6: Your
C7: Crop Acres | D7: 125 | L7: Your | Q7: Enterprise | R7: Enterprise
E8: Your | H8: Your | I8: Cash | J8: Your | K8: Landlord | L8: Landlord | N8: Your | P8: Your | Q8: Total | R8: Total
A9: REVENUE | D9: Quantity | E9: Quantity | F9: Units | G9: $/Unit | H9: $/Unit | I9: Total | J9: Total | K9: Share | L9: Share | M9: Landlord | N9: Landlord | O9: Tenant | P9: Tenant | Q9: (125 acres) | R9: ="(" & E7 & " acres)" -> ( acres)
B10: Sesame Seed | D10: 500 | F10: Pound | G10: 0.35 | I10: 175 | J10: =E10*H10 -> 0 | K10: 0 | M10: 0 | N10: =J10*L10 -> 0 | O10: 175 | P10: =+J10-N10 -> 0 | Q10: 21875 | R10: =+J10*E$7 -> 0
D11: 0 | G11: 0 | I11: 0 | J11: 0 | K11: 0 | M11: 0 | N11: 0 | O11: 0 | P11: =+J11-N11 -> 0 | Q11: 0 | R11: 0
D12: 0 | G12: 0 | I12: 0 | J12: 0 | K12: 0 | M12: 0 | N12: 0 | O12: 0 | P12: 0 | Q12: 0 | R12: 0
A13: Total Revenue | I13: 175 | J13: =SUM(J10:J12) -> 0 | M13: 0 | N13: =SUM(N10:N12) -> 0 | O13: 175 | P13: =SUM(P10:P12) -> 0 | Q13: 21875 | R13: =SUM(R10:R12) -> 0
Q14: Enterprise | R14: Enterprise
A15: VARIABLE COSTS | D15: Quantity | E15: Quantity | F15: Units | G15: $/Unit | H15: $/Unit | I15: Total | J15: Total | K15: Share | L15: Share | M15: Landlord | N15: Landlord | O15: Tenant | P15: Tenant | Q15: Total | R15: Total
A16: Production Costs
B17: Herbicide
C18: Glyphosate | D18: 11 | F18: Ounce | G18: 0.1328125 | I18: 1.4609375 | J18: =E18*H18 -> 0 | K18: 0 | M18: 0 | N18: =J18*L18 -> 0 | O18: 1.4609375 | P18: =+J18-N18 -> 0 | Q18: 182.6171875 | R18: =+J18*E$7 -> 0
C19: Medal | D19: 1.3 | F19: Pint | G19: 7 | I19: 9.1 | J19: 0 | K19: 0 | M19: 0 | N19: 0 | O19: 9.1 | P19: 0 | Q19: 1137.5 | R19: 0
B20: Custom
C21: Soil Test-Dryland | D21: 1 | F21: Each | G21: 0.25 | I21: 0.25 | J21: 0 | K21: 0 | M21: 0 | N21: 0 | O21: 0.25 | P21: 0 | Q21: 31.25 | R21: 0
C22: Custom Harvest Sesame | D22: 1 | F22: Acre | G22: 25 | I22: 25 | J22: 0 | K22: 0 | M22: 0 | N22: 0 | O22: 25 | P22: 0 | Q22: 3125 | R22: 0
C23: Custom Haul Sesame | D23: 14.28571 | F23: Bushels | G23: 0.27 | I23: 3.8571417 | J23: 0 | K23: 0 | M23: 0 | N23: 0 | O23: 3.8571417 | P23: 0 | Q23: 482.1427125 | R23: 0
B24: Fertilizer
C25: Nitrogen Dry-Urea | D25: 30 | F25: Pounds | G25: 0.62 | I25: 18.6 | J25: 0 | K25: 0 | M25: 0 | N25: 0 | O25: 18.6 | P25: 0 | Q25: 2325 | R25: 0
B26: Miscellaneous
C27: Crop Insurance Sesame | D27: 1 | F27: Acre | G27: 15 | I27: 15 | J27: 0 | K27: 0 | M27: 0 | N27: 0 | O27: 15 | P27: 0 | Q27: 1875 | R27: 0
C28: Duct Tape | D28: 0.28125 | F28: Roll | G28: 4 | I28: 1.125 | J28: 0 | K28: 0 | M28: 0 | N28: 0 | O28: 1.125 | P28: 0 | Q28: 140.625 | R28: 0
B29: Seed
C30: Seed Sesame | D30: 4 | F30: Pounds | G30: 6 | I30: 24 | J30: 0 | K30: 0 | M30: 0 | N30: 0 | O30: 24 | P30: 0 | Q30: 3000 | R30: 0
D31: 0 | G31: 0 | I31: 0 | J31: 0 | K31: 0 | M31: 0 | N31: 0 | O31: 0 | P31: 0 | Q31: 0 | R31: 0
D32: 0 | G32: 0 | I32: 0 | J32: 0 | K32: 0 | M32: 0 | N32: 0 | O32: 0 | P32: 0 | Q32: 0 | R32: 0
D33: 0 | G33: 0 | I33: 0 | J33: =E33*H33 -> 0 | K33: 0 | M33: 0 | N33: =J33*L33 -> 0 | O33: 0 | P33: =+J33-N33 -> 0 | Q33: 0 | R33: =+J33*E$7 -> 0
B34: Machinery Labor
C35: Tractors/Self-Propelled | D35: 0.38 | F35: Hour | G35: 17.21 | I35: 6.5398 | J35: =E35*H35 -> 0 | K35: 0 | M35: 0 | N35: =J35*L35 -> 0 | O35: 6.5398 | P35: =+J35-N35 -> 0 | Q35: 817.475 | R35: =+J35*E$7 -> 0
C36: Other Labor | D36: 0 | F36: Hour | G36: 17.21 | I36: 0 | J36: =E36*H36 -> 0 | K36: 0 | M36: 0 | N36: =J36*L36 -> 0 | O36: 0 | P36: =+J36-N36 -> 0 | Q36: 0 | R36: =+J36*E$7 -> 0
B38: Diesel Fuel
C39: Pickup/General Use Equipment | D39: 1 | F39: Acre | G39: 0 | I39: 0 | J39: =E39*H39 -> 0 | K39: 0 | M39: 0 | N39: =J39*L39 -> 0 | O39: 0 | P39: =+J39-N39 -> 0 | Q39: 0 | R39: =+J39*E$7 -> 0
C40: Tractors/Self-Propelled | D40: 2.3 | F40: Gallon | G40: 2.8 | I40: 6.44 | J40: =E40*H40 -> 0 | K40: 0 | M40: 0 | N40: =J40*L40 -> 0 | O40: 6.44 | P40: =+J40-N40 -> 0 | Q40: 805 | R40: =+J40*E$7 -> 0
B42: Gasoline
C43: Pickup/General Use Equipment | D43: 1 | F43: Acre | G43: 1.39584 | I43: 1.39584 | J43: =E43*H43 -> 0 | K43: 0 | M43: 0 | N43: =J43*L43 -> 0 | O43: 1.39584 | P43: =+J43-N43 -> 0 | Q43: 174.48 | R43: =+J43*E$7 -> 0
C44: Tractors/Self-Propelled | D44: 0 | F44: Gallon | G44: 2.7 | I44: 0 | J44: =E44*H44 -> 0 | K44: 0 | M44: 0 | N44: =J44*L44 -> 0 | O44: 0 | P44: =+J44-N44 -> 0 | Q44: 0 | R44: =+J44*E$7 -> 0
B46: Repairs & Maintenance
C47: Pickup/General Use Equipment | D47: 1 | F47: Acre | G47: 0.584 | I47: 0.584 | J47: =E47*H47 -> 0 | K47: 0 | M47: 0 | N47: =J47*L47 -> 0 | O47: 0.584 | P47: =+J47-N47 -> 0 | Q47: 73 | R47: =+J47*E$7 -> 0
C48: Irrigation Equipment | D48: 1 | F48: Acre | G48: 0 | I48: 0 | J48: 0 | K48: 0 | M48: 0 | N48: 0 | O48: 0 | P48: 0 | Q48: 0 | R48: 0
C49: Tractors/Self-Propelled | D49: 1 | F49: Acre | G49: 5.936148583 | I49: 5.936148583 | J49: 0 | K49: 0 | M49: 0 | N49: 0 | O49: 5.936148583 | P49: 0 | Q49: 742.0185728 | R49: 0
C50: Implements | D50: 1 | F50: Acre | G50: 5.004550516 | I50: 5.004550516 | J50: 0 | K50: 0 | M50: 0 | N50: 0 | O50: 5.004550516 | P50: 0 | Q50: 625.5688145 | R50: 0
I51: 0 | J51: 0 | K51: 0 | M51: 0 | N51: 0 | O51: 0 | P51: 0 | Q51: 0 | R51: 0
I52: 0 | J52: 0 | K52: 0 | M52: 0 | N52: 0 | O52: 0 | P52: 0 | Q52: 0 | R52: 0
B53: Interest on Credit Line | G53: 0.08 | I53: 4.350894971 | J53: =+SUM(J17:J52)/2*H53 -> 0 | M53: 0 | N53: =+SUM(N17:N52)/2*L53 -> 0 | O53: 4.350894971 | P53: =+SUM(P17:P52)/2*L53 -> 0 | Q53: 543.8618714 | R53: =+J53*E$7 -> 0
A54: Total Variable Costs | I54: 128.6443133 | J54: =SUM(J18:J53) -> 0 | M54: 0 | N54: =SUM(N18:N53) -> 0 | O54: 128.6443133 | P54: =SUM(P18:P53) -> 0 | Q54: 16080.53916 | R54: =SUM(R18:R53) -> 0
A55: Planned Returns Above Variable Costs: | I55: 46.35568673 | J55: =+J13-J54 -> 0 | M55: 0 | N55: =+N13-N54 -> 0 | O55: 46.35568673 | P55: =+P13-P54 -> 0 | Q55: 5794.460841 | R55: =+R13-R54 -> 0
B56: Breakeven Price to Cover Variable Costs | G56: 0.2572886265 | H56: =IF(E10=0,"n/a",(YVarExp-(YTotExp+YTotRet-J10))/E10) -> n/a | I56: Pound
Q57: Enterprise | R57: Enterprise
A58: FIXED COSTS | D58: Quantity | E58: Quantity | F58: Units | G58: $/Unit | H58: $/Unit | I58: Total | J58: Total | K58: Share | L58: Share | M58: Landlord | N58: Landlord | O58: Tenant | P58: Tenant | Q58: Total | R58: Total
B59: Machinery Depreciation
C60: Pickup/General Use Equipment | D60: 1 | F60: Acre | G60: 1.2384 | I60: 1.2384 | J60: =E60*H60 -> 0 | K60: 0 | M60: 0 | N60: =J60*L60 -> 0 | O60: 1.2384 | P60: =+J60-N60 -> 0 | Q60: 154.8 | R60: =+J60*E$7 -> 0
C61: Tractors/Self-Propelled | D61: 1 | F61: Acre | G61: 6.846367623 | I61: 6.846367623 | J61: 0 | K61: 0 | M61: 0 | N61: =J61*L61 -> 0 | O61: 6.846367623 | P61: 0 | Q61: 855.7959529 | R61: 0
C62: Implements | D62: 1 | F62: Acre | G62: 6.246046109 | I62: 6.246046109 | J62: 0 | K62: 0 | M62: 0 | N62: =J62*L62 -> 0 | O62: 6.246046109 | P62: 0 | Q62: 780.7557636 | R62: 0
B63: Equipment Investment
C64: Pickup/General Use Equipment | D64: 6.864 | F64: Dollars | G64: 0.08 | I64: 0.54912 | J64: =E64*H64 -> 0 | K64: 0 | M64: 0 | N64: =J64*L64 -> 0 | O64: 0.54912 | P64: =+J64-N64 -> 0 | Q64: 68.64 | R64: =+J64*E$7 -> 0
C65: Tractors/Self-Propelled | D65: 52.90805948 | F65: Dollars | G65: 0.08 | I65: 4.232644758 | J65: 0 | K65: 0 | M65: 0 | N65: =J65*L65 -> 0 | O65: 4.232644758 | P65: 0 | Q65: 529.0805948 | R65: 0
C66: Implements | D66: 26.90256113 | F66: Dollars | G66: 0.08 | I66: 2.152204891 | J66: 0 | K66: 0 | M66: 0 | N66: =J66*L66 -> 0 | O66: 2.152204891 | P66: 0 | Q66: 269.0256113 | R66: 0
B67: Salaried Labor | D67: 1 | F67: Acre | G67: 0 | I67: 0 | J67: 0 | K67: 0 | M67: 0 | N67: =J67*L67 -> 0 | O67: 0 | P67: =+J67-N67 -> 0 | Q67: 0 | R67: =+J67*E$7 -> 0
B68: Management Fee, Owner/Operator Labor | D68: 1 | F68: Acre | G68: 10 | I68: 10 | J68: 0 | K68: 0 | M68: 0 | N68: 0 | O68: 10 | P68: 0 | Q68: 1250 | R68: 0
B69: Allocated Establishment Cost | D69: 1 | F69: Acre | G69: 0 | I69: 0 | J69: 0 | K69: 0 | M69: 0 | N69: 0 | O69: 0 | P69: 0 | Q69: 0 | R69: 0
B70: Rent-Dryland Crop | D70: 1 | F70: Acre | G70: 35 | I70: 35 | J70: 0 | K70: 0 | M70: 0 | N70: 0 | O70: 35 | P70: 0 | Q70: 4375 | R70: 0
B71: Property Taxes | D71: 1 | F71: Acre | G71: 0 | I71: 0 | J71: 0 | K71: 0 | M71: 0 | N71: 0 | O71: 0 | P71: 0 | Q71: 0 | R71: 0
B72: Whole Farm Insurance | D72: 1 | F72: Acre | G72: 0 | I72: 0 | J72: 0 | K72: 0 | M72: 0 | N72: 0 | O72: 0 | P72: 0 | Q72: 0 | R72: 0
D73: 1 | G73: 0 | I73: 0 | J73: 0 | K73: 0 | M73: 0 | N73: 0 | O73: 0 | P73: 0 | Q73: 0 | R73: 0
D74: 1 | G74: 0 | I74: 0 | J74: =E74*H74 -> 0 | K74: 0 | M74: 0 | N74: 0 | O74: 0 | P74: 0 | Q74: 0 | R74: 0
A75: Total Fixed Costs | I75: 66.26478338 | J75: =+SUM(J60:J74) -> 0 | M75: 0 | N75: =+SUM(N60:N74) -> 0 | O75: 66.26478338 | P75: =+SUM(P60:P74) -> 0 | Q75: 8283.097923 | R75: =+SUM(R60:R74) -> 0
A76: Total Specified Costs | I76: 194.9090967 | J76: =+J54+J75 -> 0 | M76: 0 | N76: =+N54+N75 -> 0 | O76: 194.9090967 | P76: =+P54+P75 -> 0 | Q76: 24363.63708 | R76: =+R54+R75 -> 0
A78: Returns Above Specified Costs | I78: -19.90909665 | J78: =+J13-J76 -> 0 | M78: 0 | N78: =+N13-N76 -> 0 | O78: -19.90909665 | P78: =+P13-P76 -> 0 | Q78: -2488.637081 | R78: =+R13-R76 -> 0
A80: Breakeven Price to Cover Total Costs | G80: 0.3898181933 | H80: =IF(E10=0,"n/a",(YTotExp-(YTotExp+YTotRet-J10))/E10) -> n/a | I80: Pound
D82: Example Breakeven Prices
B83: Example | C83: Example | D83: To Cover | G83: To Cover
B84: Yield | C84: Yield | D84: Variable | G84: Total
B85: Percent | C85: Pound | D85: Costs | G85: Costs
B86: 0.75 | C86: 375 | D86: 0.3430515021 | G86: 0.5197575911
B87: 0.9 | C87: 450 | D87: 0.2858762517 | G87: 0.4331313259
B88: 1 | C88: 500 | D88: 0.2572886265 | G88: 0.3898181933
B89: 1.1 | C89: 550 | D89: 0.2338987514 | G89: 0.3543801757
B90: 1.25 | C90: 625 | D90: 0.2058309012 | G90: 0.3118545546
D92: Your Breakeven Prices
B93: Your | C93: Your | E93: To Cover | H93: To Cover
B94: Yield | C94: Yield | E94: Variable | H94: Total
B95: Percent | C95: Pound | E95: Costs | H95: Costs
B96: 0.75 | C96: =E10*YPER1 -> 0 | E96: =IF($E$10=0,0,(YVarExp-(YTotExp+YTotRet-J10))/($E$10*YPER1)) -> 0 | H96: =IF($E$10=0,0,(YTotExp-(YTotExp+YTotRet-J10))/($E$10*YPER1)) -> 0
B97: 0.9 | C97: =E10*YPER2 -> 0 | E97: =IF($E$10=0,0,(YVarExp-(YTotExp+YTotRet-J10))/($E$10*YPER2)) -> 0 | H97: =IF($E$10=0,0,(YTotExp-(YTotExp+YTotRet-J10))/($E$10*YPER2)) -> 0
B98: 1 | C98: =+E10 -> 0 | E98: =IF($E$10=0,0,(YVarExp-(YTotExp+YTotRet-J10))/($E$10*YPER3)) -> 0 | H98: =IF($E$10=0,0,(YTotExp-(YTotExp+YTotRet-J10))/($E$10*YPER3)) -> 0
B99: 1.1 | C99: =E10*YPER4 -> 0 | E99: =IF($E$10=0,0,(YVarExp-(YTotExp+YTotRet-J10))/($E$10*YPER4)) -> 0 | H99: =IF($E$10=0,0,(YTotExp-(YTotExp+YTotRet-J10))/($E$10*YPER4)) -> 0
B100: 1.25 | C100: =E10*YPER5 -> 0 | E100: =IF($E$10=0,0,(YVarExp-(YTotExp+YTotRet-J10))/($E$10*YPER5)) -> 0 | H100: =IF($E$10=0,0,(YTotExp-(YTotExp+YTotRet-J10))/($E$10*YPER5)) -> 0
A102: Developed by Jeffrey Wright, Assistant Professor & Extension Economist, Texas A&M AgriLife Extension, 325-657-7309
A104: Information presented is prepared solely as a general guide and not intended to recognize or predict the costs and returns from any one operation. Brand names are mentioned only as examples and imply no endorsement.

Sheet SorghumDryland
A1: Projections for Planning Purposes Only -- Not to be Used without Updating
A2: 2025 Estimated Costs and Returns per Acre
A3: No-Till Dryland Sorghum, Follow Cotton
A4: Enter your name for this budget in the cell above.
A5: Enter Your Values in the cells highlighed in MAROON.
E6: Your Acres | R6: Your
C7: Crop Acres | D7: 400 | L7: Your | Q7: Enterprise | R7: Enterprise
E8: Your | H8: Your | I8: Cash | J8: Your | K8: Landlord | L8: Landlord | N8: Your | P8: Your | Q8: Total | R8: Total
A9: REVENUE | D9: Quantity | E9: Quantity | F9: Units | G9: $/Unit | H9: $/Unit | I9: Total | J9: Total | K9: Share | L9: Share | M9: Landlord | N9: Landlord | O9: Tenant | P9: Tenant | Q9: (400 acres) | R9: ="(" & E7 & " acres)" -> ( acres)
B10: Sorghum | D10: 22 | F10: CWT | G10: 7.6 | I10: 167.2 | J10: =E10*H10 -> 0 | K10: 0 | M10: 0 | N10: =J10*L10 -> 0 | O10: 167.2 | P10: =+J10-N10 -> 0 | Q10: 66880 | R10: =+J10*E$7 -> 0
D11: 0 | G11: 0 | I11: 0 | J11: 0 | K11: 0 | M11: 0 | N11: 0 | O11: 0 | P11: =+J11-N11 -> 0 | Q11: 0 | R11: 0
D12: 0 | G12: 0 | I12: 0 | J12: 0 | K12: 0 | M12: 0 | N12: 0 | O12: 0 | P12: 0 | Q12: 0 | R12: 0
A13: Total Revenue | I13: 167.2 | J13: =SUM(J10:J12) -> 0 | M13: 0 | N13: =SUM(N10:N12) -> 0 | O13: 167.2 | P13: =SUM(P10:P12) -> 0 | Q13: 66880 | R13: =SUM(R10:R12) -> 0
Q14: Enterprise | R14: Enterprise
A15: VARIABLE COSTS | D15: Quantity | E15: Quantity | F15: Units | G15: $/Unit | H15: $/Unit | I15: Total | J15: Total | K15: Share | L15: Share | M15: Landlord | N15: Landlord | O15: Tenant | P15: Tenant | Q15: Total | R15: Total
A16: Production Costs
B17: Herbicide
C18: Husky | D18: 14.5 | F18: Ounce | G18: 0.886719 | I18: 12.8574255 | J18: =E18*H18 -> 0 | K18: 0 | M18: 0 | N18: =J18*L18 -> 0 | O18: 12.8574255 | P18: =+J18-N18 -> 0 | Q18: 5142.9702 | R18: =+J18*E$7 -> 0
C19: Glyphosate | D19: 32 | F19: Ounce | G19: 0.1328125 | I19: 4.25 | J19: 0 | K19: 0 | M19: 0 | N19: 0 | O19: 4.25 | P19: 0 | Q19: 1700 | R19: 0
C20: Atrazine | D20: 1 | F20: Quart | G20: 3.425 | I20: 3.425 | J20: 0 | K20: 0 | M20: 0 | N20: 0 | O20: 3.425 | P20: 0 | Q20: 1370 | R20: 0
B21: Fertilizer
C22: Nitrogen Dry-Urea | D22: 30 | F22: Pounds | G22: 0.62 | I22: 18.6 | J22: 0 | K22: 0 | M22: 0 | N22: 0 | O22: 18.6 | P22: 0 | Q22: 7440 | R22: 0
C23: Phos (11-52-0 DRY MAT) | D23: 20 | F23: Pounds | G23: 1.29 | I23: 25.8 | J23: 0 | K23: 0 | M23: 0 | N23: 0 | O23: 25.8 | P23: 0 | Q23: 10320 | R23: 0
B24: Custom
C25: Soil Test-Dryland | D25: 1 | F25: Each | G25: 0.25 | I25: 0.25 | J25: 0 | K25: 0 | M25: 0 | N25: 0 | O25: 0.25 | P25: 0 | Q25: 100 | R25: 0
C26: Custom Harvest Sorghum | D26: 1 | F26: Acre | G26: 34.49 | I26: 34.49 | J26: 0 | K26: 0 | M26: 0 | N26: 0 | O26: 34.49 | P26: 0 | Q26: 13796 | R26: 0
C27: Custom Haul Sorghum | D27: 39.3 | F27: Bushels | G27: 0.24 | I27: 9.432 | J27: 0 | K27: 0 | M27: 0 | N27: 0 | O27: 9.432 | P27: 0 | Q27: 3772.8 | R27: 0
B28: Insecticide
C29: Sivanto | D29: 5.5 | F29: Ounce | G29: 2.66796875 | I29: 14.67382812 | J29: 0 | K29: 0 | M29: 0 | N29: 0 | O29: 14.67382812 | P29: 0 | Q29: 5869.53125 | R29: 0
B30: Miscellaneous
C31: GS RP 70%, Ent | D31: 1 | F31: Acre | G31: 3.75 | I31: 3.75 | J31: 0 | K31: 0 | M31: 0 | N31: 0 | O31: 3.75 | P31: 0 | Q31: 1500 | R31: 0
B32: Seed
C33: Grain Sorghum - Treated | D33: 5 | F33: Pounds | G33: 3.98 | I33: 19.9 | J33: 0 | K33: 0 | M33: 0 | N33: 0 | O33: 19.9 | P33: 0 | Q33: 7960 | R33: 0
D34: 0 | G34: 0 | I34: 0 | J34: 0 | K34: 0 | M34: 0 | N34: 0 | O34: 0 | P34: 0 | Q34: 0 | R34: 0
D35: 0 | G35: 0 | I35: 0 | J35: 0 | K35: 0 | M35: 0 | N35: 0 | O35: 0 | P35: 0 | Q35: 0 | R35: 0
D36: 0 | G36: 0 | I36: 0 | J36: =E36*H36 -> 0 | K36: 0 | M36: 0 | N36: =J36*L36 -> 0 | O36: 0 | P36: =+J36-N36 -> 0 | Q36: 0 | R36: =+J36*E$7 -> 0
B37: Machinery Labor
C38: Tractors/Self-Propelled | D38: 0.18 | F38: Hour | G38: 17.21 | I38: 3.0978 | J38: =E38*H38 -> 0 | K38: 0 | M38: 0 | N38: =J38*L38 -> 0 | O38: 3.0978 | P38: =+J38-N38 -> 0 | Q38: 1239.12 | R38: =+J38*E$7 -> 0
C39: Other Labor | D39: 0 | F39: Hour | G39: 17.21 | I39: 0 | J39: =E39*H39 -> 0 | K39: 0 | M39: 0 | N39: =J39*L39 -> 0 | O39: 0 | P39: =+J39-N39 -> 0 | Q39: 0 | R39: =+J39*E$7 -> 0
B41: Diesel Fuel
C42: Pickup/General Use Equipment | D42: 1 | F42: Acre | G42: 0 | I42: 0 | J42: =E42*H42 -> 0 | K42: 0 | M42: 0 | N42: =J42*L42 -> 0 | O42: 0 | P42: =+J42-N42 -> 0 | Q42: 0 | R42: =+J42*E$7 -> 0
C43: Tractors/Self-Propelled | D43: 0.97 | F43: Gallon | G43: 2.8 | I43: 2.716 | J43: =E43*H43 -> 0 | K43: 0 | M43: 0 | N43: =J43*L43 -> 0 | O43: 2.716 | P43: =+J43-N43 -> 0 | Q43: 1086.4 | R43: =+J43*E$7 -> 0
B45: Gasoline
C46: Pickup/General Use Equipment | D46: 1 | F46: Acre | G46: 1.9629 | I46: 1.9629 | J46: =E46*H46 -> 0 | K46: 0 | M46: 0 | N46: =J46*L46 -> 0 | O46: 1.9629 | P46: =+J46-N46 -> 0 | Q46: 785.16 | R46: =+J46*E$7 -> 0
C47: Tractors/Self-Propelled | D47: 0 | F47: Gallon | G47: 2.7 | I47: 0 | J47: =E47*H47 -> 0 | K47: 0 | M47: 0 | N47: =J47*L47 -> 0 | O47: 0 | P47: =+J47-N47 -> 0 | Q47: 0 | R47: =+J47*E$7 -> 0
B49: Repairs & Maintenance
C50: Pickup/General Use Equipment | D50: 1 | F50: Acre | G50: 0.82125 | I50: 0.82125 | J50: =E50*H50 -> 0 | K50: 0 | M50: 0 | N50: =J50*L50 -> 0 | O50: 0.82125 | P50: =+J50-N50 -> 0 | Q50: 328.5 | R50: =+J50*E$7 -> 0
C51: Irrigation Equipment | D51: 1 | F51: Acre | G51: 0 | I51: 0 | J51: 0 | K51: 0 | M51: 0 | N51: 0 | O51: 0 | P51: 0 | Q51: 0 | R51: 0
C52: Tractors/Self-Propelled | D52: 1 | F52: Acre | G52: 2.167460689 | I52: 2.167460689 | J52: 0 | K52: 0 | M52: 0 | N52: 0 | O52: 2.167460689 | P52: 0 | Q52: 866.9842755 | R52: 0
C53: Implements | D53: 1 | F53: Acre | G53: 2.069343716 | I53: 2.069343716 | J53: 0 | K53: 0 | M53: 0 | N53: 0 | O53: 2.069343716 | P53: 0 | Q53: 827.7374866 | R53: 0
I54: 0 | J54: 0 | K54: 0 | M54: 0 | N54: 0 | O54: 0 | P54: 0 | Q54: 0 | R54: 0
I55: 0 | J55: 0 | K55: 0 | M55: 0 | N55: 0 | O55: 0 | P55: 0 | Q55: 0 | R55: 0
B56: Interest on Credit Line | G56: 0.08 | I56: 4.353230062 | J56: =+SUM(J17:J55)/2*H56 -> 0 | M56: 0 | N56: =+SUM(N17:N55)/2*L56 -> 0 | O56: 4.353230062 | P56: =+SUM(P17:P55)/2*L56 -> 0 | Q56: 1741.292025 | R56: =+J56*E$7 -> 0
A57: Total Variable Costs | I57: 164.6162381 | J57: =SUM(J18:J56) -> 0 | M57: 0 | N57: =SUM(N18:N56) -> 0 | O57: 164.6162381 | P57: =SUM(P18:P56) -> 0 | Q57: 65846.49524 | R57: =SUM(R18:R56) -> 0
A58: Planned Returns Above Variable Costs: | I58: 2.583761908 | J58: =+J13-J57 -> 0 | M58: 0 | N58: =+N13-N57 -> 0 | O58: 2.583761908 | P58: =+P13-P57 -> 0 | Q58: 1033.504763 | R58: =+R13-R57 -> 0
B59: Breakeven Price to Cover Variable Costs | G59: 7.482556277 | H59: =IF(E10=0,"n/a",(YVarExp-(YTotExp+YTotRet-J10))/E10) -> n/a | I59: CWT
Q60: Enterprise | R60: Enterprise
A61: FIXED COSTS | D61: Quantity | E61: Quantity | F61: Units | G61: $/Unit | H61: $/Unit | I61: Total | J61: Total | K61: Share | L61: Share | M61: Landlord | N61: Landlord | O61: Tenant | P61: Tenant | Q61: Total | R61: Total
B62: Machinery Depreciation
C63: Pickup/General Use Equipment | D63: 1 | F63: Acre | G63: 1.7415 | I63: 1.7415 | J63: =E63*H63 -> 0 | K63: 0 | M63: 0 | N63: =J63*L63 -> 0 | O63: 1.7415 | P63: =+J63-N63 -> 0 | Q63: 696.6 | R63: =+J63*E$7 -> 0
C64: Tractors/Self-Propelled | D64: 1 | F64: Acre | G64: 2.993539564 | I64: 2.993539564 | J64: 0 | K64: 0 | M64: 0 | N64: =J64*L64 -> 0 | O64: 2.993539564 | P64: 0 | Q64: 1197.415825 | R64: 0
C65: Implements | D65: 1 | F65: Acre | G65: 3.423269287 | I65: 3.423269287 | J65: 0 | K65: 0 | M65: 0 | N65: =J65*L65 -> 0 | O65: 3.423269287 | P65: 0 | Q65: 1369.307715 | R65: 0
B66: Equipment Investment
C67: Pickup/General Use Equipment | D67: 9.6525 | F67: Dollars | G67: 0.08 | I67: 0.7722 | J67: =E67*H67 -> 0 | K67: 0 | M67: 0 | N67: =J67*L67 -> 0 | O67: 0.7722 | P67: =+J67-N67 -> 0 | Q67: 308.88 | R67: =+J67*E$7 -> 0
C68: Tractors/Self-Propelled | D68: 22.89328605 | F68: Dollars | G68: 0.08 | I68: 1.831462884 | J68: 0 | K68: 0 | M68: 0 | N68: =J68*L68 -> 0 | O68: 1.831462884 | P68: 0 | Q68: 732.5851535 | R68: 0
C69: Implements | D69: 14.64398528 | F69: Dollars | G69: 0.08 | I69: 1.171518823 | J69: 0 | K69: 0 | M69: 0 | N69: =J69*L69 -> 0 | O69: 1.171518823 | P69: 0 | Q69: 468.6075291 | R69: 0
B70: Salaried Labor | D70: 1 | F70: Acre | G70: 0 | I70: 0 | J70: 0 | K70: 0 | M70: 0 | N70: =J70*L70 -> 0 | O70: 0 | P70: =+J70-N70 -> 0 | Q70: 0 | R70: =+J70*E$7 -> 0
B71: Management Fee, Owner/Operator Labor | D71: 1 | F71: Acre | G71: 10 | I71: 10 | J71: 0 | K71: 0 | M71: 0 | N71: 0 | O71: 10 | P71: 0 | Q71: 4000 | R71: 0
B72: Allocated Establishment Cost | D72: 1 | F72: Acre | G72: 0 | I72: 0 | J72: 0 | K72: 0 | M72: 0 | N72: 0 | O72: 0 | P72: 0 | Q72: 0 | R72: 0
B73: Rent-Dryland Crop | D73: 1 | F73: Acre | G73: 35 | I73: 35 | J73: 0 | K73: 0 | M73: 0 | N73: 0 | O73: 35 | P73: 0 | Q73: 14000 | R73: 0
B74: Property Taxes | D74: 1 | F74: Acre | G74: 0 | I74: 0 | J74: 0 | K74: 0 | M74: 0 | N74: 0 | O74: 0 | P74: 0 | Q74: 0 | R74: 0
B75: Whole Farm Insurance | D75: 1 | F75: Acre | G75: 0 | I75: 0 | J75: 0 | K75: 0 | M75: 0 | N75: 0 | O75: 0 | P75: 0 | Q75: 0 | R75: 0
D76: 1 | G76: 0 | I76: 0 | J76: 0 | K76: 0 | M76: 0 | N76: 0 | O76: 0 | P76: 0 | Q76: 0 | R76: 0
D77: 1 | G77: 0 | I77: 0 | J77: =E77*H77 -> 0 | K77: 0 | M77: 0 | N77: 0 | O77: 0 | P77: 0 | Q77: 0 | R77: 0
A78: Total Fixed Costs | I78: 56.93349056 | J78: =+SUM(J63:J77) -> 0 | M78: 0 | N78: =+SUM(N63:N77) -> 0 | O78: 56.93349056 | P78: =+SUM(P63:P77) -> 0 | Q78: 22773.39622 | R78: =+SUM(R63:R77) -> 0
A79: Total Specified Costs | I79: 221.5497286 | J79: =+J57+J78 -> 0 | M79: 0 | N79: =+N57+N78 -> 0 | O79: 221.5497286 | P79: =+P57+P78 -> 0 | Q79: 88619.89146 | R79: =+R57+R78 -> 0
A81: Returns Above Specified Costs | I81: -54.34972865 | J81: =+J13-J79 -> 0 | M81: 0 | N81: =+N13-N79 -> 0 | O81: -54.34972865 | P81: =+P13-P79 -> 0 | Q81: -21739.89146 | R81: =+R13-R79 -> 0
A83: Breakeven Price to Cover Total Costs | G83: 10.07044221 | H83: =IF(E10=0,"n/a",(YTotExp-(YTotExp+YTotRet-J10))/E10) -> n/a | I83: CWT
D85: Example Breakeven Prices
B86: Example | C86: Example | D86: To Cover | G86: To Cover
B87: Yield | C87: Yield | D87: Variable | G87: Total
B88: Percent | C88: CWT | D88: Costs | G88: Costs
B89: 0.75 | C89: 16.5 | D89: 9.976741703 | G89: 13.42725628
B90: 0.9 | C90: 19.8 | D90: 8.313951419 | G90: 11.18938023
B91: 1 | C91: 22 | D91: 7.482556277 | G91: 10.07044221
B92: 1.1 | C92: 24.2 | D92: 6.802323888 | G92: 9.154947465
B93: 1.25 | C93: 27.5 | D93: 5.986045022 | G93: 8.056353769
D95: Your Breakeven Prices
B96: Your | C96: Your | E96: To Cover | H96: To Cover
B97: Yield | C97: Yield | E97: Variable | H97: Total
B98: Percent | C98: CWT | E98: Costs | H98: Costs
B99: 0.75 | C99: =E10*YPER1 -> 0 | E99: =IF($E$10=0,0,(YVarExp-(YTotExp+YTotRet-J10))/($E$10*YPER1)) -> 0 | H99: =IF($E$10=0,0,(YTotExp-(YTotExp+YTotRet-J10))/($E$10*YPER1)) -> 0
B100: 0.9 | C100: =E10*YPER2 -> 0 | E100: =IF($E$10=0,0,(YVarExp-(YTotExp+YTotRet-J10))/($E$10*YPER2)) -> 0 | H100: =IF($E$10=0,0,(YTotExp-(YTotExp+YTotRet-J10))/($E$10*YPER2)) -> 0
B101: 1 | C101: =+E10 -> 0 | E101: =IF($E$10=0,0,(YVarExp-(YTotExp+YTotRet-J10))/($E$10*YPER3)) -> 0 | H101: =IF($E$10=0,0,(YTotExp-(YTotExp+YTotRet-J10))/($E$10*YPER3)) -> 0
B102: 1.1 | C102: =E10*YPER4 -> 0 | E102: =IF($E$10=0,0,(YVarExp-(YTotExp+YTotRet-J10))/($E$10*YPER4)) -> 0 | H102: =IF($E$10=0,0,(YTotExp-(YTotExp+YTotRet-J10))/($E$10*YPER4)) -> 0
B103: 1.25 | C103: =E10*YPER5 -> 0 | E103: =IF($E$10=0,0,(YVarExp-(YTotExp+YTotRet-J10))/($E$10*YPER5)) -> 0 | H103: =IF($E$10=0,0,(YTotExp-(YTotExp+YTotRet-J10))/($E$10*YPER5)) -> 0
A105: Developed by Jeffrey Wright, Assistant Professor & Extension Economist, Texas A&M AgriLife Extension, 325-657-7309
A107: Information presented is prepared solely as a general guide and not intended to recognize or predict the costs and returns from any one operation. Brand names are mentioned only as examples and imply no endorsement.

Sheet CottonDripXF
A1: Projections for Planning Purposes Only -- Not to be Used without Updating
A2: 2025 Estimated Costs and Returns per Acre
A3: Drip Irrigated Cotton, Auxin Technology
A4: Enter your name for this budget in the cell above.
A5: Enter Your Values in the cells highlighed in MAROON.
E6: Your Acres | R6: Your
C7: Crop Acres | D7: 400 | L7: Your | Q7: Enterprise | R7: Enterprise
E8: Your | H8: Your | I8: Cash | J8: Your | K8: Landlord | L8: Landlord | N8: Your | P8: Your | Q8: Total | R8: Total
A9: REVENUE | D9: Quantity | E9: Quantity | F9: Units | G9: $/Unit | H9: $/Unit | I9: Total | J9: Total | K9: Share | L9: Share | M9: Landlord | N9: Landlord | O9: Tenant | P9: Tenant | Q9: (400 acres) | R9: ="(" & E7 & " acres)" -> ( acres)
B10: Cotton Lint | D10: 1326 | F10: Pound | G10: 0.7 | I10: 928.2 | J10: =E10*H10 -> 0 | K10: 0 | M10: 0 | N10: =J10*L10 -> 0 | O10: 928.2 | P10: =+J10-N10 -> 0 | Q10: 371280 | R10: =+J10*E$7 -> 0
B11: Cotton Seed | D11: 0.96 | F11: Ton | G11: 220 | I11: 211.2 | J11: 0 | K11: 0 | M11: 0 | N11: 0 | O11: 211.2 | P11: =+J11-N11 -> 0 | Q11: 84480 | R11: 0
D12: 0 | G12: 0 | I12: 0 | J12: 0 | K12: 0 | M12: 0 | N12: 0 | O12: 0 | P12: 0 | Q12: 0 | R12: 0
D13: 0 | G13: 0 | I13: 0 | J13: 0 | K13: 0 | M13: 0 | N13: 0 | O13: 0 | P13: 0 | Q13: 0 | R13: 0
A14: Total Revenue | I14: 1139.4 | J14: =SUM(J10:J13) -> 0 | M14: 0 | N14: =SUM(N10:N13) -> 0 | O14: 1139.4 | P14: =SUM(P10:P13) -> 0 | Q14: 455760 | R14: =SUM(R10:R13) -> 0
Q15: Enterprise | R15: Enterprise
A16: VARIABLE COSTS | D16: Quantity | E16: Quantity | F16: Units | G16: $/Unit | H16: $/Unit | I16: Total | J16: Total | K16: Share | L16: Share | M16: Landlord | N16: Landlord | O16: Tenant | P16: Tenant | Q16: Total | R16: Total
A17: Production Costs
B18: Herbicide
C19: Glyphosate | D19: 96 | F19: Ounce | G19: 0.1328125 | I19: 12.75 | J19: =E19*H19 -> 0 | K19: 0 | M19: 0 | N19: =J19*L19 -> 0 | O19: 12.75 | P19: =+J19-N19 -> 0 | Q19: 5100 | R19: =+J19*E$7 -> 0
C20: 2-4D Amine 4 | D20: 1.25 | F20: Pint | G20: 1.6125 | I20: 2.015625 | J20: 0 | K20: 0 | M20: 0 | N20: 0 | O20: 2.015625 | P20: 0 | Q20: 806.25 | R20: 0
C21: Trifluralin | D21: 1.5 | F21: Pint | G21: 2.75 | I21: 4.125 | J21: 0 | K21: 0 | M21: 0 | N21: 0 | O21: 4.125 | P21: 0 | Q21: 1650 | R21: 0
C22: Caparol | D22: 24 | F22: Ounce | G22: 0.2625 | I22: 6.3 | J22: 0 | K22: 0 | M22: 0 | N22: 0 | O22: 6.3 | P22: 0 | Q22: 2520 | R22: 0
C23: Mepiquat Chloride | D23: 28 | F23: Ounce | G23: 0.0625 | I23: 1.75 | J23: 0 | K23: 0 | M23: 0 | N23: 0 | O23: 1.75 | P23: 0 | Q23: 700 | R23: 0
C24: Outlook | D24: 15 | F24: Ounce | G24: 1.040625 | I24: 15.609375 | J24: 0 | K24: 0 | M24: 0 | N24: 0 | O24: 15.609375 | P24: 0 | Q24: 6243.75 | R24: 0
C25: Auxin based herbicide | D25: 44 | F25: Ounce | G25: 0.5 | I25: 22 | J25: 0 | K25: 0 | M25: 0 | N25: 0 | O25: 22 | P25: 0 | Q25: 8800 | R25: 0
B26: Seed
C27: Seed Cotton - B2 Auxin technology (irr) | D27: 38.5 | F27: Thousand | G27: 1.74 | I27: 66.99 | J27: 0 | K27: 0 | M27: 0 | N27: 0 | O27: 66.99 | P27: 0 | Q27: 26796 | R27: 0
B28: Fertilizer
C29: Nitrogen Dry-Urea | D29: 11 | F29: Pounds | G29: 0.62 | I29: 6.82 | J29: 0 | K29: 0 | M29: 0 | N29: 0 | O29: 6.82 | P29: 0 | Q29: 2728 | R29: 0
C30: Phos (11-52-0 DRY MAT) | D30: 58 | F30: Pounds | G30: 1.29 | I30: 74.82 | J30: 0 | K30: 0 | M30: 0 | N30: 0 | O30: 74.82 | P30: 0 | Q30: 29928 | R30: 0
C31: Nitrogen N32-liq | D31: 60 | F31: Pounds | G31: 2.69 | I31: 161.4 | J31: 0 | K31: 0 | M31: 0 | N31: 0 | O31: 161.4 | P31: 0 | Q31: 64560 | R31: 0
B32: Custom
C33: Soil Test-Irrigated | D33: 1 | F33: Each | G33: 0.5 | I33: 0.5 | J33: 0 | K33: 0 | M33: 0 | N33: 0 | O33: 0.5 | P33: 0 | Q33: 200 | R33: 0
C34: Gin and Haul | D34: 47.36 | F34: CWT | G34: 2.5 | I34: 118.4 | J34: 0 | K34: 0 | M34: 0 | N34: 0 | O34: 118.4 | P34: 0 | Q34: 47360 | R34: 0
C35: Apply Harvest Aid | D35: 2 | F35: Acre | G35: 7 | I35: 14 | J35: 0 | K35: 0 | M35: 0 | N35: 0 | O35: 14 | P35: 0 | Q35: 5600 | R35: 0
C36: Custom Strip | D36: 1326 | F36: Pounds | G36: 0.11 | I36: 145.86 | J36: 0 | K36: 0 | M36: 0 | N36: 0 | O36: 145.86 | P36: 0 | Q36: 58344 | R36: 0
C37: Custom Bag/Tie | D37: 2.41 | F37: Bales | G37: 5 | I37: 12.05 | J37: 0 | K37: 0 | M37: 0 | N37: 0 | O37: 12.05 | P37: 0 | Q37: 4820 | R37: 0
B38: Miscellaneous
C39: Irr Cotton-RP 70% SE | D39: 1 | F39: Acre | G39: 7.67 | I39: 7.67 | J39: 0 | K39: 0 | M39: 0 | N39: 0 | O39: 7.67 | P39: 0 | Q39: 3068 | R39: 0
C40: Boll Weevil Eradication Program | D40: 2.652 | F40: Bale | G40: 1 | I40: 2.652 | J40: 0 | K40: 0 | M40: 0 | N40: 0 | O40: 2.652 | P40: 0 | Q40: 1060.8 | R40: 0
B41: Other Chemicals
C42: Ethephon 6 | D42: 1.5 | F42: Pint | G42: 3.8125 | I42: 5.71875 | J42: 0 | K42: 0 | M42: 0 | N42: 0 | O42: 5.71875 | P42: 0 | Q42: 2287.5 | R42: 0
C43: Cutout (Adios) | D43: 5 | F43: Ounce | G43: 0.9219 | I43: 4.6095 | J43: 0 | K43: 0 | M43: 0 | N43: 0 | O43: 4.6095 | P43: 0 | Q43: 1843.8 | R43: 0
C44: Paraquat, 3lb (Firestorm) | D44: 28 | F44: Ounce | G44: 0.1796 | I44: 5.0288 | J44: 0 | K44: 0 | M44: 0 | N44: 0 | O44: 5.0288 | P44: 0 | Q44: 2011.52 | R44: 0
B45: Fungicides
C46: Topguard-4lb | D46: 7 | F46: Ounce | G46: 4.6093 | I46: 32.2651 | J46: 0 | K46: 0 | M46: 0 | N46: 0 | O46: 32.2651 | P46: 0 | Q46: 12906.04 | R46: 0
B47: Insecticide
C48: flea hopper Treatment | D48: 1.75 | F48: Ounce | G48: 7.78125 | I48: 13.6171875 | J48: 0 | K48: 0 | M48: 0 | N48: 0 | O48: 13.6171875 | P48: 0 | Q48: 5446.875 | R48: 0
C49: Spider Mite treatment | D49: 3.5 | F49: Dose | G49: 0.34 | I49: 1.19 | J49: 0 | K49: 0 | M49: 0 | N49: 0 | O49: 1.19 | P49: 0 | Q49: 476 | R49: 0
D50: 0 | G50: 0 | I50: 0 | J50: 0 | K50: 0 | M50: 0 | N50: 0 | O50: 0 | P50: 0 | Q50: 0 | R50: 0
D51: 0 | G51: 0 | I51: 0 | J51: 0 | K51: 0 | M51: 0 | N51: 0 | O51: 0 | P51: 0 | Q51: 0 | R51: 0
D52: 0 | G52: 0 | I52: 0 | J52: =E52*H52 -> 0 | K52: 0 | M52: 0 | N52: =J52*L52 -> 0 | O52: 0 | P52: =+J52-N52 -> 0 | Q52: 0 | R52: =+J52*E$7 -> 0
B53: Irrigation
C54: Energy Cost | D54: 18 | F54: AcreInch | G54: 4.170738707 | I54: 75.07329673 | J54: =E54*H54 -> 0 | K54: 0 | M54: 0 | N54: =J54*L54 -> 0 | O54: 75.07329673 | P54: =+J54-N54 -> 0 | Q54: 30029.31869 | R54: =+J54*E$7 -> 0
C55: Irrigation Labor | D55: 0.8 | F55: Hour | G55: 17.5 | I55: 14 | J55: 0 | K55: 0 | M55: 0 | N55: 0 | O55: 14 | P55: 0 | Q55: 5600 | R55: 0
B56: Machinery Labor
C57: Tractors/Self-Propelled | D57: 0.54 | F57: Hour | G57: 17.21 | I57: 9.2934 | J57: =E57*H57 -> 0 | K57: 0 | M57: 0 | N57: =J57*L57 -> 0 | O57: 9.2934 | P57: =+J57-N57 -> 0 | Q57: 3717.36 | R57: =+J57*E$7 -> 0
C58: Other Labor | D58: 0.1 | F58: Hour | G58: 17.21 | I58: 1.721 | J58: =E58*H58 -> 0 | K58: 0 | M58: 0 | N58: =J58*L58 -> 0 | O58: 1.721 | P58: =+J58-N58 -> 0 | Q58: 688.4 | R58: =+J58*E$7 -> 0
B60: Diesel Fuel
C61: Pickup/General Use Equipment | D61: 1 | F61: Acre | G61: 0 | I61: 0 | J61: =E61*H61 -> 0 | K61: 0 | M61: 0 | N61: =J61*L61 -> 0 | O61: 0 | P61: =+J61-N61 -> 0 | Q61: 0 | R61: =+J61*E$7 -> 0
C62: Tractors/Self-Propelled | D62: 4.51 | F62: Gallon | G62: 2.8 | I62: 12.628 | J62: =E62*H62 -> 0 | K62: 0 | M62: 0 | N62: =J62*L62 -> 0 | O62: 12.628 | P62: =+J62-N62 -> 0 | Q62: 5051.2 | R62: =+J62*E$7 -> 0
B64: Gasoline
C65: Pickup/General Use Equipment | D65: 1 | F65: Acre | G65: 1.9629 | I65: 1.9629 | J65: =E65*H65 -> 0 | K65: 0 | M65: 0 | N65: =J65*L65 -> 0 | O65: 1.9629 | P65: =+J65-N65 -> 0 | Q65: 785.16 | R65: =+J65*E$7 -> 0
C66: Tractors/Self-Propelled | D66: 0 | F66: Gallon | G66: 2.7 | I66: 0 | J66: =E66*H66 -> 0 | K66: 0 | M66: 0 | N66: =J66*L66 -> 0 | O66: 0 | P66: =+J66-N66 -> 0 | Q66: 0 | R66: =+J66*E$7 -> 0
B68: Repairs & Maintenance
C69: Pickup/General Use Equipment | D69: 1 | F69: Acre | G69: 0.82125 | I69: 0.82125 | J69: =E69*H69 -> 0 | K69: 0 | M69: 0 | N69: =J69*L69 -> 0 | O69: 0.82125 | P69: =+J69-N69 -> 0 | Q69: 328.5 | R69: =+J69*E$7 -> 0
C70: Irrigation Equipment | D70: 1 | F70: Acre | G70: 5.5008 | I70: 5.5008 | J70: 0 | K70: 0 | M70: 0 | N70: 0 | O70: 5.5008 | P70: 0 | Q70: 2200.32 | R70: 0
C71: Tractors/Self-Propelled | D71: 1 | F71: Acre | G71: 11.55562718 | I71: 11.55562718 | J71: 0 | K71: 0 | M71: 0 | N71: 0 | O71: 11.55562718 | P71: 0 | Q71: 4622.250872 | R71: 0
C72: Implements | D72: 1 | F72: Acre | G72: 4.506962377 | I72: 4.506962377 | J72: 0 | K72: 0 | M72: 0 | N72: 0 | O72: 4.506962377 | P72: 0 | Q72: 1802.784951 | R72: 0
I73: 0 | J73: 0 | K73: 0 | M73: 0 | N73: 0 | O73: 0 | P73: 0 | Q73: 0 | R73: 0
I74: 0 | J74: 0 | K74: 0 | M74: 0 | N74: 0 | O74: 0 | P74: 0 | Q74: 0 | R74: 0
B75: Interest on Credit Line | G75: 0.08 | I75: 23.25918212 | J75: =+SUM(J18:J74)/2*H75 -> 0 | M75: 0 | N75: =+SUM(N18:N74)/2*L75 -> 0 | O75: 23.25918212 | P75: =+SUM(P18:P74)/2*L75 -> 0 | Q75: 9303.672849 | R75: =+J75*E$7 -> 0
A76: Total Variable Costs | I76: 898.4637559 | J76: =SUM(J19:J75) -> 0 | M76: 0 | N76: =SUM(N19:N75) -> 0 | O76: 898.4637559 | P76: =SUM(P19:P75) -> 0 | Q76: 359385.5024 | R76: =SUM(R19:R75) -> 0
A77: Planned Returns Above Variable Costs: | I77: 240.9362441 | J77: =+J14-J76 -> 0 | M77: 0 | N77: =+N14-N76 -> 0 | O77: 240.9362441 | P77: =+P14-P76 -> 0 | Q77: 96374.49763 | R77: =+R14-R76 -> 0
B78: Breakeven Price to Cover Variable Costs | G78: 0.5182984585 | H78: =IF(E10=0,"n/a",(YVarExp-(YTotExp+YTotRet-J10))/E10) -> n/a | I78: Pound
Q79: Enterprise | R79: Enterprise
A80: FIXED COSTS | D80: Quantity | E80: Quantity | F80: Units | G80: $/Unit | H80: $/Unit | I80: Total | J80: Total | K80: Share | L80: Share | M80: Landlord | N80: Landlord | O80: Tenant | P80: Tenant | Q80: Total | R80: Total
B81: Machinery Depreciation
C82: Pickup/General Use Equipment | D82: 1 | F82: Acre | G82: 1.7415 | I82: 1.7415 | J82: =E82*H82 -> 0 | K82: 0 | M82: 0 | N82: =J82*L82 -> 0 | O82: 1.7415 | P82: =+J82-N82 -> 0 | Q82: 696.6 | R82: =+J82*E$7 -> 0
C83: Irrigation Equipment | D83: 1 | F83: Acre | G83: 54.45 | I83: 54.45 | J83: 0 | K83: 0 | M83: 0 | N83: =J83*L83 -> 0 | O83: 54.45 | P83: 0 | Q83: 21780 | R83: 0
C84: Tractors/Self-Propelled | D84: 1 | F84: Acre | G84: 14.49268466 | I84: 14.49268466 | J84: 0 | K84: 0 | M84: 0 | N84: =J84*L84 -> 0 | O84: 14.49268466 | P84: 0 | Q84: 5797.073864 | R84: 0
C85: Implements | D85: 1 | F85: Acre | G85: 6.224033694 | I85: 6.224033694 | J85: 0 | K85: 0 | M85: 0 | N85: =J85*L85 -> 0 | O85: 6.224033694 | P85: 0 | Q85: 2489.613478 | R85: 0
B86: Equipment Investment
C87: Pickup/General Use Equipment | D87: 9.6525 | F87: Dollars | G87: 0.08 | I87: 0.7722 | J87: =E87*H87 -> 0 | K87: 0 | M87: 0 | N87: =J87*L87 -> 0 | O87: 0.7722 | P87: =+J87-N87 -> 0 | Q87: 308.88 | R87: =+J87*E$7 -> 0
C88: Irrigation Equipment | D88: 555.5 | F88: Dollars | G88: 0.08 | I88: 44.44 | J88: 0 | K88: 0 | M88: 0 | N88: =J88*L88 -> 0 | O88: 44.44 | P88: 0 | Q88: 17776 | R88: 0
C89: Tractors/Self-Propelled | D89: 111.6206301 | F89: Dollars | G89: 0.08 | I89: 8.92965041 | J89: 0 | K89: 0 | M89: 0 | N89: =J89*L89 -> 0 | O89: 8.92965041 | P89: 0 | Q89: 3571.860164 | R89: 0
C90: Implements | D90: 34.06053395 | F90: Dollars | G90: 0.08 | I90: 2.724842716 | J90: 0 | K90: 0 | M90: 0 | N90: =J90*L90 -> 0 | O90: 2.724842716 | P90: 0 | Q90: 1089.937086 | R90: 0
B91: Salaried Labor | D91: 1 | F91: Acre | G91: 0 | I91: 0 | J91: 0 | K91: 0 | M91: 0 | N91: =J91*L91 -> 0 | O91: 0 | P91: =+J91-N91 -> 0 | Q91: 0 | R91: =+J91*E$7 -> 0
B92: Management Fee, Owner/Operator Labor | D92: 1 | F92: Acre | G92: 0 | I92: 0 | J92: 0 | K92: 0 | M92: 0 | N92: 0 | O92: 0 | P92: 0 | Q92: 0 | R92: 0
B93: Allocated Establishment Cost | D93: 1 | F93: Acre | G93: 0 | I93: 0 | J93: 0 | K93: 0 | M93: 0 | N93: 0 | O93: 0 | P93: 0 | Q93: 0 | R93: 0
B94: Rent-Irrigated Crop | D94: 1 | F94: Acre | G94: 70 | I94: 70 | J94: 0 | K94: 0 | M94: 0 | N94: 0 | O94: 70 | P94: 0 | Q94: 28000 | R94: 0
B95: Property Taxes | D95: 1 | F95: Acre | G95: 0 | I95: 0 | J95: 0 | K95: 0 | M95: 0 | N95: 0 | O95: 0 | P95: 0 | Q95: 0 | R95: 0
B96: Whole Farm Insurance | D96: 1 | F96: Acre | G96: 0 | I96: 0 | J96: 0 | K96: 0 | M96: 0 | N96: 0 | O96: 0 | P96: 0 | Q96: 0 | R96: 0
D97: 1 | G97: 0 | I97: 0 | J97: 0 | K97: 0 | M97: 0 | N97: 0 | O97: 0 | P97: 0 | Q97: 0 | R97: 0
D98: 1 | G98: 0 | I98: 0 | J98: =E98*H98 -> 0 | K98: 0 | M98: 0 | N98: 0 | O98: 0 | P98: 0 | Q98: 0 | R98: 0
A99: Total Fixed Costs | I99: 203.7749115 | J99: =+SUM(J82:J98) -> 0 | M99: 0 | N99: =+SUM(N82:N98) -> 0 | O99: 203.7749115 | P99: =+SUM(P82:P98) -> 0 | Q99: 81509.96459 | R99: =+SUM(R82:R98) -> 0
A100: Total Specified Costs | I100: 1102.238667 | J100: =+J76+J99 -> 0 | M100: 0 | N100: =+N76+N99 -> 0 | O100: 1102.238667 | P100: =+P76+P99 -> 0 | Q100: 440895.467 | R100: =+R76+R99 -> 0
A102: Returns Above Specified Costs | I102: 37.16133261 | J102: =+J14-J100 -> 0 | M102: 0 | N102: =+N14-N100 -> 0 | O102: 37.16133261 | P102: =+P14-P100 -> 0 | Q102: 14864.53304 | R102: =+R14-R100 -> 0
A104: Breakeven Price to Cover Total Costs | G104: 0.6719748623 | H104: =IF(E10=0,"n/a",(YTotExp-(YTotExp+YTotRet-J10))/E10) -> n/a | I104: Pound
D106: Example Breakeven Prices
B107: Example | C107: Example | D107: To Cover | G107: To Cover
B108: Yield | C108: Yield | D108: Variable | G108: Total
B109: Percent | C109: Pound | D109: Costs | G109: Costs
B110: 0.75 | C110: 994.5 | D110: 0.6910646113 | G110: 0.8959664831
B111: 0.9 | C111: 1193.4 | D111: 0.5758871761 | G111: 0.7466387359
B112: 1 | C112: 1326 | D112: 0.5182984585 | G112: 0.6719748623
B113: 1.1 | C113: 1458.6 | D113: 0.4711804168 | G113: 0.6108862384
B114: 1.25 | C114: 1657.5 | D114: 0.4146387668 | G114: 0.5375798898
D116: Your Breakeven Prices
B117: Your | C117: Your | E117: To Cover | H117: To Cover
B118: Yield | C118: Yield | E118: Variable | H118: Total
B119: Percent | C119: Pound | E119: Costs | H119: Costs
B120: 0.75 | C120: =E10*YPER1 -> 0 | E120: =IF($E$10=0,0,(YVarExp-(YTotExp+YTotRet-J10))/($E$10*YPER1)) -> 0 | H120: =IF($E$10=0,0,(YTotExp-(YTotExp+YTotRet-J10))/($E$10*YPER1)) -> 0
B121: 0.9 | C121: =E10*YPER2 -> 0 | E121: =IF($E$10=0,0,(YVarExp-(YTotExp+YTotRet-J10))/($E$10*YPER2)) -> 0 | H121: =IF($E$10=0,0,(YTotExp-(YTotExp+YTotRet-J10))/($E$10*YPER2)) -> 0
B122: 1 | C122: =+E10 -> 0 | E122: =IF($E$10=0,0,(YVarExp-(YTotExp+YTotRet-J10))/($E$10*YPER3)) -> 0 | H122: =IF($E$10=0,0,(YTotExp-(YTotExp+YTotRet-J10))/($E$10*YPER3)) -> 0
B123: 1.1 | C123: =E10*YPER4 -> 0 | E123: =IF($E$10=0,0,(YVarExp-(YTotExp+YTotRet-J10))/($E$10*YPER4)) -> 0 | H123: =IF($E$10=0,0,(YTotExp-(YTotExp+YTotRet-J10))/($E$10*YPER4)) -> 0
B124: 1.25 | C124: =E10*YPER5 -> 0 | E124: =IF($E$10=0,0,(YVarExp-(YTotExp+YTotRet-J10))/($E$10*YPER5)) -> 0 | H124: =IF($E$10=0,0,(YTotExp-(YTotExp+YTotRet-J10))/($E$10*YPER5)) -> 0
A126: Developed by Jeffrey Wright, Assistant Professor & Extension Economist, Texas A&M AgriLife Extension, 325-657-7309
A128: Information presented is prepared solely as a general guide and not intended to recognize or predict the costs and returns from any one operation. Brand names are mentioned only as examples and imply no endorsement.

Sheet CottonDripRF
A1: Projections for Planning Purposes Only -- Not to be Used without Updating
A2: 2025 Estimated Costs and Returns per Acre
A3: Drip Irrigated Cotton, RF
A4: Enter your name for this budget in the cell above.
A5: Enter Your Values in the cells highlighed in MAROON.
E6: Your Acres | R6: Your
C7: Crop Acres | D7: 400 | L7: Your | Q7: Enterprise | R7: Enterprise
E8: Your | H8: Your | I8: Cash | J8: Your | K8: Landlord | L8: Landlord | N8: Your | P8: Your | Q8: Total | R8: Total
A9: REVENUE | D9: Quantity | E9: Quantity | F9: Units | G9: $/Unit | H9: $/Unit | I9: Total | J9: Total | K9: Share | L9: Share | M9: Landlord | N9: Landlord | O9: Tenant | P9: Tenant | Q9: (400 acres) | R9: ="(" & E7 & " acres)" -> ( acres)
B10: Cotton Lint | D10: 1326 | F10: Pound | G10: 0.7 | I10: 928.2 | J10: =E10*H10 -> 0 | K10: 0 | M10: 0 | N10: =J10*L10 -> 0 | O10: 928.2 | P10: =+J10-N10 -> 0 | Q10: 371280 | R10: =+J10*E$7 -> 0
B11: Cotton Seed | D11: 0.96 | F11: Ton | G11: 220 | I11: 211.2 | J11: 0 | K11: 0 | M11: 0 | N11: 0 | O11: 211.2 | P11: =+J11-N11 -> 0 | Q11: 84480 | R11: 0
D12: 0 | G12: 0 | I12: 0 | J12: 0 | K12: 0 | M12: 0 | N12: 0 | O12: 0 | P12: 0 | Q12: 0 | R12: 0
D13: 0 | G13: 0 | I13: 0 | J13: 0 | K13: 0 | M13: 0 | N13: 0 | O13: 0 | P13: 0 | Q13: 0 | R13: 0
A14: Total Revenue | I14: 1139.4 | J14: =SUM(J10:J13) -> 0 | M14: 0 | N14: =SUM(N10:N13) -> 0 | O14: 1139.4 | P14: =SUM(P10:P13) -> 0 | Q14: 455760 | R14: =SUM(R10:R13) -> 0
Q15: Enterprise | R15: Enterprise
A16: VARIABLE COSTS | D16: Quantity | E16: Quantity | F16: Units | G16: $/Unit | H16: $/Unit | I16: Total | J16: Total | K16: Share | L16: Share | M16: Landlord | N16: Landlord | O16: Tenant | P16: Tenant | Q16: Total | R16: Total
A17: Production Costs
B18: Herbicide
C19: Glyphosate | D19: 96 | F19: Ounce | G19: 0.1328125 | I19: 12.75 | J19: =E19*H19 -> 0 | K19: 0 | M19: 0 | N19: =J19*L19 -> 0 | O19: 12.75 | P19: =+J19-N19 -> 0 | Q19: 5100 | R19: =+J19*E$7 -> 0
C20: 2-4D Amine 4 | D20: 1.25 | F20: Pint | G20: 1.6125 | I20: 2.015625 | J20: 0 | K20: 0 | M20: 0 | N20: 0 | O20: 2.015625 | P20: 0 | Q20: 806.25 | R20: 0
C21: Trifluralin | D21: 1.5 | F21: Pint | G21: 2.75 | I21: 4.125 | J21: 0 | K21: 0 | M21: 0 | N21: 0 | O21: 4.125 | P21: 0 | Q21: 1650 | R21: 0
C22: Caparol | D22: 24 | F22: Ounce | G22: 0.2625 | I22: 6.3 | J22: 0 | K22: 0 | M22: 0 | N22: 0 | O22: 6.3 | P22: 0 | Q22: 2520 | R22: 0
C23: Mepiquat Chloride | D23: 28 | F23: Ounce | G23: 0.0625 | I23: 1.75 | J23: 0 | K23: 0 | M23: 0 | N23: 0 | O23: 1.75 | P23: 0 | Q23: 700 | R23: 0
C24: Outlook | D24: 15 | F24: Ounce | G24: 1.040625 | I24: 15.609375 | J24: 0 | K24: 0 | M24: 0 | N24: 0 | O24: 15.609375 | P24: 0 | Q24: 6243.75 | R24: 0
B25: Seed
C26: Seed Cotton - B2RF (Irrigated) | D26: 38.5 | F26: Thousand | G26: 1.65217 | I26: 63.608545 | J26: 0 | K26: 0 | M26: 0 | N26: 0 | O26: 63.608545 | P26: 0 | Q26: 25443.418 | R26: 0
B27: Fertilizer
C28: Nitrogen Dry-Urea | D28: 11 | F28: Pounds | G28: 0.62 | I28: 6.82 | J28: 0 | K28: 0 | M28: 0 | N28: 0 | O28: 6.82 | P28: 0 | Q28: 2728 | R28: 0
C29: Phos (11-52-0 DRY MAT) | D29: 58 | F29: Pounds | G29: 1.29 | I29: 74.82 | J29: 0 | K29: 0 | M29: 0 | N29: 0 | O29: 74.82 | P29: 0 | Q29: 29928 | R29: 0
C30: Nitrogen N32-liq | D30: 60 | F30: Pounds | G30: 2.69 | I30: 161.4 | J30: 0 | K30: 0 | M30: 0 | N30: 0 | O30: 161.4 | P30: 0 | Q30: 64560 | R30: 0
B31: Custom
C32: Soil Test-Irrigated | D32: 1 | F32: Each | G32: 0.5 | I32: 0.5 | J32: 0 | K32: 0 | M32: 0 | N32: 0 | O32: 0.5 | P32: 0 | Q32: 200 | R32: 0
C33: Gin and Haul | D33: 47.36 | F33: CWT | G33: 2.5 | I33: 118.4 | J33: 0 | K33: 0 | M33: 0 | N33: 0 | O33: 118.4 | P33: 0 | Q33: 47360 | R33: 0
C34: Apply Harvest Aid | D34: 2 | F34: Acre | G34: 7 | I34: 14 | J34: 0 | K34: 0 | M34: 0 | N34: 0 | O34: 14 | P34: 0 | Q34: 5600 | R34: 0
C35: Custom Strip | D35: 1326 | F35: Pounds | G35: 0.11 | I35: 145.86 | J35: 0 | K35: 0 | M35: 0 | N35: 0 | O35: 145.86 | P35: 0 | Q35: 58344 | R35: 0
C36: Custom Bag/Tie | D36: 2.41 | F36: Bales | G36: 5 | I36: 12.05 | J36: 0 | K36: 0 | M36: 0 | N36: 0 | O36: 12.05 | P36: 0 | Q36: 4820 | R36: 0
B37: Miscellaneous
C38: Boll Weevil Eradication Program | D38: 2.652 | F38: Bale | G38: 1 | I38: 2.652 | J38: 0 | K38: 0 | M38: 0 | N38: 0 | O38: 2.652 | P38: 0 | Q38: 1060.8 | R38: 0
C39: Irr Cotton-RP 70% SE | D39: 1 | F39: Acre | G39: 7.67 | I39: 7.67 | J39: 0 | K39: 0 | M39: 0 | N39: 0 | O39: 7.67 | P39: 0 | Q39: 3068 | R39: 0
B40: Other Chemicals
C41: Ethephon 6 | D41: 1.5 | F41: Pint | G41: 3.8125 | I41: 5.71875 | J41: 0 | K41: 0 | M41: 0 | N41: 0 | O41: 5.71875 | P41: 0 | Q41: 2287.5 | R41: 0
C42: Cutout (Adios) | D42: 5 | F42: Ounce | G42: 0.9219 | I42: 4.6095 | J42: 0 | K42: 0 | M42: 0 | N42: 0 | O42: 4.6095 | P42: 0 | Q42: 1843.8 | R42: 0
C43: Paraquat, 3lb (Firestorm) | D43: 28 | F43: Ounce | G43: 0.1796 | I43: 5.0288 | J43: 0 | K43: 0 | M43: 0 | N43: 0 | O43: 5.0288 | P43: 0 | Q43: 2011.52 | R43: 0
B44: Fungicides
C45: Topguard Terra (4lb) | D45: 7 | F45: Ounce | G45: 4.6093 | I45: 32.2651 | J45: 0 | K45: 0 | M45: 0 | N45: 0 | O45: 32.2651 | P45: 0 | Q45: 12906.04 | R45: 0
B46: Insecticide
C47: flea hopper Treatment | D47: 1 | F47: Ounce | G47: 7.78125 | I47: 7.78125 | J47: 0 | K47: 0 | M47: 0 | N47: 0 | O47: 7.78125 | P47: 0 | Q47: 3112.5 | R47: 0
C48: Spider Mite treatment | D48: 1.5 | F48: Dose | G48: 0.34 | I48: 0.51 | J48: 0 | K48: 0 | M48: 0 | N48: 0 | O48: 0.51 | P48: 0 | Q48: 204 | R48: 0
D49: 0 | G49: 0 | I49: 0 | J49: 0 | K49: 0 | M49: 0 | N49: 0 | O49: 0 | P49: 0 | Q49: 0 | R49: 0
D50: 0 | G50: 0 | I50: 0 | J50: 0 | K50: 0 | M50: 0 | N50: 0 | O50: 0 | P50: 0 | Q50: 0 | R50: 0
D51: 0 | G51: 0 | I51: 0 | J51: =E51*H51 -> 0 | K51: 0 | M51: 0 | N51: =J51*L51 -> 0 | O51: 0 | P51: =+J51-N51 -> 0 | Q51: 0 | R51: =+J51*E$7 -> 0
B52: Irrigation
C53: Energy Cost | D53: 18 | F53: AcreInch | G53: 4.170738707 | I53: 75.07329673 | J53: =E53*H53 -> 0 | K53: 0 | M53: 0 | N53: =J53*L53 -> 0 | O53: 75.07329673 | P53: =+J53-N53 -> 0 | Q53: 30029.31869 | R53: =+J53*E$7 -> 0
C54: Irrigation Labor | D54: 0.8 | F54: Hour | G54: 17.5 | I54: 14 | J54: 0 | K54: 0 | M54: 0 | N54: 0 | O54: 14 | P54: 0 | Q54: 5600 | R54: 0
B55: Machinery Labor
C56: Tractors/Self-Propelled | D56: 0.54 | F56: Hour | G56: 17.21 | I56: 9.2934 | J56: =E56*H56 -> 0 | K56: 0 | M56: 0 | N56: =J56*L56 -> 0 | O56: 9.2934 | P56: =+J56-N56 -> 0 | Q56: 3717.36 | R56: =+J56*E$7 -> 0
C57: Other Labor | D57: 0.1 | F57: Hour | G57: 17.21 | I57: 1.721 | J57: =E57*H57 -> 0 | K57: 0 | M57: 0 | N57: =J57*L57 -> 0 | O57: 1.721 | P57: =+J57-N57 -> 0 | Q57: 688.4 | R57: =+J57*E$7 -> 0
B59: Diesel Fuel
C60: Pickup/General Use Equipment | D60: 1 | F60: Acre | G60: 0 | I60: 0 | J60: =E60*H60 -> 0 | K60: 0 | M60: 0 | N60: =J60*L60 -> 0 | O60: 0 | P60: =+J60-N60 -> 0 | Q60: 0 | R60: =+J60*E$7 -> 0
C61: Tractors/Self-Propelled | D61: 4.51 | F61: Gallon | G61: 2.8 | I61: 12.628 | J61: =E61*H61 -> 0 | K61: 0 | M61: 0 | N61: =J61*L61 -> 0 | O61: 12.628 | P61: =+J61-N61 -> 0 | Q61: 5051.2 | R61: =+J61*E$7 -> 0
B63: Gasoline
C64: Pickup/General Use Equipment | D64: 1 | F64: Acre | G64: 1.9629 | I64: 1.9629 | J64: =E64*H64 -> 0 | K64: 0 | M64: 0 | N64: =J64*L64 -> 0 | O64: 1.9629 | P64: =+J64-N64 -> 0 | Q64: 785.16 | R64: =+J64*E$7 -> 0
C65: Tractors/Self-Propelled | D65: 0 | F65: Gallon | G65: 2.7 | I65: 0 | J65: =E65*H65 -> 0 | K65: 0 | M65: 0 | N65: =J65*L65 -> 0 | O65: 0 | P65: =+J65-N65 -> 0 | Q65: 0 | R65: =+J65*E$7 -> 0
B67: Repairs & Maintenance
C68: Pickup/General Use Equipment | D68: 1 | F68: Acre | G68: 0.82125 | I68: 0.82125 | J68: =E68*H68 -> 0 | K68: 0 | M68: 0 | N68: =J68*L68 -> 0 | O68: 0.82125 | P68: =+J68-N68 -> 0 | Q68: 328.5 | R68: =+J68*E$7 -> 0
C69: Irrigation Equipment | D69: 1 | F69: Acre | G69: 5.5008 | I69: 5.5008 | J69: 0 | K69: 0 | M69: 0 | N69: 0 | O69: 5.5008 | P69: 0 | Q69: 2200.32 | R69: 0
C70: Tractors/Self-Propelled | D70: 1 | F70: Acre | G70: 11.55562718 | I70: 11.55562718 | J70: 0 | K70: 0 | M70: 0 | N70: 0 | O70: 11.55562718 | P70: 0 | Q70: 4622.250872 | R70: 0
C71: Implements | D71: 1 | F71: Acre | G71: 4.506962377 | I71: 4.506962377 | J71: 0 | K71: 0 | M71: 0 | N71: 0 | O71: 4.506962377 | P71: 0 | Q71: 1802.784951 | R71: 0
I72: 0 | J72: 0 | K72: 0 | M72: 0 | N72: 0 | O72: 0 | P72: 0 | Q72: 0 | R72: 0
I73: 0 | J73: 0 | K73: 0 | M73: 0 | N73: 0 | O73: 0 | P73: 0 | Q73: 0 | R73: 0
B74: Interest on Credit Line | G74: 0.08 | I74: 22.26714975 | J74: =+SUM(J18:J73)/2*H74 -> 0 | M74: 0 | N74: =+SUM(N18:N73)/2*L74 -> 0 | O74: 22.26714975 | P74: =+SUM(P18:P73)/2*L74 -> 0 | Q74: 8906.859899 | R74: =+J74*E$7 -> 0
A75: Total Variable Costs | I75: 865.574331 | J75: =SUM(J19:J74) -> 0 | M75: 0 | N75: =SUM(N19:N74) -> 0 | O75: 865.574331 | P75: =SUM(P19:P74) -> 0 | Q75: 346229.7324 | R75: =SUM(R19:R74) -> 0
A76: Planned Returns Above Variable Costs: | I76: 273.825669 | J76: =+J14-J75 -> 0 | M76: 0 | N76: =+N14-N75 -> 0 | O76: 273.825669 | P76: =+P14-P75 -> 0 | Q76: 109530.2676 | R76: =+R14-R75 -> 0
B77: Breakeven Price to Cover Variable Costs | G77: 0.4934949706 | H77: =IF(E10=0,"n/a",(YVarExp-(YTotExp+YTotRet-J10))/E10) -> n/a | I77: Pound
Q78: Enterprise | R78: Enterprise
A79: FIXED COSTS | D79: Quantity | E79: Quantity | F79: Units | G79: $/Unit | H79: $/Unit | I79: Total | J79: Total | K79: Share | L79: Share | M79: Landlord | N79: Landlord | O79: Tenant | P79: Tenant | Q79: Total | R79: Total
B80: Machinery Depreciation
C81: Pickup/General Use Equipment | D81: 1 | F81: Acre | G81: 1.7415 | I81: 1.7415 | J81: =E81*H81 -> 0 | K81: 0 | M81: 0 | N81: =J81*L81 -> 0 | O81: 1.7415 | P81: =+J81-N81 -> 0 | Q81: 696.6 | R81: =+J81*E$7 -> 0
C82: Irrigation Equipment | D82: 1 | F82: Acre | G82: 54.45 | I82: 54.45 | J82: 0 | K82: 0 | M82: 0 | N82: =J82*L82 -> 0 | O82: 54.45 | P82: 0 | Q82: 21780 | R82: 0
C83: Tractors/Self-Propelled | D83: 1 | F83: Acre | G83: 14.49268466 | I83: 14.49268466 | J83: 0 | K83: 0 | M83: 0 | N83: =J83*L83 -> 0 | O83: 14.49268466 | P83: 0 | Q83: 5797.073864 | R83: 0
C84: Implements | D84: 1 | F84: Acre | G84: 6.224033694 | I84: 6.224033694 | J84: 0 | K84: 0 | M84: 0 | N84: =J84*L84 -> 0 | O84: 6.224033694 | P84: 0 | Q84: 2489.613478 | R84: 0
B85: Equipment Investment
C86: Pickup/General Use Equipment | D86: 9.6525 | F86: Dollars | G86: 0.08 | I86: 0.7722 | J86: =E86*H86 -> 0 | K86: 0 | M86: 0 | N86: =J86*L86 -> 0 | O86: 0.7722 | P86: =+J86-N86 -> 0 | Q86: 308.88 | R86: =+J86*E$7 -> 0
C87: Irrigation Equipment | D87: 555.5 | F87: Dollars | G87: 0.08 | I87: 44.44 | J87: 0 | K87: 0 | M87: 0 | N87: =J87*L87 -> 0 | O87: 44.44 | P87: 0 | Q87: 17776 | R87: 0
C88: Tractors/Self-Propelled | D88: 111.6206301 | F88: Dollars | G88: 0.08 | I88: 8.92965041 | J88: 0 | K88: 0 | M88: 0 | N88: =J88*L88 -> 0 | O88: 8.92965041 | P88: 0 | Q88: 3571.860164 | R88: 0
C89: Implements | D89: 34.06053395 | F89: Dollars | G89: 0.08 | I89: 2.724842716 | J89: 0 | K89: 0 | M89: 0 | N89: =J89*L89 -> 0 | O89: 2.724842716 | P89: 0 | Q89: 1089.937086 | R89: 0
B90: Salaried Labor | D90: 1 | F90: Acre | G90: 0 | I90: 0 | J90: 0 | K90: 0 | M90: 0 | N90: =J90*L90 -> 0 | O90: 0 | P90: =+J90-N90 -> 0 | Q90: 0 | R90: =+J90*E$7 -> 0
B91: Management Fee, Owner/Operator Labor | D91: 1 | F91: Acre | G91: 0 | I91: 0 | J91: 0 | K91: 0 | M91: 0 | N91: 0 | O91: 0 | P91: 0 | Q91: 0 | R91: 0
B92: Allocated Establishment Cost | D92: 1 | F92: Acre | G92: 0 | I92: 0 | J92: 0 | K92: 0 | M92: 0 | N92: 0 | O92: 0 | P92: 0 | Q92: 0 | R92: 0
B93: Rent-Irrigated Crop | D93: 1 | F93: Acre | G93: 70 | I93: 70 | J93: 0 | K93: 0 | M93: 0 | N93: 0 | O93: 70 | P93: 0 | Q93: 28000 | R93: 0
B94: Property Taxes | D94: 1 | F94: Acre | G94: 0 | I94: 0 | J94: 0 | K94: 0 | M94: 0 | N94: 0 | O94: 0 | P94: 0 | Q94: 0 | R94: 0
B95: Whole Farm Insurance | D95: 1 | F95: Acre | G95: 0 | I95: 0 | J95: 0 | K95: 0 | M95: 0 | N95: 0 | O95: 0 | P95: 0 | Q95: 0 | R95: 0
D96: 1 | G96: 0 | I96: 0 | J96: 0 | K96: 0 | M96: 0 | N96: 0 | O96: 0 | P96: 0 | Q96: 0 | R96: 0
D97: 1 | G97: 0 | I97: 0 | J97: =E97*H97 -> 0 | K97: 0 | M97: 0 | N97: 0 | O97: 0 | P97: 0 | Q97: 0 | R97: 0
A98: Total Fixed Costs | I98: 203.7749115 | J98: =+SUM(J81:J97) -> 0 | M98: 0 | N98: =+SUM(N81:N97) -> 0 | O98: 203.7749115 | P98: =+SUM(P81:P97) -> 0 | Q98: 81509.96459 | R98: =+SUM(R81:R97) -> 0
A99: Total Specified Costs | I99: 1069.349243 | J99: =+J75+J98 -> 0 | M99: 0 | N99: =+N75+N98 -> 0 | O99: 1069.349243 | P99: =+P75+P98 -> 0 | Q99: 427739.697 | R99: =+R75+R98 -> 0
A101: Returns Above Specified Costs | I101: 70.05075748 | J101: =+J14-J99 -> 0 | M101: 0 | N101: =+N14-N99 -> 0 | O101: 70.05075748 | P101: =+P14-P99 -> 0 | Q101: 28020.30299 | R101: =+R14-R99 -> 0
A103: Breakeven Price to Cover Total Costs | G103: 0.6471713744 | H103: =IF(E10=0,"n/a",(YTotExp-(YTotExp+YTotRet-J10))/E10) -> n/a | I103: Pound
D105: Example Breakeven Prices
B106: Example | C106: Example | D106: To Cover | G106: To Cover
B107: Yield | C107: Yield | D107: Variable | G107: Total
B108: Percent | C108: Pound | D108: Costs | G108: Costs
B109: 0.75 | C109: 994.5 | D109: 0.6579932942 | G109: 0.8628951659
B110: 0.9 | C110: 1193.4 | D110: 0.5483277451 | G110: 0.7190793049
B111: 1 | C111: 1326 | D111: 0.4934949706 | G111: 0.6471713744
B112: 1.1 | C112: 1458.6 | D112: 0.4486317915 | G112: 0.5883376131
B113: 1.25 | C113: 1657.5 | D113: 0.3947959765 | G113: 0.5177370996
D115: Your Breakeven Prices
B116: Your | C116: Your | E116: To Cover | H116: To Cover
B117: Yield | C117: Yield | E117: Variable | H117: Total
B118: Percent | C118: Pound | E118: Costs | H118: Costs
B119: 0.75 | C119: =E10*YPER1 -> 0 | E119: =IF($E$10=0,0,(YVarExp-(YTotExp+YTotRet-J10))/($E$10*YPER1)) -> 0 | H119: =IF($E$10=0,0,(YTotExp-(YTotExp+YTotRet-J10))/($E$10*YPER1)) -> 0
B120: 0.9 | C120: =E10*YPER2 -> 0 | E120: =IF($E$10=0,0,(YVarExp-(YTotExp+YTotRet-J10))/($E$10*YPER2)) -> 0 | H120: =IF($E$10=0,0,(YTotExp-(YTotExp+YTotRet-J10))/($E$10*YPER2)) -> 0
B121: 1 | C121: =+E10 -> 0 | E121: =IF($E$10=0,0,(YVarExp-(YTotExp+YTotRet-J10))/($E$10*YPER3)) -> 0 | H121: =IF($E$10=0,0,(YTotExp-(YTotExp+YTotRet-J10))/($E$10*YPER3)) -> 0
B122: 1.1 | C122: =E10*YPER4 -> 0 | E122: =IF($E$10=0,0,(YVarExp-(YTotExp+YTotRet-J10))/($E$10*YPER4)) -> 0 | H122: =IF($E$10=0,0,(YTotExp-(YTotExp+YTotRet-J10))/($E$10*YPER4)) -> 0
B123: 1.25 | C123: =E10*YPER5 -> 0 | E123: =IF($E$10=0,0,(YVarExp-(YTotExp+YTotRet-J10))/($E$10*YPER5)) -> 0 | H123: =IF($E$10=0,0,(YTotExp-(YTotExp+YTotRet-J10))/($E$10*YPER5)) -> 0
A125: Developed by Jeffrey Wright, Assistant Professor & Extension Economist, Texas A&M AgriLife Extension, 325-657-7309
A127: Information presented is prepared solely as a general guide and not intended to recognize or predict the costs and returns from any one operation. Brand names are mentioned only as examples and imply no endorsement.

Sheet CottonDrylandRF
A1: Projections for Planning Purposes Only -- Not to be Used without Updating
A2: 2025 Estimated Costs and Returns per Acre
A3: Dryland Cotton, B2RF, Follow Wheat
A4: Enter your name for this budget in the cell above.
A5: Enter Your Values in the cells highlighed in MAROON.
E6: Your Acres | R6: Your
C7: Crop Acres | D7: 2700 | L7: Your | Q7: Enterprise | R7: Enterprise
E8: Your | H8: Your | I8: Cash | J8: Your | K8: Landlord | L8: Landlord | N8: Your | P8: Your | Q8: Total | R8: Total
A9: REVENUE | D9: Quantity | E9: Quantity | F9: Units | G9: $/Unit | H9: $/Unit | I9: Total | J9: Total | K9: Share | L9: Share | M9: Landlord | N9: Landlord | O9: Tenant | P9: Tenant | Q9: (2700 acres) | R9: ="(" & E7 & " acres)" -> ( acres)
B10: Cotton Lint | D10: 375 | F10: Pound | G10: 0.7 | I10: 262.5 | J10: =E10*H10 -> 0 | K10: 0 | M10: 0 | N10: =J10*L10 -> 0 | O10: 262.5 | P10: =+J10-N10 -> 0 | Q10: 708750 | R10: =+J10*E$7 -> 0
B11: Cotton Seed | D11: 0.2713 | F11: Ton | G11: 220 | I11: 59.686 | J11: 0 | K11: 0 | M11: 0 | N11: 0 | O11: 59.686 | P11: =+J11-N11 -> 0 | Q11: 161152.2 | R11: 0
D12: 0 | G12: 0 | I12: 0 | J12: 0 | K12: 0 | M12: 0 | N12: 0 | O12: 0 | P12: 0 | Q12: 0 | R12: 0
D13: 0 | G13: 0 | I13: 0 | J13: 0 | K13: 0 | M13: 0 | N13: 0 | O13: 0 | P13: 0 | Q13: 0 | R13: 0
A14: Total Revenue | I14: 322.186 | J14: =SUM(J10:J13) -> 0 | M14: 0 | N14: =SUM(N10:N13) -> 0 | O14: 322.186 | P14: =SUM(P10:P13) -> 0 | Q14: 869902.2 | R14: =SUM(R10:R13) -> 0
Q15: Enterprise | R15: Enterprise
A16: VARIABLE COSTS | D16: Quantity | E16: Quantity | F16: Units | G16: $/Unit | H16: $/Unit | I16: Total | J16: Total | K16: Share | L16: Share | M16: Landlord | N16: Landlord | O16: Tenant | P16: Tenant | Q16: Total | R16: Total
A17: Production Costs
B18: Seed
C19: Seed Cotton - B2RF (dryland) | D19: 29 | F19: Thousand | G19: 1.2975 | I19: 37.6275 | J19: =E19*H19 -> 0 | K19: 0 | M19: 0 | N19: =J19*L19 -> 0 | O19: 37.6275 | P19: =+J19-N19 -> 0 | Q19: 101594.25 | R19: =+J19*E$7 -> 0
B20: Fertilizer
C21: Phos (11-52-0 DRY MAT) | D21: 19 | F21: Pounds | G21: 1.29 | I21: 24.51 | J21: 0 | K21: 0 | M21: 0 | N21: 0 | O21: 24.51 | P21: 0 | Q21: 66177 | R21: 0
C22: Nitrogen N32-liq | D22: 26 | F22: Pounds | G22: 2.69 | I22: 69.94 | J22: 0 | K22: 0 | M22: 0 | N22: 0 | O22: 69.94 | P22: 0 | Q22: 188838 | R22: 0
B23: Custom
C24: Soil Test-Dryland | D24: 1 | F24: Each | G24: 0.25 | I24: 0.25 | J24: 0 | K24: 0 | M24: 0 | N24: 0 | O24: 0.25 | P24: 0 | Q24: 675 | R24: 0
C25: Gin and Haul | D25: 12.5 | F25: CWT | G25: 2.5 | I25: 31.25 | J25: 0 | K25: 0 | M25: 0 | N25: 0 | O25: 31.25 | P25: 0 | Q25: 84375 | R25: 0
C26: Custom Strip | D26: 375 | F26: Pounds | G26: 0.11 | I26: 41.25 | J26: 0 | K26: 0 | M26: 0 | N26: 0 | O26: 41.25 | P26: 0 | Q26: 111375 | R26: 0
C27: Custom Bag/Tie | D27: 0.75 | F27: Bales | G27: 5 | I27: 3.75 | J27: 0 | K27: 0 | M27: 0 | N27: 0 | O27: 3.75 | P27: 0 | Q27: 10125 | R27: 0
B28: Herbicide
C29: Glyphosate | D29: 160 | F29: Ounce | G29: 0.1328125 | I29: 21.25 | J29: 0 | K29: 0 | M29: 0 | N29: 0 | O29: 21.25 | P29: 0 | Q29: 57375 | R29: 0
C30: 2-4D Amine 4 | D30: 1.25 | F30: Pint | G30: 1.6125 | I30: 2.015625 | J30: 0 | K30: 0 | M30: 0 | N30: 0 | O30: 2.015625 | P30: 0 | Q30: 5442.1875 | R30: 0
C31: Trifluralin | D31: 1.5 | F31: Pint | G31: 2.75 | I31: 4.125 | J31: 0 | K31: 0 | M31: 0 | N31: 0 | O31: 4.125 | P31: 0 | Q31: 11137.5 | R31: 0
C32: Caparol | D32: 24 | F32: Ounce | G32: 0.2625 | I32: 6.3 | J32: 0 | K32: 0 | M32: 0 | N32: 0 | O32: 6.3 | P32: 0 | Q32: 17010 | R32: 0
C33: Outlook | D33: 2 | F33: Ounce | G33: 1.040625 | I33: 2.08125 | J33: 0 | K33: 0 | M33: 0 | N33: 0 | O33: 2.08125 | P33: 0 | Q33: 5619.375 | R33: 0
B34: Miscellaneous
C35: Boll Weevil Eradication Program | D35: 0.75 | F35: Bale | G35: 1 | I35: 0.75 | J35: 0 | K35: 0 | M35: 0 | N35: 0 | O35: 0.75 | P35: 0 | Q35: 2025 | R35: 0
C36: Dry Cotton RP 70% SE, Ent | D36: 1 | F36: Acre | G36: 6.21 | I36: 6.21 | J36: 0 | K36: 0 | M36: 0 | N36: 0 | O36: 6.21 | P36: 0 | Q36: 16767 | R36: 0
B37: Insecticide
C38: Macho 4F | D38: 1.5 | F38: Ounce | G38: 0.71484375 | I38: 1.072265625 | J38: 0 | K38: 0 | M38: 0 | N38: 0 | O38: 1.072265625 | P38: 0 | Q38: 2895.117188 | R38: 0
B39: Other Chemicals
C40: Paraquat, 3lb (Firestorm) | D40: 28 | F40: Ounce | G40: 0.1796 | I40: 5.0288 | J40: 0 | K40: 0 | M40: 0 | N40: 0 | O40: 5.0288 | P40: 0 | Q40: 13577.76 | R40: 0
C41: Cutout (Adios) | D41: 4 | F41: Ounce | G41: 0.9219 | I41: 3.6876 | J41: 0 | K41: 0 | M41: 0 | N41: 0 | O41: 3.6876 | P41: 0 | Q41: 9956.52 | R41: 0
C42: Ethephon 6 | D42: 1 | F42: Pint | G42: 3.8125 | I42: 3.8125 | J42: 0 | K42: 0 | M42: 0 | N42: 0 | O42: 3.8125 | P42: 0 | Q42: 10293.75 | R42: 0
D43: 0 | G43: 0 | I43: 0 | J43: 0 | K43: 0 | M43: 0 | N43: 0 | O43: 0 | P43: 0 | Q43: 0 | R43: 0
D44: 0 | G44: 0 | I44: 0 | J44: 0 | K44: 0 | M44: 0 | N44: 0 | O44: 0 | P44: 0 | Q44: 0 | R44: 0
D45: 0 | G45: 0 | I45: 0 | J45: =E45*H45 -> 0 | K45: 0 | M45: 0 | N45: =J45*L45 -> 0 | O45: 0 | P45: =+J45-N45 -> 0 | Q45: 0 | R45: =+J45*E$7 -> 0
B46: Machinery Labor
C47: Tractors/Self-Propelled | D47: 0.23 | F47: Hour | G47: 17.21 | I47: 3.9583 | J47: =E47*H47 -> 0 | K47: 0 | M47: 0 | N47: =J47*L47 -> 0 | O47: 3.9583 | P47: =+J47-N47 -> 0 | Q47: 10687.41 | R47: =+J47*E$7 -> 0
C48: Other Labor | D48: 0.07 | F48: Hour | G48: 17.21 | I48: 1.2047 | J48: =E48*H48 -> 0 | K48: 0 | M48: 0 | N48: =J48*L48 -> 0 | O48: 1.2047 | P48: =+J48-N48 -> 0 | Q48: 3252.69 | R48: =+J48*E$7 -> 0
B50: Diesel Fuel
C51: Pickup/General Use Equipment | D51: 1 | F51: Acre | G51: 0 | I51: 0 | J51: =E51*H51 -> 0 | K51: 0 | M51: 0 | N51: =J51*L51 -> 0 | O51: 0 | P51: =+J51-N51 -> 0 | Q51: 0 | R51: =+J51*E$7 -> 0
C52: Tractors/Self-Propelled | D52: 3.12 | F52: Gallon | G52: 2.8 | I52: 8.736 | J52: =E52*H52 -> 0 | K52: 0 | M52: 0 | N52: =J52*L52 -> 0 | O52: 8.736 | P52: =+J52-N52 -> 0 | Q52: 23587.2 | R52: =+J52*E$7 -> 0
B54: Gasoline
C55: Pickup/General Use Equipment | D55: 1 | F55: Acre | G55: 1.874044444 | I55: 1.874044444 | J55: =E55*H55 -> 0 | K55: 0 | M55: 0 | N55: =J55*L55 -> 0 | O55: 1.874044444 | P55: =+J55-N55 -> 0 | Q55: 5059.92 | R55: =+J55*E$7 -> 0
C56: Tractors/Self-Propelled | D56: 0 | F56: Gallon | G56: 2.7 | I56: 0 | J56: =E56*H56 -> 0 | K56: 0 | M56: 0 | N56: =J56*L56 -> 0 | O56: 0 | P56: =+J56-N56 -> 0 | Q56: 0 | R56: =+J56*E$7 -> 0
B58: Repairs & Maintenance
C59: Pickup/General Use Equipment | D59: 1 | F59: Acre | G59: 0.7840740741 | I59: 0.7840740741 | J59: =E59*H59 -> 0 | K59: 0 | M59: 0 | N59: =J59*L59 -> 0 | O59: 0.7840740741 | P59: =+J59-N59 -> 0 | Q59: 2117 | R59: =+J59*E$7 -> 0
C60: Irrigation Equipment | D60: 1 | F60: Acre | G60: 0 | I60: 0 | J60: 0 | K60: 0 | M60: 0 | N60: 0 | O60: 0 | P60: 0 | Q60: 0 | R60: 0
C61: Tractors/Self-Propelled | D61: 1 | F61: Acre | G61: 7.881046833 | I61: 7.881046833 | J61: 0 | K61: 0 | M61: 0 | N61: 0 | O61: 7.881046833 | P61: 0 | Q61: 21278.82645 | R61: 0
C62: Implements | D62: 1 | F62: Acre | G62: 2.415293716 | I62: 2.415293716 | J62: 0 | K62: 0 | M62: 0 | N62: 0 | O62: 2.415293716 | P62: 0 | Q62: 6521.293034 | R62: 0
I63: 0 | J63: 0 | K63: 0 | M63: 0 | N63: 0 | O63: 0 | P63: 0 | Q63: 0 | R63: 0
I64: 0 | J64: 0 | K64: 0 | M64: 0 | N64: 0 | O64: 0 | P64: 0 | Q64: 0 | R64: 0
B65: Interest on Credit Line | G65: 0.08 | I65: 10.41016887 | J65: =+SUM(J18:J64)/2*H65 -> 0 | M65: 0 | N65: =+SUM(N18:N64)/2*L65 -> 0 | O65: 10.41016887 | P65: =+SUM(P18:P64)/2*L65 -> 0 | Q65: 28107.45596 | R65: =+J65*E$7 -> 0
A66: Total Variable Costs | I66: 302.1741686 | J66: =SUM(J19:J65) -> 0 | M66: 0 | N66: =SUM(N19:N65) -> 0 | O66: 302.1741686 | P66: =SUM(P19:P65) -> 0 | Q66: 815870.2551 | R66: =SUM(R19:R65) -> 0
A67: Planned Returns Above Variable Costs: | I67: 20.01183143 | J67: =+J14-J66 -> 0 | M67: 0 | N67: =+N14-N66 -> 0 | O67: 20.01183143 | P67: =+P14-P66 -> 0 | Q67: 54031.94487 | R67: =+R14-R66 -> 0
B68: Breakeven Price to Cover Variable Costs | G68: 0.6466351162 | H68: =IF(E10=0,"n/a",(YVarExp-(YTotExp+YTotRet-J10))/E10) -> n/a | I68: Pound
Q69: Enterprise | R69: Enterprise
A70: FIXED COSTS | D70: Quantity | E70: Quantity | F70: Units | G70: $/Unit | H70: $/Unit | I70: Total | J70: Total | K70: Share | L70: Share | M70: Landlord | N70: Landlord | O70: Tenant | P70: Tenant | Q70: Total | R70: Total
B71: Machinery Depreciation
C72: Pickup/General Use Equipment | D72: 1 | F72: Acre | G72: 1.662666667 | I72: 1.662666667 | J72: =E72*H72 -> 0 | K72: 0 | M72: 0 | N72: =J72*L72 -> 0 | O72: 1.662666667 | P72: =+J72-N72 -> 0 | Q72: 4489.2 | R72: =+J72*E$7 -> 0
C73: Tractors/Self-Propelled | D73: 1 | F73: Acre | G73: 12.28267399 | I73: 12.28267399 | J73: 0 | K73: 0 | M73: 0 | N73: =J73*L73 -> 0 | O73: 12.28267399 | P73: 0 | Q73: 33163.21976 | R73: 0
C74: Implements | D74: 1 | F74: Acre | G74: 3.884535954 | I74: 3.884535954 | J74: 0 | K74: 0 | M74: 0 | N74: =J74*L74 -> 0 | O74: 3.884535954 | P74: 0 | Q74: 10488.24708 | R74: 0
B75: Equipment Investment
C76: Pickup/General Use Equipment | D76: 9.215555556 | F76: Dollars | G76: 0.08 | I76: 0.7372444444 | J76: =E76*H76 -> 0 | K76: 0 | M76: 0 | N76: =J76*L76 -> 0 | O76: 0.7372444444 | P76: =+J76-N76 -> 0 | Q76: 1990.56 | R76: =+J76*E$7 -> 0
C77: Tractors/Self-Propelled | D77: 93.76290485 | F77: Dollars | G77: 0.08 | I77: 7.501032388 | J77: 0 | K77: 0 | M77: 0 | N77: =J77*L77 -> 0 | O77: 7.501032388 | P77: 0 | Q77: 20252.78745 | R77: 0
C78: Implements | D78: 23.86931862 | F78: Dollars | G78: 0.08 | I78: 1.909545489 | J78: 0 | K78: 0 | M78: 0 | N78: =J78*L78 -> 0 | O78: 1.909545489 | P78: 0 | Q78: 5155.772821 | R78: 0
B79: Salaried Labor | D79: 1 | F79: Acre | G79: 0 | I79: 0 | J79: 0 | K79: 0 | M79: 0 | N79: =J79*L79 -> 0 | O79: 0 | P79: =+J79-N79 -> 0 | Q79: 0 | R79: =+J79*E$7 -> 0
B80: Management Fee, Owner/Operator Labor | D80: 1 | F80: Acre | G80: 10 | I80: 10 | J80: 0 | K80: 0 | M80: 0 | N80: 0 | O80: 10 | P80: 0 | Q80: 27000 | R80: 0
B81: Allocated Establishment Cost | D81: 1 | F81: Acre | G81: 0 | I81: 0 | J81: 0 | K81: 0 | M81: 0 | N81: 0 | O81: 0 | P81: 0 | Q81: 0 | R81: 0
B82: Rent-Dryland Crop | D82: 1 | F82: Acre | G82: 35 | I82: 35 | J82: 0 | K82: 0 | M82: 0 | N82: 0 | O82: 35 | P82: 0 | Q82: 94500 | R82: 0
B83: Property Taxes | D83: 1 | F83: Acre | G83: 0 | I83: 0 | J83: 0 | K83: 0 | M83: 0 | N83: 0 | O83: 0 | P83: 0 | Q83: 0 | R83: 0
B84: Whole Farm Insurance | D84: 1 | F84: Acre | G84: 1 | I84: 1 | J84: 0 | K84: 0 | M84: 0 | N84: 0 | O84: 1 | P84: 0 | Q84: 2700 | R84: 0
D85: 1 | G85: 0 | I85: 0 | J85: 0 | K85: 0 | M85: 0 | N85: 0 | O85: 0 | P85: 0 | Q85: 0 | R85: 0
D86: 1 | G86: 0 | I86: 0 | J86: =E86*H86 -> 0 | K86: 0 | M86: 0 | N86: 0 | O86: 0 | P86: 0 | Q86: 0 | R86: 0
A87: Total Fixed Costs | I87: 73.97769893 | J87: =+SUM(J72:J86) -> 0 | M87: 0 | N87: =+SUM(N72:N86) -> 0 | O87: 73.97769893 | P87: =+SUM(P72:P86) -> 0 | Q87: 199739.7871 | R87: =+SUM(R72:R86) -> 0
A88: Total Specified Costs | I88: 376.1518675 | J88: =+J66+J87 -> 0 | M88: 0 | N88: =+N66+N87 -> 0 | O88: 376.1518675 | P88: =+P66+P87 -> 0 | Q88: 1015610.042 | R88: =+R66+R87 -> 0
A90: Returns Above Specified Costs | I90: -53.96586749 | J90: =+J14-J88 -> 0 | M90: 0 | N90: =+N14-N88 -> 0 | O90: -53.96586749 | P90: =+P14-P88 -> 0 | Q90: -145707.8422 | R90: =+R14-R88 -> 0
A92: Breakeven Price to Cover Total Costs | G92: 0.84390898 | H92: =IF(E10=0,"n/a",(YTotExp-(YTotExp+YTotRet-J10))/E10) -> n/a | I92: Pound
D94: Example Breakeven Prices
B95: Example | C95: Example | D95: To Cover | G95: To Cover
B96: Yield | C96: Yield | D96: Variable | G96: Total
B97: Percent | C97: Pound | D97: Costs | G97: Costs
B98: 0.75 | C98: 281.25 | D98: 0.8621801549 | G98: 1.125211973
B99: 0.9 | C99: 337.5 | D99: 0.7184834624 | G99: 0.9376766444
B100: 1 | C100: 375 | D100: 0.6466351162 | G100: 0.84390898
B101: 1.1 | C101: 412.5 | D101: 0.5878501056 | G101: 0.7671899818
B102: 1.25 | C102: 468.75 | D102: 0.5173080929 | G102: 0.675127184
D104: Your Breakeven Prices
B105: Your | C105: Your | E105: To Cover | H105: To Cover
B106: Yield | C106: Yield | E106: Variable | H106: Total
B107: Percent | C107: Pound | E107: Costs | H107: Costs
B108: 0.75 | C108: =E10*YPER1 -> 0 | E108: =IF($E$10=0,0,(YVarExp-(YTotExp+YTotRet-J10))/($E$10*YPER1)) -> 0 | H108: =IF($E$10=0,0,(YTotExp-(YTotExp+YTotRet-J10))/($E$10*YPER1)) -> 0
B109: 0.9 | C109: =E10*YPER2 -> 0 | E109: =IF($E$10=0,0,(YVarExp-(YTotExp+YTotRet-J10))/($E$10*YPER2)) -> 0 | H109: =IF($E$10=0,0,(YTotExp-(YTotExp+YTotRet-J10))/($E$10*YPER2)) -> 0
B110: 1 | C110: =+E10 -> 0 | E110: =IF($E$10=0,0,(YVarExp-(YTotExp+YTotRet-J10))/($E$10*YPER3)) -> 0 | H110: =IF($E$10=0,0,(YTotExp-(YTotExp+YTotRet-J10))/($E$10*YPER3)) -> 0
B111: 1.1 | C111: =E10*YPER4 -> 0 | E111: =IF($E$10=0,0,(YVarExp-(YTotExp+YTotRet-J10))/($E$10*YPER4)) -> 0 | H111: =IF($E$10=0,0,(YTotExp-(YTotExp+YTotRet-J10))/($E$10*YPER4)) -> 0
B112: 1.25 | C112: =E10*YPER5 -> 0 | E112: =IF($E$10=0,0,(YVarExp-(YTotExp+YTotRet-J10))/($E$10*YPER5)) -> 0 | H112: =IF($E$10=0,0,(YTotExp-(YTotExp+YTotRet-J10))/($E$10*YPER5)) -> 0
A114: Developed by Jeffrey Wright, Assistant Professor & Extension Economist, Texas A&M AgriLife Extension, 325-657-7309
A116: Information presented is prepared solely as a general guide and not intended to recognize or predict the costs and returns from any one operation. Brand names are mentioned only as examples and imply no endorsement.

Sheet CottonDrylandXF
A1: Projections for Planning Purposes Only -- Not to be Used without Updating
A2: 2025 Estimated Costs and Returns per Acre
A3: Dryland Cotton, Auxin Technology, Follow Wheat
A4: Enter your name for this budget in the cell above.
A5: Enter Your Values in the cells highlighed in MAROON.
E6: Your Acres | R6: Your
C7: Crop Acres | D7: 2700 | L7: Your | Q7: Enterprise | R7: Enterprise
E8: Your | H8: Your | I8: Cash | J8: Your | K8: Landlord | L8: Landlord | N8: Your | P8: Your | Q8: Total | R8: Total
A9: REVENUE | D9: Quantity | E9: Quantity | F9: Units | G9: $/Unit | H9: $/Unit | I9: Total | J9: Total | K9: Share | L9: Share | M9: Landlord | N9: Landlord | O9: Tenant | P9: Tenant | Q9: (2700 acres) | R9: ="(" & E7 & " acres)" -> ( acres)
B10: Cotton Lint | D10: 375 | F10: Pound | G10: 0.7 | I10: 262.5 | J10: =E10*H10 -> 0 | K10: 0 | M10: 0 | N10: =J10*L10 -> 0 | O10: 262.5 | P10: =+J10-N10 -> 0 | Q10: 708750 | R10: =+J10*E$7 -> 0
B11: Cotton Seed | D11: 0.2713 | F11: Ton | G11: 220 | I11: 59.686 | J11: 0 | K11: 0 | M11: 0 | N11: 0 | O11: 59.686 | P11: =+J11-N11 -> 0 | Q11: 161152.2 | R11: 0
D12: 0 | G12: 0 | I12: 0 | J12: 0 | K12: 0 | M12: 0 | N12: 0 | O12: 0 | P12: 0 | Q12: 0 | R12: 0
D13: 0 | G13: 0 | I13: 0 | J13: 0 | K13: 0 | M13: 0 | N13: 0 | O13: 0 | P13: 0 | Q13: 0 | R13: 0
A14: Total Revenue | I14: 322.186 | J14: =SUM(J10:J13) -> 0 | M14: 0 | N14: =SUM(N10:N13) -> 0 | O14: 322.186 | P14: =SUM(P10:P13) -> 0 | Q14: 869902.2 | R14: =SUM(R10:R13) -> 0
Q15: Enterprise | R15: Enterprise
A16: VARIABLE COSTS | D16: Quantity | E16: Quantity | F16: Units | G16: $/Unit | H16: $/Unit | I16: Total | J16: Total | K16: Share | L16: Share | M16: Landlord | N16: Landlord | O16: Tenant | P16: Tenant | Q16: Total | R16: Total
A17: Production Costs
B18: Herbicide
C19: Glyphosate | D19: 160 | F19: Ounce | G19: 0.1328125 | I19: 21.25 | J19: =E19*H19 -> 0 | K19: 0 | M19: 0 | N19: =J19*L19 -> 0 | O19: 21.25 | P19: =+J19-N19 -> 0 | Q19: 57375 | R19: =+J19*E$7 -> 0
C20: 2-4D Amine 4 | D20: 1.25 | F20: Pint | G20: 1.6125 | I20: 2.015625 | J20: 0 | K20: 0 | M20: 0 | N20: 0 | O20: 2.015625 | P20: 0 | Q20: 5442.1875 | R20: 0
C21: Trifluralin | D21: 1.5 | F21: Pint | G21: 2.75 | I21: 4.125 | J21: 0 | K21: 0 | M21: 0 | N21: 0 | O21: 4.125 | P21: 0 | Q21: 11137.5 | R21: 0
C22: Caparol | D22: 24 | F22: Ounce | G22: 0.2625 | I22: 6.3 | J22: 0 | K22: 0 | M22: 0 | N22: 0 | O22: 6.3 | P22: 0 | Q22: 17010 | R22: 0
C23: Outlook | D23: 2 | F23: Ounce | G23: 1.040625 | I23: 2.08125 | J23: 0 | K23: 0 | M23: 0 | N23: 0 | O23: 2.08125 | P23: 0 | Q23: 5619.375 | R23: 0
C24: Auxin based herbicide | D24: 44 | F24: Ounce | G24: 0.5 | I24: 22 | J24: 0 | K24: 0 | M24: 0 | N24: 0 | O24: 22 | P24: 0 | Q24: 59400 | R24: 0
B25: Seed
C26: Seed Cotton - B2 Auxin technology (Dry) | D26: 29 | F26: Thousand | G26: 1.44 | I26: 41.76 | J26: 0 | K26: 0 | M26: 0 | N26: 0 | O26: 41.76 | P26: 0 | Q26: 112752 | R26: 0
B27: Fertilizer
C28: Phos (11-52-0 DRY MAT) | D28: 19 | F28: Pounds | G28: 1.29 | I28: 24.51 | J28: 0 | K28: 0 | M28: 0 | N28: 0 | O28: 24.51 | P28: 0 | Q28: 66177 | R28: 0
C29: Nitrogen N32-liq | D29: 26 | F29: Pounds | G29: 2.69 | I29: 69.94 | J29: 0 | K29: 0 | M29: 0 | N29: 0 | O29: 69.94 | P29: 0 | Q29: 188838 | R29: 0
B30: Custom
C31: Soil Test-Dryland | D31: 1 | F31: Each | G31: 0.25 | I31: 0.25 | J31: 0 | K31: 0 | M31: 0 | N31: 0 | O31: 0.25 | P31: 0 | Q31: 675 | R31: 0
C32: Gin and Haul | D32: 12.5 | F32: CWT | G32: 2.5 | I32: 31.25 | J32: 0 | K32: 0 | M32: 0 | N32: 0 | O32: 31.25 | P32: 0 | Q32: 84375 | R32: 0
C33: Custom Strip | D33: 375 | F33: Pounds | G33: 0.11 | I33: 41.25 | J33: 0 | K33: 0 | M33: 0 | N33: 0 | O33: 41.25 | P33: 0 | Q33: 111375 | R33: 0
C34: Custom Bag/Tie | D34: 0.75 | F34: Bales | G34: 5 | I34: 3.75 | J34: 0 | K34: 0 | M34: 0 | N34: 0 | O34: 3.75 | P34: 0 | Q34: 10125 | R34: 0
B35: Miscellaneous
C36: Boll Weevil Eradication Program | D36: 0.75 | F36: Bale | G36: 1 | I36: 0.75 | J36: 0 | K36: 0 | M36: 0 | N36: 0 | O36: 0.75 | P36: 0 | Q36: 2025 | R36: 0
C37: Dry Cotton RP 70% SE, Ent | D37: 1 | F37: Acre | G37: 6.21 | I37: 6.21 | J37: 0 | K37: 0 | M37: 0 | N37: 0 | O37: 6.21 | P37: 0 | Q37: 16767 | R37: 0
B38: Insecticide
C39: Macho 4F | D39: 1.5 | F39: Ounce | G39: 0.71484375 | I39: 1.072265625 | J39: 0 | K39: 0 | M39: 0 | N39: 0 | O39: 1.072265625 | P39: 0 | Q39: 2895.117188 | R39: 0
B40: Other Chemicals
C41: Paraquat, 3lb (Firestorm) | D41: 28 | F41: Ounce | G41: 0.1796 | I41: 5.0288 | J41: 0 | K41: 0 | M41: 0 | N41: 0 | O41: 5.0288 | P41: 0 | Q41: 13577.76 | R41: 0
C42: Cutout (Adios) | D42: 4 | F42: Ounce | G42: 0.9219 | I42: 3.6876 | J42: 0 | K42: 0 | M42: 0 | N42: 0 | O42: 3.6876 | P42: 0 | Q42: 9956.52 | R42: 0
C43: Ethephon 6 | D43: 1 | F43: Pint | G43: 3.8125 | I43: 3.8125 | J43: 0 | K43: 0 | M43: 0 | N43: 0 | O43: 3.8125 | P43: 0 | Q43: 10293.75 | R43: 0
D44: 0 | G44: 0 | I44: 0 | J44: 0 | K44: 0 | M44: 0 | N44: 0 | O44: 0 | P44: 0 | Q44: 0 | R44: 0
D45: 0 | G45: 0 | I45: 0 | J45: 0 | K45: 0 | M45: 0 | N45: 0 | O45: 0 | P45: 0 | Q45: 0 | R45: 0
D46: 0 | G46: 0 | I46: 0 | J46: =E46*H46 -> 0 | K46: 0 | M46: 0 | N46: =J46*L46 -> 0 | O46: 0 | P46: =+J46-N46 -> 0 | Q46: 0 | R46: =+J46*E$7 -> 0
B47: Machinery Labor
C48: Tractors/Self-Propelled | D48: 0.23 | F48: Hour | G48: 17.21 | I48: 3.9583 | J48: =E48*H48 -> 0 | K48: 0 | M48: 0 | N48: =J48*L48 -> 0 | O48: 3.9583 | P48: =+J48-N48 -> 0 | Q48: 10687.41 | R48: =+J48*E$7 -> 0
C49: Other Labor | D49: 0.07 | F49: Hour | G49: 17.21 | I49: 1.2047 | J49: =E49*H49 -> 0 | K49: 0 | M49: 0 | N49: =J49*L49 -> 0 | O49: 1.2047 | P49: =+J49-N49 -> 0 | Q49: 3252.69 | R49: =+J49*E$7 -> 0
B51: Diesel Fuel
C52: Pickup/General Use Equipment | D52: 1 | F52: Acre | G52: 0 | I52: 0 | J52: =E52*H52 -> 0 | K52: 0 | M52: 0 | N52: =J52*L52 -> 0 | O52: 0 | P52: =+J52-N52 -> 0 | Q52: 0 | R52: =+J52*E$7 -> 0
C53: Tractors/Self-Propelled | D53: 3.12 | F53: Gallon | G53: 2.8 | I53: 8.736 | J53: =E53*H53 -> 0 | K53: 0 | M53: 0 | N53: =J53*L53 -> 0 | O53: 8.736 | P53: =+J53-N53 -> 0 | Q53: 23587.2 | R53: =+J53*E$7 -> 0
B55: Gasoline
C56: Pickup/General Use Equipment | D56: 1 | F56: Acre | G56: 1.874044444 | I56: 1.874044444 | J56: =E56*H56 -> 0 | K56: 0 | M56: 0 | N56: =J56*L56 -> 0 | O56: 1.874044444 | P56: =+J56-N56 -> 0 | Q56: 5059.92 | R56: =+J56*E$7 -> 0
C57: Tractors/Self-Propelled | D57: 0 | F57: Gallon | G57: 2.7 | I57: 0 | J57: =E57*H57 -> 0 | K57: 0 | M57: 0 | N57: =J57*L57 -> 0 | O57: 0 | P57: =+J57-N57 -> 0 | Q57: 0 | R57: =+J57*E$7 -> 0
B59: Repairs & Maintenance
C60: Pickup/General Use Equipment | D60: 1 | F60: Acre | G60: 0.7840740741 | I60: 0.7840740741 | J60: =E60*H60 -> 0 | K60: 0 | M60: 0 | N60: =J60*L60 -> 0 | O60: 0.7840740741 | P60: =+J60-N60 -> 0 | Q60: 2117 | R60: =+J60*E$7 -> 0
C61: Irrigation Equipment | D61: 1 | F61: Acre | G61: 0 | I61: 0 | J61: 0 | K61: 0 | M61: 0 | N61: 0 | O61: 0 | P61: 0 | Q61: 0 | R61: 0
C62: Tractors/Self-Propelled | D62: 1 | F62: Acre | G62: 7.881046833 | I62: 7.881046833 | J62: 0 | K62: 0 | M62: 0 | N62: 0 | O62: 7.881046833 | P62: 0 | Q62: 21278.82645 | R62: 0
C63: Implements | D63: 1 | F63: Acre | G63: 2.415293716 | I63: 2.415293716 | J63: 0 | K63: 0 | M63: 0 | N63: 0 | O63: 2.415293716 | P63: 0 | Q63: 6521.293034 | R63: 0
I64: 0 | J64: 0 | K64: 0 | M64: 0 | N64: 0 | O64: 0 | P64: 0 | Q64: 0 | R64: 0
I65: 0 | J65: 0 | K65: 0 | M65: 0 | N65: 0 | O65: 0 | P65: 0 | Q65: 0 | R65: 0
B66: Interest on Credit Line | G66: 0.08 | I66: 11.1314286 | J66: =+SUM(J18:J65)/2*H66 -> 0 | M66: 0 | N66: =+SUM(N18:N65)/2*L66 -> 0 | O66: 11.1314286 | P66: =+SUM(P18:P65)/2*L66 -> 0 | Q66: 30054.85722 | R66: =+J66*E$7 -> 0
A67: Total Variable Costs | I67: 329.0279283 | J67: =SUM(J19:J66) -> 0 | M67: 0 | N67: =SUM(N19:N66) -> 0 | O67: 329.0279283 | P67: =SUM(P19:P66) -> 0 | Q67: 888375.4064 | R67: =SUM(R19:R66) -> 0
A68: Planned Returns Above Variable Costs: | I68: -6.841928292 | J68: =+J14-J67 -> 0 | M68: 0 | N68: =+N14-N67 -> 0 | O68: -6.841928292 | P68: =+P14-P67 -> 0 | Q68: -18473.20639 | R68: =+R14-R67 -> 0
B69: Breakeven Price to Cover Variable Costs | G69: 0.7182451421 | H69: =IF(E10=0,"n/a",(YVarExp-(YTotExp+YTotRet-J10))/E10) -> n/a | I69: Pound
Q70: Enterprise | R70: Enterprise
A71: FIXED COSTS | D71: Quantity | E71: Quantity | F71: Units | G71: $/Unit | H71: $/Unit | I71: Total | J71: Total | K71: Share | L71: Share | M71: Landlord | N71: Landlord | O71: Tenant | P71: Tenant | Q71: Total | R71: Total
B72: Machinery Depreciation
C73: Pickup/General Use Equipment | D73: 1 | F73: Acre | G73: 1.662666667 | I73: 1.662666667 | J73: =E73*H73 -> 0 | K73: 0 | M73: 0 | N73: =J73*L73 -> 0 | O73: 1.662666667 | P73: =+J73-N73 -> 0 | Q73: 4489.2 | R73: =+J73*E$7 -> 0
C74: Tractors/Self-Propelled | D74: 1 | F74: Acre | G74: 12.28267399 | I74: 12.28267399 | J74: 0 | K74: 0 | M74: 0 | N74: =J74*L74 -> 0 | O74: 12.28267399 | P74: 0 | Q74: 33163.21976 | R74: 0
C75: Implements | D75: 1 | F75: Acre | G75: 3.884535954 | I75: 3.884535954 | J75: 0 | K75: 0 | M75: 0 | N75: =J75*L75 -> 0 | O75: 3.884535954 | P75: 0 | Q75: 10488.24708 | R75: 0
B76: Equipment Investment
C77: Pickup/General Use Equipment | D77: 9.215555556 | F77: Dollars | G77: 0.08 | I77: 0.7372444444 | J77: =E77*H77 -> 0 | K77: 0 | M77: 0 | N77: =J77*L77 -> 0 | O77: 0.7372444444 | P77: =+J77-N77 -> 0 | Q77: 1990.56 | R77: =+J77*E$7 -> 0
C78: Tractors/Self-Propelled | D78: 93.76290485 | F78: Dollars | G78: 0.08 | I78: 7.501032388 | J78: 0 | K78: 0 | M78: 0 | N78: =J78*L78 -> 0 | O78: 7.501032388 | P78: 0 | Q78: 20252.78745 | R78: 0
C79: Implements | D79: 23.86931862 | F79: Dollars | G79: 0.08 | I79: 1.909545489 | J79: 0 | K79: 0 | M79: 0 | N79: =J79*L79 -> 0 | O79: 1.909545489 | P79: 0 | Q79: 5155.772821 | R79: 0
B80: Salaried Labor | D80: 1 | F80: Acre | G80: 0 | I80: 0 | J80: 0 | K80: 0 | M80: 0 | N80: =J80*L80 -> 0 | O80: 0 | P80: =+J80-N80 -> 0 | Q80: 0 | R80: =+J80*E$7 -> 0
B81: Management Fee, Owner/Operator Labor | D81: 1 | F81: Acre | G81: 10 | I81: 10 | J81: 0 | K81: 0 | M81: 0 | N81: 0 | O81: 10 | P81: 0 | Q81: 27000 | R81: 0
B82: Allocated Establishment Cost | D82: 1 | F82: Acre | G82: 0 | I82: 0 | J82: 0 | K82: 0 | M82: 0 | N82: 0 | O82: 0 | P82: 0 | Q82: 0 | R82: 0
B83: Rent-Dryland Crop | D83: 1 | F83: Acre | G83: 35 | I83: 35 | J83: 0 | K83: 0 | M83: 0 | N83: 0 | O83: 35 | P83: 0 | Q83: 94500 | R83: 0
B84: Property Taxes | D84: 1 | F84: Acre | G84: 0 | I84: 0 | J84: 0 | K84: 0 | M84: 0 | N84: 0 | O84: 0 | P84: 0 | Q84: 0 | R84: 0
B85: Whole Farm Insurance | D85: 1 | F85: Acre | G85: 0 | I85: 0 | J85: 0 | K85: 0 | M85: 0 | N85: 0 | O85: 0 | P85: 0 | Q85: 0 | R85: 0
D86: 1 | G86: 0 | I86: 0 | J86: 0 | K86: 0 | M86: 0 | N86: 0 | O86: 0 | P86: 0 | Q86: 0 | R86: 0
D87: 1 | G87: 0 | I87: 0 | J87: =E87*H87 -> 0 | K87: 0 | M87: 0 | N87: 0 | O87: 0 | P87: 0 | Q87: 0 | R87: 0
A88: Total Fixed Costs | I88: 72.97769893 | J88: =+SUM(J73:J87) -> 0 | M88: 0 | N88: =+SUM(N73:N87) -> 0 | O88: 72.97769893 | P88: =+SUM(P73:P87) -> 0 | Q88: 197039.7871 | R88: =+SUM(R73:R87) -> 0
A89: Total Specified Costs | I89: 402.0056272 | J89: =+J67+J88 -> 0 | M89: 0 | N89: =+N67+N88 -> 0 | O89: 402.0056272 | P89: =+P67+P88 -> 0 | Q89: 1085415.193 | R89: =+R67+R88 -> 0
A91: Returns Above Specified Costs | I91: -79.81962722 | J91: =+J14-J89 -> 0 | M91: 0 | N91: =+N14-N89 -> 0 | O91: -79.81962722 | P91: =+P14-P89 -> 0 | Q91: -215512.9935 | R91: =+R14-R89 -> 0
A93: Breakeven Price to Cover Total Costs | G93: 0.9128523393 | H93: =IF(E10=0,"n/a",(YTotExp-(YTotExp+YTotRet-J10))/E10) -> n/a | I93: Pound
D95: Example Breakeven Prices
B96: Example | C96: Example | D96: To Cover | G96: To Cover
B97: Yield | C97: Yield | D97: Variable | G97: Total
B98: Percent | C98: Pound | D98: Costs | G98: Costs
B99: 0.75 | C99: 281.25 | D99: 0.9576601895 | G99: 1.217136452
B100: 0.9 | C100: 337.5 | D100: 0.7980501579 | G100: 1.014280377
B101: 1 | C101: 375 | D101: 0.7182451421 | G101: 0.9128523393
B102: 1.1 | C102: 412.5 | D102: 0.6529501292 | G102: 0.829865763
B103: 1.25 | C103: 468.75 | D103: 0.5745961137 | G103: 0.7302818714
D105: Your Breakeven Prices
B106: Your | C106: Your | E106: To Cover | H106: To Cover
B107: Yield | C107: Yield | E107: Variable | H107: Total
B108: Percent | C108: Pound | E108: Costs | H108: Costs
B109: 0.75 | C109: =E10*YPER1 -> 0 | E109: =IF($E$10=0,0,(YVarExp-(YTotExp+YTotRet-J10))/($E$10*YPER1)) -> 0 | H109: =IF($E$10=0,0,(YTotExp-(YTotExp+YTotRet-J10))/($E$10*YPER1)) -> 0
B110: 0.9 | C110: =E10*YPER2 -> 0 | E110: =IF($E$10=0,0,(YVarExp-(YTotExp+YTotRet-J10))/($E$10*YPER2)) -> 0 | H110: =IF($E$10=0,0,(YTotExp-(YTotExp+YTotRet-J10))/($E$10*YPER2)) -> 0
B111: 1 | C111: =+E10 -> 0 | E111: =IF($E$10=0,0,(YVarExp-(YTotExp+YTotRet-J10))/($E$10*YPER3)) -> 0 | H111: =IF($E$10=0,0,(YTotExp-(YTotExp+YTotRet-J10))/($E$10*YPER3)) -> 0
B112: 1.1 | C112: =E10*YPER4 -> 0 | E112: =IF($E$10=0,0,(YVarExp-(YTotExp+YTotRet-J10))/($E$10*YPER4)) -> 0 | H112: =IF($E$10=0,0,(YTotExp-(YTotExp+YTotRet-J10))/($E$10*YPER4)) -> 0
B113: 1.25 | C113: =E10*YPER5 -> 0 | E113: =IF($E$10=0,0,(YVarExp-(YTotExp+YTotRet-J10))/($E$10*YPER5)) -> 0 | H113: =IF($E$10=0,0,(YTotExp-(YTotExp+YTotRet-J10))/($E$10*YPER5)) -> 0
A115: Developed by Jeffrey Wright, Assistant Professor & Extension Economist, Texas A&M AgriLife Extension, 325-657-7309
A117: Information presented is prepared solely as a general guide and not intended to recognize or predict the costs and returns from any one operation. Brand names are mentioned only as examples and imply no endorsement.

Sheet CoastalEstablishDryland
A1: Projections for Planning Purposes Only -- Not to be Used without Updating
A2: 2025 Estimated Costs and Returns per Acre
A3: Dryland Bermudagrass Establishment
A4: Enter your name for this budget in the cell above.
A5: Enter Your Values in the cells highlighed in MAROON.
E6: Your Acres | R6: Your
C7: Crop Acres | D7: 100 | L7: Your | Q7: Enterprise | R7: Enterprise
E8: Your | H8: Your | I8: Cash | J8: Your | K8: Landlord | L8: Landlord | N8: Your | P8: Your | Q8: Total | R8: Total
A9: REVENUE | D9: Quantity | E9: Quantity | F9: Units | G9: $/Unit | H9: $/Unit | I9: Total | J9: Total | K9: Share | L9: Share | M9: Landlord | N9: Landlord | O9: Tenant | P9: Tenant | Q9: (100 acres) | R9: ="(" & E7 & " acres)" -> ( acres)
B10: Grazing | D10: 50 | F10: Pound | G10: 0.75 | I10: 37.5 | J10: =E10*H10 -> 0 | K10: 0 | M10: 0 | N10: =J10*L10 -> 0 | O10: 37.5 | P10: =+J10-N10 -> 0 | Q10: 3750 | R10: =+J10*E$7 -> 0
D11: 0 | G11: 0 | I11: 0 | J11: 0 | K11: 0 | M11: 0 | N11: 0 | O11: 0 | P11: =+J11-N11 -> 0 | Q11: 0 | R11: 0
D12: 0 | G12: 0 | I12: 0 | J12: 0 | K12: 0 | M12: 0 | N12: 0 | O12: 0 | P12: 0 | Q12: 0 | R12: 0
A13: Total Revenue | I13: 37.5 | J13: =SUM(J10:J12) -> 0 | M13: 0 | N13: =SUM(N10:N12) -> 0 | O13: 37.5 | P13: =SUM(P10:P12) -> 0 | Q13: 3750 | R13: =SUM(R10:R12) -> 0
Q14: Enterprise | R14: Enterprise
A15: VARIABLE COSTS | D15: Quantity | E15: Quantity | F15: Units | G15: $/Unit | H15: $/Unit | I15: Total | J15: Total | K15: Share | L15: Share | M15: Landlord | N15: Landlord | O15: Tenant | P15: Tenant | Q15: Total | R15: Total
A16: Production Costs
B17: Herbicide
C18: Herbicide-Banvell/24D | D18: 1 | F18: Pint | G18: 2.4875 | I18: 2.4875 | J18: =E18*H18 -> 0 | K18: 0 | M18: 0 | N18: =J18*L18 -> 0 | O18: 2.4875 | P18: =+J18-N18 -> 0 | Q18: 248.75 | R18: =+J18*E$7 -> 0
B19: Seed
C20: Sprigs and Sprigging | D20: 1 | F20: Acre | G20: 125 | I20: 125 | J20: 0 | K20: 0 | M20: 0 | N20: 0 | O20: 125 | P20: 0 | Q20: 12500 | R20: 0
B21: Fertilizer
C22: Phos (11-52-0 DRY MAT) | D22: 75 | F22: Pounds | G22: 1.29 | I22: 96.75 | J22: 0 | K22: 0 | M22: 0 | N22: 0 | O22: 96.75 | P22: 0 | Q22: 9675 | R22: 0
C23: Nitrogen N32-liq | D23: 40 | F23: Pounds | G23: 2.69 | I23: 107.6 | J23: 0 | K23: 0 | M23: 0 | N23: 0 | O23: 107.6 | P23: 0 | Q23: 10760 | R23: 0
B24: Custom
C25: Soil Test-Dryland | D25: 1 | F25: Each | G25: 0.25 | I25: 0.25 | J25: 0 | K25: 0 | M25: 0 | N25: 0 | O25: 0.25 | P25: 0 | Q25: 25 | R25: 0
B26: Miscellaneous
C27: Rainfall Insurance | D27: 1 | F27: Acre | G27: 23.26 | I27: 23.26 | J27: 0 | K27: 0 | M27: 0 | N27: 0 | O27: 23.26 | P27: 0 | Q27: 2326 | R27: 0
D28: 0 | G28: 0 | I28: 0 | J28: 0 | K28: 0 | M28: 0 | N28: 0 | O28: 0 | P28: 0 | Q28: 0 | R28: 0
D29: 0 | G29: 0 | I29: 0 | J29: 0 | K29: 0 | M29: 0 | N29: 0 | O29: 0 | P29: 0 | Q29: 0 | R29: 0
D30: 0 | G30: 0 | I30: 0 | J30: =E30*H30 -> 0 | K30: 0 | M30: 0 | N30: =J30*L30 -> 0 | O30: 0 | P30: =+J30-N30 -> 0 | Q30: 0 | R30: =+J30*E$7 -> 0
B31: Machinery Labor
C32: Tractors/Self-Propelled | D32: 0.47 | F32: Hour | G32: 17.21 | I32: 8.0887 | J32: =E32*H32 -> 0 | K32: 0 | M32: 0 | N32: =J32*L32 -> 0 | O32: 8.0887 | P32: =+J32-N32 -> 0 | Q32: 808.87 | R32: =+J32*E$7 -> 0
C33: Other Labor | D33: 0.12 | F33: Hour | G33: 17.21 | I33: 2.0652 | J33: =E33*H33 -> 0 | K33: 0 | M33: 0 | N33: =J33*L33 -> 0 | O33: 2.0652 | P33: =+J33-N33 -> 0 | Q33: 206.52 | R33: =+J33*E$7 -> 0
B35: Diesel Fuel
C36: Pickup/General Use Equipment | D36: 1 | F36: Acre | G36: 0 | I36: 0 | J36: =E36*H36 -> 0 | K36: 0 | M36: 0 | N36: =J36*L36 -> 0 | O36: 0 | P36: =+J36-N36 -> 0 | Q36: 0 | R36: =+J36*E$7 -> 0
C37: Tractors/Self-Propelled | D37: 3.1 | F37: Gallon | G37: 2.8 | I37: 8.68 | J37: =E37*H37 -> 0 | K37: 0 | M37: 0 | N37: =J37*L37 -> 0 | O37: 8.68 | P37: =+J37-N37 -> 0 | Q37: 868 | R37: =+J37*E$7 -> 0
B39: Gasoline
C40: Pickup/General Use Equipment | D40: 1 | F40: Acre | G40: 4.362 | I40: 4.362 | J40: =E40*H40 -> 0 | K40: 0 | M40: 0 | N40: =J40*L40 -> 0 | O40: 4.362 | P40: =+J40-N40 -> 0 | Q40: 436.2 | R40: =+J40*E$7 -> 0
C41: Tractors/Self-Propelled | D41: 0 | F41: Gallon | G41: 2.7 | I41: 0 | J41: =E41*H41 -> 0 | K41: 0 | M41: 0 | N41: =J41*L41 -> 0 | O41: 0 | P41: =+J41-N41 -> 0 | Q41: 0 | R41: =+J41*E$7 -> 0
B43: Repairs & Maintenance
C44: Pickup/General Use Equipment | D44: 1 | F44: Acre | G44: 1.825 | I44: 1.825 | J44: =E44*H44 -> 0 | K44: 0 | M44: 0 | N44: =J44*L44 -> 0 | O44: 1.825 | P44: =+J44-N44 -> 0 | Q44: 182.5 | R44: =+J44*E$7 -> 0
C45: Irrigation Equipment | D45: 1 | F45: Acre | G45: 0 | I45: 0 | J45: 0 | K45: 0 | M45: 0 | N45: 0 | O45: 0 | P45: 0 | Q45: 0 | R45: 0
C46: Tractors/Self-Propelled | D46: 1 | F46: Acre | G46: 7.54937971 | I46: 7.54937971 | J46: 0 | K46: 0 | M46: 0 | N46: 0 | O46: 7.54937971 | P46: 0 | Q46: 754.937971 | R46: 0
C47: Implements | D47: 1 | F47: Acre | G47: 5.337607592 | I47: 5.337607592 | J47: 0 | K47: 0 | M47: 0 | N47: 0 | O47: 5.337607592 | P47: 0 | Q47: 533.7607592 | R47: 0
I48: 0 | J48: 0 | K48: 0 | M48: 0 | N48: 0 | O48: 0 | P48: 0 | Q48: 0 | R48: 0
I49: 0 | J49: 0 | K49: 0 | M49: 0 | N49: 0 | O49: 0 | P49: 0 | Q49: 0 | R49: 0
B50: Interest on Credit Line | G50: 0.08 | I50: 11.54834195 | J50: =+SUM(J17:J49)/2*H50 -> 0 | M50: 0 | N50: =+SUM(N17:N49)/2*L50 -> 0 | O50: 11.54834195 | P50: =+SUM(P17:P49)/2*L50 -> 0 | Q50: 1154.834195 | R50: =+J50*E$7 -> 0
A51: Total Variable Costs | I51: 404.8037293 | J51: =SUM(J18:J50) -> 0 | M51: 0 | N51: =SUM(N18:N50) -> 0 | O51: 404.8037293 | P51: =SUM(P18:P50) -> 0 | Q51: 40480.37293 | R51: =SUM(R18:R50) -> 0
A52: Planned Returns Above Variable Costs: | I52: -367.3037293 | J52: =+J13-J51 -> 0 | M52: 0 | N52: =+N13-N51 -> 0 | O52: -367.3037293 | P52: =+P13-P51 -> 0 | Q52: -36730.37293 | R52: =+R13-R51 -> 0
B53: Breakeven Price to Cover Variable Costs | G53: 8.096074585 | H53: =IF(E10=0,"n/a",(YVarExp-(YTotExp+YTotRet-J10))/E10) -> n/a | I53: Pound
Q54: Enterprise | R54: Enterprise
A55: FIXED COSTS | D55: Quantity | E55: Quantity | F55: Units | G55: $/Unit | H55: $/Unit | I55: Total | J55: Total | K55: Share | L55: Share | M55: Landlord | N55: Landlord | O55: Tenant | P55: Tenant | Q55: Total | R55: Total
B56: Machinery Depreciation
C57: Pickup/General Use Equipment | D57: 1 | F57: Acre | G57: 3.87 | I57: 3.87 | J57: =E57*H57 -> 0 | K57: 0 | M57: 0 | N57: =J57*L57 -> 0 | O57: 3.87 | P57: =+J57-N57 -> 0 | Q57: 387 | R57: =+J57*E$7 -> 0
C58: Tractors/Self-Propelled | D58: 1 | F58: Acre | G58: 7.721630385 | I58: 7.721630385 | J58: 0 | K58: 0 | M58: 0 | N58: =J58*L58 -> 0 | O58: 7.721630385 | P58: 0 | Q58: 772.1630385 | R58: 0
C59: Implements | D59: 1 | F59: Acre | G59: 8.199631368 | I59: 8.199631368 | J59: 0 | K59: 0 | M59: 0 | N59: =J59*L59 -> 0 | O59: 8.199631368 | P59: 0 | Q59: 819.9631368 | R59: 0
B60: Equipment Investment
C61: Pickup/General Use Equipment | D61: 21.45 | F61: Dollars | G61: 0.08 | I61: 1.716 | J61: =E61*H61 -> 0 | K61: 0 | M61: 0 | N61: =J61*L61 -> 0 | O61: 1.716 | P61: =+J61-N61 -> 0 | Q61: 171.6 | R61: =+J61*E$7 -> 0
C62: Tractors/Self-Propelled | D62: 59.94031514 | F62: Dollars | G62: 0.08 | I62: 4.795225211 | J62: 0 | K62: 0 | M62: 0 | N62: =J62*L62 -> 0 | O62: 4.795225211 | P62: 0 | Q62: 479.5225211 | R62: 0
C63: Implements | D63: 35.25956474 | F63: Dollars | G63: 0.08 | I63: 2.820765179 | J63: 0 | K63: 0 | M63: 0 | N63: =J63*L63 -> 0 | O63: 2.820765179 | P63: 0 | Q63: 282.0765179 | R63: 0
B64: Salaried Labor | D64: 1 | F64: Acre | G64: 0 | I64: 0 | J64: 0 | K64: 0 | M64: 0 | N64: =J64*L64 -> 0 | O64: 0 | P64: =+J64-N64 -> 0 | Q64: 0 | R64: =+J64*E$7 -> 0
B65: Management Fee, Owner/Operator Labor | D65: 1 | F65: Acre | G65: 0 | I65: 0 | J65: 0 | K65: 0 | M65: 0 | N65: 0 | O65: 0 | P65: 0 | Q65: 0 | R65: 0
B66: Allocated Establishment Cost | D66: 1 | F66: Acre | G66: 0 | I66: 0 | J66: 0 | K66: 0 | M66: 0 | N66: 0 | O66: 0 | P66: 0 | Q66: 0 | R66: 0
B67: Rent-Dryland Crop | D67: 1 | F67: Acre | G67: 35 | I67: 35 | J67: 0 | K67: 0 | M67: 0 | N67: 0 | O67: 35 | P67: 0 | Q67: 3500 | R67: 0
B68: Property Taxes | D68: 1 | F68: Acre | G68: 0 | I68: 0 | J68: 0 | K68: 0 | M68: 0 | N68: 0 | O68: 0 | P68: 0 | Q68: 0 | R68: 0
B69: Whole Farm Insurance | D69: 1 | F69: Acre | G69: 0 | I69: 0 | J69: 0 | K69: 0 | M69: 0 | N69: 0 | O69: 0 | P69: 0 | Q69: 0 | R69: 0
D70: 1 | G70: 0 | I70: 0 | J70: 0 | K70: 0 | M70: 0 | N70: 0 | O70: 0 | P70: 0 | Q70: 0 | R70: 0
D71: 1 | G71: 0 | I71: 0 | J71: =E71*H71 -> 0 | K71: 0 | M71: 0 | N71: 0 | O71: 0 | P71: 0 | Q71: 0 | R71: 0
A72: Total Fixed Costs | I72: 64.12325214 | J72: =+SUM(J57:J71) -> 0 | M72: 0 | N72: =+SUM(N57:N71) -> 0 | O72: 64.12325214 | P72: =+SUM(P57:P71) -> 0 | Q72: 6412.325214 | R72: =+SUM(R57:R71) -> 0
A73: Total Specified Costs | I73: 468.9269814 | J73: =+J51+J72 -> 0 | M73: 0 | N73: =+N51+N72 -> 0 | O73: 468.9269814 | P73: =+P51+P72 -> 0 | Q73: 46892.69814 | R73: =+R51+R72 -> 0
A75: Returns Above Specified Costs | I75: -431.4269814 | J75: =+J13-J73 -> 0 | M75: 0 | N75: =+N13-N73 -> 0 | O75: -431.4269814 | P75: =+P13-P73 -> 0 | Q75: -43142.69814 | R75: =+R13-R73 -> 0
A77: Breakeven Price to Cover Total Costs | G77: 9.378539628 | H77: =IF(E10=0,"n/a",(YTotExp-(YTotExp+YTotRet-J10))/E10) -> n/a | I77: Pound
D79: Example Breakeven Prices
B80: Example | C80: Example | D80: To Cover | G80: To Cover
B81: Yield | C81: Yield | D81: Variable | G81: Total
B82: Percent | C82: Pound | D82: Costs | G82: Costs
B83: 0.75 | C83: 37.5 | D83: 10.79476611 | G83: 12.5047195
B84: 0.9 | C84: 45 | D84: 8.995638428 | G84: 10.42059959
B85: 1 | C85: 50 | D85: 8.096074585 | G85: 9.378539628
B86: 1.1 | C86: 55 | D86: 7.360067805 | G86: 8.525945116
B87: 1.25 | C87: 62.5 | D87: 6.476859668 | G87: 7.502831702
D89: Your Breakeven Prices
B90: Your | C90: Your | E90: To Cover | H90: To Cover
B91: Yield | C91: Yield | E91: Variable | H91: Total
B92: Percent | C92: Pound | E92: Costs | H92: Costs
B93: 0.75 | C93: =E10*YPER1 -> 0 | E93: =IF($E$10=0,0,(YVarExp-(YTotExp+YTotRet-J10))/($E$10*YPER1)) -> 0 | H93: =IF($E$10=0,0,(YTotExp-(YTotExp+YTotRet-J10))/($E$10*YPER1)) -> 0
B94: 0.9 | C94: =E10*YPER2 -> 0 | E94: =IF($E$10=0,0,(YVarExp-(YTotExp+YTotRet-J10))/($E$10*YPER2)) -> 0 | H94: =IF($E$10=0,0,(YTotExp-(YTotExp+YTotRet-J10))/($E$10*YPER2)) -> 0
B95: 1 | C95: =+E10 -> 0 | E95: =IF($E$10=0,0,(YVarExp-(YTotExp+YTotRet-J10))/($E$10*YPER3)) -> 0 | H95: =IF($E$10=0,0,(YTotExp-(YTotExp+YTotRet-J10))/($E$10*YPER3)) -> 0
B96: 1.1 | C96: =E10*YPER4 -> 0 | E96: =IF($E$10=0,0,(YVarExp-(YTotExp+YTotRet-J10))/($E$10*YPER4)) -> 0 | H96: =IF($E$10=0,0,(YTotExp-(YTotExp+YTotRet-J10))/($E$10*YPER4)) -> 0
B97: 1.25 | C97: =E10*YPER5 -> 0 | E97: =IF($E$10=0,0,(YVarExp-(YTotExp+YTotRet-J10))/($E$10*YPER5)) -> 0 | H97: =IF($E$10=0,0,(YTotExp-(YTotExp+YTotRet-J10))/($E$10*YPER5)) -> 0
A99: Developed by Jeffrey Wright, Assistant Professor & Extension Economist, Texas A&M AgriLife Extension, 325-657-7309
A101: Information presented is prepared solely as a general guide and not intended to recognize or predict the costs and returns from any one operation. Brand names are mentioned only as examples and imply no endorsement.

Sheet CoastalHayDryland
A1: Projections for Planning Purposes Only -- Not to be Used without Updating
A2: 2025 Estimated Costs and Returns per Acre
A3: Dryland Bermudagrass Hay
A4: Enter your name for this budget in the cell above.
A5: Enter Your Values in the cells highlighed in MAROON.
E6: Your Acres | R6: Your
C7: Crop Acres | D7: 100 | L7: Your | Q7: Enterprise | R7: Enterprise
E8: Your | H8: Your | I8: Cash | J8: Your | K8: Landlord | L8: Landlord | N8: Your | P8: Your | Q8: Total | R8: Total
A9: REVENUE | D9: Quantity | E9: Quantity | F9: Units | G9: $/Unit | H9: $/Unit | I9: Total | J9: Total | K9: Share | L9: Share | M9: Landlord | N9: Landlord | O9: Tenant | P9: Tenant | Q9: (100 acres) | R9: ="(" & E7 & " acres)" -> ( acres)
B10: Hay, 1200# BRB | D10: 3.33 | F10: Ton | G10: 200 | I10: 666 | J10: =E10*H10 -> 0 | K10: 0 | M10: 0 | N10: =J10*L10 -> 0 | O10: 666 | P10: =+J10-N10 -> 0 | Q10: 66600 | R10: =+J10*E$7 -> 0
D11: 0 | G11: 0 | I11: 0 | J11: 0 | K11: 0 | M11: 0 | N11: 0 | O11: 0 | P11: =+J11-N11 -> 0 | Q11: 0 | R11: 0
D12: 0 | G12: 0 | I12: 0 | J12: 0 | K12: 0 | M12: 0 | N12: 0 | O12: 0 | P12: 0 | Q12: 0 | R12: 0
A13: Total Revenue | I13: 666 | J13: =SUM(J10:J12) -> 0 | M13: 0 | N13: =SUM(N10:N12) -> 0 | O13: 666 | P13: =SUM(P10:P12) -> 0 | Q13: 66600 | R13: =SUM(R10:R12) -> 0
Q14: Enterprise | R14: Enterprise
A15: VARIABLE COSTS | D15: Quantity | E15: Quantity | F15: Units | G15: $/Unit | H15: $/Unit | I15: Total | J15: Total | K15: Share | L15: Share | M15: Landlord | N15: Landlord | O15: Tenant | P15: Tenant | Q15: Total | R15: Total
A16: Production Costs
B17: Herbicide
C18: 2-4D Amine 4 | D18: 4 | F18: Pint | G18: 1.6125 | I18: 6.45 | J18: =E18*H18 -> 0 | K18: 0 | M18: 0 | N18: =J18*L18 -> 0 | O18: 6.45 | P18: =+J18-N18 -> 0 | Q18: 645 | R18: =+J18*E$7 -> 0
B19: Fertilizer
C20: Nitrogen Dry-Urea | D20: 51 | F20: Pounds | G20: 0.62 | I20: 31.62 | J20: 0 | K20: 0 | M20: 0 | N20: 0 | O20: 31.62 | P20: 0 | Q20: 3162 | R20: 0
C21: Phos (11-52-0 DRY MAT) | D21: 12 | F21: Pounds | G21: 1.29 | I21: 15.48 | J21: 0 | K21: 0 | M21: 0 | N21: 0 | O21: 15.48 | P21: 0 | Q21: 1548 | R21: 0
C22: Potassium | D22: 27 | F22: Pounds | G22: 0.3 | I22: 8.1 | J22: 0 | K22: 0 | M22: 0 | N22: 0 | O22: 8.1 | P22: 0 | Q22: 810 | R22: 0
C23: Nitrogen N32-liq | D23: 64 | F23: Pounds | G23: 2.69 | I23: 172.16 | J23: 0 | K23: 0 | M23: 0 | N23: 0 | O23: 172.16 | P23: 0 | Q23: 17216 | R23: 0
B24: Custom
C25: Soil Test-Dryland | D25: 1 | F25: Each | G25: 0.25 | I25: 0.25 | J25: 0 | K25: 0 | M25: 0 | N25: 0 | O25: 0.25 | P25: 0 | Q25: 25 | R25: 0
C26: Swath, Rake and Bale | D26: 3.3 | F26: Bale | G26: 29.58 | I26: 97.614 | J26: 0 | K26: 0 | M26: 0 | N26: 0 | O26: 97.614 | P26: 0 | Q26: 9761.4 | R26: 0
B27: Miscellaneous
C28: Rainfall Insurance | D28: 1 | F28: Acre | G28: 23.26 | I28: 23.26 | J28: 0 | K28: 0 | M28: 0 | N28: 0 | O28: 23.26 | P28: 0 | Q28: 2326 | R28: 0
B29: Insecticide
C30: Dimilin 2L | D30: 1.5 | F30: Ounce | G30: 2.078125 | I30: 3.1171875 | J30: 0 | K30: 0 | M30: 0 | N30: 0 | O30: 3.1171875 | P30: 0 | Q30: 311.71875 | R30: 0
D31: 0 | G31: 0 | I31: 0 | J31: 0 | K31: 0 | M31: 0 | N31: 0 | O31: 0 | P31: 0 | Q31: 0 | R31: 0
D32: 0 | G32: 0 | I32: 0 | J32: 0 | K32: 0 | M32: 0 | N32: 0 | O32: 0 | P32: 0 | Q32: 0 | R32: 0
D33: 0 | G33: 0 | I33: 0 | J33: =E33*H33 -> 0 | K33: 0 | M33: 0 | N33: =J33*L33 -> 0 | O33: 0 | P33: =+J33-N33 -> 0 | Q33: 0 | R33: =+J33*E$7 -> 0
B34: Machinery Labor
C35: Tractors/Self-Propelled | D35: 0.2 | F35: Hour | G35: 17.21 | I35: 3.442 | J35: =E35*H35 -> 0 | K35: 0 | M35: 0 | N35: =J35*L35 -> 0 | O35: 3.442 | P35: =+J35-N35 -> 0 | Q35: 344.2 | R35: =+J35*E$7 -> 0
C36: Other Labor | D36: 0 | F36: Hour | G36: 17.21 | I36: 0 | J36: =E36*H36 -> 0 | K36: 0 | M36: 0 | N36: =J36*L36 -> 0 | O36: 0 | P36: =+J36-N36 -> 0 | Q36: 0 | R36: =+J36*E$7 -> 0
B38: Diesel Fuel
C39: Pickup/General Use Equipment | D39: 1 | F39: Acre | G39: 0 | I39: 0 | J39: =E39*H39 -> 0 | K39: 0 | M39: 0 | N39: =J39*L39 -> 0 | O39: 0 | P39: =+J39-N39 -> 0 | Q39: 0 | R39: =+J39*E$7 -> 0
C40: Tractors/Self-Propelled | D40: 0.75 | F40: Gallon | G40: 2.8 | I40: 2.1 | J40: =E40*H40 -> 0 | K40: 0 | M40: 0 | N40: =J40*L40 -> 0 | O40: 2.1 | P40: =+J40-N40 -> 0 | Q40: 210 | R40: =+J40*E$7 -> 0
B42: Gasoline
C43: Pickup/General Use Equipment | D43: 1 | F43: Acre | G43: 2.7 | I43: 2.7 | J43: =E43*H43 -> 0 | K43: 0 | M43: 0 | N43: =J43*L43 -> 0 | O43: 2.7 | P43: =+J43-N43 -> 0 | Q43: 270 | R43: =+J43*E$7 -> 0
C44: Tractors/Self-Propelled | D44: 0 | F44: Gallon | G44: 2.7 | I44: 0 | J44: =E44*H44 -> 0 | K44: 0 | M44: 0 | N44: =J44*L44 -> 0 | O44: 0 | P44: =+J44-N44 -> 0 | Q44: 0 | R44: =+J44*E$7 -> 0
B46: Repairs & Maintenance
C47: Pickup/General Use Equipment | D47: 1 | F47: Acre | G47: 0.7525 | I47: 0.7525 | J47: =E47*H47 -> 0 | K47: 0 | M47: 0 | N47: =J47*L47 -> 0 | O47: 0.7525 | P47: =+J47-N47 -> 0 | Q47: 75.25 | R47: =+J47*E$7 -> 0
C48: Irrigation Equipment | D48: 1 | F48: Acre | G48: 0 | I48: 0 | J48: 0 | K48: 0 | M48: 0 | N48: 0 | O48: 0 | P48: 0 | Q48: 0 | R48: 0
C49: Tractors/Self-Propelled | D49: 1 | F49: Acre | G49: 1.383333212 | I49: 1.383333212 | J49: 0 | K49: 0 | M49: 0 | N49: 0 | O49: 1.383333212 | P49: 0 | Q49: 138.3333212 | R49: 0
C50: Implements | D50: 1 | F50: Acre | G50: 0.03830995536 | I50: 0.03830995536 | J50: 0 | K50: 0 | M50: 0 | N50: 0 | O50: 0.03830995536 | P50: 0 | Q50: 3.830995536 | R50: 0
I51: 0 | J51: 0 | K51: 0 | M51: 0 | N51: 0 | O51: 0 | P51: 0 | Q51: 0 | R51: 0
I52: 0 | J52: 0 | K52: 0 | M52: 0 | N52: 0 | O52: 0 | P52: 0 | Q52: 0 | R52: 0
B53: Interest on Credit Line | G53: 0.08 | I53: 6.70701461 | J53: =+SUM(J17:J52)/2*H53 -> 0 | M53: 0 | N53: =+SUM(N17:N52)/2*L53 -> 0 | O53: 6.70701461 | P53: =+SUM(P17:P52)/2*L53 -> 0 | Q53: 670.701461 | R53: =+J53*E$7 -> 0
A54: Total Variable Costs | I54: 375.1743453 | J54: =SUM(J18:J53) -> 0 | M54: 0 | N54: =SUM(N18:N53) -> 0 | O54: 375.1743453 | P54: =SUM(P18:P53) -> 0 | Q54: 37517.43453 | R54: =SUM(R18:R53) -> 0
A55: Planned Returns Above Variable Costs: | I55: 290.8256547 | J55: =+J13-J54 -> 0 | M55: 0 | N55: =+N13-N54 -> 0 | O55: 290.8256547 | P55: =+P13-P54 -> 0 | Q55: 29082.56547 | R55: =+R13-R54 -> 0
B56: Breakeven Price to Cover Variable Costs | G56: 112.6649686 | H56: =IF(E10=0,"n/a",(YVarExp-(YTotExp+YTotRet-J10))/E10) -> n/a | I56: Ton
Q57: Enterprise | R57: Enterprise
A58: FIXED COSTS | D58: Quantity | E58: Quantity | F58: Units | G58: $/Unit | H58: $/Unit | I58: Total | J58: Total | K58: Share | L58: Share | M58: Landlord | N58: Landlord | O58: Tenant | P58: Tenant | Q58: Total | R58: Total
B59: Machinery Depreciation
C60: Pickup/General Use Equipment | D60: 1 | F60: Acre | G60: 1.575 | I60: 1.575 | J60: =E60*H60 -> 0 | K60: 0 | M60: 0 | N60: =J60*L60 -> 0 | O60: 1.575 | P60: =+J60-N60 -> 0 | Q60: 157.5 | R60: =+J60*E$7 -> 0
C61: Tractors/Self-Propelled | D61: 1 | F61: Acre | G61: 2.601672361 | I61: 2.601672361 | J61: 0 | K61: 0 | M61: 0 | N61: =J61*L61 -> 0 | O61: 2.601672361 | P61: 0 | Q61: 260.1672361 | R61: 0
C62: Implements | D62: 1 | F62: Acre | G62: 0.02946919643 | I62: 0.02946919643 | J62: 0 | K62: 0 | M62: 0 | N62: =J62*L62 -> 0 | O62: 0.02946919643 | P62: 0 | Q62: 2.946919643 | R62: 0
B63: Equipment Investment
C64: Pickup/General Use Equipment | D64: 9.625 | F64: Dollars | G64: 0.08 | I64: 0.77 | J64: =E64*H64 -> 0 | K64: 0 | M64: 0 | N64: =J64*L64 -> 0 | O64: 0.77 | P64: =+J64-N64 -> 0 | Q64: 77 | R64: =+J64*E$7 -> 0
C65: Tractors/Self-Propelled | D65: 19.62683773 | F65: Dollars | G65: 0.08 | I65: 1.570147018 | J65: 0 | K65: 0 | M65: 0 | N65: =J65*L65 -> 0 | O65: 1.570147018 | P65: 0 | Q65: 157.0147018 | R65: 0
C66: Implements | D66: 0.3094265625 | F66: Dollars | G66: 0.08 | I66: 0.024754125 | J66: 0 | K66: 0 | M66: 0 | N66: =J66*L66 -> 0 | O66: 0.024754125 | P66: 0 | Q66: 2.4754125 | R66: 0
B67: Salaried Labor | D67: 1 | F67: Acre | G67: 0 | I67: 0 | J67: 0 | K67: 0 | M67: 0 | N67: =J67*L67 -> 0 | O67: 0 | P67: =+J67-N67 -> 0 | Q67: 0 | R67: =+J67*E$7 -> 0
B68: Management Fee, Owner/Operator Labor | D68: 1 | F68: Acre | G68: 0 | I68: 0 | J68: 0 | K68: 0 | M68: 0 | N68: 0 | O68: 0 | P68: 0 | Q68: 0 | R68: 0
B69: Allocated Establishment Cost | D69: 1 | F69: Acre | G69: 56.636 | I69: 56.636 | J69: 0 | K69: 0 | M69: 0 | N69: 0 | O69: 56.636 | P69: 0 | Q69: 5663.6 | R69: 0
B70: Rent-Dryland Crop | D70: 1 | F70: Acre | G70: 35 | I70: 35 | J70: 0 | K70: 0 | M70: 0 | N70: 0 | O70: 35 | P70: 0 | Q70: 3500 | R70: 0
B71: Property Taxes | D71: 1 | F71: Acre | G71: 0 | I71: 0 | J71: 0 | K71: 0 | M71: 0 | N71: 0 | O71: 0 | P71: 0 | Q71: 0 | R71: 0
B72: Whole Farm Insurance | D72: 1 | F72: Acre | G72: 0 | I72: 0 | J72: 0 | K72: 0 | M72: 0 | N72: 0 | O72: 0 | P72: 0 | Q72: 0 | R72: 0
D73: 1 | G73: 0 | I73: 0 | J73: 0 | K73: 0 | M73: 0 | N73: 0 | O73: 0 | P73: 0 | Q73: 0 | R73: 0
D74: 1 | G74: 0 | I74: 0 | J74: =E74*H74 -> 0 | K74: 0 | M74: 0 | N74: 0 | O74: 0 | P74: 0 | Q74: 0 | R74: 0
A75: Total Fixed Costs | I75: 98.2070427 | J75: =+SUM(J60:J74) -> 0 | M75: 0 | N75: =+SUM(N60:N74) -> 0 | O75: 98.2070427 | P75: =+SUM(P60:P74) -> 0 | Q75: 9820.70427 | R75: =+SUM(R60:R74) -> 0
A76: Total Specified Costs | I76: 473.381388 | J76: =+J54+J75 -> 0 | M76: 0 | N76: =+N54+N75 -> 0 | O76: 473.381388 | P76: =+P54+P75 -> 0 | Q76: 47338.1388 | R76: =+R54+R75 -> 0
A78: Returns Above Specified Costs | I78: 192.618612 | J78: =+J13-J76 -> 0 | M78: 0 | N78: =+N13-N76 -> 0 | O78: 192.618612 | P78: =+P13-P76 -> 0 | Q78: 19261.8612 | R78: =+R13-R76 -> 0
A80: Breakeven Price to Cover Total Costs | G80: 142.156573 | H80: =IF(E10=0,"n/a",(YTotExp-(YTotExp+YTotRet-J10))/E10) -> n/a | I80: Ton
D82: Example Breakeven Prices
B83: Example | C83: Example | D83: To Cover | G83: To Cover
B84: Yield | C84: Yield | D84: Variable | G84: Total
B85: Percent | C85: Ton | D85: Costs | G85: Costs
B86: 0.75 | C86: 2.4975 | D86: 150.2199581 | G86: 189.5420973
B87: 0.9 | C87: 2.997 | D87: 125.1832984 | G87: 157.9517477
B88: 1 | C88: 3.33 | D88: 112.6649686 | G88: 142.156573
B89: 1.1 | C89: 3.663 | D89: 102.4226987 | G89: 129.2332482
B90: 1.25 | C90: 4.1625 | D90: 90.13197484 | G90: 113.7252584
D92: Your Breakeven Prices
B93: Your | C93: Your | E93: To Cover | H93: To Cover
B94: Yield | C94: Yield | E94: Variable | H94: Total
B95: Percent | C95: Ton | E95: Costs | H95: Costs
B96: 0.75 | C96: =E10*YPER1 -> 0 | E96: =IF($E$10=0,0,(YVarExp-(YTotExp+YTotRet-J10))/($E$10*YPER1)) -> 0 | H96: =IF($E$10=0,0,(YTotExp-(YTotExp+YTotRet-J10))/($E$10*YPER1)) -> 0
B97: 0.9 | C97: =E10*YPER2 -> 0 | E97: =IF($E$10=0,0,(YVarExp-(YTotExp+YTotRet-J10))/($E$10*YPER2)) -> 0 | H97: =IF($E$10=0,0,(YTotExp-(YTotExp+YTotRet-J10))/($E$10*YPER2)) -> 0
B98: 1 | C98: =+E10 -> 0 | E98: =IF($E$10=0,0,(YVarExp-(YTotExp+YTotRet-J10))/($E$10*YPER3)) -> 0 | H98: =IF($E$10=0,0,(YTotExp-(YTotExp+YTotRet-J10))/($E$10*YPER3)) -> 0
B99: 1.1 | C99: =E10*YPER4 -> 0 | E99: =IF($E$10=0,0,(YVarExp-(YTotExp+YTotRet-J10))/($E$10*YPER4)) -> 0 | H99: =IF($E$10=0,0,(YTotExp-(YTotExp+YTotRet-J10))/($E$10*YPER4)) -> 0
B100: 1.25 | C100: =E10*YPER5 -> 0 | E100: =IF($E$10=0,0,(YVarExp-(YTotExp+YTotRet-J10))/($E$10*YPER5)) -> 0 | H100: =IF($E$10=0,0,(YTotExp-(YTotExp+YTotRet-J10))/($E$10*YPER5)) -> 0
A102: Developed by Jeffrey Wright, Assistant Professor & Extension Economist, Texas A&M AgriLife Extension, 325-657-7309
A104: Information presented is prepared solely as a general guide and not intended to recognize or predict the costs and returns from any one operation. Brand names are mentioned only as examples and imply no endorsement.

Sheet OatsDryland
A1: Projections for Planning Purposes Only -- Not to be Used without Updating
A2: 2025 Estimated Costs and Returns per Acre
A3: Dryland Forage Oats, Follow Small Grains
A4: Enter your name for this budget in the cell above.
A5: Enter Your Values in the cells highlighed in MAROON.
E6: Your Acres | R6: Your
C7: Crop Acres | D7: 100 | L7: Your | Q7: Enterprise | R7: Enterprise
E8: Your | H8: Your | I8: Cash | J8: Your | K8: Landlord | L8: Landlord | N8: Your | P8: Your | Q8: Total | R8: Total
A9: REVENUE | D9: Quantity | E9: Quantity | F9: Units | G9: $/Unit | H9: $/Unit | I9: Total | J9: Total | K9: Share | L9: Share | M9: Landlord | N9: Landlord | O9: Tenant | P9: Tenant | Q9: (100 acres) | R9: ="(" & E7 & " acres)" -> ( acres)
B10: Oat Hay | D10: 0.9 | F10: Ton | G10: 215 | I10: 193.5 | J10: =E10*H10 -> 0 | K10: 0 | M10: 0 | N10: =J10*L10 -> 0 | O10: 193.5 | P10: =+J10-N10 -> 0 | Q10: 19350 | R10: =+J10*E$7 -> 0
B11: Small Grains Pasture | D11: 15 | F11: Pound of Gain | G11: 0.75 | I11: 11.25 | J11: 0 | K11: 0 | M11: 0 | N11: 0 | O11: 11.25 | P11: =+J11-N11 -> 0 | Q11: 1125 | R11: 0
B12: Small Grains Pasture | D12: 15 | F12: Pound of Gain | G12: 0.75 | I12: 11.25 | J12: 0 | K12: 0 | M12: 0 | N12: 0 | O12: 11.25 | P12: 0 | Q12: 1125 | R12: 0
B13: Small Grains Pasture | D13: 15 | F13: Pound of Gain | G13: 0.75 | I13: 11.25 | J13: 0 | K13: 0 | M13: 0 | N13: 0 | O13: 11.25 | P13: 0 | Q13: 1125 | R13: 0
D14: 0 | G14: 0 | I14: 0 | J14: 0 | K14: 0 | M14: 0 | N14: 0 | O14: 0 | P14: 0 | Q14: 0 | R14: 0
D15: 0 | G15: 0 | I15: 0 | J15: 0 | K15: 0 | M15: 0 | N15: 0 | O15: 0 | P15: 0 | Q15: 0 | R15: 0
A16: Total Revenue | I16: 227.25 | J16: =SUM(J10:J15) -> 0 | M16: 0 | N16: =SUM(N10:N15) -> 0 | O16: 227.25 | P16: 0 | Q16: 22725 | R16: 0
Q17: Enterprise | R17: Enterprise
A18: VARIABLE COSTS | D18: Quantity | E18: Quantity | F18: Units | G18: $/Unit | H18: $/Unit | I18: Total | J18: Total | K18: Share | L18: Share | M18: Landlord | N18: Landlord | O18: Tenant | P18: Tenant | Q18: Total | R18: Total
A19: Production Costs
B20: Seed
C21: Oat Seed | D21: 60 | F21: Pound | G21: 0.33 | I21: 19.8 | J21: =E21*H21 -> 0 | K21: 0 | M21: 0 | N21: =J21*L21 -> 0 | O21: 19.8 | P21: =+J21-N21 -> 0 | Q21: 1980 | R21: =+J21*E$7 -> 0
B22: Fertilizer
C23: Nitrogen Dry-Urea | D23: 5 | F23: Pounds | G23: 0.62 | I23: 3.1 | J23: 0 | K23: 0 | M23: 0 | N23: 0 | O23: 3.1 | P23: 0 | Q23: 310 | R23: 0
C24: Phos (11-52-0 DRY MAT) | D24: 18 | F24: Pounds | G24: 1.29 | I24: 23.22 | J24: 0 | K24: 0 | M24: 0 | N24: 0 | O24: 23.22 | P24: 0 | Q24: 2322 | R24: 0
B25: Custom
C26: Soil Test-Dryland | D26: 1 | F26: Each | G26: 0.25 | I26: 0.25 | J26: 0 | K26: 0 | M26: 0 | N26: 0 | O26: 0.25 | P26: 0 | Q26: 25 | R26: 0
C27: Swath, Rake and Bale Small | D27: 24 | F27: Bale | G27: 2.53 | I27: 60.72 | J27: 0 | K27: 0 | M27: 0 | N27: 0 | O27: 60.72 | P27: 0 | Q27: 6072 | R27: 0
C28: Custom Haul Small Bale | D28: 24 | F28: Bale | G28: 1.55 | I28: 37.2 | J28: 0 | K28: 0 | M28: 0 | N28: 0 | O28: 37.2 | P28: 0 | Q28: 3720 | R28: 0
B29: Miscellaneous
C30: NAP Insurance | D30: 1 | F30: Acre | G30: 2 | I30: 2 | J30: 0 | K30: 0 | M30: 0 | N30: 0 | O30: 2 | P30: 0 | Q30: 200 | R30: 0
D31: 0 | G31: 0 | I31: 0 | J31: 0 | K31: 0 | M31: 0 | N31: 0 | O31: 0 | P31: 0 | Q31: 0 | R31: 0
D32: 0 | G32: 0 | I32: 0 | J32: 0 | K32: 0 | M32: 0 | N32: 0 | O32: 0 | P32: 0 | Q32: 0 | R32: 0
D33: 0 | G33: 0 | I33: 0 | J33: =E33*H33 -> 0 | K33: 0 | M33: 0 | N33: =J33*L33 -> 0 | O33: 0 | P33: =+J33-N33 -> 0 | Q33: 0 | R33: =+J33*E$7 -> 0
B34: Machinery Labor
C35: Tractors/Self-Propelled | D35: 0.17 | F35: Hour | G35: 17.21 | I35: 2.9257 | J35: =E35*H35 -> 0 | K35: 0 | M35: 0 | N35: =J35*L35 -> 0 | O35: 2.9257 | P35: =+J35-N35 -> 0 | Q35: 292.57 | R35: =+J35*E$7 -> 0
C36: Other Labor | D36: 0 | F36: Hour | G36: 17.21 | I36: 0 | J36: =E36*H36 -> 0 | K36: 0 | M36: 0 | N36: =J36*L36 -> 0 | O36: 0 | P36: =+J36-N36 -> 0 | Q36: 0 | R36: =+J36*E$7 -> 0
B38: Diesel Fuel
C39: Pickup/General Use Equipment | D39: 1 | F39: Acre | G39: 0 | I39: 0 | J39: =E39*H39 -> 0 | K39: 0 | M39: 0 | N39: =J39*L39 -> 0 | O39: 0 | P39: =+J39-N39 -> 0 | Q39: 0 | R39: =+J39*E$7 -> 0
C40: Tractors/Self-Propelled | D40: 1.5 | F40: Gallon | G40: 2.8 | I40: 4.2 | J40: =E40*H40 -> 0 | K40: 0 | M40: 0 | N40: =J40*L40 -> 0 | O40: 4.2 | P40: =+J40-N40 -> 0 | Q40: 420 | R40: =+J40*E$7 -> 0
B42: Gasoline
C43: Pickup/General Use Equipment | D43: 1 | F43: Acre | G43: 2.0688 | I43: 2.0688 | J43: =E43*H43 -> 0 | K43: 0 | M43: 0 | N43: =J43*L43 -> 0 | O43: 2.0688 | P43: =+J43-N43 -> 0 | Q43: 206.88 | R43: =+J43*E$7 -> 0
C44: Tractors/Self-Propelled | D44: 0 | F44: Gallon | G44: 2.7 | I44: 0 | J44: =E44*H44 -> 0 | K44: 0 | M44: 0 | N44: =J44*L44 -> 0 | O44: 0 | P44: =+J44-N44 -> 0 | Q44: 0 | R44: =+J44*E$7 -> 0
B46: Repairs & Maintenance
C47: Pickup/General Use Equipment | D47: 1 | F47: Acre | G47: 1.37 | I47: 1.37 | J47: =E47*H47 -> 0 | K47: 0 | M47: 0 | N47: =J47*L47 -> 0 | O47: 1.37 | P47: =+J47-N47 -> 0 | Q47: 137 | R47: =+J47*E$7 -> 0
C48: Irrigation Equipment | D48: 1 | F48: Acre | G48: 0 | I48: 0 | J48: 0 | K48: 0 | M48: 0 | N48: 0 | O48: 0 | P48: 0 | Q48: 0 | R48: 0
C49: Tractors/Self-Propelled | D49: 1 | F49: Acre | G49: 4.347752952 | I49: 4.347752952 | J49: 0 | K49: 0 | M49: 0 | N49: 0 | O49: 4.347752952 | P49: 0 | Q49: 434.7752952 | R49: 0
C50: Implements | D50: 1 | F50: Acre | G50: 4.563667746 | I50: 4.563667746 | J50: 0 | K50: 0 | M50: 0 | N50: 0 | O50: 4.563667746 | P50: 0 | Q50: 456.3667746 | R50: 0
I51: 0 | J51: 0 | K51: 0 | M51: 0 | N51: 0 | O51: 0 | P51: 0 | Q51: 0 | R51: 0
I52: 0 | J52: 0 | K52: 0 | M52: 0 | N52: 0 | O52: 0 | P52: 0 | Q52: 0 | R52: 0
B53: Interest on Credit Line | G53: 0.08 | I53: 2.730214863 | J53: =+SUM(J20:J52)/2*H53 -> 0 | M53: 0 | N53: =+SUM(N20:N52)/2*L53 -> 0 | O53: 2.730214863 | P53: =+SUM(P20:P52)/2*L53 -> 0 | Q53: 273.0214863 | R53: =+J53*E$7 -> 0
A54: Total Variable Costs | I54: 168.4961356 | J54: =SUM(J21:J53) -> 0 | M54: 0 | N54: =SUM(N21:N53) -> 0 | O54: 168.4961356 | P54: =SUM(P21:P53) -> 0 | Q54: 16849.61356 | R54: =SUM(R21:R53) -> 0
A55: Planned Returns Above Variable Costs: | I55: 58.75386444 | J55: =+J16-J54 -> 0 | M55: 0 | N55: =+N16-N54 -> 0 | O55: 58.75386444 | P55: =+P16-P54 -> 0 | Q55: 5875.386444 | R55: =+R16-R54 -> 0
B56: Breakeven Price to Cover Variable Costs | G56: 149.7179284 | H56: =IF(E10=0,"n/a",(YVarExp-(YTotExp+YTotRet-J10))/E10) -> n/a | I56: Ton
Q57: Enterprise | R57: Enterprise
A58: FIXED COSTS | D58: Quantity | E58: Quantity | F58: Units | G58: $/Unit | H58: $/Unit | I58: Total | J58: Total | K58: Share | L58: Share | M58: Landlord | N58: Landlord | O58: Tenant | P58: Tenant | Q58: Total | R58: Total
B59: Machinery Depreciation
C60: Pickup/General Use Equipment | D60: 1 | F60: Acre | G60: 2.988 | I60: 2.988 | J60: =E60*H60 -> 0 | K60: 0 | M60: 0 | N60: =J60*L60 -> 0 | O60: 2.988 | P60: =+J60-N60 -> 0 | Q60: 298.8 | R60: =+J60*E$7 -> 0
C61: Tractors/Self-Propelled | D61: 1 | F61: Acre | G61: 4.49267805 | I61: 4.49267805 | J61: 0 | K61: 0 | M61: 0 | N61: =J61*L61 -> 0 | O61: 4.49267805 | P61: 0 | Q61: 449.267805 | R61: 0
C62: Implements | D62: 1 | F62: Acre | G62: 5.957218284 | I62: 5.957218284 | J62: 0 | K62: 0 | M62: 0 | N62: =J62*L62 -> 0 | O62: 5.957218284 | P62: 0 | Q62: 595.7218284 | R62: 0
B63: Equipment Investment
C64: Pickup/General Use Equipment | D64: 12.98 | F64: Dollars | G64: 0.08 | I64: 1.0384 | J64: =E64*H64 -> 0 | K64: 0 | M64: 0 | N64: =J64*L64 -> 0 | O64: 1.0384 | P64: =+J64-N64 -> 0 | Q64: 103.84 | R64: =+J64*E$7 -> 0
C65: Tractors/Self-Propelled | D65: 34.99941126 | F65: Dollars | G65: 0.08 | I65: 2.799952901 | J65: 0 | K65: 0 | M65: 0 | N65: =J65*L65 -> 0 | O65: 2.799952901 | P65: 0 | Q65: 279.9952901 | R65: 0
C66: Implements | D66: 25.48365599 | F66: Dollars | G66: 0.08 | I66: 2.038692479 | J66: 0 | K66: 0 | M66: 0 | N66: =J66*L66 -> 0 | O66: 2.038692479 | P66: 0 | Q66: 203.8692479 | R66: 0
B67: Salaried Labor | D67: 1 | F67: Acre | G67: 0 | I67: 0 | J67: 0 | K67: 0 | M67: 0 | N67: =J67*L67 -> 0 | O67: 0 | P67: =+J67-N67 -> 0 | Q67: 0 | R67: =+J67*E$7 -> 0
B68: Management Fee, Owner/Operator Labor | D68: 1 | F68: Acre | G68: 0 | I68: 0 | J68: 0 | K68: 0 | M68: 0 | N68: 0 | O68: 0 | P68: 0 | Q68: 0 | R68: 0
B69: Allocated Establishment Cost | D69: 1 | F69: Acre | G69: 0 | I69: 0 | J69: 0 | K69: 0 | M69: 0 | N69: 0 | O69: 0 | P69: 0 | Q69: 0 | R69: 0
B70: Rent-Dryland Crop | D70: 1 | F70: Acre | G70: 35 | I70: 35 | J70: 0 | K70: 0 | M70: 0 | N70: 0 | O70: 35 | P70: 0 | Q70: 3500 | R70: 0
B71: Property Taxes | D71: 1 | F71: Acre | G71: 0 | I71: 0 | J71: 0 | K71: 0 | M71: 0 | N71: 0 | O71: 0 | P71: 0 | Q71: 0 | R71: 0
B72: Whole Farm Insurance | D72: 1 | F72: Acre | G72: 0 | I72: 0 | J72: 0 | K72: 0 | M72: 0 | N72: 0 | O72: 0 | P72: 0 | Q72: 0 | R72: 0
D73: 1 | G73: 0 | I73: 0 | J73: 0 | K73: 0 | M73: 0 | N73: 0 | O73: 0 | P73: 0 | Q73: 0 | R73: 0
D74: 1 | G74: 0 | I74: 0 | J74: =E74*H74 -> 0 | K74: 0 | M74: 0 | N74: 0 | O74: 0 | P74: 0 | Q74: 0 | R74: 0
A75: Total Fixed Costs | I75: 54.31494172 | J75: =+SUM(J60:J74) -> 0 | M75: 0 | N75: =+SUM(N60:N74) -> 0 | O75: 54.31494172 | P75: =+SUM(P60:P74) -> 0 | Q75: 5431.494172 | R75: =+SUM(R60:R74) -> 0
A76: Total Specified Costs | I76: 222.8110773 | J76: =+J54+J75 -> 0 | M76: 0 | N76: =+N54+N75 -> 0 | O76: 222.8110773 | P76: =+P54+P75 -> 0 | Q76: 22281.10773 | R76: =+R54+R75 -> 0
A78: Returns Above Specified Costs | I78: 4.438922725 | J78: =+J16-J76 -> 0 | M78: 0 | N78: =+N16-N76 -> 0 | O78: 4.438922725 | P78: =+P16-P76 -> 0 | Q78: 443.8922725 | R78: =+R16-R76 -> 0
A80: Breakeven Price to Cover Total Costs | G80: 210.0678636 | H80: =IF(E10=0,"n/a",(YTotExp-(YTotExp+YTotRet-J10))/E10) -> n/a | I80: Ton
D82: Example Breakeven Prices
B83: Example | C83: Example | D83: To Cover | G83: To Cover
B84: Yield | C84: Yield | D84: Variable | G84: Total
B85: Percent | C85: Ton | D85: Costs | G85: Costs
B86: 0.75 | C86: 0.675 | D86: 199.6239045 | G86: 280.0904849
B87: 0.9 | C87: 0.81 | D87: 166.3532538 | G87: 233.4087374
B88: 1 | C88: 0.9 | D88: 149.7179284 | G88: 210.0678636
B89: 1.1 | C89: 0.99 | D89: 136.1072076 | G89: 190.9707851
B90: 1.25 | C90: 1.125 | D90: 119.7743427 | G90: 168.0542909
D92: Your Breakeven Prices
B93: Your | C93: Your | E93: To Cover | H93: To Cover
B94: Yield | C94: Yield | E94: Variable | H94: Total
B95: Percent | C95: Ton | E95: Costs | H95: Costs
B96: 0.75 | C96: =E10*YPER1 -> 0 | E96: =IF($E$10=0,0,(YVarExp-(YTotExp+YTotRet-J10))/($E$10*YPER1)) -> 0 | H96: =IF($E$10=0,0,(YTotExp-(YTotExp+YTotRet-J10))/($E$10*YPER1)) -> 0
B97: 0.9 | C97: =E10*YPER2 -> 0 | E97: =IF($E$10=0,0,(YVarExp-(YTotExp+YTotRet-J10))/($E$10*YPER2)) -> 0 | H97: =IF($E$10=0,0,(YTotExp-(YTotExp+YTotRet-J10))/($E$10*YPER2)) -> 0
B98: 1 | C98: =+E10 -> 0 | E98: =IF($E$10=0,0,(YVarExp-(YTotExp+YTotRet-J10))/($E$10*YPER3)) -> 0 | H98: =IF($E$10=0,0,(YTotExp-(YTotExp+YTotRet-J10))/($E$10*YPER3)) -> 0
B99: 1.1 | C99: =E10*YPER4 -> 0 | E99: =IF($E$10=0,0,(YVarExp-(YTotExp+YTotRet-J10))/($E$10*YPER4)) -> 0 | H99: =IF($E$10=0,0,(YTotExp-(YTotExp+YTotRet-J10))/($E$10*YPER4)) -> 0
B100: 1.25 | C100: =E10*YPER5 -> 0 | E100: =IF($E$10=0,0,(YVarExp-(YTotExp+YTotRet-J10))/($E$10*YPER5)) -> 0 | H100: =IF($E$10=0,0,(YTotExp-(YTotExp+YTotRet-J10))/($E$10*YPER5)) -> 0
A102: Developed by Jeffrey Wright, Assistant Professor & Extension Economist, Texas A&M AgriLife Extension, 325-657-7309
A104: Information presented is prepared solely as a general guide and not intended to recognize or predict the costs and returns from any one operation. Brand names are mentioned only as examples and imply no endorsement.

Sheet WheatDryland
A1: Projections for Planning Purposes Only -- Not to be Used without Updating
A2: 2025 Estimated Costs and Returns per Acre
A3: No-Till Wheat, Dryland, Follow Cotton
A4: Enter your name for this budget in the cell above.
A5: Enter Your Values in the cells highlighed in MAROON.
E6: Your Acres | R6: Your
C7: Crop Acres | D7: 1000 | L7: Your | Q7: Enterprise | R7: Enterprise
E8: Your | H8: Your | I8: Cash | J8: Your | K8: Landlord | L8: Landlord | N8: Your | P8: Your | Q8: Total | R8: Total
A9: REVENUE | D9: Quantity | E9: Quantity | F9: Units | G9: $/Unit | H9: $/Unit | I9: Total | J9: Total | K9: Share | L9: Share | M9: Landlord | N9: Landlord | O9: Tenant | P9: Tenant | Q9: (1000 acres) | R9: ="(" & E7 & " acres)" -> ( acres)
B10: Winter Wheat | D10: 30 | F10: Bushel | G10: 5.5 | I10: 165 | J10: =E10*H10 -> 0 | K10: 0 | M10: 0 | N10: =J10*L10 -> 0 | O10: 165 | P10: =+J10-N10 -> 0 | Q10: 165000 | R10: =+J10*E$7 -> 0
D11: 0 | G11: 0 | I11: 0 | J11: 0 | K11: 0 | M11: 0 | N11: 0 | O11: 0 | P11: =+J11-N11 -> 0 | Q11: 0 | R11: 0
D12: 0 | G12: 0 | I12: 0 | J12: 0 | K12: 0 | M12: 0 | N12: 0 | O12: 0 | P12: 0 | Q12: 0 | R12: 0
A13: Total Revenue | I13: 165 | J13: =SUM(J10:J12) -> 0 | M13: 0 | N13: =SUM(N10:N12) -> 0 | O13: 165 | P13: =SUM(P10:P12) -> 0 | Q13: 165000 | R13: =SUM(R10:R12) -> 0
Q14: Enterprise | R14: Enterprise
A15: VARIABLE COSTS | D15: Quantity | E15: Quantity | F15: Units | G15: $/Unit | H15: $/Unit | I15: Total | J15: Total | K15: Share | L15: Share | M15: Landlord | N15: Landlord | O15: Tenant | P15: Tenant | Q15: Total | R15: Total
A16: Production Costs
B17: Fertilizer
C18: Nitrogen Dry-Urea | D18: 3.8 | F18: Pounds | G18: 0.62 | I18: 2.356 | J18: =E18*H18 -> 0 | K18: 0 | M18: 0 | N18: =J18*L18 -> 0 | O18: 2.356 | P18: =+J18-N18 -> 0 | Q18: 2356 | R18: =+J18*E$7 -> 0
C19: Phos (11-52-0 DRY MAT) | D19: 18.2 | F19: Pounds | G19: 1.29 | I19: 23.478 | J19: 0 | K19: 0 | M19: 0 | N19: 0 | O19: 23.478 | P19: 0 | Q19: 23478 | R19: 0
C20: Nitrogen N32-liq | D20: 35.2 | F20: Pounds | G20: 2.69 | I20: 94.688 | J20: 0 | K20: 0 | M20: 0 | N20: 0 | O20: 94.688 | P20: 0 | Q20: 94688 | R20: 0
B21: Custom
C22: Soil Test-Dryland | D22: 1 | F22: Each | G22: 0.25 | I22: 0.25 | J22: 0 | K22: 0 | M22: 0 | N22: 0 | O22: 0.25 | P22: 0 | Q22: 250 | R22: 0
C23: Custom Harvest small grains | D23: 1 | F23: Acre | G23: 23 | I23: 23 | J23: 0 | K23: 0 | M23: 0 | N23: 0 | O23: 23 | P23: 0 | Q23: 23000 | R23: 0
C24: Custom Haul small grains | D24: 30 | F24: Bushels | G24: 0.35 | I24: 10.5 | J24: 0 | K24: 0 | M24: 0 | N24: 0 | O24: 10.5 | P24: 0 | Q24: 10500 | R24: 0
C25: Custom Harvest Overage small grains | D25: 6 | F25: Bushels | G25: 0.23 | I25: 1.38 | J25: 0 | K25: 0 | M25: 0 | N25: 0 | O25: 1.38 | P25: 0 | Q25: 1380 | R25: 0
B26: Seed
C27: Wheat Seed | D27: 55 | F27: Pounds | G27: 0.2667 | I27: 14.6685 | J27: 0 | K27: 0 | M27: 0 | N27: 0 | O27: 14.6685 | P27: 0 | Q27: 14668.5 | R27: 0
B28: Herbicide
C29: MCPA | D29: 1 | F29: pint | G29: 3.1 | I29: 3.1 | J29: 0 | K29: 0 | M29: 0 | N29: 0 | O29: 3.1 | P29: 0 | Q29: 3100 | R29: 0
C30: MSM (Ally) | D30: 0.1 | F30: Ounce | G30: 4.5 | I30: 0.45 | J30: 0 | K30: 0 | M30: 0 | N30: 0 | O30: 0.45 | P30: 0 | Q30: 450 | R30: 0
B31: Miscellaneous
C32: Wht RP 70%, Ent, | D32: 1 | F32: Acre | G32: 3.09 | I32: 3.09 | J32: 0 | K32: 0 | M32: 0 | N32: 0 | O32: 3.09 | P32: 0 | Q32: 3090 | R32: 0
B33: Fungicides
C34: Wheat Fungicide | D34: 8 | F34: Ounce | G34: 0.5 | I34: 4 | J34: 0 | K34: 0 | M34: 0 | N34: 0 | O34: 4 | P34: 0 | Q34: 4000 | R34: 0
D35: 0 | G35: 0 | I35: 0 | J35: 0 | K35: 0 | M35: 0 | N35: 0 | O35: 0 | P35: 0 | Q35: 0 | R35: 0
D36: 0 | G36: 0 | I36: 0 | J36: 0 | K36: 0 | M36: 0 | N36: 0 | O36: 0 | P36: 0 | Q36: 0 | R36: 0
D37: 0 | G37: 0 | I37: 0 | J37: =E37*H37 -> 0 | K37: 0 | M37: 0 | N37: =J37*L37 -> 0 | O37: 0 | P37: =+J37-N37 -> 0 | Q37: 0 | R37: =+J37*E$7 -> 0
B38: Machinery Labor
C39: Tractors/Self-Propelled | D39: 0.15 | F39: Hour | G39: 17.21 | I39: 2.5815 | J39: =E39*H39 -> 0 | K39: 0 | M39: 0 | N39: =J39*L39 -> 0 | O39: 2.5815 | P39: =+J39-N39 -> 0 | Q39: 2581.5 | R39: =+J39*E$7 -> 0
C40: Other Labor | D40: 0.03 | F40: Hour | G40: 17.21 | I40: 0.5163 | J40: =E40*H40 -> 0 | K40: 0 | M40: 0 | N40: =J40*L40 -> 0 | O40: 0.5163 | P40: =+J40-N40 -> 0 | Q40: 516.3 | R40: =+J40*E$7 -> 0
B42: Diesel Fuel
C43: Pickup/General Use Equipment | D43: 1 | F43: Acre | G43: 0 | I43: 0 | J43: =E43*H43 -> 0 | K43: 0 | M43: 0 | N43: =J43*L43 -> 0 | O43: 0 | P43: =+J43-N43 -> 0 | Q43: 0 | R43: =+J43*E$7 -> 0
C44: Tractors/Self-Propelled | D44: 1.62 | F44: Gallon | G44: 2.8 | I44: 4.536 | J44: =E44*H44 -> 0 | K44: 0 | M44: 0 | N44: =J44*L44 -> 0 | O44: 4.536 | P44: =+J44-N44 -> 0 | Q44: 4536 | R44: =+J44*E$7 -> 0
B46: Gasoline
C47: Pickup/General Use Equipment | D47: 1 | F47: Acre | G47: 1.91928 | I47: 1.91928 | J47: =E47*H47 -> 0 | K47: 0 | M47: 0 | N47: =J47*L47 -> 0 | O47: 1.91928 | P47: =+J47-N47 -> 0 | Q47: 1919.28 | R47: =+J47*E$7 -> 0
C48: Tractors/Self-Propelled | D48: 0 | F48: Gallon | G48: 2.7 | I48: 0 | J48: =E48*H48 -> 0 | K48: 0 | M48: 0 | N48: =J48*L48 -> 0 | O48: 0 | P48: =+J48-N48 -> 0 | Q48: 0 | R48: =+J48*E$7 -> 0
B50: Repairs & Maintenance
C51: Pickup/General Use Equipment | D51: 1 | F51: Acre | G51: 0.803 | I51: 0.803 | J51: =E51*H51 -> 0 | K51: 0 | M51: 0 | N51: =J51*L51 -> 0 | O51: 0.803 | P51: =+J51-N51 -> 0 | Q51: 803 | R51: =+J51*E$7 -> 0
C52: Irrigation Equipment | D52: 1 | F52: Acre | G52: 0 | I52: 0 | J52: 0 | K52: 0 | M52: 0 | N52: 0 | O52: 0 | P52: 0 | Q52: 0 | R52: 0
C53: Tractors/Self-Propelled | D53: 1 | F53: Acre | G53: 4.398524536 | I53: 4.398524536 | J53: 0 | K53: 0 | M53: 0 | N53: 0 | O53: 4.398524536 | P53: 0 | Q53: 4398.524536 | R53: 0
C54: Implements | D54: 1 | F54: Acre | G54: 3.243961855 | I54: 3.243961855 | J54: 0 | K54: 0 | M54: 0 | N54: 0 | O54: 3.243961855 | P54: 0 | Q54: 3243.961855 | R54: 0
I55: 0 | J55: 0 | K55: 0 | M55: 0 | N55: 0 | O55: 0 | P55: 0 | Q55: 0 | R55: 0
I56: 0 | J56: 0 | K56: 0 | M56: 0 | N56: 0 | O56: 0 | P56: 0 | Q56: 0 | R56: 0
B57: Interest on Credit Line | G57: 0.08 | I57: 5.278791239 | J57: =+SUM(J17:J56)/2*H57 -> 0 | M57: 0 | N57: =+SUM(N17:N56)/2*L57 -> 0 | O57: 5.278791239 | P57: =+SUM(P17:P56)/2*L57 -> 0 | Q57: 5278.791239 | R57: =+J57*E$7 -> 0
A58: Total Variable Costs | I58: 204.2378576 | J58: =SUM(J18:J57) -> 0 | M58: 0 | N58: =SUM(N18:N57) -> 0 | O58: 204.2378576 | P58: =SUM(P18:P57) -> 0 | Q58: 204237.8576 | R58: =SUM(R18:R57) -> 0
A59: Planned Returns Above Variable Costs: | I59: -39.23785763 | J59: =+J13-J58 -> 0 | M59: 0 | N59: =+N13-N58 -> 0 | O59: -39.23785763 | P59: =+P13-P58 -> 0 | Q59: -39237.85763 | R59: =+R13-R58 -> 0
B60: Breakeven Price to Cover Variable Costs | G60: 6.807928588 | H60: =IF(E10=0,"n/a",(YVarExp-(YTotExp+YTotRet-J10))/E10) -> n/a | I60: Bushel
Q61: Enterprise | R61: Enterprise
A62: FIXED COSTS | D62: Quantity | E62: Quantity | F62: Units | G62: $/Unit | H62: $/Unit | I62: Total | J62: Total | K62: Share | L62: Share | M62: Landlord | N62: Landlord | O62: Tenant | P62: Tenant | Q62: Total | R62: Total
B63: Machinery Depreciation
C64: Pickup/General Use Equipment | D64: 1 | F64: Acre | G64: 1.7028 | I64: 1.7028 | J64: =E64*H64 -> 0 | K64: 0 | M64: 0 | N64: =J64*L64 -> 0 | O64: 1.7028 | P64: =+J64-N64 -> 0 | Q64: 1702.8 | R64: =+J64*E$7 -> 0
C65: Tractors/Self-Propelled | D65: 1 | F65: Acre | G65: 5.924783885 | I65: 5.924783885 | J65: 0 | K65: 0 | M65: 0 | N65: =J65*L65 -> 0 | O65: 5.924783885 | P65: 0 | Q65: 5924.783885 | R65: 0
C66: Implements | D66: 1 | F66: Acre | G66: 4.933492609 | I66: 4.933492609 | J66: 0 | K66: 0 | M66: 0 | N66: =J66*L66 -> 0 | O66: 4.933492609 | P66: 0 | Q66: 4933.492609 | R66: 0
B67: Equipment Investment
C68: Pickup/General Use Equipment | D68: 9.438 | F68: Dollars | G68: 0.08 | I68: 0.75504 | J68: =E68*H68 -> 0 | K68: 0 | M68: 0 | N68: =J68*L68 -> 0 | O68: 0.75504 | P68: =+J68-N68 -> 0 | Q68: 755.04 | R68: =+J68*E$7 -> 0
C69: Tractors/Self-Propelled | D69: 45.51494847 | F69: Dollars | G69: 0.08 | I69: 3.641195877 | J69: 0 | K69: 0 | M69: 0 | N69: =J69*L69 -> 0 | O69: 3.641195877 | P69: 0 | Q69: 3641.195877 | R69: 0
C70: Implements | D70: 21.10438505 | F70: Dollars | G70: 0.08 | I70: 1.688350804 | J70: 0 | K70: 0 | M70: 0 | N70: =J70*L70 -> 0 | O70: 1.688350804 | P70: 0 | Q70: 1688.350804 | R70: 0
B71: Salaried Labor | D71: 1 | F71: Acre | G71: 0 | I71: 0 | J71: 0 | K71: 0 | M71: 0 | N71: =J71*L71 -> 0 | O71: 0 | P71: =+J71-N71 -> 0 | Q71: 0 | R71: =+J71*E$7 -> 0
B72: Management Fee, Owner/Operator Labor | D72: 1 | F72: Acre | G72: 0 | I72: 0 | J72: 0 | K72: 0 | M72: 0 | N72: 0 | O72: 0 | P72: 0 | Q72: 0 | R72: 0
B73: Allocated Establishment Cost | D73: 1 | F73: Acre | G73: 0 | I73: 0 | J73: 0 | K73: 0 | M73: 0 | N73: 0 | O73: 0 | P73: 0 | Q73: 0 | R73: 0
B74: Rent-Dryland Crop | D74: 1 | F74: Acre | G74: 35 | I74: 35 | J74: 0 | K74: 0 | M74: 0 | N74: 0 | O74: 35 | P74: 0 | Q74: 35000 | R74: 0
B75: Property Taxes | D75: 1 | F75: Acre | G75: 0 | I75: 0 | J75: 0 | K75: 0 | M75: 0 | N75: 0 | O75: 0 | P75: 0 | Q75: 0 | R75: 0
B76: Whole Farm Insurance | D76: 1 | F76: Acre | G76: 0 | I76: 0 | J76: 0 | K76: 0 | M76: 0 | N76: 0 | O76: 0 | P76: 0 | Q76: 0 | R76: 0
D77: 1 | G77: 0 | I77: 0 | J77: 0 | K77: 0 | M77: 0 | N77: 0 | O77: 0 | P77: 0 | Q77: 0 | R77: 0
D78: 1 | G78: 0 | I78: 0 | J78: =E78*H78 -> 0 | K78: 0 | M78: 0 | N78: 0 | O78: 0 | P78: 0 | Q78: 0 | R78: 0
A79: Total Fixed Costs | I79: 53.64566317 | J79: =+SUM(J64:J78) -> 0 | M79: 0 | N79: =+SUM(N64:N78) -> 0 | O79: 53.64566317 | P79: =+SUM(P64:P78) -> 0 | Q79: 53645.66317 | R79: =+SUM(R64:R78) -> 0
A80: Total Specified Costs | I80: 257.8835208 | J80: =+J58+J79 -> 0 | M80: 0 | N80: =+N58+N79 -> 0 | O80: 257.8835208 | P80: =+P58+P79 -> 0 | Q80: 257883.5208 | R80: =+R58+R79 -> 0
A82: Returns Above Specified Costs | I82: -92.88352081 | J82: =+J13-J80 -> 0 | M82: 0 | N82: =+N13-N80 -> 0 | O82: -92.88352081 | P82: =+P13-P80 -> 0 | Q82: -92883.52081 | R82: =+R13-R80 -> 0
A84: Breakeven Price to Cover Total Costs | G84: 8.59611736 | H84: =IF(E10=0,"n/a",(YTotExp-(YTotExp+YTotRet-J10))/E10) -> n/a | I84: Bushel
D86: Example Breakeven Prices
B87: Example | C87: Example | D87: To Cover | G87: To Cover
B88: Yield | C88: Yield | D88: Variable | G88: Total
B89: Percent | C89: Bushel | D89: Costs | G89: Costs
B90: 0.75 | C90: 22.5 | D90: 9.077238117 | G90: 11.46148981
B91: 0.9 | C91: 27 | D91: 7.564365097 | G91: 9.551241511
B92: 1 | C92: 30 | D92: 6.807928588 | G92: 8.59611736
B93: 1.1 | C93: 33 | D93: 6.189025989 | G93: 7.814652146
B94: 1.25 | C94: 37.5 | D94: 5.44634287 | G94: 6.876893888
D96: Your Breakeven Prices
B97: Your | C97: Your | E97: To Cover | H97: To Cover
B98: Yield | C98: Yield | E98: Variable | H98: Total
B99: Percent | C99: Bushel | E99: Costs | H99: Costs
B100: 0.75 | C100: =E10*YPER1 -> 0 | E100: =IF($E$10=0,0,(YVarExp-(YTotExp+YTotRet-J10))/($E$10*YPER1)) -> 0 | H100: =IF($E$10=0,0,(YTotExp-(YTotExp+YTotRet-J10))/($E$10*YPER1)) -> 0
B101: 0.9 | C101: =E10*YPER2 -> 0 | E101: =IF($E$10=0,0,(YVarExp-(YTotExp+YTotRet-J10))/($E$10*YPER2)) -> 0 | H101: =IF($E$10=0,0,(YTotExp-(YTotExp+YTotRet-J10))/($E$10*YPER2)) -> 0
B102: 1 | C102: =+E10 -> 0 | E102: =IF($E$10=0,0,(YVarExp-(YTotExp+YTotRet-J10))/($E$10*YPER3)) -> 0 | H102: =IF($E$10=0,0,(YTotExp-(YTotExp+YTotRet-J10))/($E$10*YPER3)) -> 0
B103: 1.1 | C103: =E10*YPER4 -> 0 | E103: =IF($E$10=0,0,(YVarExp-(YTotExp+YTotRet-J10))/($E$10*YPER4)) -> 0 | H103: =IF($E$10=0,0,(YTotExp-(YTotExp+YTotRet-J10))/($E$10*YPER4)) -> 0
B104: 1.25 | C104: =E10*YPER5 -> 0 | E104: =IF($E$10=0,0,(YVarExp-(YTotExp+YTotRet-J10))/($E$10*YPER5)) -> 0 | H104: =IF($E$10=0,0,(YTotExp-(YTotExp+YTotRet-J10))/($E$10*YPER5)) -> 0
A106: Developed by Jeffrey Wright, Assistant Professor & Extension Economist, Texas A&M AgriLife Extension, 325-657-7309
A108: Information presented is prepared solely as a general guide and not intended to recognize or predict the costs and returns from any one operation. Brand names are mentioned only as examples and imply no endorsement.

Sheet DrylandCanola
A1: Projections for Planning Purposes Only -- Not to be Used without Updating
A2: 2025 Estimated Costs and Returns per Acre
A3: Dryland Canola (Do Not Publish)
A4: Enter your name for this budget in the cell above.
A5: Enter Your Values in the cells highlighed in MAROON.
E6: Your Acres | R6: Your
C7: Crop Acres | D7: 320 | L7: Your | Q7: Enterprise | R7: Enterprise
E8: Your | H8: Your | I8: Cash | J8: Your | K8: Landlord | L8: Landlord | N8: Your | P8: Your | Q8: Total | R8: Total
A9: REVENUE | D9: Quantity | E9: Quantity | F9: Units | G9: $/Unit | H9: $/Unit | I9: Total | J9: Total | K9: Share | L9: Share | M9: Landlord | N9: Landlord | O9: Tenant | P9: Tenant | Q9: (320 acres) | R9: ="(" & E7 & " acres)" -> ( acres)
B10: Canola | D10: 1250 | F10: Ton | G10: 270 | I10: 337500 | J10: =E10*H10 -> 0 | K10: 0 | M10: 0 | N10: =J10*L10 -> 0 | O10: 337500 | P10: =+J10-N10 -> 0 | Q10: 108000000 | R10: =+J10*E$7 -> 0
D11: 0 | G11: 0 | I11: 0 | J11: 0 | K11: 0 | M11: 0 | N11: 0 | O11: 0 | P11: =+J11-N11 -> 0 | Q11: 0 | R11: 0
D12: 0 | G12: 0 | I12: 0 | J12: 0 | K12: 0 | M12: 0 | N12: 0 | O12: 0 | P12: 0 | Q12: 0 | R12: 0
A13: Total Revenue | I13: 337500 | J13: =SUM(J10:J12) -> 0 | M13: 0 | N13: =SUM(N10:N12) -> 0 | O13: 337500 | P13: =SUM(P10:P12) -> 0 | Q13: 108000000 | R13: =SUM(R10:R12) -> 0
Q14: Enterprise | R14: Enterprise
A15: VARIABLE COSTS | D15: Quantity | E15: Quantity | F15: Units | G15: $/Unit | H15: $/Unit | I15: Total | J15: Total | K15: Share | L15: Share | M15: Landlord | N15: Landlord | O15: Tenant | P15: Tenant | Q15: Total | R15: Total
A16: Production Costs
B17: Fertilizer
C18: Sulphur | D18: 20 | F18: Pounds | G18: 0.7917 | I18: 15.834 | J18: =E18*H18 -> 0 | K18: 0 | M18: 0 | N18: =J18*L18 -> 0 | O18: 15.834 | P18: =+J18-N18 -> 0 | Q18: 5066.88 | R18: =+J18*E$7 -> 0
C19: Nitrogen Dry-Urea | D19: 3.8 | F19: Pounds | G19: 0.62 | I19: 2.356 | J19: 0 | K19: 0 | M19: 0 | N19: 0 | O19: 2.356 | P19: 0 | Q19: 753.92 | R19: 0
C20: Phos (11-52-0 DRY MAT) | D20: 18.2 | F20: Pounds | G20: 1.29 | I20: 23.478 | J20: 0 | K20: 0 | M20: 0 | N20: 0 | O20: 23.478 | P20: 0 | Q20: 7512.96 | R20: 0
C21: Nitrogen N32-liq | D21: 35.2 | F21: Pounds | G21: 2.69 | I21: 94.688 | J21: 0 | K21: 0 | M21: 0 | N21: 0 | O21: 94.688 | P21: 0 | Q21: 30300.16 | R21: 0
B22: Herbicide
C23: Glyphosate | D23: 32 | F23: Ounce | G23: 0.1328125 | I23: 4.25 | J23: 0 | K23: 0 | M23: 0 | N23: 0 | O23: 4.25 | P23: 0 | Q23: 1360 | R23: 0
C24: Trifluralin | D24: 1.5 | F24: Pint | G24: 2.75 | I24: 4.125 | J24: 0 | K24: 0 | M24: 0 | N24: 0 | O24: 4.125 | P24: 0 | Q24: 1320 | R24: 0
B25: Seed
C26: Canola | D26: 5 | F26: pounds | G26: 0 | I26: 0 | J26: 0 | K26: 0 | M26: 0 | N26: 0 | O26: 0 | P26: 0 | Q26: 0 | R26: 0
B27: Custom
C28: Soil Test-Dryland | D28: 1 | F28: Each | G28: 0.25 | I28: 0.25 | J28: 0 | K28: 0 | M28: 0 | N28: 0 | O28: 0.25 | P28: 0 | Q28: 80 | R28: 0
C29: Custom Harvest small grains | D29: 1 | F29: Acre | G29: 23 | I29: 23 | J29: 0 | K29: 0 | M29: 0 | N29: 0 | O29: 23 | P29: 0 | Q29: 7360 | R29: 0
C30: Custom Haul small grains | D30: 25 | F30: Bushels | G30: 0.35 | I30: 8.75 | J30: 0 | K30: 0 | M30: 0 | N30: 0 | O30: 8.75 | P30: 0 | Q30: 2800 | R30: 0
B31: Miscellaneous
C32: Canola/Sunflower Crop Ins | D32: 1 | F32: pounds | G32: 0 | I32: 0 | J32: 0 | K32: 0 | M32: 0 | N32: 0 | O32: 0 | P32: 0 | Q32: 0 | R32: 0
C33: Duct Tape | D33: 0.031253 | F33: Roll | G33: 4 | I33: 0.125012 | J33: 0 | K33: 0 | M33: 0 | N33: 0 | O33: 0.125012 | P33: 0 | Q33: 40.00384 | R33: 0
B34: Insecticide
C35: Mustang Max(Warrior Z) | D35: 2.75 | F35: Ounce | G35: 1.25 | I35: 3.4375 | J35: 0 | K35: 0 | M35: 0 | N35: 0 | O35: 3.4375 | P35: 0 | Q35: 1100 | R35: 0
D36: 0 | G36: 0 | I36: 0 | J36: 0 | K36: 0 | M36: 0 | N36: 0 | O36: 0 | P36: 0 | Q36: 0 | R36: 0
D37: 0 | G37: 0 | I37: 0 | J37: 0 | K37: 0 | M37: 0 | N37: 0 | O37: 0 | P37: 0 | Q37: 0 | R37: 0
D38: 0 | G38: 0 | I38: 0 | J38: =E38*H38 -> 0 | K38: 0 | M38: 0 | N38: =J38*L38 -> 0 | O38: 0 | P38: =+J38-N38 -> 0 | Q38: 0 | R38: =+J38*E$7 -> 0
B39: Machinery Labor
C40: Tractors/Self-Propelled | D40: 0.29 | F40: Hour | G40: 17.21 | I40: 4.9909 | J40: =E40*H40 -> 0 | K40: 0 | M40: 0 | N40: =J40*L40 -> 0 | O40: 4.9909 | P40: =+J40-N40 -> 0 | Q40: 1597.088 | R40: =+J40*E$7 -> 0
C41: Other Labor | D41: 0 | F41: Hour | G41: 17.21 | I41: 0 | J41: =E41*H41 -> 0 | K41: 0 | M41: 0 | N41: =J41*L41 -> 0 | O41: 0 | P41: =+J41-N41 -> 0 | Q41: 0 | R41: =+J41*E$7 -> 0
B43: Diesel Fuel
C44: Pickup/General Use Equipment | D44: 1 | F44: Acre | G44: 0 | I44: 0 | J44: =E44*H44 -> 0 | K44: 0 | M44: 0 | N44: =J44*L44 -> 0 | O44: 0 | P44: =+J44-N44 -> 0 | Q44: 0 | R44: =+J44*E$7 -> 0
C45: Tractors/Self-Propelled | D45: 3.17 | F45: Gallon | G45: 2.8 | I45: 8.876 | J45: =E45*H45 -> 0 | K45: 0 | M45: 0 | N45: =J45*L45 -> 0 | O45: 8.876 | P45: =+J45-N45 -> 0 | Q45: 2840.32 | R45: =+J45*E$7 -> 0
B47: Gasoline
C48: Pickup/General Use Equipment | D48: 1 | F48: Acre | G48: 1.63575 | I48: 1.63575 | J48: =E48*H48 -> 0 | K48: 0 | M48: 0 | N48: =J48*L48 -> 0 | O48: 1.63575 | P48: =+J48-N48 -> 0 | Q48: 523.44 | R48: =+J48*E$7 -> 0
C49: Tractors/Self-Propelled | D49: 0 | F49: Gallon | G49: 2.7 | I49: 0 | J49: =E49*H49 -> 0 | K49: 0 | M49: 0 | N49: =J49*L49 -> 0 | O49: 0 | P49: =+J49-N49 -> 0 | Q49: 0 | R49: =+J49*E$7 -> 0
B51: Repairs & Maintenance
C52: Pickup/General Use Equipment | D52: 1 | F52: Acre | G52: 0.684375 | I52: 0.684375 | J52: =E52*H52 -> 0 | K52: 0 | M52: 0 | N52: =J52*L52 -> 0 | O52: 0.684375 | P52: =+J52-N52 -> 0 | Q52: 219 | R52: =+J52*E$7 -> 0
C53: Irrigation Equipment | D53: 1 | F53: Acre | G53: 0 | I53: 0 | J53: 0 | K53: 0 | M53: 0 | N53: 0 | O53: 0 | P53: 0 | Q53: 0 | R53: 0
C54: Tractors/Self-Propelled | D54: 1 | F54: Acre | G54: 9.37980686 | I54: 9.37980686 | J54: 0 | K54: 0 | M54: 0 | N54: 0 | O54: 9.37980686 | P54: 0 | Q54: 3001.538195 | R54: 0
C55: Implements | D55: 1 | F55: Acre | G55: 6.573036057 | I55: 6.573036057 | J55: 0 | K55: 0 | M55: 0 | N55: 0 | O55: 6.573036057 | P55: 0 | Q55: 2103.371538 | R55: 0
I56: 0 | J56: 0 | K56: 0 | M56: 0 | N56: 0 | O56: 0 | P56: 0 | Q56: 0 | R56: 0
I57: 0 | J57: 0 | K57: 0 | M57: 0 | N57: 0 | O57: 0 | P57: 0 | Q57: 0 | R57: 0
B58: Interest on Credit Line | G58: 0.08 | I58: 8.202907176 | J58: =+SUM(J17:J57)/2*H58 -> 0 | M58: 0 | N58: =+SUM(N17:N57)/2*L58 -> 0 | O58: 8.202907176 | P58: =+SUM(P17:P57)/2*L58 -> 0 | Q58: 2624.930296 | R58: =+J58*E$7 -> 0
A59: Total Variable Costs | I59: 220.6362871 | J59: =SUM(J18:J58) -> 0 | M59: 0 | N59: =SUM(N18:N58) -> 0 | O59: 220.6362871 | P59: =SUM(P18:P58) -> 0 | Q59: 70603.61187 | R59: =SUM(R18:R58) -> 0
A60: Planned Returns Above Variable Costs: | I60: 337279.3637 | J60: =+J13-J59 -> 0 | M60: 0 | N60: =+N13-N59 -> 0 | O60: 337279.3637 | P60: =+P13-P59 -> 0 | Q60: 107929396.4 | R60: =+R13-R59 -> 0
B61: Breakeven Price to Cover Variable Costs | G61: 0.1765090297 | H61: =IF(E10=0,"n/a",(YVarExp-(YTotExp+YTotRet-J10))/E10) -> n/a | I61: Ton
Q62: Enterprise | R62: Enterprise
A63: FIXED COSTS | D63: Quantity | E63: Quantity | F63: Units | G63: $/Unit | H63: $/Unit | I63: Total | J63: Total | K63: Share | L63: Share | M63: Landlord | N63: Landlord | O63: Tenant | P63: Tenant | Q63: Total | R63: Total
B64: Machinery Depreciation
C65: Pickup/General Use Equipment | D65: 1 | F65: Acre | G65: 1.45125 | I65: 1.45125 | J65: =E65*H65 -> 0 | K65: 0 | M65: 0 | N65: =J65*L65 -> 0 | O65: 1.45125 | P65: =+J65-N65 -> 0 | Q65: 464.4 | R65: =+J65*E$7 -> 0
C66: Tractors/Self-Propelled | D66: 1 | F66: Acre | G66: 11.07210895 | I66: 11.07210895 | J66: 0 | K66: 0 | M66: 0 | N66: =J66*L66 -> 0 | O66: 11.07210895 | P66: 0 | Q66: 3543.074865 | R66: 0
C67: Implements | D67: 1 | F67: Acre | G67: 8.024221847 | I67: 8.024221847 | J67: 0 | K67: 0 | M67: 0 | N67: =J67*L67 -> 0 | O67: 8.024221847 | P67: 0 | Q67: 2567.750991 | R67: 0
B68: Equipment Investment
C69: Pickup/General Use Equipment | D69: 8.04375 | F69: Dollars | G69: 0.08 | I69: 0.6435 | J69: =E69*H69 -> 0 | K69: 0 | M69: 0 | N69: =J69*L69 -> 0 | O69: 0.6435 | P69: =+J69-N69 -> 0 | Q69: 205.92 | R69: =+J69*E$7 -> 0
C70: Tractors/Self-Propelled | D70: 85.61427117 | F70: Dollars | G70: 0.08 | I70: 6.849141694 | J70: 0 | K70: 0 | M70: 0 | N70: =J70*L70 -> 0 | O70: 6.849141694 | P70: 0 | Q70: 2191.725342 | R70: 0
C71: Implements | D71: 34.3258379 | F71: Dollars | G71: 0.08 | I71: 2.746067032 | J71: 0 | K71: 0 | M71: 0 | N71: =J71*L71 -> 0 | O71: 2.746067032 | P71: 0 | Q71: 878.7414502 | R71: 0
B72: Salaried Labor | D72: 1 | F72: Acre | G72: 0 | I72: 0 | J72: 0 | K72: 0 | M72: 0 | N72: =J72*L72 -> 0 | O72: 0 | P72: =+J72-N72 -> 0 | Q72: 0 | R72: =+J72*E$7 -> 0
B73: Management Fee, Owner/Operator Labor | D73: 1 | F73: Acre | G73: 10 | I73: 10 | J73: 0 | K73: 0 | M73: 0 | N73: 0 | O73: 10 | P73: 0 | Q73: 3200 | R73: 0
B74: Allocated Establishment Cost | D74: 1 | F74: Acre | G74: 0 | I74: 0 | J74: 0 | K74: 0 | M74: 0 | N74: 0 | O74: 0 | P74: 0 | Q74: 0 | R74: 0
B75: Rent-Dryland Crop | D75: 1 | F75: Acre | G75: 35 | I75: 35 | J75: 0 | K75: 0 | M75: 0 | N75: 0 | O75: 35 | P75: 0 | Q75: 11200 | R75: 0
B76: Property Taxes | D76: 1 | F76: Acre | G76: 0 | I76: 0 | J76: 0 | K76: 0 | M76: 0 | N76: 0 | O76: 0 | P76: 0 | Q76: 0 | R76: 0
B77: Whole Farm Insurance | D77: 1 | F77: Acre | G77: 0 | I77: 0 | J77: 0 | K77: 0 | M77: 0 | N77: 0 | O77: 0 | P77: 0 | Q77: 0 | R77: 0
D78: 1 | G78: 0 | I78: 0 | J78: 0 | K78: 0 | M78: 0 | N78: 0 | O78: 0 | P78: 0 | Q78: 0 | R78: 0
D79: 1 | G79: 0 | I79: 0 | J79: =E79*H79 -> 0 | K79: 0 | M79: 0 | N79: 0 | O79: 0 | P79: 0 | Q79: 0 | R79: 0
A80: Total Fixed Costs | I80: 75.78628953 | J80: =+SUM(J65:J79) -> 0 | M80: 0 | N80: =+SUM(N65:N79) -> 0 | O80: 75.78628953 | P80: =+SUM(P65:P79) -> 0 | Q80: 24251.61265 | R80: =+SUM(R65:R79) -> 0
A81: Total Specified Costs | I81: 296.4225766 | J81: =+J59+J80 -> 0 | M81: 0 | N81: =+N59+N80 -> 0 | O81: 296.4225766 | P81: =+P59+P80 -> 0 | Q81: 94855.22452 | R81: =+R59+R80 -> 0
A83: Returns Above Specified Costs | I83: 337203.5774 | J83: =+J13-J81 -> 0 | M83: 0 | N83: =+N13-N81 -> 0 | O83: 337203.5774 | P83: =+P13-P81 -> 0 | Q83: 107905144.8 | R83: =+R13-R81 -> 0
A85: Breakeven Price to Cover Total Costs | G85: 0.2371380613 | H85: =IF(E10=0,"n/a",(YTotExp-(YTotExp+YTotRet-J10))/E10) -> n/a | I85: Ton
D87: Example Breakeven Prices
B88: Example | C88: Example | D88: To Cover | G88: To Cover
B89: Yield | C89: Yield | D89: Variable | G89: Total
B90: Percent | C90: Ton | D90: Costs | G90: Costs
B91: 0.75 | C91: 937.5 | D91: 0.2353453729 | G91: 0.3161840817
B92: 0.9 | C92: 1125 | D92: 0.1961211441 | G92: 0.2634867348
B93: 1 | C93: 1250 | D93: 0.1765090297 | G93: 0.2371380613
B94: 1.1 | C94: 1375 | D94: 0.1604627542 | G94: 0.2155800557
B95: 1.25 | C95: 1562.5 | D95: 0.1412072237 | G95: 0.189710449
D97: Your Breakeven Prices
B98: Your | C98: Your | E98: To Cover | H98: To Cover
B99: Yield | C99: Yield | E99: Variable | H99: Total
B100: Percent | C100: Ton | E100: Costs | H100: Costs
B101: 0.75 | C101: =E10*YPER1 -> 0 | E101: =IF($E$10=0,0,(YVarExp-(YTotExp+YTotRet-J10))/($E$10*YPER1)) -> 0 | H101: =IF($E$10=0,0,(YTotExp-(YTotExp+YTotRet-J10))/($E$10*YPER1)) -> 0
B102: 0.9 | C102: =E10*YPER2 -> 0 | E102: =IF($E$10=0,0,(YVarExp-(YTotExp+YTotRet-J10))/($E$10*YPER2)) -> 0 | H102: =IF($E$10=0,0,(YTotExp-(YTotExp+YTotRet-J10))/($E$10*YPER2)) -> 0
B103: 1 | C103: =+E10 -> 0 | E103: =IF($E$10=0,0,(YVarExp-(YTotExp+YTotRet-J10))/($E$10*YPER3)) -> 0 | H103: =IF($E$10=0,0,(YTotExp-(YTotExp+YTotRet-J10))/($E$10*YPER3)) -> 0
B104: 1.1 | C104: =E10*YPER4 -> 0 | E104: =IF($E$10=0,0,(YVarExp-(YTotExp+YTotRet-J10))/($E$10*YPER4)) -> 0 | H104: =IF($E$10=0,0,(YTotExp-(YTotExp+YTotRet-J10))/($E$10*YPER4)) -> 0
B105: 1.25 | C105: =E10*YPER5 -> 0 | E105: =IF($E$10=0,0,(YVarExp-(YTotExp+YTotRet-J10))/($E$10*YPER5)) -> 0 | H105: =IF($E$10=0,0,(YTotExp-(YTotExp+YTotRet-J10))/($E$10*YPER5)) -> 0
A107: Developed by Jeffrey Wright, Assistant Professor & Extension Economist, Texas A&M AgriLife Extension, 325-657-7309
A109: Information presented is prepared solely as a general guide and not intended to recognize or predict the costs and returns from any one operation. Brand names are mentioned only as examples and imply no endorsement.

Sheet SunflowersDryland
A1: Projections for Planning Purposes Only -- Not to be Used without Updating
A2: 2025 Estimated Costs and Returns per Acre
A3: Non-Irrigated Sunflowers (Non-Confectionary)-Do Not Publish
A4: Enter your name for this budget in the cell above.
A5: Enter Your Values in the cells highlighed in MAROON.
E6: Your Acres | R6: Your
C7: Crop Acres | D7: 160 | L7: Your | Q7: Enterprise | R7: Enterprise
E8: Your | H8: Your | I8: Cash | J8: Your | K8: Landlord | L8: Landlord | N8: Your | P8: Your | Q8: Total | R8: Total
A9: REVENUE | D9: Quantity | E9: Quantity | F9: Units | G9: $/Unit | H9: $/Unit | I9: Total | J9: Total | K9: Share | L9: Share | M9: Landlord | N9: Landlord | O9: Tenant | P9: Tenant | Q9: (160 acres) | R9: ="(" & E7 & " acres)" -> ( acres)
B10: Sunflowers | D10: 17 | F10: CWT | G10: 23 | I10: 391 | J10: =E10*H10 -> 0 | K10: 0 | M10: 0 | N10: =J10*L10 -> 0 | O10: 391 | P10: =+J10-N10 -> 0 | Q10: 62560 | R10: =+J10*E$7 -> 0
D11: 0 | G11: 0 | I11: 0 | J11: 0 | K11: 0 | M11: 0 | N11: 0 | O11: 0 | P11: =+J11-N11 -> 0 | Q11: 0 | R11: 0
D12: 0 | G12: 0 | I12: 0 | J12: 0 | K12: 0 | M12: 0 | N12: 0 | O12: 0 | P12: 0 | Q12: 0 | R12: 0
A13: Total Revenue | I13: 391 | J13: =SUM(J10:J12) -> 0 | M13: 0 | N13: =SUM(N10:N12) -> 0 | O13: 391 | P13: =SUM(P10:P12) -> 0 | Q13: 62560 | R13: =SUM(R10:R12) -> 0
Q14: Enterprise | R14: Enterprise
A15: VARIABLE COSTS | D15: Quantity | E15: Quantity | F15: Units | G15: $/Unit | H15: $/Unit | I15: Total | J15: Total | K15: Share | L15: Share | M15: Landlord | N15: Landlord | O15: Tenant | P15: Tenant | Q15: Total | R15: Total
A16: Production Costs
B17: Fertilizer
C18: Nitrogen N32-liq | D18: 96 | F18: Pounds | G18: 2.69 | I18: 258.24 | J18: =E18*H18 -> 0 | K18: 0 | M18: 0 | N18: =J18*L18 -> 0 | O18: 258.24 | P18: =+J18-N18 -> 0 | Q18: 41318.4 | R18: =+J18*E$7 -> 0
C19: Phos (11-52-0 DRY MAT) | D19: 15 | F19: Pounds | G19: 1.29 | I19: 19.35 | J19: 0 | K19: 0 | M19: 0 | N19: 0 | O19: 19.35 | P19: 0 | Q19: 3096 | R19: 0
C20: Sulphur | D20: 5 | F20: Pounds | G20: 0.7917 | I20: 3.9585 | J20: 0 | K20: 0 | M20: 0 | N20: 0 | O20: 3.9585 | P20: 0 | Q20: 633.36 | R20: 0
B21: Custom
C22: Aerial Application | D22: 2 | F22: Acre | G22: 7 | I22: 14 | J22: 0 | K22: 0 | M22: 0 | N22: 0 | O22: 14 | P22: 0 | Q22: 2240 | R22: 0
C23: Custom Haul Sunflowers | D23: 60 | F23: Bushels | G23: 0.27 | I23: 16.2 | J23: 0 | K23: 0 | M23: 0 | N23: 0 | O23: 16.2 | P23: 0 | Q23: 2592 | R23: 0
C24: Custom Harvest Sunflowers | D24: 1 | F24: Acre | G24: 45.17 | I24: 45.17 | J24: 0 | K24: 0 | M24: 0 | N24: 0 | O24: 45.17 | P24: 0 | Q24: 7227.2 | R24: 0
B25: Herbicide
C26: Trifluralin | D26: 1.5 | F26: Pint | G26: 2.75 | I26: 4.125 | J26: 0 | K26: 0 | M26: 0 | N26: 0 | O26: 4.125 | P26: 0 | Q26: 660 | R26: 0
B27: Insecticide
C28: Prevathon | D28: 28 | F28: Ounce | G28: 1.1892 | I28: 33.2976 | J28: 0 | K28: 0 | M28: 0 | N28: 0 | O28: 33.2976 | P28: 0 | Q28: 5327.616 | R28: 0
B29: Miscellaneous
C30: Canola/Sunflower Crop Ins | D30: 1 | F30: pounds | G30: 0 | I30: 0 | J30: 0 | K30: 0 | M30: 0 | N30: 0 | O30: 0 | P30: 0 | Q30: 0 | R30: 0
B31: Seed
C32: sunflower - High Oleic | D32: 5 | F32: Pounds | G32: 6 | I32: 30 | J32: 0 | K32: 0 | M32: 0 | N32: 0 | O32: 30 | P32: 0 | Q32: 4800 | R32: 0
D33: 0 | G33: 0 | I33: 0 | J33: 0 | K33: 0 | M33: 0 | N33: 0 | O33: 0 | P33: 0 | Q33: 0 | R33: 0
D34: 0 | G34: 0 | I34: 0 | J34: 0 | K34: 0 | M34: 0 | N34: 0 | O34: 0 | P34: 0 | Q34: 0 | R34: 0
D35: 0 | G35: 0 | I35: 0 | J35: =E35*H35 -> 0 | K35: 0 | M35: 0 | N35: =J35*L35 -> 0 | O35: 0 | P35: =+J35-N35 -> 0 | Q35: 0 | R35: =+J35*E$7 -> 0
B36: Machinery Labor
C37: Tractors/Self-Propelled | D37: 0 | F37: Hour | G37: 17.21 | I37: 0 | J37: =E37*H37 -> 0 | K37: 0 | M37: 0 | N37: =J37*L37 -> 0 | O37: 0 | P37: =+J37-N37 -> 0 | Q37: 0 | R37: =+J37*E$7 -> 0
C38: Other Labor | D38: 0 | F38: Hour | G38: 17.21 | I38: 0 | J38: =E38*H38 -> 0 | K38: 0 | M38: 0 | N38: =J38*L38 -> 0 | O38: 0 | P38: =+J38-N38 -> 0 | Q38: 0 | R38: =+J38*E$7 -> 0
B40: Diesel Fuel
C41: Pickup/General Use Equipment | D41: 1 | F41: Acre | G41: 0 | I41: 0 | J41: =E41*H41 -> 0 | K41: 0 | M41: 0 | N41: =J41*L41 -> 0 | O41: 0 | P41: =+J41-N41 -> 0 | Q41: 0 | R41: =+J41*E$7 -> 0
C42: Tractors/Self-Propelled | D42: 2.73 | F42: Gallon | G42: 2.8 | I42: 7.644 | J42: =E42*H42 -> 0 | K42: 0 | M42: 0 | N42: =J42*L42 -> 0 | O42: 7.644 | P42: =+J42-N42 -> 0 | Q42: 1223.04 | R42: =+J42*E$7 -> 0
B44: Gasoline
C45: Pickup/General Use Equipment | D45: 1 | F45: Acre | G45: 1.0125 | I45: 1.0125 | J45: =E45*H45 -> 0 | K45: 0 | M45: 0 | N45: =J45*L45 -> 0 | O45: 1.0125 | P45: =+J45-N45 -> 0 | Q45: 162 | R45: =+J45*E$7 -> 0
C46: Tractors/Self-Propelled | D46: 0 | F46: Gallon | G46: 2.7 | I46: 0 | J46: =E46*H46 -> 0 | K46: 0 | M46: 0 | N46: =J46*L46 -> 0 | O46: 0 | P46: =+J46-N46 -> 0 | Q46: 0 | R46: =+J46*E$7 -> 0
B48: Repairs & Maintenance
C49: Pickup/General Use Equipment | D49: 1 | F49: Acre | G49: 0.2821875 | I49: 0.2821875 | J49: =E49*H49 -> 0 | K49: 0 | M49: 0 | N49: =J49*L49 -> 0 | O49: 0.2821875 | P49: =+J49-N49 -> 0 | Q49: 45.15 | R49: =+J49*E$7 -> 0
C50: Irrigation Equipment | D50: 1 | F50: Acre | G50: 0 | I50: 0 | J50: 0 | K50: 0 | M50: 0 | N50: 0 | O50: 0 | P50: 0 | Q50: 0 | R50: 0
C51: Tractors/Self-Propelled | D51: 1 | F51: Acre | G51: 7.660325079 | I51: 7.660325079 | J51: 0 | K51: 0 | M51: 0 | N51: 0 | O51: 7.660325079 | P51: 0 | Q51: 1225.652013 | R51: 0
C52: Implements | D52: 1 | F52: Acre | G52: 4.886291829 | I52: 4.886291829 | J52: 0 | K52: 0 | M52: 0 | N52: 0 | O52: 4.886291829 | P52: 0 | Q52: 781.8066926 | R52: 0
I53: 0 | J53: 0 | K53: 0 | M53: 0 | N53: 0 | O53: 0 | P53: 0 | Q53: 0 | R53: 0
I54: 0 | J54: 0 | K54: 0 | M54: 0 | N54: 0 | O54: 0 | P54: 0 | Q54: 0 | R54: 0
B55: Interest on Credit Line | G55: 0.08 | I55: 9.511839716 | J55: =+SUM(J17:J54)/2*H55 -> 0 | M55: 0 | N55: =+SUM(N17:N54)/2*L55 -> 0 | O55: 9.511839716 | P55: =+SUM(P17:P54)/2*L55 -> 0 | Q55: 1521.894355 | R55: =+J55*E$7 -> 0
A56: Total Variable Costs | I56: 455.3382441 | J56: =SUM(J18:J55) -> 0 | M56: 0 | N56: =SUM(N18:N55) -> 0 | O56: 455.3382441 | P56: =SUM(P18:P55) -> 0 | Q56: 72854.11906 | R56: =SUM(R18:R55) -> 0
A57: Planned Returns Above Variable Costs: | I57: -64.33824412 | J57: =+J13-J56 -> 0 | M57: 0 | N57: =+N13-N56 -> 0 | O57: -64.33824412 | P57: =+P13-P56 -> 0 | Q57: -10294.11906 | R57: =+R13-R56 -> 0
B58: Breakeven Price to Cover Variable Costs | G58: 26.7846026 | H58: =IF(E10=0,"n/a",(YVarExp-(YTotExp+YTotRet-J10))/E10) -> n/a | I58: CWT
Q59: Enterprise | R59: Enterprise
A60: FIXED COSTS | D60: Quantity | E60: Quantity | F60: Units | G60: $/Unit | H60: $/Unit | I60: Total | J60: Total | K60: Share | L60: Share | M60: Landlord | N60: Landlord | O60: Tenant | P60: Tenant | Q60: Total | R60: Total
B61: Machinery Depreciation
C62: Pickup/General Use Equipment | D62: 1 | F62: Acre | G62: 0.590625 | I62: 0.590625 | J62: =E62*H62 -> 0 | K62: 0 | M62: 0 | N62: =J62*L62 -> 0 | O62: 0.590625 | P62: =+J62-N62 -> 0 | Q62: 94.5 | R62: =+J62*E$7 -> 0
C63: Tractors/Self-Propelled | D63: 1 | F63: Acre | G63: 8.37554987 | I63: 8.37554987 | J63: 0 | K63: 0 | M63: 0 | N63: =J63*L63 -> 0 | O63: 8.37554987 | P63: 0 | Q63: 1340.087979 | R63: 0
C64: Implements | D64: 1 | F64: Acre | G64: 7.021191056 | I64: 7.021191056 | J64: 0 | K64: 0 | M64: 0 | N64: =J64*L64 -> 0 | O64: 7.021191056 | P64: 0 | Q64: 1123.390569 | R64: 0
B65: Equipment Investment
C66: Pickup/General Use Equipment | D66: 3.609375 | F66: Dollars | G66: 0.08 | I66: 0.28875 | J66: =E66*H66 -> 0 | K66: 0 | M66: 0 | N66: =J66*L66 -> 0 | O66: 0.28875 | P66: =+J66-N66 -> 0 | Q66: 46.2 | R66: =+J66*E$7 -> 0
C67: Tractors/Self-Propelled | D67: 65.03455887 | F67: Dollars | G67: 0.08 | I67: 5.20276471 | J67: 0 | K67: 0 | M67: 0 | N67: =J67*L67 -> 0 | O67: 5.20276471 | P67: 0 | Q67: 832.4423535 | R67: 0
C68: Implements | D68: 30.03509507 | F68: Dollars | G68: 0.08 | I68: 2.402807606 | J68: 0 | K68: 0 | M68: 0 | N68: =J68*L68 -> 0 | O68: 2.402807606 | P68: 0 | Q68: 384.4492169 | R68: 0
B69: Salaried Labor | D69: 1 | F69: Acre | G69: 0 | I69: 0 | J69: 0 | K69: 0 | M69: 0 | N69: =J69*L69 -> 0 | O69: 0 | P69: =+J69-N69 -> 0 | Q69: 0 | R69: =+J69*E$7 -> 0
B70: Management Fee, Owner/Operator Labor | D70: 1 | F70: Acre | G70: 10 | I70: 10 | J70: 0 | K70: 0 | M70: 0 | N70: 0 | O70: 10 | P70: 0 | Q70: 1600 | R70: 0
B71: Allocated Establishment Cost | D71: 1 | F71: Acre | G71: 0 | I71: 0 | J71: 0 | K71: 0 | M71: 0 | N71: 0 | O71: 0 | P71: 0 | Q71: 0 | R71: 0
B72: Rent-Dryland Crop | D72: 1 | F72: Acre | G72: 35 | I72: 35 | J72: 0 | K72: 0 | M72: 0 | N72: 0 | O72: 35 | P72: 0 | Q72: 5600 | R72: 0
B73: Property Taxes | D73: 1 | F73: Acre | G73: 0 | I73: 0 | J73: 0 | K73: 0 | M73: 0 | N73: 0 | O73: 0 | P73: 0 | Q73: 0 | R73: 0
B74: Whole Farm Insurance | D74: 1 | F74: Acre | G74: 0 | I74: 0 | J74: 0 | K74: 0 | M74: 0 | N74: 0 | O74: 0 | P74: 0 | Q74: 0 | R74: 0
D75: 1 | G75: 0 | I75: 0 | J75: 0 | K75: 0 | M75: 0 | N75: 0 | O75: 0 | P75: 0 | Q75: 0 | R75: 0
D76: 1 | G76: 0 | I76: 0 | J76: =E76*H76 -> 0 | K76: 0 | M76: 0 | N76: 0 | O76: 0 | P76: 0 | Q76: 0 | R76: 0
A77: Total Fixed Costs | I77: 68.88168824 | J77: =+SUM(J62:J76) -> 0 | M77: 0 | N77: =+SUM(N62:N76) -> 0 | O77: 68.88168824 | P77: =+SUM(P62:P76) -> 0 | Q77: 11021.07012 | R77: =+SUM(R62:R76) -> 0
A78: Total Specified Costs | I78: 524.2199324 | J78: =+J56+J77 -> 0 | M78: 0 | N78: =+N56+N77 -> 0 | O78: 524.2199324 | P78: =+P56+P77 -> 0 | Q78: 83875.18918 | R78: =+R56+R77 -> 0
A80: Returns Above Specified Costs | I80: -133.2199324 | J80: =+J13-J78 -> 0 | M80: 0 | N80: =+N13-N78 -> 0 | O80: -133.2199324 | P80: =+P13-P78 -> 0 | Q80: -21315.18918 | R80: =+R13-R78 -> 0
A82: Breakeven Price to Cover Total Costs | G82: 30.83646661 | H82: =IF(E10=0,"n/a",(YTotExp-(YTotExp+YTotRet-J10))/E10) -> n/a | I82: CWT
D84: Example Breakeven Prices
B85: Example | C85: Example | D85: To Cover | G85: To Cover
B86: Yield | C86: Yield | D86: Variable | G86: Total
B87: Percent | C87: CWT | D87: Costs | G87: Costs
B88: 0.75 | C88: 12.75 | D88: 35.71280346 | G88: 41.11528881
B89: 0.9 | C89: 15.3 | D89: 29.76066955 | G89: 34.26274068
B90: 1 | C90: 17 | D90: 26.7846026 | G90: 30.83646661
B91: 1.1 | C91: 18.7 | D91: 24.34963872 | G91: 28.03315146
B92: 1.25 | C92: 21.25 | D92: 21.42768208 | G92: 24.66917329
D94: Your Breakeven Prices
B95: Your | C95: Your | E95: To Cover | H95: To Cover
B96: Yield | C96: Yield | E96: Variable | H96: Total
B97: Percent | C97: CWT | E97: Costs | H97: Costs
B98: 0.75 | C98: =E10*YPER1 -> 0 | E98: =IF($E$10=0,0,(YVarExp-(YTotExp+YTotRet-J10))/($E$10*YPER1)) -> 0 | H98: =IF($E$10=0,0,(YTotExp-(YTotExp+YTotRet-J10))/($E$10*YPER1)) -> 0
B99: 0.9 | C99: =E10*YPER2 -> 0 | E99: =IF($E$10=0,0,(YVarExp-(YTotExp+YTotRet-J10))/($E$10*YPER2)) -> 0 | H99: =IF($E$10=0,0,(YTotExp-(YTotExp+YTotRet-J10))/($E$10*YPER2)) -> 0
B100: 1 | C100: =+E10 -> 0 | E100: =IF($E$10=0,0,(YVarExp-(YTotExp+YTotRet-J10))/($E$10*YPER3)) -> 0 | H100: =IF($E$10=0,0,(YTotExp-(YTotExp+YTotRet-J10))/($E$10*YPER3)) -> 0
B101: 1.1 | C101: =E10*YPER4 -> 0 | E101: =IF($E$10=0,0,(YVarExp-(YTotExp+YTotRet-J10))/($E$10*YPER4)) -> 0 | H101: =IF($E$10=0,0,(YTotExp-(YTotExp+YTotRet-J10))/($E$10*YPER4)) -> 0
B102: 1.25 | C102: =E10*YPER5 -> 0 | E102: =IF($E$10=0,0,(YVarExp-(YTotExp+YTotRet-J10))/($E$10*YPER5)) -> 0 | H102: =IF($E$10=0,0,(YTotExp-(YTotExp+YTotRet-J10))/($E$10*YPER5)) -> 0
A104: Developed by Jeffrey Wright, Assistant Professor & Extension Economist, Texas A&M AgriLife Extension, 325-657-7309
A106: Information presented is prepared solely as a general guide and not intended to recognize or predict the costs and returns from any one operation. Brand names are mentioned only as examples and imply no endorsement.

Sheet CowCalf
A1: Projections for Planning Purposes Only -- Not to be Used without Updating
A2: 2025 Estimated Costs and Returns per Animal Unit
A3: Cow-Calf Native Pasture
A4: Enter your name for this budget in the cell above.
A5: Enter Your Values in the cells highlighed in MAROON.
E6: Your Cows
B7: Animal Units (AU) | D7: 100 | F7: Animal Unit | N7: Your
B8: Breeding Females | D8: 100 | F8: Calf | G8: Your | M8: Enterprise | N8: Enterprise
E9: Your | F9: Quantity | G9: Quantity | J9: Your | L9: Your | M9: Total | N9: Total
A10: REVENUE | D10: Head | E10: Head | F10: Per Head | G10: Per Head | H10: Units | I10: $/Unit | J10: $/Unit | K10: Total | L10: Total | M10: ="(" & D7 & " AUs)" -> (100 AUs) | N10: ="(" & E7 & " AUs)" -> ( AUs)
B11: Weaned Steer Calf | D11: 0.42 | F11: 5.5 | H11: CWT | I11: 305 | K11: 704.55 | L11: =+E11*G11*J11 -> 0 | M11: 70455 | N11: =+L11*E$7 -> 0
B12: Weaned Heifer Calf | D12: 0.26 | F12: 5.25 | H12: CWT | I12: 295 | K12: 402.675 | L12: =+E12*G12*J12 -> 0 | M12: 40267.5 | N12: =+L12*E$7 -> 0
B13: Cull Cow | D13: 0.15 | F13: 9 | H13: CWT | I13: 125 | K13: 168.75 | L13: 0 | M13: 16875 | N13: 0
B14: Cull Bull | D14: 0.01 | F14: 18 | H14: CWT | I14: 175 | K14: 31.5 | L14: 0 | M14: 3150 | N14: 0
B15: PRF Income | D15: 1 | F15: 30 | H15: Acre | I15: 1.96 | K15: 58.8 | L15: 0 | M15: 5880 | N15: 0
D16: 0 | F16: 0 | I16: 0 | K16: 0 | L16: 0 | M16: 0 | N16: 0
D17: 0 | F17: 0 | I17: 0 | K17: 0 | L17: 0 | M17: 0 | N17: 0
A18: Total Revenue | F18: 367.5 | K18: 1366.275 | L18: =+SUM(L11:L17) -> 0 | M18: 136627.5 | N18: =+SUM(N11:N17) -> 0
F19: 520.5
F20: 153 | M20: Enterprise | N20: Enterprise
A21: VARIABLE COSTS | F21: Quantity | G21: Quantity | H21: Units | I21: $/Unit | J21: $/Unit | K21: Total | L21: Total | M21: Total | N21: Total
A22: Production Costs
B23: Miscellaneous
C24: Supplies | F24: 1 | H24: AU | I24: 15 | K24: 15 | L24: =+J24*G24 -> 0 | M24: 1500 | N24: =+L24*E$7 -> 0
C25: Predator Control - Cattle | F25: 1 | H25: AU | I25: 3.85 | K25: 3.85 | L25: 0 | M25: 385 | N25: 0
C26: Brush Control | F26: 1 | H26: AU | I26: 30 | K26: 30 | L26: 0 | M26: 3000 | N26: 0
C27: PRF Rainfall Ins | F27: 1 | H27: AU | I27: 33.3 | K27: 33.3 | L27: 0 | M27: 3330 | N27: 0
F28: 1 | I28: 0 | K28: 0 | L28: 0 | M28: 0 | N28: 0
F29: 1 | I29: 0 | K29: 0 | L29: 0 | M29: 0 | N29: 0
B30: Marketing Expense | F30: 1 | H30: AU | I30: 21.008 | K30: 21.008 | L30: 0 | M30: 2100.8 | N30: 0
B31: Feed
C32: Range Mineral | F32: 49.2 | H32: pound | I32: 0.437 | K32: 21.5004 | L32: =+J32*G32 -> 0 | M32: 2150.04 | N32: =+L32*E$7 -> 0
C33: Hay | F33: 0.3 | H33: Ton | I33: 265 | K33: 79.5 | L33: 0 | M33: 7950 | N33: 0
C34: Range Cubes 20% | F34: 1.2 | H34: CWT | I34: 17.9 | K34: 21.48 | L34: 0 | M34: 2148 | N34: 0
F35: 0 | I35: 0 | K35: 0 | L35: 0 | M35: 0 | N35: 0
F36: 0 | I36: 0 | K36: 0 | L36: 0 | M36: 0 | N36: 0
F37: 0 | I37: 0 | K37: 0 | L37: 0 | M37: 0 | N37: 0
B38: Vet. Medicine
C39: Bull Exam | F39: 0.04 | H39: Head | I39: 50 | K39: 2 | L39: =+J39*G39 -> 0 | M39: 200 | N39: =+L39*E$7 -> 0
C40: IBR,BVD, PI3,BRSV-Bulls | F40: 0.04 | H40: Head | I40: 1.2772 | K40: 0.051088 | L40: 0 | M40: 5.1088 | N40: 0
C41: Vibro/lepto-Bulls | F41: 0.08 | H41: Dose | I41: 0.7798 | K41: 0.062384 | L41: 0 | M41: 6.2384 | N41: 0
C42: Deworm-Bulls | F42: 0.08 | H42: Head | I42: 0.33 | K42: 0.0264 | L42: 0 | M42: 2.64 | N42: 0
C43: Cylence-Fly and Lice-Bulls | F43: 0.48 | H43: ML | I43: 0.0385 | K43: 0.01848 | L43: 0 | M43: 1.848 | N43: 0
C44: IBR,BVD, PI3, BRVS-Cows | F44: 1 | H44: Head | I44: 1.2772 | K44: 1.2772 | L44: 0 | M44: 127.72 | N44: 0
C45: Vibrio/Lepto-Cows | F45: 2 | H45: Dose | I45: 0.7798 | K45: 1.5596 | L45: 0 | M45: 155.96 | N45: 0
C46: Deworm-Cows | F46: 2 | H46: Head | I46: 0.33 | K46: 0.66 | L46: 0 | M46: 66 | N46: 0
C47: Covexin 8-Cows | F47: 2 | H47: Head | I47: 0.939 | K47: 1.878 | L47: 0 | M47: 187.8 | N47: 0
C48: Cylence-Fly and Lice-Cows | F48: 12 | H48: ML | I48: 0.0385 | K48: 0.462 | L48: 0 | M48: 46.2 | N48: 0
C49: Covexin 8-Calves | F49: 1.96 | H49: Head | I49: 0.939 | K49: 1.84044 | L49: 0 | M49: 184.044 | N49: 0
C50: IBR,BVD,PI3,BRVS-Calves | F50: 1.96 | H50: Head | I50: 1.2772 | K50: 2.503312 | L50: 0 | M50: 250.3312 | N50: 0
C51: Implants-Calves | F51: 0.98 | H51: Head | I51: 1.58125 | K51: 1.549625 | L51: 0 | M51: 154.9625 | N51: 0
C52: Cylence-fly and lice-Calves | F52: 19.6 | H52: ML | I52: 0.0385 | K52: 0.7546 | L52: 0 | M52: 75.46 | N52: 0
F53: 0 | I53: 0 | K53: 0 | L53: 0 | M53: 0 | N53: 0
F54: 0 | I54: 0 | K54: 0 | L54: 0 | M54: 0 | N54: 0
F55: 0 | I55: 0 | K55: 0 | L55: 0 | M55: 0 | N55: 0
B56: Fuel | F56: 1 | H56: AU | I56: 56.7 | K56: 56.7 | L56: 0 | M56: 5670 | N56: 0
B57: Lube (As a % of fuel) | F57: 0.1 | H57: Percent | I57: 56.7 | K57: 5.67 | L57: 0 | M57: 567 | N57: 0
B58: Repairs | F58: 1 | H58: AU | I58: 66.92045714 | K58: 66.92045714 | L58: 0 | M58: 6692.045714 | N58: 0
B59: Labor | F59: 0.4 | H59: Hours | I59: 15 | K59: 6 | L59: 0 | M59: 600 | N59: 0
B60: Utilities | F60: 1 | H60: AU | I60: 24 | K60: 24 | L60: 0 | M60: 2400 | N60: 0
K61: 0 | L61: =+J61*G61 -> 0 | M61: 0 | N61: 0
B62: Purchase Breeding Female | F62: 1 | I62: 0 | K62: 0 | L62: 0 | M62: 0 | N62: 0
B63: Purchase Breeding Male | F63: 1 | I63: 0 | K63: 0 | L63: 0 | M63: 0 | N63: 0
B64: Purchase Older Repalcement Female | F64: 1 | I64: 0 | K64: 0 | L64: 0 | M64: 0 | N64: 0
B65: Purchase Younger Repalcement Female | F65: 1 | I65: 0 | K65: 0 | L65: 0 | M65: 0 | N65: 0
B66: Interest on Credit Line | I66: 0.08 | K66: 27.63567769 | L66: =+SUM(L22:L65)/2*J66 -> 0 | M66: 2763.567769 | N66: 0
A67: Total Variable Costs | K67: 427.2076638 | L67: =+SUM(L24:L66) -> 0 | M67: 42720.76638 | N67: =+SUM(N24:N66) -> 0
A69: Planned Returns Above Variable Costs: | K69: 939.0673362 | L69: =+L18-L67 -> 0 | M69: 93906.73362 | N69: =+N18-N67 -> 0
B70: Average Calf Breakeven Price to Cover Variable Costs | I70: 45.75718744 | J70: =IF((E11*G11+E12*G12)=0,"n/a",(L67-SUM(L13:L17))/(E11*G11+E12*G12)) -> n/a | K70: CWT
M71: Enterprise | N71: Enterprise
A72: FIXED COSTS | F72: Quantity | G72: Quantity | H72: Units | I72: $/Unit | J72: $/Unit | K72: Total | L72: Total | M72: Total | N72: Total
B73: Depreciation - Equipment | F73: 1 | H73: AU | I73: 68.09669019 | K73: 68.09669019 | L73: =+G73*J73 -> 0 | M73: 6809.669019 | N73: =+L73*E$7 -> 0
B74: Depreciation - Livestock | F74: 1 | H74: AU | I74: 18.15 | K74: 18.15 | L74: 0 | M74: 1815 | N74: 0
B75: Equipment Investment | F75: 2090.27911 | H75: dollars | I75: 0.08 | K75: 167.2223288 | L75: 0 | M75: 16722.23288 | N75: 0
B76: Insurance | F76: 1 | H76: AU | I76: 0 | K76: 0 | L76: 0 | M76: 0 | N76: 0
B77: Management Fee, Owner/Operator Labor | F77: 1 | H77: AU | I77: 0 | K77: 0 | L77: =+J77*G77 -> 0 | M77: 0 | N77: 0
B78: Salaried Labor | F78: 1 | H78: AU | I78: 0 | K78: 0 | L78: =+J78*G78 -> 0 | M78: 0 | N78: 0
B79: Pasture Cost | F79: 30 | H79: Acres | I79: 8 | K79: 240 | L79: 0 | M79: 24000 | N79: 0
K80: 0 | L80: =+G80*J80 -> 0 | M80: 0 | N80: 0
K81: 0 | L81: 0 | M81: 0 | N81: 0
A82: Total Fixed Costs | K82: 493.469019 | L82: =+SUM(L73:L79) -> 0 | M82: 49346.9019 | N82: =+SUM(N73:N79) -> 0
A83: Total Costs | K83: 920.6766828 | L83: =+L67+L82 -> 0 | M83: 92067.66828 | N83: =+N67+N82 -> 0
A84: Planned Returns to Management, Risk, and Profit: | K84: 445.5983172 | L84: =+L18-L83 -> 0 | M84: 44559.83172 | N84: =+N18-N83 -> 0
B85: Average Calf Breakeven Price to Cover Total Costs | I85: 180.0344715 | J85: =IF((E11*G11+E12*G12)=0,"n/a",(L83-SUM(L13:L17))/(E11*G11+E12*G12)) -> n/a | K85: CWT
C87: Sensitivity Analysis for Example
C88: Example Weaning Percent | D88: Example Gross Sales per Animal Unit | F88: Pounds Produced per Animal Unit | H88: Example Breakeven Calf Pay Weight to Cover Total Cost | K88: Example Average Breakeven Price to Cover Total Cost
C89: 0.89 | D89: 1446.315361 | F89: 547.0662651 | H89: 296.7582164 | K89: 167.8973161
C90: 0.86 | D90: 1406.295181 | F90: 533.7831325 | H90: 309.2972959 | K90: 173.7541993
C91: 0.83 | D91: 1366.275 | F91: 520.5 | H91: 322.9427649 | K91: 180.0344715
C92: 0.8 | D92: 1326.254819 | F92: 507.2168675 | H92: 337.8478156 | K92: 186.7857642
C93: 0.77 | D93: 1286.234639 | F93: 493.9337349 | H93: 354.1952905 | K93: 194.0631316
D95: ="Example Male "&F8&" Price" -> Example Male Calf Price | K95: =+I11 -> 305
D96: ="Example Female "&F8&" Price" -> Example Female Calf Price | K96: =+I12 -> 295
D97: ="Example Weighted Average "&F8&" Price ($/cwt)" -> Example Weighted Average Calf Price ($/cwt) | K97: =+(K11+K12)/(D11*F11+D12*F12) -> 301.2857143
C98: Sensitivity Analysis for Your Values
C99: Your Weaning Percent | D99: ="Your Gross Sales per "&F7 -> Your Gross Sales per Animal Unit | F99: ="Pounds Produced per "&F7 -> Pounds Produced per Animal Unit | H99: ="Your Breakeven "&F8&" Pay Weight to Cover Total Cost" -> Your Breakeven Calf Pay Weight to Cover Total Cost | K99: Your Average Breakeven Price to Cover Total Cost
C100: =+C101+C89-C90 -> 1.06 | D100: =+IF($C$102=0,0,$L$18-$L$11-$L$12+($L$11+$L$12)*C100/$C$102) -> 0 | F100: =IF($C$102=0,0,$M$106*C100/$C$102+$M$107) -> 0 | H100: =IF($D$102=0,0,(YTotExp-(YTotRet+YTotExp-$L$11-$L$12))/(YPrice/100)/(C100-$E$13*$E$7/$E$8)/($E$8/$E$7)) -> 0 | K100: =IF(F100-$M$107=0,0,(YTotExp-(YTotRet+YTotExp-$L$11-$L$12))/(F100-$M$107)*100) -> 0
C101: =+C102+C90-C91 -> 1.03 | D101: =+IF($C$102=0,0,$L$18-$L$11-$L$12+($L$11+$L$12)*C101/$C$102) -> 0 | F101: =IF($C$102=0,0,$M$106*C101/$C$102+$M$107) -> 0 | H101: =IF($D$102=0,0,(YTotExp-(YTotRet+YTotExp-$L$11-$L$12))/(YPrice/100)/(C101-$E$13*$E$7/$E$8)/($E$8/$E$7)) -> 0 | K101: =IF(F101-$M$107=0,0,(YTotExp-(YTotRet+YTotExp-$L$11-$L$12))/(F101-$M$107)*100) -> 0
C102: 1 | D102: =+L18 -> 0 | F102: =M106+M107 -> 0 | H102: =IF($D$102=0,0,(YTotExp-(YTotRet+YTotExp-$L$11-$L$12))/(YPrice/100)/(C102-$E$13*$E$7/$E$8)/($E$8/$E$7)) -> 0 | K102: =IF(F102-$M$107=0,0,(YTotExp-(YTotRet+YTotExp-$L$11-$L$12))/(F102-$M$107)*100) -> 0
C103: =+C102+C92-C91 -> 0.97 | D103: =+IF($C$102=0,0,$L$18-$L$11-$L$12+($L$11+$L$12)*C103/$C$102) -> 0 | F103: =IF($C$102=0,0,$M$106*C103/$C$102+$M$107) -> 0 | H103: =IF($D$102=0,0,(YTotExp-(YTotRet+YTotExp-$L$11-$L$12))/(YPrice/100)/(C103-$E$13*$E$7/$E$8)/($E$8/$E$7)) -> 0 | K103: =IF(F103-$M$107=0,0,(YTotExp-(YTotRet+YTotExp-$L$11-$L$12))/(F103-$M$107)*100) -> 0
C104: =+C103+C93-C92 -> 0.94 | D104: =+IF($C$102=0,0,$L$18-$L$11-$L$12+($L$11+$L$12)*C104/$C$102) -> 0 | F104: =IF($C$102=0,0,$M$106*C104/$C$102+$M$107) -> 0 | H104: =IF($D$102=0,0,(YTotExp-(YTotRet+YTotExp-$L$11-$L$12))/(YPrice/100)/(C104-$E$13*$E$7/$E$8)/($E$8/$E$7)) -> 0 | K104: =IF(F104-$M$107=0,0,(YTotExp-(YTotRet+YTotExp-$L$11-$L$12))/(F104-$M$107)*100) -> 0
D106: ="Your Male "&F8&" Price" -> Your Male Calf Price | K106: =+J11 -> 0 | M106: =(E11*G11+E12*G12)*100 -> 0
D107: ="Your Female "&F8&" Price" -> Your Female Calf Price | K107: =+J12 -> 0 | M107: =(E13*G13+E14*G14)*100 -> 0
D108: ="Your Weighted Average "&F8&" Price ($/cwt)" -> Your Weighted Average Calf Price ($/cwt) | K108: =+IF((E11*G11+E12*G12)=0,0,(L11+L12)/(E11*G11+E12*G12)) -> 0
A110: Developed by Jeffrey Wright, Assistant Professor & Extension Economist, Texas A&M AgriLife Extension, 325-657-7309
A112: Information presented is prepared solely as a general guide and not intended to recognize or predict the costs and returns from any one operation. Brand names are mentioned only as examples and imply no endorsement.

Sheet CommercialHairSheep
A1: Projections for Planning Purposes Only -- Not to be Used without Updating
A2: 2025 Estimated Costs and Returns per Animal Unit
A3: Commercial Hair Sheep, Lamb Production, 6 Head per AU
A4: Enter your name for this budget in the cell above.
A5: Enter Your Values in the cells highlighed in MAROON.
E6: Your Ewes
B7: Animal Units (AU) | D7: 100 | F7: Animal Unit | N7: Your
B8: Breeding Females | D8: 600 | F8: Lamb | G8: Your | M8: Enterprise | N8: Enterprise
E9: Your | F9: Quantity | G9: Quantity | J9: Your | L9: Your | M9: Total | N9: Total
A10: REVENUE | D10: Head | E10: Head | F10: Per Head | G10: Per Head | H10: Units | I10: $/Unit | J10: $/Unit | K10: Total | L10: Total | M10: ="(" & D7 & " AUs)" -> (100 AUs) | N10: ="(" & E7 & " AUs)" -> ( AUs)
B11: Slaughter Lamb - ram (65 Lbs) | D11: 3.15 | F11: 0.65 | H11: CWT | I11: 245 | K11: 501.6375 | L11: =+E11*G11*J11 -> 0 | M11: 50163.75 | N11: =+L11*E$7 -> 0
B12: Slaughter Lamb - ewe (65lbs) | D12: 1.95 | F12: 0.65 | H12: CWT | I12: 245 | K12: 310.5375 | L12: =+E12*G12*J12 -> 0 | M12: 31053.75 | N12: =+L12*E$7 -> 0
B13: Cull Ewes | D13: 1.2 | F13: 1.25 | H13: CWT | I13: 86.8 | K13: 130.2 | L13: 0 | M13: 13020 | N13: 0
B14: Cull Rams | D14: 0.06 | F14: 1.55 | H14: CWT | I14: 91.8 | K14: 8.5374 | L14: 0 | M14: 853.74 | N14: 0
B15: PRF Income | D15: 6 | F15: 5 | H15: Acre | I15: 1.96 | K15: 58.8 | L15: 0 | M15: 5880 | N15: 0
D16: 0 | F16: 0 | I16: 0 | K16: 0 | L16: 0 | M16: 0 | N16: 0
D17: 0 | F17: 0 | I17: 0 | K17: 0 | L17: 0 | M17: 0 | N17: 0
A18: Total Revenue | F18: 331.5 | K18: 1009.7124 | L18: =+SUM(L11:L17) -> 0 | M18: 100971.24 | N18: =+SUM(N11:N17) -> 0
F19: 490.8
F20: 159.3 | M20: Enterprise | N20: Enterprise
A21: VARIABLE COSTS | F21: Quantity | G21: Quantity | H21: Units | I21: $/Unit | J21: $/Unit | K21: Total | L21: Total | M21: Total | N21: Total
A22: Production Costs
B23: Miscellaneous
C24: Supplies | F24: 1 | H24: AU | I24: 15 | K24: 15 | L24: =+J24*G24 -> 0 | M24: 1500 | N24: =+L24*E$7 -> 0
C25: Predator Control - Sheep | F25: 1 | H25: AU | I25: 5.25 | K25: 5.25 | L25: 0 | M25: 525 | N25: 0
C26: Brush Control | F26: 1 | H26: AU | I26: 30 | K26: 30 | L26: 0 | M26: 3000 | N26: 0
C27: PRF Rainfall Ins | F27: 1 | H27: AU | I27: 33.3 | K27: 33.3 | L27: 0 | M27: 3330 | N27: 0
F28: 1 | I28: 0 | K28: 0 | L28: 0 | M28: 0 | N28: 0
F29: 1 | I29: 0 | K29: 0 | L29: 0 | M29: 0 | N29: 0
B30: Marketing Expense | F30: 1 | H30: AU | I30: 28.5576 | K30: 28.5576 | L30: 0 | M30: 2855.76 | N30: 0
B31: Feed
C32: Corn - Sheep and Goat | F32: 132 | H32: Pound | I32: 0.0714 | K32: 9.4248 | L32: =+J32*G32 -> 0 | M32: 942.48 | N32: =+L32*E$7 -> 0
C33: Range Cubes 20% | F33: 2.7 | H33: CWT | I33: 17.9 | K33: 48.33 | L33: 0 | M33: 4833 | N33: 0
C34: Salt - Sheep | F34: 15 | H34: Pound | I34: 0.131 | K34: 1.965 | L34: 0 | M34: 196.5 | N34: 0
C35: Mineral - Sheep | F35: 6 | H35: Pound | I35: 0.437 | K35: 2.622 | L35: 0 | M35: 262.2 | N35: 0
C36: Dog food | F36: 0.05 | H36: Dog | I36: 362.26 | K36: 18.113 | L36: 0 | M36: 1811.3 | N36: 0
F37: 0 | I37: 0 | K37: 0 | L37: 0 | M37: 0 | N37: 0
F38: 0 | I38: 0 | K38: 0 | L38: 0 | M38: 0 | N38: 0
F39: 0 | I39: 0 | K39: 0 | L39: 0 | M39: 0 | N39: 0
B40: Vet. Medicine
C41: Overeat/Tetnus | F41: 12.3 | H41: Dose | I41: 0.8404 | K41: 10.33692 | L41: 0 | M41: 1033.692 | N41: =+L41*E$7 -> 0
C42: Soremouth | F42: 12.3 | H42: Dose | I42: 0.34 | K42: 4.182 | L42: 0 | M42: 418.2 | N42: 0
C43: Guard/Working Dog Health | F43: 0.05 | H43: Head | I43: 250 | K43: 12.5 | L43: 0 | M43: 1250 | N43: 0
F44: 0 | I44: 0 | K44: 0 | L44: 0 | M44: 0 | N44: 0
F45: 0 | I45: 0 | K45: 0 | L45: 0 | M45: 0 | N45: 0
F46: 0 | I46: 0 | K46: 0 | L46: 0 | M46: 0 | N46: 0
B47: Fuel | F47: 1 | H47: AU | I47: 56.7 | K47: 56.7 | L47: 0 | M47: 5670 | N47: 0
B48: Lube (As a % of fuel) | F48: 0.1 | H48: Percent | I48: 56.7 | K48: 5.67 | L48: 0 | M48: 567 | N48: 0
B49: Repairs | F49: 1 | H49: AU | I49: 52.32493714 | K49: 52.32493714 | L49: 0 | M49: 5232.493714 | N49: 0
B50: Labor | F50: 0.6 | H50: Hours | I50: 15 | K50: 9 | L50: 0 | M50: 900 | N50: 0
B51: Utilities | F51: 1 | H51: AU | I51: 24 | K51: 24 | L51: 0 | M51: 2400 | N51: 0
K52: 0 | L52: =+J52*G52 -> 0 | M52: 0 | N52: 0
B53: Purchase Breeding Female | F53: 1 | I53: 0 | K53: 0 | L53: =+J53*G53 -> 0 | M53: 0 | N53: 0
B54: Purchase Breeding Male | F54: 1 | I54: 0 | K54: 0 | L54: 0 | M54: 0 | N54: 0
B55: Purchase Older Repalcement Female | F55: 1 | I55: 0 | K55: 0 | L55: 0 | M55: 0 | N55: 0
B56: Purchase Younger Repalcement Female | F56: 1 | I56: 0 | K56: 0 | L56: 0 | M56: 0 | N56: 0
B57: Interest on Credit Line | I57: 0.08 | K57: 23.45349704 | L57: =+SUM(L22:L56)/2*J57 -> 0 | M57: 2345.349704 | N57: 0
A58: Total Variable Costs | K58: 390.7297542 | L58: =+SUM(L24:L57) -> 0 | M58: 39072.97542 | N58: =+SUM(N24:N57) -> 0
A60: Planned Returns Above Variable Costs: | K60: 618.9826458 | L60: =+L18-L58 -> 0 | M60: 61898.26458 | N60: =+N18-N58 -> 0
B61: Average Lamb Breakeven Price to Cover Variable Costs | I61: 58.27823655 | J61: =IF((E11*G11+E12*G12)=0,"n/a",(L58-SUM(L13:L17))/(E11*G11+E12*G12)) -> n/a | K61: CWT
M62: Enterprise | N62: Enterprise
A63: FIXED COSTS | F63: Quantity | G63: Quantity | H63: Units | I63: $/Unit | J63: $/Unit | K63: Total | L63: Total | M63: Total | N63: Total
B64: Depreciation - Equipment | F64: 1 | H64: AU | I64: 57.50178072 | K64: 57.50178072 | L64: =+G64*J64 -> 0 | M64: 5750.178072 | N64: =+L64*E$7 -> 0
B65: Depreciation - Livestock | F65: 1 | H65: AU | I65: 43.46666667 | K65: 43.46666667 | L65: 0 | M65: 4346.666667 | N65: 0
B66: Equipment Investment | F66: 1546.324538 | H66: dollars | I66: 0.08 | K66: 123.705963 | L66: 0 | M66: 12370.5963 | N66: 0
B67: Insurance | F67: 1 | H67: AU | I67: 0 | K67: 0 | L67: 0 | M67: 0 | N67: 0
B68: Management Fee, Owner/Operator Labor | F68: 1 | H68: AU | I68: 0 | K68: 0 | L68: =+J68*G68 -> 0 | M68: 0 | N68: 0
B69: Salaried Labor | F69: 1 | H69: AU | I69: 0 | K69: 0 | L69: =+J69*G69 -> 0 | M69: 0 | N69: 0
B70: Pasture Cost | F70: 30 | H70: Acres | I70: 8 | K70: 240 | L70: 0 | M70: 24000 | N70: 0
K71: 0 | L71: 0 | M71: 0 | N71: 0
K72: 0 | L72: 0 | M72: 0 | N72: 0
A73: Total Fixed Costs | K73: 464.6744104 | L73: =+SUM(L64:L70) -> 0 | M73: 46467.44104 | N73: =+SUM(N64:N70) -> 0
A74: Total Costs | K74: 855.4041646 | L74: =+L58+L73 -> 0 | M74: 85540.41646 | N74: =+N58+N73 -> 0
A75: Planned Returns to Management, Risk, and Profit: | K75: 154.3082354 | L75: =+L18-L74 -> 0 | M75: 15430.82354 | N75: =+N18-N74 -> 0
B76: Average Lamb Breakeven Price to Cover Total Costs | I76: 198.4515127 | J76: =IF((E11*G11+E12*G12)=0,"n/a",(L74-SUM(L13:L17))/(E11*G11+E12*G12)) -> n/a | K76: CWT
C78: Sensitivity Analysis for Example
C79: Example Weaning Percent | D79: Example Gross Sales per Animal Unit | F79: Pounds Produced per Animal Unit | H79: Example Breakeven Lamb Pay Weight to Cover Total Cost | K79: Example Average Breakeven Price to Cover Total Cost
C80: 1.25 | D80: 1164.4124 | F80: 553.9428571 | H80: 42.62175346 | K80: 166.6992707
C81: 1.15 | D81: 1087.0624 | F81: 522.3714286 | H81: 47.10825382 | K81: 181.1948594
C82: 1.05 | D82: 1009.7124 | F82: 490.8 | H82: 52.65040133 | K82: 198.4515127
C83: 0.95 | D83: 932.3624 | F83: 459.2285714 | H83: 59.67045484 | K83: 219.3411456
C84: 0.85 | D84: 855.0124 | F84: 427.6571429 | H84: 68.85052482 | K84: 245.1459863
D86: ="Example Male "&F8&" Price" -> Example Male Lamb Price | K86: =+I11 -> 245
D87: ="Example Female "&F8&" Price" -> Example Female Lamb Price | K87: =+I12 -> 245
D88: ="Example Weighted Average "&F8&" Price ($/cwt)" -> Example Weighted Average Lamb Price ($/cwt) | K88: =+(K11+K12)/(D11*F11+D12*F12) -> 245
C89: Sensitivity Analysis for Your Values
C90: Your Weaning Percent | D90: ="Your Gross Sales per "&F7 -> Your Gross Sales per Animal Unit | F90: ="Pounds Produced per "&F7 -> Pounds Produced per Animal Unit | H90: ="Your Breakeven "&F8&" Pay Weight to Cover Total Cost" -> Your Breakeven Lamb Pay Weight to Cover Total Cost | K90: Your Average Breakeven Price to Cover Total Cost
C91: =+C92+C80-C81 -> 1.2 | D91: =+IF($C$93=0,0,$L$18-$L$11-$L$12+($L$11+$L$12)*C91/$C$93) -> 0 | F91: =IF($C$93=0,0,$M$97*C91/$C$93+$M$98) -> 0 | H91: =IF($D$93=0,0,(YTotExp-(YTotRet+YTotExp-$L$11-$L$12))/(YPrice/100)/(C91-$E$13*$E$7/$E$8)/($E$8/$E$7)) -> 0 | K91: =IF(F91-$M$98=0,0,(YTotExp-(YTotRet+YTotExp-$L$11-$L$12))/(F91-$M$98)*100) -> 0
C92: =+C93+C81-C82 -> 1.1 | D92: =+IF($C$93=0,0,$L$18-$L$11-$L$12+($L$11+$L$12)*C92/$C$93) -> 0 | F92: =IF($C$93=0,0,$M$97*C92/$C$93+$M$98) -> 0 | H92: =IF($D$93=0,0,(YTotExp-(YTotRet+YTotExp-$L$11-$L$12))/(YPrice/100)/(C92-$E$13*$E$7/$E$8)/($E$8/$E$7)) -> 0 | K92: =IF(F92-$M$98=0,0,(YTotExp-(YTotRet+YTotExp-$L$11-$L$12))/(F92-$M$98)*100) -> 0
C93: 1 | D93: =+L18 -> 0 | F93: =M97+M98 -> 0 | H93: =IF($D$93=0,0,(YTotExp-(YTotRet+YTotExp-$L$11-$L$12))/(YPrice/100)/(C93-$E$13*$E$7/$E$8)/($E$8/$E$7)) -> 0 | K93: =IF(F93-$M$98=0,0,(YTotExp-(YTotRet+YTotExp-$L$11-$L$12))/(F93-$M$98)*100) -> 0
C94: =+C93+C83-C82 -> 0.9 | D94: =+IF($C$93=0,0,$L$18-$L$11-$L$12+($L$11+$L$12)*C94/$C$93) -> 0 | F94: =IF($C$93=0,0,$M$97*C94/$C$93+$M$98) -> 0 | H94: =IF($D$93=0,0,(YTotExp-(YTotRet+YTotExp-$L$11-$L$12))/(YPrice/100)/(C94-$E$13*$E$7/$E$8)/($E$8/$E$7)) -> 0 | K94: =IF(F94-$M$98=0,0,(YTotExp-(YTotRet+YTotExp-$L$11-$L$12))/(F94-$M$98)*100) -> 0
C95: =+C94+C84-C83 -> 0.8 | D95: =+IF($C$93=0,0,$L$18-$L$11-$L$12+($L$11+$L$12)*C95/$C$93) -> 0 | F95: =IF($C$93=0,0,$M$97*C95/$C$93+$M$98) -> 0 | H95: =IF($D$93=0,0,(YTotExp-(YTotRet+YTotExp-$L$11-$L$12))/(YPrice/100)/(C95-$E$13*$E$7/$E$8)/($E$8/$E$7)) -> 0 | K95: =IF(F95-$M$98=0,0,(YTotExp-(YTotRet+YTotExp-$L$11-$L$12))/(F95-$M$98)*100) -> 0
D97: ="Your Male "&F8&" Price" -> Your Male Lamb Price | K97: =+J11 -> 0 | M97: =(E11*G11+E12*G12)*100 -> 0
D98: ="Your Female "&F8&" Price" -> Your Female Lamb Price | K98: =+J12 -> 0 | M98: =(E13*G13+E14*G14)*100 -> 0
D99: ="Your Weighted Average "&F8&" Price ($/cwt)" -> Your Weighted Average Lamb Price ($/cwt) | K99: =+IF((E11*G11+E12*G12)=0,0,(L11+L12)/(E11*G11+E12*G12)) -> 0
A101: Developed by Jeffrey Wright, Assistant Professor & Extension Economist, Texas A&M AgriLife Extension, 325-657-7309
A103: Information presented is prepared solely as a general guide and not intended to recognize or predict the costs and returns from any one operation. Brand names are mentioned only as examples and imply no endorsement.

Sheet CommercialSheep
A1: Projections for Planning Purposes Only -- Not to be Used without Updating
A2: 2025 Estimated Costs and Returns per Animal Unit
A3: Commercial Sheep, Wool/Lamb Production, 5 Head per AU
A4: Enter your name for this budget in the cell above.
A5: Enter Your Values in the cells highlighed in MAROON.
E6: Your Ewes
B7: Animal Units (AU) | D7: 100 | F7: Animal Unit | N7: Your
B8: Breeding Females | D8: 500 | F8: Lamb | G8: Your | M8: Enterprise | N8: Enterprise
E9: Your | F9: Quantity | G9: Quantity | J9: Your | L9: Your | M9: Total | N9: Total
A10: REVENUE | D10: Head | E10: Head | F10: Per Head | G10: Per Head | H10: Units | I10: $/Unit | J10: $/Unit | K10: Total | L10: Total | M10: ="(" & D7 & " AUs)" -> (100 AUs) | N10: ="(" & E7 & " AUs)" -> ( AUs)
B11: Lambs - Wether | D11: 2.25 | F11: 0.75 | H11: CWT | I11: 290 | K11: 489.375 | L11: =+E11*G11*J11 -> 0 | M11: 48937.5 | N11: =+L11*E$7 -> 0
B12: Lambs - Ewe | D12: 1.25 | F12: 0.75 | H12: CWT | I12: 245 | K12: 229.6875 | L12: =+E12*G12*J12 -> 0 | M12: 22968.75 | N12: =+L12*E$7 -> 0
B13: Cull Ewes | D13: 1 | F13: 1.35 | H13: CWT | I13: 86.8 | K13: 117.18 | L13: 0 | M13: 11718 | N13: 0
B14: Cull Rams | D14: 0.05 | F14: 2 | H14: CWT | I14: 91.8 | K14: 9.18 | L14: 0 | M14: 918 | N14: 0
B15: Wool, 20.6-22.0 Mic | D15: 5 | F15: 4 | H15: Pound | I15: 6.3 | K15: 126 | L15: 0 | M15: 12600 | N15: 0
D16: 5 | F16: 6 | I16: 1.96 | K16: 58.8 | L16: 0 | M16: 5880 | N16: 0
D17: 0 | F17: 0 | I17: 0 | K17: 0 | L17: 0 | M17: 0 | N17: 0
A18: Total Revenue | F18: 262.5 | K18: 1030.2225 | L18: =+SUM(L11:L17) -> 0 | M18: 103022.25 | N18: =+SUM(N11:N17) -> 0
F19: 407.5
F20: 145 | M20: Enterprise | N20: Enterprise
A21: VARIABLE COSTS | F21: Quantity | G21: Quantity | H21: Units | I21: $/Unit | J21: $/Unit | K21: Total | L21: Total | M21: Total | N21: Total
A22: Production Costs
B23: Miscellaneous
C24: Supplies | F24: 1 | H24: AU | I24: 15 | K24: 15 | L24: =+J24*G24 -> 0 | M24: 1500 | N24: =+L24*E$7 -> 0
C25: Predator Control - Sheep | F25: 1 | H25: AU | I25: 5.25 | K25: 5.25 | L25: 0 | M25: 525 | N25: 0
C26: Brush Control | F26: 1 | H26: AU | I26: 30 | K26: 30 | L26: 0 | M26: 3000 | N26: 0
C27: PRF Rainfall Ins | F27: 1 | H27: AU | I27: 33.3 | K27: 33.3 | L27: 0 | M27: 3330 | N27: 0
F28: 1 | I28: 9.5 | K28: 9.5 | L28: 0 | M28: 950 | N28: 0
F29: 1 | I29: 16.25 | K29: 16.25 | L29: 0 | M29: 1625 | N29: 0
B30: Marketing Expense | F30: 1 | H30: AU | I30: 20.825 | K30: 20.825 | L30: 0 | M30: 2082.5 | N30: 0
B31: Feed
C32: Corn - Sheep and Goat | F32: 110 | H32: Pound | I32: 0.0714 | K32: 7.854 | L32: =+J32*G32 -> 0 | M32: 785.4 | N32: =+L32*E$7 -> 0
C33: Range Cubes 20% | F33: 2.25 | H33: CWT | I33: 17.9 | K33: 40.275 | L33: 0 | M33: 4027.5 | N33: 0
C34: Salt - Sheep | F34: 15 | H34: Pound | I34: 0.131 | K34: 1.965 | L34: 0 | M34: 196.5 | N34: 0
C35: Mineral - Sheep | F35: 6 | H35: Pound | I35: 0.437 | K35: 2.622 | L35: 0 | M35: 262.2 | N35: 0
C36: Dog food | F36: 0.05 | H36: Dog | I36: 362.26 | K36: 18.113 | L36: 0 | M36: 1811.3 | N36: 0
F37: 0 | I37: 0 | K37: 0 | L37: 0 | M37: 0 | N37: 0
F38: 0 | I38: 0 | K38: 0 | L38: 0 | M38: 0 | N38: 0
F39: 0 | I39: 0 | K39: 0 | L39: 0 | M39: 0 | N39: 0
B40: Vet. Medicine
C41: Overeat/Tetnus | F41: 4.5 | H41: Dose | I41: 0.8404 | K41: 3.7818 | L41: 0 | M41: 378.18 | N41: =+L41*E$7 -> 0
C42: Soremouth | F42: 4.5 | H42: Dose | I42: 0.34 | K42: 1.53 | L42: 0 | M42: 153 | N42: 0
C43: Guard/Working Dog Health | F43: 0.05 | H43: Head | I43: 250 | K43: 12.5 | L43: 0 | M43: 1250 | N43: 0
C44: S&G Deworm 1st | F44: 118.1 | H44: ML | I44: 0.058678 | K44: 6.9298718 | L44: 0 | M44: 692.98718 | N44: 0
C45: S&G Deworm 2nd | F45: 21.2 | H45: ML | I45: 0.069798 | K45: 1.4797176 | L45: 0 | M45: 147.97176 | N45: 0
F46: 0 | I46: 0 | K46: 0 | L46: 0 | M46: 0 | N46: 0
F47: 0 | I47: 0 | K47: 0 | L47: 0 | M47: 0 | N47: 0
F48: 0 | I48: 0 | K48: 0 | L48: 0 | M48: 0 | N48: 0
B49: Fuel | F49: 1 | H49: AU | I49: 56.7 | K49: 56.7 | L49: 0 | M49: 5670 | N49: 0
B50: Lube (As a % of fuel) | F50: 0.1 | H50: Percent | I50: 56.7 | K50: 5.67 | L50: 0 | M50: 567 | N50: 0
B51: Repairs | F51: 1 | H51: AU | I51: 52.32493714 | K51: 52.32493714 | L51: 0 | M51: 5232.493714 | N51: 0
B52: Labor | F52: 1 | H52: Hours | I52: 15 | K52: 15 | L52: 0 | M52: 1500 | N52: 0
B53: Utilities | F53: 1 | H53: AU | I53: 24 | K53: 24 | L53: 0 | M53: 2400 | N53: 0
K54: 0 | L54: =+J54*G54 -> 0 | M54: 0 | N54: 0
B55: Purchase Breeding Female | F55: 1 | I55: 0 | K55: 0 | L55: =+J55*G55 -> 0 | M55: 0 | N55: 0
B56: Purchase Breeding Male | F56: 1 | I56: 0 | K56: 0 | L56: 0 | M56: 0 | N56: 0
B57: Purchase Older Repalcement Female | F57: 1 | I57: 0 | K57: 0 | L57: 0 | M57: 0 | N57: 0
B58: Purchase Younger Repalcement Female | F58: 1 | I58: 0 | K58: 0 | L58: 0 | M58: 0 | N58: 0
B59: Interest on Credit Line | I59: 0.08 | K59: 31.54182158 | L59: =+SUM(L22:L58)/2*J59 -> 0 | M59: 3154.182158 | N59: 0
A60: Total Variable Costs | K60: 412.4121481 | L60: =+SUM(L24:L59) -> 0 | M60: 41241.21481 | N60: =+SUM(N24:N59) -> 0
A62: Planned Returns Above Variable Costs: | K62: 617.8103519 | L62: =+L18-L60 -> 0 | M62: 61781.03519 | N62: =+N18-N60 -> 0
B63: Average Lamb Breakeven Price to Cover Variable Costs | I63: 38.57224691 | J63: =IF((E11*G11+E12*G12)=0,"n/a",(L60-SUM(L13:L17))/(E11*G11+E12*G12)) -> n/a | K63: CWT
M64: Enterprise | N64: Enterprise
A65: FIXED COSTS | F65: Quantity | G65: Quantity | H65: Units | I65: $/Unit | J65: $/Unit | K65: Total | L65: Total | M65: Total | N65: Total
B66: Depreciation - Equipment | F66: 1 | H66: AU | I66: 57.50178072 | K66: 57.50178072 | L66: =+G66*J66 -> 0 | M66: 5750.178072 | N66: =+L66*E$7 -> 0
B67: Depreciation - Livestock | F67: 1 | H67: AU | I67: 43.46666667 | K67: 43.46666667 | L67: 0 | M67: 4346.666667 | N67: 0
B68: Equipment Investment | F68: 1546.324538 | H68: dollars | I68: 0.08 | K68: 123.705963 | L68: 0 | M68: 12370.5963 | N68: 0
B69: Insurance | F69: 1 | H69: AU | I69: 0 | K69: 0 | L69: 0 | M69: 0 | N69: 0
B70: Management Fee, Owner/Operator Labor | F70: 1 | H70: AU | I70: 0 | K70: 0 | L70: =+J70*G70 -> 0 | M70: 0 | N70: 0
B71: Salaried Labor | F71: 1 | H71: AU | I71: 0 | K71: 0 | L71: =+J71*G71 -> 0 | M71: 0 | N71: 0
B72: Pasture Cost | F72: 30 | H72: Acres | I72: 8 | K72: 240 | L72: 0 | M72: 24000 | N72: 0
K73: 0 | L73: 0 | M73: 0 | N73: 0
K74: 0 | L74: 0 | M74: 0 | N74: 0
A75: Total Fixed Costs | K75: 464.6744104 | L75: =+SUM(L66:L72) -> 0 | M75: 46467.44104 | N75: =+SUM(N66:N72) -> 0
A76: Total Costs | K76: 877.0865586 | L76: =+L60+L75 -> 0 | M76: 87708.65586 | N76: =+N60+N75 -> 0
A77: Planned Returns to Management, Risk, and Profit: | K77: 153.1359414 | L77: =+L18-L76 -> 0 | M77: 15313.59414 | N77: =+N18-N76 -> 0
B78: Average Lamb Breakeven Price to Cover Total Costs | I78: 215.5910699 | J78: =IF((E11*G11+E12*G12)=0,"n/a",(L76-SUM(L13:L17))/(E11*G11+E12*G12)) -> n/a | K78: CWT
C80: Sensitivity Analysis for Example
C81: Example Weaning Percent | D81: Example Gross Sales per Animal Unit | F81: Pounds Produced per Animal Unit | H81: Example Breakeven Lamb Pay Weight to Cover Total Cost | K81: Example Average Breakeven Price to Cover Total Cost
C82: 1.1 | D82: 1190.014167 | F82: 465.8333333 | H82: 45.91031041 | K82: 176.3926936
C83: 1 | D83: 1110.118333 | F83: 436.6666667 | H83: 51.64909922 | K83: 194.0319629
C84: 0.9 | D84: 1030.2225 | F84: 407.5 | H84: 59.02754196 | K84: 215.5910699
C85: 0.8 | D85: 950.3266667 | F85: 378.3333333 | H85: 68.86546562 | K85: 242.5399537
C86: 0.7 | D86: 870.4308333 | F86: 349.1666667 | H86: 82.63855875 | K86: 277.1885185
D88: ="Example Male "&F8&" Price" -> Example Male Lamb Price | K88: =+I11 -> 290
D89: ="Example Female "&F8&" Price" -> Example Female Lamb Price | K89: =+I12 -> 245
D90: ="Example Weighted Average "&F8&" Price ($/cwt)" -> Example Weighted Average Lamb Price ($/cwt) | K90: =+(K11+K12)/(D11*F11+D12*F12) -> 273.9285714
C91: Sensitivity Analysis for Your Values
C92: Your Weaning Percent | D92: ="Your Gross Sales per "&F7 -> Your Gross Sales per Animal Unit | F92: ="Pounds Produced per "&F7 -> Pounds Produced per Animal Unit | H92: ="Your Breakeven "&F8&" Pay Weight to Cover Total Cost" -> Your Breakeven Lamb Pay Weight to Cover Total Cost | K92: Your Average Breakeven Price to Cover Total Cost
C93: =+C94+C82-C83 -> 1.2 | D93: =+IF($C$95=0,0,$L$18-$L$11-$L$12+($L$11+$L$12)*C93/$C$95) -> 0 | F93: =IF($C$95=0,0,$M$99*C93/$C$95+$M$100) -> 0 | H93: =IF($D$95=0,0,(YTotExp-(YTotRet+YTotExp-$L$11-$L$12))/(YPrice/100)/(C93-$E$13*$E$7/$E$8)/($E$8/$E$7)) -> 0 | K93: =IF(F93-$M$100=0,0,(YTotExp-(YTotRet+YTotExp-$L$11-$L$12))/(F93-$M$100)*100) -> 0
C94: =+C95+C83-C84 -> 1.1 | D94: =+IF($C$95=0,0,$L$18-$L$11-$L$12+($L$11+$L$12)*C94/$C$95) -> 0 | F94: =IF($C$95=0,0,$M$99*C94/$C$95+$M$100) -> 0 | H94: =IF($D$95=0,0,(YTotExp-(YTotRet+YTotExp-$L$11-$L$12))/(YPrice/100)/(C94-$E$13*$E$7/$E$8)/($E$8/$E$7)) -> 0 | K94: =IF(F94-$M$100=0,0,(YTotExp-(YTotRet+YTotExp-$L$11-$L$12))/(F94-$M$100)*100) -> 0
C95: 1 | D95: =+L18 -> 0 | F95: =M99+M100 -> 0 | H95: =IF($D$95=0,0,(YTotExp-(YTotRet+YTotExp-$L$11-$L$12))/(YPrice/100)/(C95-$E$13*$E$7/$E$8)/($E$8/$E$7)) -> 0 | K95: =IF(F95-$M$100=0,0,(YTotExp-(YTotRet+YTotExp-$L$11-$L$12))/(F95-$M$100)*100) -> 0
C96: =+C95+C85-C84 -> 0.9 | D96: =+IF($C$95=0,0,$L$18-$L$11-$L$12+($L$11+$L$12)*C96/$C$95) -> 0 | F96: =IF($C$95=0,0,$M$99*C96/$C$95+$M$100) -> 0 | H96: =IF($D$95=0,0,(YTotExp-(YTotRet+YTotExp-$L$11-$L$12))/(YPrice/100)/(C96-$E$13*$E$7/$E$8)/($E$8/$E$7)) -> 0 | K96: =IF(F96-$M$100=0,0,(YTotExp-(YTotRet+YTotExp-$L$11-$L$12))/(F96-$M$100)*100) -> 0
C97: =+C96+C86-C85 -> 0.8 | D97: =+IF($C$95=0,0,$L$18-$L$11-$L$12+($L$11+$L$12)*C97/$C$95) -> 0 | F97: =IF($C$95=0,0,$M$99*C97/$C$95+$M$100) -> 0 | H97: =IF($D$95=0,0,(YTotExp-(YTotRet+YTotExp-$L$11-$L$12))/(YPrice/100)/(C97-$E$13*$E$7/$E$8)/($E$8/$E$7)) -> 0 | K97: =IF(F97-$M$100=0,0,(YTotExp-(YTotRet+YTotExp-$L$11-$L$12))/(F97-$M$100)*100) -> 0
D99: ="Your Male "&F8&" Price" -> Your Male Lamb Price | K99: =+J11 -> 0 | M99: =(E11*G11+E12*G12)*100 -> 0
D100: ="Your Female "&F8&" Price" -> Your Female Lamb Price | K100: =+J12 -> 0 | M100: =(E13*G13+E14*G14)*100 -> 0
D101: ="Your Weighted Average "&F8&" Price ($/cwt)" -> Your Weighted Average Lamb Price ($/cwt) | K101: =+IF((E11*G11+E12*G12)=0,0,(L11+L12)/(E11*G11+E12*G12)) -> 0
A103: Developed by Jeffrey Wright, Assistant Professor & Extension Economist, Texas A&M AgriLife Extension, 325-657-7309
A105: Information presented is prepared solely as a general guide and not intended to recognize or predict the costs and returns from any one operation. Brand names are mentioned only as examples and imply no endorsement.

Sheet MeatGoats
A1: Projections for Planning Purposes Only -- Not to be Used without Updating
A2: 2025 Estimated Costs and Returns per Animal Unit
A3: Commercial Meat Goats, 6 Head per AU
A4: Enter your name for this budget in the cell above.
A5: Enter Your Values in the cells highlighed in MAROON.
E6: Your Does
B7: Animal Units (AU) | D7: 100 | F7: Animal Unit | N7: Your
B8: Breeding Females | D8: 600 | F8: Kid | G8: Your | M8: Enterprise | N8: Enterprise
E9: Your | F9: Quantity | G9: Quantity | J9: Your | L9: Your | M9: Total | N9: Total
A10: REVENUE | D10: Head | E10: Head | F10: Per Head | G10: Per Head | H10: Units | I10: $/Unit | J10: $/Unit | K10: Total | L10: Total | M10: ="(" & D7 & " AUs)" -> (100 AUs) | N10: ="(" & E7 & " AUs)" -> ( AUs)
B11: Meat Goat Kid - Buck | D11: 3.6 | F11: 0.57 | H11: CWT | I11: 290.9 | K11: 596.9268 | L11: =+E11*G11*J11 -> 0 | M11: 59692.68 | N11: =+L11*E$7 -> 0
B12: Meat Goat Kid - Doe | D12: 2.4 | F12: 0.57 | H12: CWT | I12: 290.9 | K12: 397.9512 | L12: =+E12*G12*J12 -> 0 | M12: 39795.12 | N12: =+L12*E$7 -> 0
B13: Cull Does | D13: 1.2 | F13: 1.1 | H13: CWT | I13: 154.8 | K13: 204.336 | L13: 0 | M13: 20433.6 | N13: 0
B14: Cull Billy | D14: 0.06 | F14: 1.7 | H14: CWT | I14: 161 | K14: 16.422 | L14: 0 | M14: 1642.2 | N14: 0
B15: PRF Income | D15: 6 | F15: 5 | H15: Acre | I15: 1.96 | K15: 58.8 | L15: 0 | M15: 5880 | N15: 0
D16: 0 | F16: 0 | I16: 0 | K16: 0 | L16: 0 | M16: 0 | N16: 0
D17: 0 | F17: 0 | I17: 0 | K17: 0 | L17: 0 | M17: 0 | N17: 0
A18: Total Revenue | F18: 342 | K18: 1274.436 | L18: =+SUM(L11:L17) -> 0 | M18: 127443.6 | N18: =+SUM(N11:N17) -> 0
F19: 484.2
F20: 142.2 | M20: Enterprise | N20: Enterprise
A21: VARIABLE COSTS | F21: Quantity | G21: Quantity | H21: Units | I21: $/Unit | J21: $/Unit | K21: Total | L21: Total | M21: Total | N21: Total
A22: Production Costs
B23: Miscellaneous
C24: Supplies | F24: 1 | H24: AU | I24: 18 | K24: 18 | L24: =+J24*G24 -> 0 | M24: 1800 | N24: =+L24*E$7 -> 0
C25: Predator Control - Goats | F25: 1 | H25: AU | I25: 10.5 | K25: 10.5 | L25: 0 | M25: 1050 | N25: 0
C26: Brush Control | F26: 1 | H26: AU | I26: 30 | K26: 30 | L26: 0 | M26: 3000 | N26: 0
C27: PRF Rainfall Ins | F27: 1 | H27: AU | I27: 33.3 | K27: 33.3 | L27: 0 | M27: 3330 | N27: 0
F28: 1 | I28: 0 | K28: 0 | L28: 0 | M28: 0 | N28: 0
F29: 1 | I29: 0 | K29: 0 | L29: 0 | M29: 0 | N29: 0
B30: Marketing Expense | F30: 1 | H30: AU | I30: 28.677 | K30: 28.677 | L30: 0 | M30: 2867.7 | N30: 0
B31: Feed
C32: Corn - Sheep and Goat | F32: 67.5 | H32: Pound | I32: 0.0714 | K32: 4.8195 | L32: =+J32*G32 -> 0 | M32: 481.95 | N32: =+L32*E$7 -> 0
C33: Range Cubes 20% | F33: 1.35 | H33: CWT | I33: 17.9 | K33: 24.165 | L33: 0 | M33: 2416.5 | N33: 0
C34: Salt - Sheep | F34: 15 | H34: Pound | I34: 0.131 | K34: 1.965 | L34: 0 | M34: 196.5 | N34: 0
C35: Mineral - Sheep | F35: 6 | H35: Pound | I35: 0.437 | K35: 2.622 | L35: 0 | M35: 262.2 | N35: 0
C36: Dog food | F36: 0.05 | H36: Dog | I36: 362.26 | K36: 18.113 | L36: 0 | M36: 1811.3 | N36: 0
F37: 0 | I37: 0 | K37: 0 | L37: 0 | M37: 0 | N37: 0
F38: 0 | I38: 0 | K38: 0 | L38: 0 | M38: 0 | N38: 0
F39: 0 | I39: 0 | K39: 0 | L39: 0 | M39: 0 | N39: 0
B40: Vet. Medicine
C41: S&G Deworm 1st | F41: 82.8 | H41: ML | I41: 0.058678 | K41: 4.8585384 | L41: 0 | M41: 485.85384 | N41: =+L41*E$7 -> 0
C42: Soremouth | F42: 7.2 | H42: Dose | I42: 0.34 | K42: 2.448 | L42: 0 | M42: 244.8 | N42: 0
C43: Guard/Working Dog Health | F43: 0.05 | H43: Head | I43: 250 | K43: 12.5 | L43: 0 | M43: 1250 | N43: 0
F44: 0 | I44: 0 | K44: 0 | L44: 0 | M44: 0 | N44: 0
F45: 0 | I45: 0 | K45: 0 | L45: 0 | M45: 0 | N45: 0
F46: 0 | I46: 0 | K46: 0 | L46: 0 | M46: 0 | N46: 0
B47: Fuel | F47: 1 | H47: AU | I47: 48.6 | K47: 48.6 | L47: 0 | M47: 4860 | N47: 0
B48: Lube (As a % of fuel) | F48: 0.1 | H48: Percent | I48: 48.6 | K48: 4.86 | L48: 0 | M48: 486 | N48: 0
B49: Repairs | F49: 1 | H49: AU | I49: 52.32493714 | K49: 52.32493714 | L49: 0 | M49: 5232.493714 | N49: 0
B50: Labor | F50: 0.3 | H50: Hours | I50: 15 | K50: 4.5 | L50: 0 | M50: 450 | N50: 0
B51: Utilities | F51: 1 | H51: AU | I51: 24 | K51: 24 | L51: 0 | M51: 2400 | N51: 0
K52: 0 | L52: =+J52*G52 -> 0 | M52: 0 | N52: 0
B53: Purchase Breeding Female | F53: 1 | I53: 0 | K53: 0 | L53: =+J53*G53 -> 0 | M53: 0 | N53: 0
B54: Purchase Breeding Male | F54: 1 | I54: 0 | K54: 0 | L54: 0 | M54: 0 | N54: 0
B55: Purchase Older Repalcement Female | F55: 1 | I55: 0 | K55: 0 | L55: 0 | M55: 0 | N55: 0
B56: Purchase Younger Repalcement Female | F56: 1 | I56: 0 | K56: 0 | L56: 0 | M56: 0 | N56: 0
B57: Interest on Credit Line | I57: 0.08 | K57: 28.75206395 | L57: =+SUM(L22:L56)/2*J57 -> 0 | M57: 2875.206395 | N57: 0
A58: Total Variable Costs | K58: 355.0050395 | L58: =+SUM(L24:L57) -> 0 | M58: 35500.50395 | N58: =+SUM(N24:N57) -> 0
A60: Planned Returns Above Variable Costs: | K60: 919.4309605 | L60: =+L18-L58 -> 0 | M60: 91943.09605 | N60: =+N18-N58 -> 0
B61: Average Kid Breakeven Price to Cover Variable Costs | I61: 22.06053786 | J61: =IF((E11*G11+E12*G12)=0,"n/a",(L58-SUM(L13:L17))/(E11*G11+E12*G12)) -> n/a | K61: CWT
M62: Enterprise | N62: Enterprise
A63: FIXED COSTS | F63: Quantity | G63: Quantity | H63: Units | I63: $/Unit | J63: $/Unit | K63: Total | L63: Total | M63: Total | N63: Total
B64: Depreciation - Equipment | F64: 1 | H64: AU | I64: 58.28928072 | K64: 58.28928072 | L64: =+G64*J64 -> 0 | M64: 5828.928072 | N64: =+L64*E$7 -> 0
B65: Depreciation - Livestock | F65: 1 | H65: AU | I65: 39.64166667 | K65: 39.64166667 | L65: 0 | M65: 3964.166667 | N65: 0
B66: Equipment Investment | F66: 1564.699538 | H66: dollars | I66: 0.08 | K66: 125.175963 | L66: 0 | M66: 12517.5963 | N66: 0
B67: Insurance | F67: 1 | H67: AU | I67: 0 | K67: 0 | L67: 0 | M67: 0 | N67: 0
B68: Management Fee, Owner/Operator Labor | F68: 1 | H68: AU | I68: 0 | K68: 0 | L68: =+J68*G68 -> 0 | M68: 0 | N68: 0
B69: Salaried Labor | F69: 1 | H69: AU | I69: 0 | K69: 0 | L69: =+J69*G69 -> 0 | M69: 0 | N69: 0
B70: Pasture Cost | F70: 30 | H70: Acres | I70: 8 | K70: 240 | L70: 0 | M70: 24000 | N70: 0
K71: 0 | L71: 0 | M71: 0 | N71: 0
K72: 0 | L72: 0 | M72: 0 | N72: 0
A73: Total Fixed Costs | K73: 463.1069104 | L73: =+SUM(L64:L70) -> 0 | M73: 46310.69104 | N73: =+SUM(N64:N70) -> 0
A74: Total Costs | K74: 818.1119499 | L74: =+L58+L73 -> 0 | M74: 81811.19499 | N74: =+N58+N73 -> 0
A75: Planned Returns to Management, Risk, and Profit: | K75: 456.3240501 | L75: =+L18-L74 -> 0 | M75: 45632.40501 | N75: =+N18-N74 -> 0
B76: Average Kid Breakeven Price to Cover Total Costs | I76: 157.4719152 | J76: =IF((E11*G11+E12*G12)=0,"n/a",(L74-SUM(L13:L17))/(E11*G11+E12*G12)) -> n/a | K76: CWT
C78: Sensitivity Analysis for Example
C79: Example Weaning Percent | D79: Example Gross Sales per Animal Unit | F79: Pounds Produced per Animal Unit | H79: Example Breakeven Kid Pay Weight to Cover Total Cost | K79: Example Average Breakeven Price to Cover Total Cost
C80: 1.4 | D80: 1440.249 | F80: 541.2 | H80: 25.71301468 | K80: 134.9759273
C81: 1.3 | D81: 1357.3425 | F81: 512.7 | H81: 28.05056147 | K81: 145.3586909
C82: 1.2 | D82: 1274.436 | F82: 484.2 | H82: 30.85561762 | K82: 157.4719152
C83: 1.1 | D83: 1191.5295 | F83: 455.7 | H83: 34.28401958 | K83: 171.7875438
C84: 1 | D84: 1108.623 | F84: 427.2 | H84: 38.56952202 | K84: 188.9662982
D86: ="Example Male "&F8&" Price" -> Example Male Kid Price | K86: =+I11 -> 290.9
D87: ="Example Female "&F8&" Price" -> Example Female Kid Price | K87: =+I12 -> 290.9
D88: ="Example Weighted Average "&F8&" Price ($/cwt)" -> Example Weighted Average Kid Price ($/cwt) | K88: =+(K11+K12)/(D11*F11+D12*F12) -> 290.9
C89: Sensitivity Analysis for Your Values
C90: Your Weaning Percent | D90: ="Your Gross Sales per "&F7 -> Your Gross Sales per Animal Unit | F90: ="Pounds Produced per "&F7 -> Pounds Produced per Animal Unit | H90: ="Your Breakeven "&F8&" Pay Weight to Cover Total Cost" -> Your Breakeven Kid Pay Weight to Cover Total Cost | K90: Your Average Breakeven Price to Cover Total Cost
C91: =+C92+C80-C81 -> 1.2 | D91: =+IF($C$93=0,0,$L$18-$L$11-$L$12+($L$11+$L$12)*C91/$C$93) -> 0 | F91: =IF($C$93=0,0,$M$97*C91/$C$93+$M$98) -> 0 | H91: =IF($D$93=0,0,(YTotExp-(YTotRet+YTotExp-$L$11-$L$12))/(YPrice/100)/(C91-$E$13*$E$7/$E$8)/($E$8/$E$7)) -> 0 | K91: =IF(F91-$M$98=0,0,(YTotExp-(YTotRet+YTotExp-$L$11-$L$12))/(F91-$M$98)*100) -> 0
C92: =+C93+C81-C82 -> 1.1 | D92: =+IF($C$93=0,0,$L$18-$L$11-$L$12+($L$11+$L$12)*C92/$C$93) -> 0 | F92: =IF($C$93=0,0,$M$97*C92/$C$93+$M$98) -> 0 | H92: =IF($D$93=0,0,(YTotExp-(YTotRet+YTotExp-$L$11-$L$12))/(YPrice/100)/(C92-$E$13*$E$7/$E$8)/($E$8/$E$7)) -> 0 | K92: =IF(F92-$M$98=0,0,(YTotExp-(YTotRet+YTotExp-$L$11-$L$12))/(F92-$M$98)*100) -> 0
C93: 1 | D93: =+L18 -> 0 | F93: =M97+M98 -> 0 | H93: =IF($D$93=0,0,(YTotExp-(YTotRet+YTotExp-$L$11-$L$12))/(YPrice/100)/(C93-$E$13*$E$7/$E$8)/($E$8/$E$7)) -> 0 | K93: =IF(F93-$M$98=0,0,(YTotExp-(YTotRet+YTotExp-$L$11-$L$12))/(F93-$M$98)*100) -> 0
C94: =+C93+C83-C82 -> 0.9 | D94: =+IF($C$93=0,0,$L$18-$L$11-$L$12+($L$11+$L$12)*C94/$C$93) -> 0 | F94: =IF($C$93=0,0,$M$97*C94/$C$93+$M$98) -> 0 | H94: =IF($D$93=0,0,(YTotExp-(YTotRet+YTotExp-$L$11-$L$12))/(YPrice/100)/(C94-$E$13*$E$7/$E$8)/($E$8/$E$7)) -> 0 | K94: =IF(F94-$M$98=0,0,(YTotExp-(YTotRet+YTotExp-$L$11-$L$12))/(F94-$M$98)*100) -> 0
C95: =+C94+C84-C83 -> 0.8 | D95: =+IF($C$93=0,0,$L$18-$L$11-$L$12+($L$11+$L$12)*C95/$C$93) -> 0 | F95: =IF($C$93=0,0,$M$97*C95/$C$93+$M$98) -> 0 | H95: =IF($D$93=0,0,(YTotExp-(YTotRet+YTotExp-$L$11-$L$12))/(YPrice/100)/(C95-$E$13*$E$7/$E$8)/($E$8/$E$7)) -> 0 | K95: =IF(F95-$M$98=0,0,(YTotExp-(YTotRet+YTotExp-$L$11-$L$12))/(F95-$M$98)*100) -> 0
D97: ="Your Male "&F8&" Price" -> Your Male Kid Price | K97: =+J11 -> 0 | M97: =(E11*G11+E12*G12)*100 -> 0
D98: ="Your Female "&F8&" Price" -> Your Female Kid Price | K98: =+J12 -> 0 | M98: =(E13*G13+E14*G14)*100 -> 0
D99: ="Your Weighted Average "&F8&" Price ($/cwt)" -> Your Weighted Average Kid Price ($/cwt) | K99: =+IF((E11*G11+E12*G12)=0,0,(L11+L12)/(E11*G11+E12*G12)) -> 0
A101: Developed by Jeffrey Wright, Assistant Professor & Extension Economist, Texas A&M AgriLife Extension, 325-657-7309
A103: Information presented is prepared solely as a general guide and not intended to recognize or predict the costs and returns from any one operation. Brand names are mentioned only as examples and imply no endorsement.

Sheet SmallAcreageGoat
A1: Projections for Planning Purposes Only -- Not to be Used without Updating
A2: 2025 Estimated Costs and Returns per Breeding Female
A3: Small Acreage Meat Goats
A4: Enter your name for this budget in the cell above.
A5: Enter Your Values in the cells highlighed in MAROON.
E6: Your Nannies
B7: Animal Units (AU) | D7: 12 | E7: =E8 -> 0 | F7: Breeding Female | N7: Your
B8: Breeding Females | D8: 12 | F8: Kid | G8: Your | M8: Enterprise | N8: Enterprise
E9: Your | F9: Quantity | G9: Quantity | J9: Your | L9: Your | M9: Total | N9: Total
A10: REVENUE | D10: Head | E10: Head | F10: Per Head | G10: Per Head | H10: Units | I10: $/Unit | J10: $/Unit | K10: Total | L10: Total | M10: ="(" & D8 & " Head)" -> (12 Head) | N10: ="(" & E7 & " AUs)" -> (0 AUs)
B11: Meat Goat Kid - Buck | D11: 0.6666666667 | F11: 0.55 | H11: CWT | I11: 290.9 | K11: 106.6633333 | L11: =+E11*G11*J11 -> 0 | M11: 1279.96 | N11: =+L11*E$7 -> 0
B12: Meat Goat Kid - Doe | D12: 0.4166666667 | F12: 0.55 | H12: CWT | I12: 290.9 | K12: 66.66458333 | L12: =+E12*G12*J12 -> 0 | M12: 799.975 | N12: =+L12*E$7 -> 0
B13: Cull Does | D13: 0.1666666667 | F13: 1.15 | H13: CWT | I13: 154.8 | K13: 29.67 | L13: 0 | M13: 356.04 | N13: 0
B14: Cull Billy | D14: 0.04166666667 | F14: 2 | H14: CWT | I14: 161 | K14: 13.41666667 | L14: 0 | M14: 161 | N14: 0
B15: PRF Income | D15: 1 | F15: 3.33 | H15: Acre | I15: 1.96 | K15: 6.5268 | L15: 0 | M15: 78.3216 | N15: 0
D16: 0 | F16: 0 | I16: 0 | K16: 0 | L16: 0 | M16: 0 | N16: 0
D17: 0 | F17: 0 | I17: 0 | K17: 0 | L17: 0 | M17: 0 | N17: 0
A18: Total Revenue | F18: 59.58333333 | K18: 222.9413833 | L18: =+SUM(L11:L17) -> 0 | M18: 2675.2966 | N18: =+SUM(N11:N17) -> 0
F19: 87.08333333
F20: 27.5 | M20: Enterprise | N20: Enterprise
A21: VARIABLE COSTS | F21: Quantity | G21: Quantity | H21: Units | I21: $/Unit | J21: $/Unit | K21: Total | L21: Total | M21: Total | N21: Total
A22: Production Costs
B23: Miscellaneous
C24: Supplies | F24: 1 | H24: Head | I24: 2 | K24: 2 | L24: =+J24*G24 -> 0 | M24: 24 | N24: =+L24*E$7 -> 0
C25: PRF Rainfall Ins | F25: 1 | H25: Head | I25: 3.7 | K25: 3.7 | L25: 0 | M25: 44.4 | N25: 0
F26: 1 | I26: 0 | K26: 0 | L26: 0 | M26: 0 | N26: 0
F27: 1 | I27: 0 | K27: 0 | L27: 0 | M27: 0 | N27: 0
B28: Marketing Expense | F28: 1 | H28: Head | I28: 5.102083333 | K28: 5.102083333 | L28: 0 | M28: 61.225 | N28: 0
B29: Feed
C30: Salt - Sheep | F30: 2.708333333 | H30: Pound | I30: 0.131 | K30: 0.3547916667 | L30: =+J30*G30 -> 0 | M30: 4.2575 | N30: =+L30*E$7 -> 0
C31: Mineral - Sheep | F31: 1.083333333 | H31: Pound | I31: 0.437 | K31: 0.4734166667 | L31: 0 | M31: 5.681 | N31: 0
C32: Range Cubes 20% | F32: 0.4875 | H32: CWT | I32: 17.9 | K32: 8.72625 | L32: 0 | M32: 104.715 | N32: 0
C33: Corn - Sheep and Goat | F33: 24.375 | H33: Pound | I33: 0.0714 | K33: 1.740375 | L33: 0 | M33: 20.8845 | N33: 0
F34: 0 | I34: 0 | K34: 0 | L34: 0 | M34: 0 | N34: 0
F35: 0 | I35: 0 | K35: 0 | L35: 0 | M35: 0 | N35: 0
F36: 0 | I36: 0 | K36: 0 | L36: 0 | M36: 0 | N36: 0
B37: Vet. Medicine
C38: Soremouth | F38: 1.25 | H38: Dose | I38: 0.34 | K38: 0.425 | L38: 0 | M38: 5.1 | N38: =+L38*E$7 -> 0
C39: S&G Deworm 1st | F39: 14.33333333 | H39: ML | I39: 0.058678 | K39: 0.8410513333 | L39: 0 | M39: 10.092616 | N39: 0
C40: S&G Deworm 2nd | F40: 3.725 | H40: ML | I40: 0.069798 | K40: 0.25999755 | L40: 0 | M40: 3.1199706 | N40: 0
F41: 0 | I41: 0 | K41: 0 | L41: 0 | M41: 0 | N41: 0
F42: 0 | I42: 0 | K42: 0 | L42: 0 | M42: 0 | N42: 0
F43: 0 | I43: 0 | K43: 0 | L43: 0 | M43: 0 | N43: 0
B44: Fuel | F44: 1 | H44: Head | I44: 4.975 | K44: 4.975 | L44: 0 | M44: 59.7 | N44: 0
B45: Lube (As a % of fuel) | F45: 0.1 | H45: Percent | I45: 4.975 | K45: 0.4975 | L45: 0 | M45: 5.97 | N45: 0
B46: Repairs | F46: 1 | H46: Head | I46: 32.57745536 | K46: 32.57745536 | L46: 0 | M46: 390.9294643 | N46: 0
B47: Labor | F47: 0 | H47: Hours | I47: 0 | K47: 0 | L47: 0 | M47: 0 | N47: 0
B48: Utilities | F48: 1 | H48: Head | I48: 6 | K48: 6 | L48: 0 | M48: 72 | N48: 0
K49: 0 | L49: =+J49*G49 -> 0 | M49: 0 | N49: 0
B50: Purchase Breeding Female | F50: 1 | I50: 0 | K50: 0 | L50: =+J50*G50 -> 0 | M50: 0 | N50: 0
B51: Purchase Breeding Male | F51: 1 | I51: 0 | K51: 0 | L51: 0 | M51: 0 | N51: 0
B52: Purchase Older Repalcement Female | F52: 1 | I52: 0 | K52: 0 | L52: 0 | M52: 0 | N52: 0
B53: Purchase Younger Repalcement Female | F53: 1 | I53: 0 | K53: 0 | L53: 0 | M53: 0 | N53: 0
B54: Interest on Credit Line | I54: 0.08 | K54: 3.806485922 | L54: =+SUM(L22:L53)/2*J54 -> 0 | M54: 45.67783107 | N54: 0
A55: Total Variable Costs | K55: 71.47940683 | L55: =+SUM(L24:L54) -> 0 | M55: 857.752882 | N55: =+SUM(N24:N54) -> 0
A57: Planned Returns Above Variable Costs: | K57: 151.4619765 | L57: =+L18-L55 -> 0 | M57: 1817.543718 | N57: =+N18-N55 -> 0
B58: Average Kid Breakeven Price to Cover Variable Costs | I58: 36.69808139 | J58: =IF((E11*G11+E12*G12)=0,"n/a",(L55-SUM(L13:L17))/(E11*G11+E12*G12)) -> n/a | K58: CWT
M59: Enterprise | N59: Enterprise
A60: FIXED COSTS | F60: Quantity | G60: Quantity | H60: Units | I60: $/Unit | J60: $/Unit | K60: Total | L60: Total | M60: Total | N60: Total
B61: Depreciation - Equipment | F61: 1 | H61: Head | I61: 130.9328125 | K61: 130.9328125 | L61: =+G61*J61 -> 0 | M61: 1571.19375 | N61: =+L61*E$7 -> 0
B62: Depreciation - Livestock | F62: 1 | H62: Head | I62: 5.555555556 | K62: 5.555555556 | L62: 0 | M62: 66.66666667 | N62: 0
B63: Equipment Investment | F63: 0 | H63: dollars | I63: 0 | K63: 0 | L63: 0 | M63: 0 | N63: 0
B64: Insurance | F64: 1 | H64: Head | I64: 0 | K64: 0 | L64: 0 | M64: 0 | N64: 0
B65: Management Fee, Owner/Operator Labor | F65: 1 | H65: Head | I65: 0 | K65: 0 | L65: =+J65*G65 -> 0 | M65: 0 | N65: 0
B66: Salaried Labor | F66: 1 | H66: Head | I66: 0 | K66: 0 | L66: =+J66*G66 -> 0 | M66: 0 | N66: 0
B67: Pasture Cost | F67: 3.333333333 | H67: Acres | I67: 8 | K67: 26.66666667 | L67: 0 | M67: 320 | N67: 0
K68: 0 | L68: 0 | M68: 0 | N68: 0
K69: 0 | L69: 0 | M69: 0 | N69: 0
A70: Total Fixed Costs | K70: 163.1550347 | L70: =+SUM(L61:L67) -> 0 | M70: 1957.860417 | N70: =+SUM(N61:N67) -> 0
A71: Total Costs | K71: 234.6344416 | L71: =+L55+L70 -> 0 | M71: 2815.613299 | N71: =+N55+N70 -> 0
A72: Planned Returns to Management, Risk, and Profit: | K72: -11.69305822 | L72: =+L18-L71 -> 0 | M72: -140.3166986 | N72: =+N18-N71 -> 0
B73: Average Kid Breakeven Price to Cover Total Costs | I73: 310.5247131 | J73: =IF((E11*G11+E12*G12)=0,"n/a",(L71-SUM(L13:L17))/(E11*G11+E12*G12)) -> n/a | K73: CWT
C75: Sensitivity Analysis for Example
C76: Example Weaning Percent | D76: Example Gross Sales per Breeding Female | F76: Pounds Produced per Breeding Female | H76: Example Breakeven Kid Pay Weight to Cover Total Cost | K76: Example Average Breakeven Price to Cover Total Cost
C77: 1.45 | D77: 250.67385 | F77: 96.61666667 | H77: 49.56073847 | K77: 267.6937182
C78: 1.35 | D78: 236.8076167 | F78: 91.85 | H78: 53.74896989 | K78: 287.5228825
C79: 1.25 | D79: 222.9413833 | F79: 87.08333333 | H79: 58.71041327 | K79: 310.5247131
C80: 1.15 | D80: 209.07515 | F80: 82.31666667 | H80: 64.68096377 | K80: 337.5268621
C81: 1.05 | D81: 195.2089167 | F81: 77.55 | H81: 72.00333703 | K81: 369.6722775
D83: ="Example Male "&F8&" Price" -> Example Male Kid Price | K83: =+I11 -> 290.9
D84: ="Example Female "&F8&" Price" -> Example Female Kid Price | K84: =+I12 -> 290.9
D85: ="Example Weighted Average "&F8&" Price ($/cwt)" -> Example Weighted Average Kid Price ($/cwt) | K85: =+(K11+K12)/(D11*F11+D12*F12) -> 290.9
C86: Sensitivity Analysis for Your Values
C87: Your Weaning Percent | D87: ="Your Gross Sales per "&F7 -> Your Gross Sales per Breeding Female | F87: ="Pounds Produced per "&F7 -> Pounds Produced per Breeding Female | H87: ="Your Breakeven "&F8&" Pay Weight to Cover Total Cost" -> Your Breakeven Kid Pay Weight to Cover Total Cost | K87: Your Average Breakeven Price to Cover Total Cost
C88: =+C89+C77-C78 -> 1.2 | D88: =+IF($C$90=0,0,$L$18-$L$11-$L$12+($L$11+$L$12)*C88/$C$90) -> 0 | F88: =IF($C$90=0,0,$M$94*C88/$C$90+$M$95) -> 0 | H88: =IF($D$90=0,0,(YTotExp-(YTotRet+YTotExp-$L$11-$L$12))/(YPrice/100)/(C88-$E$13*$E$7/$E$8)/($E$8/$E$7)) -> 0 | K88: =IF(F88-$M$95=0,0,(YTotExp-(YTotRet+YTotExp-$L$11-$L$12))/(F88-$M$95)*100) -> 0
C89: =+C90+C78-C79 -> 1.1 | D89: =+IF($C$90=0,0,$L$18-$L$11-$L$12+($L$11+$L$12)*C89/$C$90) -> 0 | F89: =IF($C$90=0,0,$M$94*C89/$C$90+$M$95) -> 0 | H89: =IF($D$90=0,0,(YTotExp-(YTotRet+YTotExp-$L$11-$L$12))/(YPrice/100)/(C89-$E$13*$E$7/$E$8)/($E$8/$E$7)) -> 0 | K89: =IF(F89-$M$95=0,0,(YTotExp-(YTotRet+YTotExp-$L$11-$L$12))/(F89-$M$95)*100) -> 0
C90: 1 | D90: =+L18 -> 0 | F90: =M94+M95 -> 0 | H90: =IF($D$90=0,0,(YTotExp-(YTotRet+YTotExp-$L$11-$L$12))/(YPrice/100)/(C90-$E$13*$E$7/$E$8)/($E$8/$E$7)) -> 0 | K90: =IF(F90-$M$95=0,0,(YTotExp-(YTotRet+YTotExp-$L$11-$L$12))/(F90-$M$95)*100) -> 0
C91: =+C90+C80-C79 -> 0.9 | D91: =+IF($C$90=0,0,$L$18-$L$11-$L$12+($L$11+$L$12)*C91/$C$90) -> 0 | F91: =IF($C$90=0,0,$M$94*C91/$C$90+$M$95) -> 0 | H91: =IF($D$90=0,0,(YTotExp-(YTotRet+YTotExp-$L$11-$L$12))/(YPrice/100)/(C91-$E$13*$E$7/$E$8)/($E$8/$E$7)) -> 0 | K91: =IF(F91-$M$95=0,0,(YTotExp-(YTotRet+YTotExp-$L$11-$L$12))/(F91-$M$95)*100) -> 0
C92: =+C91+C81-C80 -> 0.8 | D92: =+IF($C$90=0,0,$L$18-$L$11-$L$12+($L$11+$L$12)*C92/$C$90) -> 0 | F92: =IF($C$90=0,0,$M$94*C92/$C$90+$M$95) -> 0 | H92: =IF($D$90=0,0,(YTotExp-(YTotRet+YTotExp-$L$11-$L$12))/(YPrice/100)/(C92-$E$13*$E$7/$E$8)/($E$8/$E$7)) -> 0 | K92: =IF(F92-$M$95=0,0,(YTotExp-(YTotRet+YTotExp-$L$11-$L$12))/(F92-$M$95)*100) -> 0
D94: ="Your Male "&F8&" Price" -> Your Male Kid Price | K94: =+J11 -> 0 | M94: =(E11*G11+E12*G12)*100 -> 0
D95: ="Your Female "&F8&" Price" -> Your Female Kid Price | K95: =+J12 -> 0 | M95: =(E13*G13+E14*G14)*100 -> 0
D96: ="Your Weighted Average "&F8&" Price ($/cwt)" -> Your Weighted Average Kid Price ($/cwt) | K96: =+IF((E11*G11+E12*G12)=0,0,(L11+L12)/(E11*G11+E12*G12)) -> 0
A98: Developed by Jeffrey Wright, Assistant Professor & Extension Economist, Texas A&M AgriLife Extension, 325-657-7309
A100: Information presented is prepared solely as a general guide and not intended to recognize or predict the costs and returns from any one operation. Brand names are mentioned only as examples and imply no endorsement.

Sheet SmallAcreageHairSheep
A1: Projections for Planning Purposes Only -- Not to be Used without Updating
A2: 2025 Estimated Costs and Returns per Breeding Female
A3: Small Acreage Hair Sheep
A4: Enter your name for this budget in the cell above.
A5: Enter Your Values in the cells highlighed in MAROON.
E6: Your Ewe
B7: Animal Units (AU) | D7: 12 | E7: =E8 -> 0 | F7: Breeding Female | N7: Your
B8: Breeding Females | D8: 12 | F8: Lamb | G8: Your | M8: Enterprise | N8: Enterprise
E9: Your | F9: Quantity | G9: Quantity | J9: Your | L9: Your | M9: Total | N9: Total
A10: REVENUE | D10: Head | E10: Head | F10: Per Head | G10: Per Head | H10: Units | I10: $/Unit | J10: $/Unit | K10: Total | L10: Total | M10: ="(" & D8 & " Head)" -> (12 Head) | N10: ="(" & E7 & " AUs)" -> (0 AUs)
B11: Slaughter Lamb - ewe (65lbs) | D11: 0.6666666667 | F11: 0.65 | H11: CWT | I11: 245 | K11: 106.1666667 | L11: =+E11*G11*J11 -> 0 | M11: 1274 | N11: =+L11*E$7 -> 0
B12: Slaughter Lamb - ram (65 Lbs) | D12: 0.4166666667 | F12: 0.65 | H12: CWT | I12: 245 | K12: 66.35416667 | L12: =+E12*G12*J12 -> 0 | M12: 796.25 | N12: =+L12*E$7 -> 0
B13: Cull Ewes | D13: 0.1666666667 | F13: 1.25 | H13: CWT | I13: 86.8 | K13: 18.08333333 | L13: 0 | M13: 217 | N13: 0
B14: Cull Rams | D14: 0.04166666667 | F14: 2 | H14: CWT | I14: 91.8 | K14: 7.65 | L14: 0 | M14: 91.8 | N14: 0
B15: PRF Income | D15: 1 | F15: 3.33 | H15: Acre | I15: 1.96 | K15: 6.5268 | L15: 0 | M15: 78.3216 | N15: 0
D16: 0 | F16: 0 | I16: 0 | K16: 0 | L16: 0 | M16: 0 | N16: 0
D17: 0 | F17: 0 | I17: 0 | K17: 0 | L17: 0 | M17: 0 | N17: 0
A18: Total Revenue | F18: 70.41666667 | K18: 204.7809667 | L18: =+SUM(L11:L17) -> 0 | M18: 2457.3716 | N18: =+SUM(N11:N17) -> 0
F19: 99.58333333
F20: 29.16666667 | M20: Enterprise | N20: Enterprise
A21: VARIABLE COSTS | F21: Quantity | G21: Quantity | H21: Units | I21: $/Unit | J21: $/Unit | K21: Total | L21: Total | M21: Total | N21: Total
A22: Production Costs
B23: Miscellaneous
C24: Supplies | F24: 1 | H24: Head | I24: 2 | K24: 2 | L24: =+J24*G24 -> 0 | M24: 24 | N24: =+L24*E$7 -> 0
C25: PRF Rainfall Ins | F25: 1 | H25: Head | I25: 3.7 | K25: 3.7 | L25: 0 | M25: 44.4 | N25: 0
F26: 1 | I26: 0 | K26: 0 | L26: 0 | M26: 0 | N26: 0
F27: 1 | I27: 0 | K27: 0 | L27: 0 | M27: 0 | N27: 0
B28: Marketing Expense | F28: 1 | H28: Head | I28: 5.102083333 | K28: 5.102083333 | L28: 0 | M28: 61.225 | N28: 0
B29: Feed
C30: Salt - Sheep | F30: 2.708333333 | H30: Pound | I30: 0.131 | K30: 0.3547916667 | L30: =+J30*G30 -> 0 | M30: 4.2575 | N30: =+L30*E$7 -> 0
C31: Mineral - Sheep | F31: 1.083333333 | H31: Pound | I31: 0.437 | K31: 0.4734166667 | L31: 0 | M31: 5.681 | N31: 0
C32: Range Cubes 20% | F32: 0.4875 | H32: CWT | I32: 17.9 | K32: 8.72625 | L32: 0 | M32: 104.715 | N32: 0
C33: Corn - Sheep and Goat | F33: 24.375 | H33: Pound | I33: 0.0714 | K33: 1.740375 | L33: 0 | M33: 20.8845 | N33: 0
F34: 0 | I34: 0 | K34: 0 | L34: 0 | M34: 0 | N34: 0
F35: 0 | I35: 0 | K35: 0 | L35: 0 | M35: 0 | N35: 0
F36: 0 | I36: 0 | K36: 0 | L36: 0 | M36: 0 | N36: 0
B37: Vet. Medicine
C38: Soremouth | F38: 1.25 | H38: Dose | I38: 0.34 | K38: 0.425 | L38: 0 | M38: 5.1 | N38: =+L38*E$7 -> 0
C39: Overeat/Tetnus | F39: 1.25 | H39: Dose | I39: 0.8404 | K39: 1.0505 | L39: 0 | M39: 12.606 | N39: 0
F40: 0 | I40: 0 | K40: 0 | L40: 0 | M40: 0 | N40: 0
F41: 0 | I41: 0 | K41: 0 | L41: 0 | M41: 0 | N41: 0
F42: 0 | I42: 0 | K42: 0 | L42: 0 | M42: 0 | N42: 0
B43: Fuel | F43: 1 | H43: Head | I43: 4.8375 | K43: 4.8375 | L43: 0 | M43: 58.05 | N43: 0
B44: Lube (As a % of fuel) | F44: 0.1 | H44: Percent | I44: 4.8375 | K44: 0.48375 | L44: 0 | M44: 5.805 | N44: 0
B45: Repairs | F45: 1 | H45: Head | I45: 32.57745536 | K45: 32.57745536 | L45: 0 | M45: 390.9294643 | N45: 0
B46: Labor | F46: 0 | H46: Hours | I46: 0 | K46: 0 | L46: 0 | M46: 0 | N46: 0
B47: Utilities | F47: 1 | H47: Head | I47: 6 | K47: 6 | L47: 0 | M47: 72 | N47: 0
K48: 0 | L48: =+J48*G48 -> 0 | M48: 0 | N48: 0
B49: Purchase Breeding Female | F49: 1 | I49: 0 | K49: 0 | L49: =+J49*G49 -> 0 | M49: 0 | N49: 0
B50: Purchase Breeding Male | F50: 1 | I50: 0 | K50: 0 | L50: 0 | M50: 0 | N50: 0
B51: Purchase Older Repalcement Female | F51: 1 | I51: 0 | K51: 0 | L51: 0 | M51: 0 | N51: 0
B52: Purchase Younger Repalcement Female | F52: 1 | I52: 0 | K52: 0 | L52: 0 | M52: 0 | N52: 0
B53: Interest on Credit Line | I53: 0.08 | K53: 3.810429374 | L53: =+SUM(L22:L52)/2*J53 -> 0 | M53: 45.72515249 | N53: 0
A54: Total Variable Costs | K54: 71.2815514 | L54: =+SUM(L24:L53) -> 0 | M54: 855.3786168 | N54: =+SUM(N24:N53) -> 0
A56: Planned Returns Above Variable Costs: | K56: 133.4994153 | L56: =+L18-L54 -> 0 | M56: 1601.992983 | N56: =+N18-N54 -> 0
B57: Average Lamb Breakeven Price to Cover Variable Costs | I57: 55.41503157 | J57: =IF((E11*G11+E12*G12)=0,"n/a",(L54-SUM(L13:L17))/(E11*G11+E12*G12)) -> n/a | K57: CWT
M58: Enterprise | N58: Enterprise
A59: FIXED COSTS | F59: Quantity | G59: Quantity | H59: Units | I59: $/Unit | J59: $/Unit | K59: Total | L59: Total | M59: Total | N59: Total
B60: Depreciation - Equipment | F60: 1 | H60: Head | I60: 130.9328125 | K60: 130.9328125 | L60: =+G60*J60 -> 0 | M60: 1571.19375 | N60: =+L60*E$7 -> 0
B61: Depreciation - Livestock | F61: 1 | H61: Head | I61: 5.555555556 | K61: 5.555555556 | L61: 0 | M61: 66.66666667 | N61: 0
B62: Equipment Investment | F62: 0 | H62: dollars | I62: 0 | K62: 0 | L62: 0 | M62: 0 | N62: 0
B63: Insurance | F63: 1 | H63: Head | I63: 0 | K63: 0 | L63: 0 | M63: 0 | N63: 0
B64: Management Fee, Owner/Operator Labor | F64: 1 | H64: Head | I64: 0 | K64: 0 | L64: =+J64*G64 -> 0 | M64: 0 | N64: 0
B65: Salaried Labor | F65: 1 | H65: Head | I65: 0 | K65: 0 | L65: =+J65*G65 -> 0 | M65: 0 | N65: 0
B66: Pasture Cost | F66: 3.333333333 | H66: Acres | I66: 8 | K66: 26.66666667 | L66: 0 | M66: 320 | N66: 0
K67: 0 | L67: 0 | M67: 0 | N67: 0
K68: 0 | L68: 0 | M68: 0 | N68: 0
A69: Total Fixed Costs | K69: 163.1550347 | L69: =+SUM(L60:L66) -> 0 | M69: 1957.860417 | N69: =+SUM(N60:N66) -> 0
A70: Total Costs | K70: 234.4365861 | L70: =+L54+L69 -> 0 | M70: 2813.239033 | N70: =+N54+N69 -> 0
A71: Planned Returns to Management, Risk, and Profit: | K71: -29.65561945 | L71: =+L18-L70 -> 0 | M71: -355.8674334 | N71: =+N18-N70 -> 0
B72: Average Lamb Breakeven Price to Cover Total Costs | I72: 287.1144892 | J72: =IF((E11*G11+E12*G12)=0,"n/a",(L70-SUM(L13:L17))/(E11*G11+E12*G12)) -> n/a | K72: CWT
C74: Sensitivity Analysis for Example
C75: Example Weaning Percent | D75: Example Gross Sales per Breeding Female | F75: Pounds Produced per Breeding Female | H75: Example Breakeven Lamb Pay Weight to Cover Total Cost | K75: Example Average Breakeven Price to Cover Total Cost
C76: 1.45 | D76: 232.3843 | F76: 110.85 | H76: 64.30207881 | K76: 247.5124907
C77: 1.35 | D77: 218.5826333 | F77: 105.2166667 | H77: 69.7360573 | K77: 265.8467492
C78: 1.25 | D78: 204.7809667 | F78: 99.58333333 | H78: 76.17323182 | K78: 287.1144892
C79: 1.15 | D79: 190.9793 | F79: 93.95 | H79: 83.91966217 | K79: 312.0809665
C80: 1.05 | D80: 177.1776333 | F80: 88.31666667 | H80: 93.42000129 | K80: 341.8029633
D82: ="Example Male "&F8&" Price" -> Example Male Lamb Price | K82: =+I11 -> 245
D83: ="Example Female "&F8&" Price" -> Example Female Lamb Price | K83: =+I12 -> 245
D84: ="Example Weighted Average "&F8&" Price ($/cwt)" -> Example Weighted Average Lamb Price ($/cwt) | K84: =+(K11+K12)/(D11*F11+D12*F12) -> 245
C85: Sensitivity Analysis for Your Values
C86: Your Weaning Percent | D86: ="Your Gross Sales per "&F7 -> Your Gross Sales per Breeding Female | F86: ="Pounds Produced per "&F7 -> Pounds Produced per Breeding Female | H86: ="Your Breakeven "&F8&" Pay Weight to Cover Total Cost" -> Your Breakeven Lamb Pay Weight to Cover Total Cost | K86: Your Average Breakeven Price to Cover Total Cost
C87: =+C88+C76-C77 -> 1.2 | D87: =+IF($C$89=0,0,$L$18-$L$11-$L$12+($L$11+$L$12)*C87/$C$89) -> 0 | F87: =IF($C$89=0,0,$M$93*C87/$C$89+$M$94) -> 0 | H87: =IF($D$89=0,0,(YTotExp-(YTotRet+YTotExp-$L$11-$L$12))/(YPrice/100)/(C87-$E$13*$E$7/$E$8)/($E$8/$E$7)) -> 0 | K87: =IF(F87-$M$94=0,0,(YTotExp-(YTotRet+YTotExp-$L$11-$L$12))/(F87-$M$94)*100) -> 0
C88: =+C89+C77-C78 -> 1.1 | D88: =+IF($C$89=0,0,$L$18-$L$11-$L$12+($L$11+$L$12)*C88/$C$89) -> 0 | F88: =IF($C$89=0,0,$M$93*C88/$C$89+$M$94) -> 0 | H88: =IF($D$89=0,0,(YTotExp-(YTotRet+YTotExp-$L$11-$L$12))/(YPrice/100)/(C88-$E$13*$E$7/$E$8)/($E$8/$E$7)) -> 0 | K88: =IF(F88-$M$94=0,0,(YTotExp-(YTotRet+YTotExp-$L$11-$L$12))/(F88-$M$94)*100) -> 0
C89: 1 | D89: =+L18 -> 0 | F89: =M93+M94 -> 0 | H89: =IF($D$89=0,0,(YTotExp-(YTotRet+YTotExp-$L$11-$L$12))/(YPrice/100)/(C89-$E$13*$E$7/$E$8)/($E$8/$E$7)) -> 0 | K89: =IF(F89-$M$94=0,0,(YTotExp-(YTotRet+YTotExp-$L$11-$L$12))/(F89-$M$94)*100) -> 0
C90: =+C89+C79-C78 -> 0.9 | D90: =+IF($C$89=0,0,$L$18-$L$11-$L$12+($L$11+$L$12)*C90/$C$89) -> 0 | F90: =IF($C$89=0,0,$M$93*C90/$C$89+$M$94) -> 0 | H90: =IF($D$89=0,0,(YTotExp-(YTotRet+YTotExp-$L$11-$L$12))/(YPrice/100)/(C90-$E$13*$E$7/$E$8)/($E$8/$E$7)) -> 0 | K90: =IF(F90-$M$94=0,0,(YTotExp-(YTotRet+YTotExp-$L$11-$L$12))/(F90-$M$94)*100) -> 0
C91: =+C90+C80-C79 -> 0.8 | D91: =+IF($C$89=0,0,$L$18-$L$11-$L$12+($L$11+$L$12)*C91/$C$89) -> 0 | F91: =IF($C$89=0,0,$M$93*C91/$C$89+$M$94) -> 0 | H91: =IF($D$89=0,0,(YTotExp-(YTotRet+YTotExp-$L$11-$L$12))/(YPrice/100)/(C91-$E$13*$E$7/$E$8)/($E$8/$E$7)) -> 0 | K91: =IF(F91-$M$94=0,0,(YTotExp-(YTotRet+YTotExp-$L$11-$L$12))/(F91-$M$94)*100) -> 0
D93: ="Your Male "&F8&" Price" -> Your Male Lamb Price | K93: =+J11 -> 0 | M93: =(E11*G11+E12*G12)*100 -> 0
D94: ="Your Female "&F8&" Price" -> Your Female Lamb Price | K94: =+J12 -> 0 | M94: =(E13*G13+E14*G14)*100 -> 0
D95: ="Your Weighted Average "&F8&" Price ($/cwt)" -> Your Weighted Average Lamb Price ($/cwt) | K95: =+IF((E11*G11+E12*G12)=0,0,(L11+L12)/(E11*G11+E12*G12)) -> 0
A97: Developed by Jeffrey Wright, Assistant Professor & Extension Economist, Texas A&M AgriLife Extension, 325-657-7309
A99: Information presented is prepared solely as a general guide and not intended to recognize or predict the costs and returns from any one operation. Brand names are mentioned only as examples and imply no endorsement.

Sheet NativePastureStockers
A1: Projections for Planning Purposes Only -- Not to be Used without Updating
A2: 2025 Estimated Costs and Returns per Animal
A3: Stocker Calf Budget - Native Pasture - Summer
A4: Enter your name for this budget in the cell above.
A5: Enter Your Values in the cells highlighed in MAROON. | M5: Stocker
E6: Your Head | N6: Your
B7: Number of Head | D7: 200 | G7: Your | M7: Enterprise | N7: Enterprise
E8: Your | F8: Pay Weight | G8: Weight | J8: Your | L8: Your | M8: Total | N8: Total
A9: REVENUE | D9: Head | E9: Head | F9: or Amount | G9: or Amount | H9: Units | I9: $/Unit | J9: $/Unit | K9: Total | L9: Total | M9: ="(" & D7 & " Head)" -> (200 Head) | N9: ="(" & E7 & " Head)" -> ( Head)
B11: Stocker | D11: 0.985 | F11: 6.7522 | H11: CWT | I11: 326 | K11: 2168.198942 | L11: =+J11*G11*E11 -> 0 | M11: 433639.7884 | N11: =+L11*E$7 -> 0
D12: 0.985 | F12: 0 | I12: 0 | K12: 0 | L12: 0 | M12: 0 | N12: 0
D13: 0.985 | F13: 0 | I13: 0 | K13: 0 | L13: 0 | M13: 0 | N13: 0
A14: Total Revenue | K14: 2168.198942 | L14: =+L11 -> 0 | M14: 433639.7884 | N14: 0
M15: Enterprise | N15: Enterprise
A16: VARIABLE COSTS | F16: Quantity | G16: Quantity | H16: Units | I16: $/Unit | J16: $/Unit | K16: Total | L16: Total | M16: Total | N16: Total
A17: Production Costs
B18: Stocker Purchase | F18: 5.25 | H18: CWT | I18: 358 | K18: 1879.5 | L18: =+J18*G18 -> 0 | M18: 375900 | N18: =+L18*E$7 -> 0
B19: Stocker Delivery | F19: 1 | H19: Head | I19: 5 | K19: 5 | L19: =+J19*G19 -> 0 | M19: 1000 | N19: =+L19*E$7 -> 0
B20: Grazing
C21: Acre Lease | F21: 0.005 | H21: Acre | I21: 0 | K21: 0 | L21: 0 | M21: 0 | N21: =+L21*E$7 -> 0
C22: Grazing by Month | F22: 3.0125 | H22: Month | I22: 20 | K22: 60.25 | L22: 0 | M22: 12050 | N22: 0
C23: Gain Contract | F23: 0 | H23: Pounds | I23: 0 | K23: 0 | L23: 0 | M23: 0 | N23: 0
C24: On Weight Per Month | F24: 0 | H24: Month | I24: 0 | K24: 0 | L24: =+G24*J24*G18 -> 0 | M24: 0 | N24: 0
B25: Health
C26: Vaccinate/process Stockers | F26: 1 | H26: Head | I26: 15 | K26: 15 | L26: =+J26*G26 -> 0 | M26: 3000 | N26: =+L26*E$7 -> 0
F27: 0 | I27: 0 | K27: 0 | L27: 0 | M27: 0 | N27: 0
F28: 0 | I28: 0 | K28: 0 | L28: 0 | M28: 0 | N28: 0
F29: 0 | I29: 0 | K29: 0 | L29: 0 | M29: 0 | N29: 0
B30: Feed
C31: Hay | F31: 0.05 | H31: Ton | I31: 265 | K31: 13.25 | L31: 0 | M31: 2650 | N31: 0
C32: Range Mineral | F32: 8.1 | H32: pound | I32: 0.437 | K32: 3.5397 | L32: 0 | M32: 707.94 | N32: 0
C33: Range Cubes 20% | F33: 0.25 | H33: CWT | I33: 17.9 | K33: 4.475 | L33: 0 | M33: 895 | N33: 0
F34: 0 | I34: 0 | K34: 0 | L34: 0 | M34: 0 | N34: 0
F35: 0 | I35: 0 | K35: 0 | L35: 0 | M35: 0 | N35: 0
F36: 0 | I36: 0 | K36: 0 | L36: 0 | M36: 0 | N36: 0
B37: Miscellaneous
F38: 1 | I38: 0 | K38: 0 | L38: =+J38*G38 -> 0 | M38: 0 | N38: =+L38*E$7 -> 0
F39: 1 | I39: 0 | K39: 0 | L39: 0 | M39: 0 | N39: 0
B40: Fuel | F40: 1 | H40: Head | I40: 5.7375 | K40: 5.7375 | L40: 0 | M40: 1147.5 | N40: 0
B41: Lube (As a % of fuel) | F41: 0.1 | H41: Percent | I41: 5.7375 | K41: 0.57375 | L41: 0 | M41: 114.75 | N41: 0
B42: Utilities | F42: 1 | H42: Head | I42: 0 | K42: 0 | L42: 0 | M42: 0 | N42: 0
B43: Repairs | F43: 1 | H43: Head | I43: 5.427 | K43: 5.427 | L43: 0 | M43: 1085.4 | N43: 0
B44: Marketing | F44: 0.985 | H44: Head | I44: 18.5 | K44: 18.2225 | L44: 0 | M44: 3644.5 | N44: 0
B45: Labor | F45: 1 | H45: Head | I45: 7874.51 | K45: 7874.51 | L45: 0 | M45: 1574902 | N45: 0
K46: 0 | L46: =+J46*G46 -> 0 | M46: 0 | N46: =+L46*E$7 -> 0
K47: 0 | L47: =+J47*G47 -> 0 | M47: 0 | N47: =+L47*E$7 -> 0
B48: Interest on Credit Line | I48: 0.08 | K48: 134.6840368 | L48: =+SUM(L18:L45)*J48/2 -> 0 | M48: 26936.80736 | N48: 0
A49: Total Variable Costs | K49: 10020.16949 | L49: =+SUM(L18:L48) -> 0 | M49: 2004033.897 | N49: =+SUM(N18:N48) -> 0
A51: Planned Returns Above Variable Costs: | K51: -7851.970545 | L51: =+L14-L49 -> 0 | M51: -1570394.109 | N51: =+N14-N49 -> 0
B53: Breakeven Price to Cover Variable Costs | I53: 1506.584654 | J53: =+IF(G11=0,"n/a",(L49-SUM(L12:L13))/(G11*E11)) -> n/a | K53: CWT
M54: Enterprise | N54: Enterprise
A55: FIXED COSTS | F55: Quantity | G55: Quantity | H55: Units | I55: $/Unit | J55: $/Unit | K55: Total | L55: Total | M55: Total | N55: Total
B57: Depreciation | F57: 1 | H57: Head | I57: 0 | K57: 0 | L57: =+J57*G57 -> 0 | M57: 0 | N57: =+L57*E$7 -> 0
B58: Equipment Investment | F58: 113.0625 | H58: dollars | I58: 0.08 | K58: 9.045 | L58: 0 | M58: 1809 | N58: 0
B59: Salaried Labor | F59: 1 | H59: Head | I59: 0 | K59: 0 | L59: 0 | M59: 0 | N59: 0
B60: Management Fee, Owner/Operator Labor | F60: 1 | H60: Head | I60: 0 | K60: 0 | L60: 0 | M60: 0 | N60: 0
B61: Insurance | F61: 1 | H61: Head | I61: 0 | K61: 0 | L61: 0 | M61: 0 | N61: 0
K62: 0 | L62: 0 | M62: 0 | N62: 0
K63: 0 | L63: 0 | M63: 0 | N63: 0
A64: Total Fixed Costs | K64: 9.045 | L64: =+SUM(L57:L61) -> 0 | M64: 1809 | N64: =+SUM(N57:N61) -> 0
A66: Total Costs | K66: 10029.21449 | L66: =+L49+L64 -> 0 | M66: 2005842.897 | N66: =+N49+N64 -> 0
A68: Planned Returns to Management, Risk, and Profit: | K68: -7861.015545 | L68: =+L51-L64 -> 0 | M68: -1572203.109 | N68: =+N51-N64 -> 0
A70: Breakeven Price to Cover Total Costs | I70: 1507.944617 | J70: =+IF(G11=0,"n/a",(L66-SUM(L12:L13))/(G11*E11)) -> n/a | K70: CWT
C72: Example Breakeven Sensitivity Analysis
F73: Purchase Weight (Lbs/Hd): 525 | H73: Sales Price/Cwt of $Total
F74: Sales Price/Cwt 326.00 | H74: Purchase Price/Cwt 358.00
C75: ADG (Lbs/day) | D75: Net Pay Weight with Shrink | F75: Breakeven Purchase Price ($/CWT) | H75: Breakeven Sales Price ($/CWT)
C76: 1.205215686 | D76: 698.898 | F76: -1124.853927 | H76: 1456.856886
C77: 1.104781046 | D77: 683.5315 | F77: -1134.252664 | H77: 1489.608546
C78: 1.004346405 | D78: 675.22 | F78: -1139.336294 | H78: 1507.944617
C79: 0.9039117647 | D79: 652.7985 | F79: -1153.050138 | H79: 1559.737598
C80: 0.8034771242 | D80: 637.432 | F80: -1162.448875 | H80: 1597.338013
C81: Your Average Daily Gain | E81: 0 | F81: Pounds per Day
C82: =+"Your Animal"&IF(M5="Stocker"," Grazing"," Feeding")&" Days" -> Your Animal Grazing Days | E82: 0 | F82: Days
C83: Your Sale Shrink | E83: 0
C85: Your Breakeven Sensitivity Analysis
F86: =+"Purchase Weight (Lbs/Hd): "&G18*100 -> Purchase Weight (Lbs/Hd): 0 | H86: Sales Price/Cwt of $Total
F87: ="Sales Price/Cwt "&IF(J11="",".00",TEXT(J11,"#.00")) -> Sales Price/Cwt .00 | H87: ="Purchase Price/Cwt "&IF(J18="",".00",TEXT(J18,"#.00")) -> Purchase Price/Cwt .00
C88: ADG (Lbs/day) | D88: Net Pay Weight with Shrink | F88: Breakeven Purchase Price ($/CWT) | H88: Breakeven Sales Price ($/CWT)
C89: =+C91*1.2 -> 0 | D89: =+C89*$E$82+$G$18*100*(1-$E$83) -> 0 | F89: =IF($G$18=0,0,(((D89*$J$11/100*$E$11)-($L$66-SUM($J$12:$J$13)-$L$18))/(100*$G$18))*100) -> 0 | H89: =IF($E$11=0,0,($L$66-SUM($J$12:$J$13))/(D89*$E$11/100)) -> 0
C90: =+C91*1.1 -> 0 | D90: =+C90*$E$82+$G$18*100*(1-$E$83) -> 0 | F90: =IF($G$18=0,0,(((D90*$J$11/100*$E$11)-($L$66-SUM($J$12:$J$13)-$L$18))/(100*$G$18))*100) -> 0 | H90: =IF($E$11=0,0,($L$66-SUM($J$12:$J$13))/(D90*$E$11/100)) -> 0
C91: =+E81 -> 0 | D91: =+C91*$E$82+$G$18*100*(1-$E$83) -> 0 | F91: =IF($G$18=0,0,(((D91*$J$11/100*$E$11)-($L$66-SUM($J$12:$J$13)-$L$18))/(100*$G$18))*100) -> 0 | H91: =IF($E$11=0,0,($L$66-SUM($J$12:$J$13))/(D91*$E$11/100)) -> 0
C92: =+C91*0.9 -> 0 | D92: =+C92*$E$82+$G$18*100*(1-$E$83) -> 0 | F92: =IF($G$18=0,0,(((D92*$J$11/100*$E$11)-($L$66-SUM($J$12:$J$13)-$L$18))/(100*$G$18))*100) -> 0 | H92: =IF($E$11=0,0,($L$66-SUM($J$12:$J$13))/(D92*$E$11/100)) -> 0
C93: =+C91*0.8 -> 0 | D93: =+C93*$E$82+$G$18*100*(1-$E$83) -> 0 | F93: =IF($G$18=0,0,(((D93*$J$11/100*$E$11)-($L$66-SUM($J$12:$J$13)-$L$18))/(100*$G$18))*100) -> 0 | H93: =IF($E$11=0,0,($L$66-SUM($J$12:$J$13))/(D93*$E$11/100)) -> 0
A95: Developed by Jeffrey Wright, Assistant Professor & Extension Economist, Texas A&M AgriLife Extension, 325-657-7309
A97: Information presented is prepared solely as a general guide and not intended to recognize or predict the costs and returns from any one operation. Brand names are mentioned only as examples and imply no endorsement.

Sheet WheatStockersMar15
A1: Projections for Planning Purposes Only -- Not to be Used without Updating
A2: 2025 Estimated Costs and Returns per Animal
A3: Stocker Calf Budget - Pull off Wheat March 15
A4: Enter your name for this budget in the cell above.
A5: Enter Your Values in the cells highlighed in MAROON. | M5: Stocker
E6: Your Head | N6: Your
B7: Number of Head | D7: 250 | G7: Your | M7: Enterprise | N7: Enterprise
E8: Your | F8: Pay Weight | G8: Weight | J8: Your | L8: Your | M8: Total | N8: Total
A9: REVENUE | D9: Head | E9: Head | F9: or Amount | G9: or Amount | H9: Units | I9: $/Unit | J9: $/Unit | K9: Total | L9: Total | M9: ="(" & D7 & " Head)" -> (250 Head) | N9: ="(" & E7 & " Head)" -> ( Head)
B11: Stocker | D11: 0.98 | F11: 6.174 | H11: CWT | I11: 284 | K11: 1718.34768 | L11: =+J11*G11*E11 -> 0 | M11: 429586.92 | N11: =+L11*E$7 -> 0
D12: 0.98 | F12: 0 | I12: 0 | K12: 0 | L12: 0 | M12: 0 | N12: 0
D13: 0.98 | F13: 0 | I13: 0 | K13: 0 | L13: 0 | M13: 0 | N13: 0
A14: Total Revenue | K14: 1718.34768 | L14: =+L11 -> 0 | M14: 429586.92 | N14: 0
M15: Enterprise | N15: Enterprise
A16: VARIABLE COSTS | F16: Quantity | G16: Quantity | H16: Units | I16: $/Unit | J16: $/Unit | K16: Total | L16: Total | M16: Total | N16: Total
A17: Production Costs
B18: Stocker Purchase | F18: 4.5 | H18: CWT | I18: 358 | K18: 1611 | L18: =+J18*G18 -> 0 | M18: 402750 | N18: =+L18*E$7 -> 0
B19: Stocker Delivery | F19: 1 | H19: Head | I19: 5 | K19: 5 | L19: =+J19*G19 -> 0 | M19: 1250 | N19: =+L19*E$7 -> 0
B20: Grazing
C21: Acre Lease | F21: 0.004 | H21: Acre | I21: 0 | K21: 0 | L21: 0 | M21: 0 | N21: =+L21*E$7 -> 0
C22: Grazing by Month | F22: 0 | H22: Month | I22: 0 | K22: 0 | L22: 0 | M22: 0 | N22: 0
C23: Gain Contract | F23: 170.8163265 | H23: Pounds | I23: 0.75 | K23: 128.1122449 | L23: 0 | M23: 32028.06122 | N23: 0
C24: On Weight Per Month | F24: 0 | H24: Month | I24: 0 | K24: 0 | L24: =+G24*J24*G18 -> 0 | M24: 0 | N24: 0
B25: Health
C26: Vaccinate/process Stockers | F26: 1 | H26: Head | I26: 15 | K26: 15 | L26: =+J26*G26 -> 0 | M26: 3750 | N26: =+L26*E$7 -> 0
F27: 0 | I27: 0 | K27: 0 | L27: 0 | M27: 0 | N27: 0
F28: 0 | I28: 0 | K28: 0 | L28: 0 | M28: 0 | N28: 0
F29: 0 | I29: 0 | K29: 0 | L29: 0 | M29: 0 | N29: 0
B30: Feed
C31: Hay | F31: 0.1125 | H31: Ton | I31: 265 | K31: 29.8125 | L31: 0 | M31: 7453.125 | N31: 0
C32: Salt & Mineral - Stockers | F32: 6.4 | H32: Pounds | I32: 0.23 | K32: 1.472 | L32: 0 | M32: 368 | N32: 0
F33: 0 | I33: 0 | K33: 0 | L33: 0 | M33: 0 | N33: 0
F34: 0 | I34: 0 | K34: 0 | L34: 0 | M34: 0 | N34: 0
F35: 0 | I35: 0 | K35: 0 | L35: 0 | M35: 0 | N35: 0
B36: Miscellaneous
F37: 1 | I37: 0 | K37: 0 | L37: =+J37*G37 -> 0 | M37: 0 | N37: =+L37*E$7 -> 0
F38: 1 | I38: 0 | K38: 0 | L38: 0 | M38: 0 | N38: 0
B39: Fuel | F39: 1 | H39: Head | I39: 4.59 | K39: 4.59 | L39: 0 | M39: 1147.5 | N39: 0
B40: Lube (As a % of fuel) | F40: 0.1 | H40: Percent | I40: 4.59 | K40: 0.459 | L40: 0 | M40: 114.75 | N40: 0
B41: Utilities | F41: 1 | H41: Head | I41: 3 | K41: 3 | L41: 0 | M41: 750 | N41: 0
B42: Repairs | F42: 1 | H42: Head | I42: 1.914 | K42: 1.914 | L42: 0 | M42: 478.5 | N42: 0
B43: Marketing | F43: 0.98 | H43: Head | I43: 18 | K43: 17.64 | L43: 0 | M43: 4410 | N43: 0
B44: Labor | F44: 1 | H44: Head | I44: 9844.128 | K44: 9844.128 | L44: 0 | M44: 2461032 | N44: 0
K45: 0 | L45: =+J45*G45 -> 0 | M45: 0 | N45: =+L45*E$7 -> 0
K46: 0 | L46: =+J46*G46 -> 0 | M46: 0 | N46: =+L46*E$7 -> 0
B47: Interest on Credit Line | I47: 0.08 | K47: 153.3588239 | L47: =+SUM(L18:L44)*J47/2 -> 0 | M47: 38339.70597 | N47: 0
A48: Total Variable Costs | K48: 11815.48657 | L48: =+SUM(L18:L47) -> 0 | M48: 2953871.642 | N48: =+SUM(N18:N47) -> 0
A50: Planned Returns Above Variable Costs: | K50: -10097.13889 | L50: =+L14-L48 -> 0 | M50: -2524284.722 | N50: =+N14-N48 -> 0
B52: Breakeven Price to Cover Variable Costs | I52: 1952.805142 | J52: =+IF(G11=0,"n/a",(L48-SUM(L12:L13))/(G11*E11)) -> n/a | K52: CWT
M53: Enterprise | N53: Enterprise
A54: FIXED COSTS | F54: Quantity | G54: Quantity | H54: Units | I54: $/Unit | J54: $/Unit | K54: Total | L54: Total | M54: Total | N54: Total
B56: Depreciation | F56: 1 | H56: Head | I56: 4.770714286 | K56: 4.770714286 | L56: =+J56*G56 -> 0 | M56: 1192.678571 | N56: =+L56*E$7 -> 0
B57: Equipment Investment | F57: 57.5925 | H57: dollars | I57: 0.08 | K57: 4.6074 | L57: 0 | M57: 1151.85 | N57: 0
B58: Salaried Labor | F58: 1 | H58: Head | I58: 0 | K58: 0 | L58: 0 | M58: 0 | N58: 0
B59: Management Fee, Owner/Operator Labor | F59: 1 | H59: Head | I59: 0 | K59: 0 | L59: 0 | M59: 0 | N59: 0
B60: Insurance | F60: 1 | H60: Head | I60: 0 | K60: 0 | L60: 0 | M60: 0 | N60: 0
K61: 0 | L61: 0 | M61: 0 | N61: 0
K62: 0 | L62: 0 | M62: 0 | N62: 0
A63: Total Fixed Costs | K63: 9.378114286 | L63: =+SUM(L56:L60) -> 0 | M63: 2344.528571 | N63: =+SUM(N56:N60) -> 0
A65: Total Costs | K65: 11824.86468 | L65: =+L48+L63 -> 0 | M65: 2956216.171 | N65: =+N48+N63 -> 0
A67: Planned Returns to Management, Risk, and Profit: | K67: -10106.517 | L67: =+L50-L63 -> 0 | M67: -2526629.251 | N67: =+N50-N63 -> 0
A69: Breakeven Price to Cover Total Costs | I69: 1954.35511 | J69: =+IF(G11=0,"n/a",(L65-SUM(L12:L13))/(G11*E11)) -> n/a | K69: CWT
C71: Example Breakeven Sensitivity Analysis
F72: Purchase Weight (Lbs/Hd): 450 | H72: Sales Price/Cwt of $Total
F73: Sales Price/Cwt 284.00 | H73: Purchase Price/Cwt 358.00
C74: ADG (Lbs/day) | D74: Net Pay Weight with Shrink | F74: Breakeven Purchase Price ($/CWT) | H74: Breakeven Sales Price ($/CWT)
C75: 1.674 | D75: 641.88 | F75: -1872.752059 | H75: 1879.819974
C76: 1.5345 | D76: 625.14 | F76: -1883.105563 | H76: 1930.157797
C77: 1.395 | D77: 617.4 | F77: -1887.892667 | H77: 1954.35511
C78: 1.2555 | D78: 591.66 | F78: -1903.812571 | H78: 2039.378774
C79: 1.116 | D79: 574.92 | F79: -1914.166075 | H79: 2098.759558
C80: Your Average Daily Gain | E80: 0 | F80: Pounds per Day
C81: =+"Your Animal"&IF(M5="Stocker"," Grazing"," Feeding")&" Days" -> Your Animal Grazing Days | E81: 0 | F81: Days
C82: Your Sale Shrink | E82: 0
C84: Your Breakeven Sensitivity Analysis
F85: =+"Purchase Weight (Lbs/Hd): "&G18*100 -> Purchase Weight (Lbs/Hd): 0 | H85: Sales Price/Cwt of $Total
F86: ="Sales Price/Cwt "&IF(J11="",".00",TEXT(J11,"#.00")) -> Sales Price/Cwt .00 | H86: ="Purchase Price/Cwt "&IF(J18="",".00",TEXT(J18,"#.00")) -> Purchase Price/Cwt .00
C87: ADG (Lbs/day) | D87: Net Pay Weight with Shrink | F87: Breakeven Purchase Price ($/CWT) | H87: Breakeven Sales Price ($/CWT)
C88: =+C90*1.2 -> 0 | D88: =+C88*$E$81+$G$18*100*(1-$E$82) -> 0 | F88: =IF($G$18=0,0,(((D88*$J$11/100*$E$11)-($L$65-SUM($J$12:$J$13)-$L$18))/(100*$G$18))*100) -> 0 | H88: =IF($E$11=0,0,($L$65-SUM($J$12:$J$13))/(D88*$E$11/100)) -> 0
C89: =+C90*1.1 -> 0 | D89: =+C89*$E$81+$G$18*100*(1-$E$82) -> 0 | F89: =IF($G$18=0,0,(((D89*$J$11/100*$E$11)-($L$65-SUM($J$12:$J$13)-$L$18))/(100*$G$18))*100) -> 0 | H89: =IF($E$11=0,0,($L$65-SUM($J$12:$J$13))/(D89*$E$11/100)) -> 0
C90: =+E80 -> 0 | D90: =+C90*$E$81+$G$18*100*(1-$E$82) -> 0 | F90: =IF($G$18=0,0,(((D90*$J$11/100*$E$11)-($L$65-SUM($J$12:$J$13)-$L$18))/(100*$G$18))*100) -> 0 | H90: =IF($E$11=0,0,($L$65-SUM($J$12:$J$13))/(D90*$E$11/100)) -> 0
C91: =+C90*0.9 -> 0 | D91: =+C91*$E$81+$G$18*100*(1-$E$82) -> 0 | F91: =IF($G$18=0,0,(((D91*$J$11/100*$E$11)-($L$65-SUM($J$12:$J$13)-$L$18))/(100*$G$18))*100) -> 0 | H91: =IF($E$11=0,0,($L$65-SUM($J$12:$J$13))/(D91*$E$11/100)) -> 0
C92: =+C90*0.8 -> 0 | D92: =+C92*$E$81+$G$18*100*(1-$E$82) -> 0 | F92: =IF($G$18=0,0,(((D92*$J$11/100*$E$11)-($L$65-SUM($J$12:$J$13)-$L$18))/(100*$G$18))*100) -> 0 | H92: =IF($E$11=0,0,($L$65-SUM($J$12:$J$13))/(D92*$E$11/100)) -> 0
A94: Developed by Jeffrey Wright, Assistant Professor & Extension Economist, Texas A&M AgriLife Extension, 325-657-7309
A96: Information presented is prepared solely as a general guide and not intended to recognize or predict the costs and returns from any one operation. Brand names are mentioned only as examples and imply no endorsement.

Sheet FatLambs
A1: Projections for Planning Purposes Only -- Not to be Used without Updating
A2: 2025 Estimated Costs and Returns per Animal
A3: Wool Breed Fat Lamb Budget - Commercial Feedlot (Do Not Publish)
A4: Enter your name for this budget in the cell above.
A5: Enter Your Values in the cells highlighed in MAROON. | M5: Feeder
E6: Your Head | N6: Your
B7: Number of Head | D7: 700 | G7: Your | M7: Enterprise | N7: Enterprise
E8: Your | F8: Pay Weight | G8: Weight | J8: Your | L8: Your | M8: Total | N8: Total
A9: REVENUE | D9: Head | E9: Head | F9: or Amount | G9: or Amount | H9: Units | I9: $/Unit | J9: $/Unit | K9: Total | L9: Total | M9: ="(" & D7 & " Head)" -> (700 Head) | N9: ="(" & E7 & " Head)" -> ( Head)
B11: Feeder | D11: 0.95 | F11: 0.99 | H11: CWT | I11: 245 | K11: 230.4225 | L11: =+J11*G11*E11 -> 0 | M11: 161295.75 | N11: =+L11*E$7 -> 0
B12: Wool, Feeders-short | D12: 0.95 | F12: 3.04 | H12: Pound | I12: 1.25 | K12: 3.61 | L12: 0 | M12: 2527 | N12: 0
D13: 0.95 | F13: 0 | I13: 0 | K13: 0 | L13: 0 | M13: 0 | N13: 0
D14: 0.95 | F14: 0 | I14: 0 | K14: 0 | L14: 0 | M14: 0 | N14: 0
A15: Total Revenue | K15: 234.0325 | L15: =+L11 -> 0 | M15: 163822.75 | N15: 0
M16: Enterprise | N16: Enterprise
A17: VARIABLE COSTS | F17: Quantity | G17: Quantity | H17: Units | I17: $/Unit | J17: $/Unit | K17: Total | L17: Total | M17: Total | N17: Total
A18: Production Costs
B19: Feeder Purchase | F19: 0.8 | H19: CWT | I19: 245 | K19: 196 | L19: =+J19*G19 -> 0 | M19: 137200 | N19: =+L19*E$7 -> 0
B20: Feeder Delivery | F20: 1 | H20: Head | I20: 1 | K20: 1 | L20: =+J20*G20 -> 0 | M20: 700 | N20: =+L20*E$7 -> 0
B21: Grazing
C22: Acre Lease | F22: 0.001428571429 | H22: Acre | I22: 0 | K22: 0 | L22: 0 | M22: 0 | N22: =+L22*E$7 -> 0
C23: Grazing by Month | F23: 0 | H23: Month | I23: 0 | K23: 0 | L23: 0 | M23: 0 | N23: 0
C24: Gain Contract | F24: 0 | H24: Pounds | I24: 0 | K24: 0 | L24: 0 | M24: 0 | N24: 0
C25: On Weight Per Month | F25: 0 | H25: Month | I25: 0 | K25: 0 | L25: =+G25*J25*G19 -> 0 | M25: 0 | N25: 0
B26: Health
C27: Overeat/Tetnus | F27: 1 | H27: Dose | I27: 0.8404 | K27: 0.8404 | L27: =+J27*G27 -> 0 | M27: 588.28 | N27: =+L27*E$7 -> 0
C28: Fenbendazole drench | F28: 1.875 | H28: ml | I28: 0.1 | K28: 0.1875 | L28: 0 | M28: 131.25 | N28: 0
F29: 0 | I29: 0 | K29: 0 | L29: 0 | M29: 0 | N29: 0
F30: 0 | I30: 0 | K30: 0 | L30: 0 | M30: 0 | N30: 0
F31: 0 | I31: 0 | K31: 0 | L31: 0 | M31: 0 | N31: 0
B32: Feed
C33: HayGrazer | F33: 0.002857142857 | H33: Ton | I33: 265 | K33: 0.7571428571 | L33: 0 | M33: 530 | N33: 0
C34: Lamb Feedlot Ration | F34: 0.2029857143 | H34: Ton | I34: 200 | K34: 40.59714286 | L34: 0 | M34: 28418 | N34: 0
F35: 0 | I35: 0 | K35: 0 | L35: 0 | M35: 0 | N35: 0
F36: 0 | I36: 0 | K36: 0 | L36: 0 | M36: 0 | N36: 0
F37: 0 | I37: 0 | K37: 0 | L37: 0 | M37: 0 | N37: 0
B38: Miscellaneous
C39: Shear Feeder Lambs | F39: 0.9985714286 | H39: Head | I39: 1.997142857 | K39: 1.994289796 | L39: =+J39*G39 -> 0 | M39: 1396.002857 | N39: =+L39*E$7 -> 0
F40: 1 | I40: 0 | K40: 0 | L40: 0 | M40: 0 | N40: 0
F41: 1 | I41: 0 | K41: 0 | L41: 0 | M41: 0 | N41: 0
B42: Fuel | F42: 1 | H42: Head | I42: 0.448 | K42: 0.448 | L42: 0 | M42: 313.6 | N42: 0
B43: Lube (As a % of fuel) | F43: 0.1 | H43: Percent | I43: 0.448 | K43: 0.0448 | L43: 0 | M43: 31.36 | N43: 0
B44: Utilities | F44: 1 | H44: Head | I44: 0.25 | K44: 0.25 | L44: 0 | M44: 175 | N44: 0
B45: Repairs | F45: 1 | H45: Head | I45: 0.1999326871 | K45: 0.1999326871 | L45: 0 | M45: 139.952881 | N45: 0
B46: Marketing | F46: 0.95 | H46: Head | I46: 8.42 | K46: 7.999 | L46: 0 | M46: 5599.3 | N46: 0
B47: Labor | F47: 1 | H47: Head | I47: 9817.2 | K47: 9817.2 | L47: 0 | M47: 6872040 | N47: 0
K48: 0 | L48: =+J48*G48 -> 0 | M48: 0 | N48: =+L48*E$7 -> 0
K49: 0 | L49: =+J49*G49 -> 0 | M49: 0 | N49: =+L49*E$7 -> 0
B50: Interest on Credit Line | I50: 0.08 | K50: 114.0030125 | L50: =+SUM(L19:L47)*J50/2 -> 0 | M50: 79802.10874 | N50: 0
A51: Total Variable Costs | K51: 10181.52122 | L51: =+SUM(L19:L50) -> 0 | M51: 7127064.854 | N51: =+SUM(N19:N50) -> 0
A53: Planned Returns Above Variable Costs: | K53: -9947.488721 | L53: =+L15-L51 -> 0 | M53: -6963242.104 | N53: =+N15-N51 -> 0
B55: Breakeven Price to Cover Variable Costs | I55: 10821.80885 | J55: =+IF(G11=0,"n/a",(L51-SUM(L12:L14))/(G11*E11)) -> n/a | K55: CWT
M56: Enterprise | N56: Enterprise
A57: FIXED COSTS | F57: Quantity | G57: Quantity | H57: Units | I57: $/Unit | J57: $/Unit | K57: Total | L57: Total | M57: Total | N57: Total
B59: Depreciation | F59: 1 | H59: Head | I59: 0.6713028891 | K59: 0.6713028891 | L59: =+J59*G59 -> 0 | M59: 469.9120224 | N59: =+L59*E$7 -> 0
B60: Equipment Investment | F60: 8.804091857 | H60: dollars | I60: 0.08 | K60: 0.7043273486 | L60: 0 | M60: 493.029144 | N60: 0
B61: Salaried Labor | F61: 1 | H61: Head | I61: 0 | K61: 0 | L61: 0 | M61: 0 | N61: 0
B62: Management Fee, Owner/Operator Labor | F62: 1 | H62: Head | I62: 3.5 | K62: 3.5 | L62: 0 | M62: 2450 | N62: 0
B63: Insurance | F63: 1 | H63: Head | I63: 0 | K63: 0 | L63: 0 | M63: 0 | N63: 0
K64: 0 | L64: 0 | M64: 0 | N64: 0
K65: 0 | L65: 0 | M65: 0 | N65: 0
A66: Total Fixed Costs | K66: 4.875630238 | L66: =+SUM(L59:L63) -> 0 | M66: 3412.941166 | N66: =+SUM(N59:N63) -> 0
A68: Total Costs | K68: 10186.39685 | L68: =+L51+L66 -> 0 | M68: 7130477.796 | N68: =+N51+N66 -> 0
A70: Planned Returns to Management, Risk, and Profit: | K70: -9952.364351 | L70: =+L53-L66 -> 0 | M70: -6966655.046 | N70: =+N53-N66 -> 0
A72: Breakeven Price to Cover Total Costs | I72: 10826.99293 | J72: =+IF(G11=0,"n/a",(L68-SUM(L12:L14))/(G11*E11)) -> n/a | K72: CWT
C74: Example Breakeven Sensitivity Analysis
F75: Purchase Weight (Lbs/Hd): 80 | H75: Sales Price/Cwt of $Total
F76: Sales Price/Cwt 245.00 | H76: Purchase Price/Cwt 245.00
C77: ADG (Lbs/day) | D77: Net Pay Weight with Shrink | F77: Breakeven Purchase Price ($/CWT) | H77: Breakeven Sales Price ($/CWT)
C78: 0.1682242991 | D78: 97.2 | F78: -12203.64231 | H78: 11030.04857
C79: 0.1542056075 | D79: 95.7 | F79: -12209.56888 | H79: 11202.93335
C80: 0.1401869159 | D80: 99 | F80: -12199.96794 | H80: 10829.50223
C81: 0.1261682243 | D81: 92.7 | F81: -12218.297 | H81: 11565.48782
C82: 0.1121495327 | D82: 91.2 | F82: -12222.66106 | H82: 11755.70966
C83: Your Average Daily Gain | E83: 0 | F83: Pounds per Day
C84: =+"Your Animal"&IF(M5="Stocker"," Grazing"," Feeding")&" Days" -> Your Animal Feeding Days | E84: 0 | F84: Days
C85: Your Sale Shrink | E85: 0
C87: Your Breakeven Sensitivity Analysis
F88: =+"Purchase Weight (Lbs/Hd): "&G19*100 -> Purchase Weight (Lbs/Hd): 0 | H88: Sales Price/Cwt of $Total
F89: ="Sales Price/Cwt "&IF(J11="",".00",TEXT(J11,"#.00")) -> Sales Price/Cwt .00 | H89: ="Purchase Price/Cwt "&IF(J19="",".00",TEXT(J19,"#.00")) -> Purchase Price/Cwt .00
C90: ADG (Lbs/day) | D90: Net Pay Weight with Shrink | F90: Breakeven Purchase Price ($/CWT) | H90: Breakeven Sales Price ($/CWT)
C91: =+C93*1.2 -> 0 | D91: =+C91*$E$84+$G$19*100*(1-$E$85) -> 0 | F91: =IF($G$19=0,0,(((D91*$J$11/100*$E$11)-($L$68-SUM($J$12:$J$14)-$L$19))/(100*$G$19))*100) -> 0 | H91: =IF($E$11=0,0,($L$68-SUM($J$12:$J$14))/(D91*$E$11/100)) -> 0
C92: =+C93*1.1 -> 0 | D92: =+C92*$E$84+$G$19*100*(1-$E$85) -> 0 | F92: =IF($G$19=0,0,(((D92*$J$11/100*$E$11)-($L$68-SUM($J$12:$J$14)-$L$19))/(100*$G$19))*100) -> 0 | H92: =IF($E$11=0,0,($L$68-SUM($J$12:$J$14))/(D92*$E$11/100)) -> 0
C93: =+E83 -> 0 | D93: =+C93*$E$84+$G$19*100*(1-$E$85) -> 0 | F93: =IF($G$19=0,0,(((D93*$J$11/100*$E$11)-($L$68-SUM($J$12:$J$14)-$L$19))/(100*$G$19))*100) -> 0 | H93: =IF($E$11=0,0,($L$68-SUM($J$12:$J$14))/(D93*$E$11/100)) -> 0
C94: =+C93*0.9 -> 0 | D94: =+C94*$E$84+$G$19*100*(1-$E$85) -> 0 | F94: =IF($G$19=0,0,(((D94*$J$11/100*$E$11)-($L$68-SUM($J$12:$J$14)-$L$19))/(100*$G$19))*100) -> 0 | H94: =IF($E$11=0,0,($L$68-SUM($J$12:$J$14))/(D94*$E$11/100)) -> 0
C95: =+C93*0.8 -> 0 | D95: =+C95*$E$84+$G$19*100*(1-$E$85) -> 0 | F95: =IF($G$19=0,0,(((D95*$J$11/100*$E$11)-($L$68-SUM($J$12:$J$14)-$L$19))/(100*$G$19))*100) -> 0 | H95: =IF($E$11=0,0,($L$68-SUM($J$12:$J$14))/(D95*$E$11/100)) -> 0
A97: Developed by Jeffrey Wright, Assistant Professor & Extension Economist, Texas A&M AgriLife Extension, 325-657-7309
A99: Information presented is prepared solely as a general guide and not intended to recognize or predict the costs and returns from any one operation. Brand names are mentioned only as examples and imply no endorsement.

Sheet Livestock Budget
A1: Estimated Costs and Returns per Animal or Breeding Female
A3: Livestock Budget
A5: Number of Head of Livestock | D5: 0
A7: Enter Your Values in the cells highlighed in MAROON. | H7: Enterprise
A8: REVENUE | C8: Head | D8: Quantity | E8: Units | F8: $/Unit | G8: Total | H8: Total
B9: Males Sold | C9: 0 | D9: 0 | E9: CWT | F9: 0 | G9: =IF($D$5=0,0,C9/$D$5*D9*F9) -> 0 | H9: =+G9*$D$5 -> 0
B10: Females Sold | C10: 0 | D10: 0 | E10: CWT | F10: 0 | G10: =IF($D$5=0,0,C10/$D$5*D10*F10) -> 0 | H10: =+G10*$D$5 -> 0
B11: Cull Breeding Females | C11: 0 | D11: 0 | E11: CWT | F11: 0 | G11: 0 | H11: 0
B12: Cull Breeding Males | C12: 0 | D12: 0 | E12: CWT | F12: 0 | G12: 0 | H12: 0
